Workbook

Sheet --READ ME FIRST--

Sheet Buttons
AH1: AIJ_Fields | AI1: =rngAIJ_Fields -> AIJ_Fields
AH2: EXPTIME | AI2: =AH2 -> EXPTIME
AH3: JD_SOBS | AI3: JD_SOBS
AH4: JD_UTC | AI4: JD_UTC
AH5: Label | AI5: Label
AH6: N_Sky_Pixels_T1 | AI6: N_Sky_Pixels_T1
AH7: N_Src_Pixels_T1 | AI7: N_Src_Pixels_T1
AH8: Sky/Pixel_T1 | AI8: Sky/Pixel_T1
AH9: Sky_Rad(Max) | AI9: Sky_Rad(Max)
AH10: Sky_Rad(Min) | AI10: Sky_Rad(Min)
AH11: slice | AI11: slice
AH12: Source_Radius | AI12: Source_Radius
AH13: Source_SNR_C2 | AI13: Source_SNR_C2
AH14: Source_SNR_T1 | AI14: Source_SNR_T1
AH15: Source-Sky_C2 | AI15: Source-Sky_C2
AH16: Source-Sky_T1 | AI16: Source-Sky_T1

Sheet ObsvEqmt
B1: Observer & Equipment Details | F1: Red - Required, Blue - Optional
B3: Observer Details
B4: BAAVSS Observer Code | C4: UOL
B5: AAVSO Observer Code
B6: Observer Name | C6: University of Louisville, KY
B8: Location Details
B9: Location Code | C9: No longer used
C10: Deg | D10: Min | E10: Sec | F10: Hem
B11: Latitude | C11: 38 | D11: 20 | E11: 41 | F11: N
B12: Longitude | C12: 85 | D12: 31 | E12: 42 | F12: W
B13: Height (m) | C13: 230
B15: Telescope Details
B16: Telescope Short Description | C16: RC 0.6m f/8
B17: Description | C17: RC Optical Systems UofL MORC24
B18: Aperture (mm) | C18: 610
B19: Focal Length (mm) | C19: 4900
B21: Camera Details
B22: Observation Method | C22: CCD
B23: Camera | C23: U16M
B24: Pixel Size (arcsec) | C24: 0.38 | D24: 0.38
B25: Gain (e-/ADU) | C25: 1.25
B26: Dark Current (e-/pixel) | C26: 0.2
B27: Readout Noise (e-/pixel) | C27: 9
B29: Spreadsheet
B30: Version | C30: =INDIRECT("'Version Log'!"&"A"&COUNTA('Version Log'!A:A)) -> 2.06
B31: Release Date | C31: Ref Version log

Sheet Results
B1: Observation Summary | E1: Red - Required, Blue - Optional, Green - Calculated/Automated | W1: Filter | X1: Explanation
W2: CV | X2: Clear (unfiltered) V-band comp star mag (more common than CR)
B3: Chart | C3: AAVSO WASP-12b | D3: Star Aperture | E3: 12 | G3: Airmass | K3: Red Warning Limit (Used in Data Checks) | W3: CR | X3: Clear (unfiltered) R-band comp star mag
B4: Filter | C4: V | D4: Sky Annulus Inner Radius | E4: 16 | G4: Observations per Block Average | I4: 5 | K4: Max Calc - Quoted Difference | N4: 0.05 | W4: U | X4: Johnson U
B5: Photometry Time Stamp | C5: Start Exposure | D5: Sky Annulus Outer Radius | E5: 20 | G5: Julian Date Offset | I5: 2453000 | K5: Comment | W5: B | X5: Johnson B
B6: Timing Error | C6: 1 | W6: V | X6: Johnson V
W7: R | X7: Cousins R
B8: Star Data & Summary Calculations | D8: (Individual Variable Measurements to Right) | W8: I | X8: Cousins I
C9: User Input | H9: Results | L9: Data Checks (Cells Turn Red when Limit Exceeded) | R9: Individual Variable Measurements | W9: J | X9: NIR 1.2 micron
C10: Star | D10: AIP4WIN | E10: Include in | F10: Reference | H10: Average | I10: Average | J10: Std Dev | K10: Average | L10: Calc - Quoted | M10: Min | N10: Max | O10: Magnitude | R10: Date | S10: Julian | T10: Magnitude | U10: Error | W10: H | X10: NIR 1.6 micron
B11: Type | C11: Designation | D11: Star | E11: Analysis | F11: Magnitude | G11: Error | H11: Magnitude | I11: Error | J11: Magnitude | K11: Weight | L11: Difference | M11: Magnitude | N11: Magnitude | O11: Check | R11: /Time | S11: Date | W11: K | X11: NIR 2.2 micron
B12: AAVSO Results | C12: =oVariableID -> WASP-12b | D12: =D13 -> Var | H12: =AVERAGE(CalcAAVSO!$AN$7:$AN$12) -> 10.03513281 | I12: =AVERAGE(CalcAAVSO!$AO$7:$AO$12) -> 0.1589945361 | J12: =STDEV(CalcAAVSO!$AN$7:$AN$12) -> 0.006245683153 | M12: =MAX(CalcAAVSO!$AN$7:$AN$12) -> 10.04127699 | N12: =MIN(CalcAAVSO!$AN$7:$AN$12) -> 10.02434026 | Q12: Average | R12: N/A | S12: N/A | T12: =Calculation!$AN5 -> 10.03513281 | U12: =Calculation!$AO5 -> 0.1589945361 | W12: VG | X12: Corrected Green Channel to Johnson V
B13: BAAVSS Results | C13: WASP-12b | D13: Var | H13: =AVERAGE(Calculation!$AN$7:$AN$12) -> 10.03513281 | I13: =AVERAGE(Calculation!$AO$7:$AO$12) -> 0.1589945361 | J13: =STDEV(Calculation!$AN$7:$AN$12) -> 0.006245683153 | K13: =AVERAGE(Calculation!$V$7:$V$12) -> 0 | L13: =$H$13-$F$13 -> 10.03513281 | M13: =MAX(Calculation!$AN$7:$AN$12) -> 10.04127699 | N13: =MIN(Calculation!$AN$7:$AN$12) -> 10.02434026 | O13: =IF(ABS($L$13)>oMagTol,"WARNING","OK") -> WARNING | Q13: Std Dev | R13: N/A | S13: N/A | T13: =Calculation!$AN6 -> 0.006245683153 | U13: =Calculation!$AO6 -> 0.001670031685 | W13: TR | X13: Red Filter (tricolour)
B14: Comparison | C14: 000-BKG-164 | D14: C1 | E14: Yes | F14: 9.452 | H14: =AVERAGE(Calculation!$AP$7:$AP$12) -> 9.535132811 | I14: =AVERAGE(Calculation!$AQ$7:$AQ$12) -> 0.1589860089 | J14: =STDEV(Calculation!$AP$7:$AP$12) -> 0.00520576052 | K14: =AVERAGE(Calculation!$Y$7:$Y$12) -> 0.5048441837 | L14: =$H$14-$F$14 -> 0.08313281112 | M14: =MAX(Calculation!$AP$7:$AP$12) -> 9.54131094 | N14: =MIN(Calculation!$AP$7:$AP$12) -> 9.529340263 | O14: =IF(ABS($L$14)>oMagTol,"WARNING","OK") -> WARNING | R14: =Calculation!C7+Calculation!D7 -> 2017-09-13T21:51:05.230 | S14: =Calculation!F7 -> 5010.41048 | T14: =Calculation!$AN7 -> 10.0353423 | U14: =Calculation!$AO7 -> 0.158617867 | W14: TG | X14: Green Filter (tricolour)
B15: Comparison | C15: 000-BKG-165 | D15: C2 | E15: Yes | F15: 9.747 | H15: =AVERAGE(Calculation!$AR$7:$AR$12) -> 10.19863281 | I15: =AVERAGE(Calculation!$AS$7:$AS$12) -> 0.1589990656 | J15: =STDEV(Calculation!$AR$7:$AR$12) -> 0.007214388786 | K15: =AVERAGE(Calculation!$AB$7:$AB$12) -> 0.182440864 | L15: =$H$15-$F$15 -> 0.4516328111 | M15: =MAX(Calculation!$AR$7:$AR$12) -> 10.20737878 | N15: =MIN(Calculation!$AR$7:$AR$12) -> 10.1901476 | O15: =IF(ABS($L$15)>oMagTol,"WARNING","OK") -> WARNING | R15: =Calculation!C8+Calculation!D8 -> 2017-09-13T21:53:20.250 | S15: =Calculation!F8 -> 5010.41204 | T15: =Calculation!$AN8 -> 10.04127699 | U15: =Calculation!$AO8 -> 0.1605844174 | W15: TB | X15: Blue Filter (tricolour)
B16: Comparison | C16: 000-BKG-166 | D16: C3 | E16: Yes | F16: 10.568 | H16: =AVERAGE(Calculation!$AT$7:$AT$12) -> 10.18729948 | I16: =AVERAGE(Calculation!$AU$7:$AU$12) -> 0.1589982685 | J16: =STDEV(Calculation!$AT$7:$AT$12) -> 0.003148586529 | K16: =AVERAGE(Calculation!$AE$7:$AE$12) -> 0.1898248276 | L16: =$H$16-$F$16 -> -0.3807005222 | M16: =MAX(Calculation!$AT$7:$AT$12) -> 10.19137878 | N16: =MIN(Calculation!$AT$7:$AT$12) -> 10.18334026 | O16: =IF(ABS($L$16)>oMagTol,"WARNING","OK") -> WARNING | R16: =Calculation!C9+Calculation!D9 -> 2017-09-13T21:55:35.259 | S16: =Calculation!F9 -> 5010.4136 | T16: =Calculation!$AN9 -> 10.0321476 | U16: =Calculation!$AO9 -> 0.1581749652 | W16: SU | X16: Sloan U
B17: Comparison | C17: 000-BKG-420 | D17: C4 | E17: Yes | F17: 10.984 | H17: =AVERAGE(Calculation!$AV$7:$AV$12) -> 10.83079948 | I17: =AVERAGE(Calculation!$AW$7:$AW$12) -> 0.159034087 | J17: =STDEV(Calculation!$AV$7:$AV$12) -> 0.007075836445 | K17: =AVERAGE(Calculation!$AH$7:$AH$12) -> 0.06724635882 | L17: =$H$17-$F$17 -> -0.1532005222 | M17: =MAX(Calculation!$AV$7:$AV$12) -> 10.83837878 | N17: =MIN(Calculation!$AV$7:$AV$12) -> 10.8181476 | O17: =IF(ABS($L$17)>oMagTol,"WARNING","OK") -> WARNING | R17: =Calculation!C10+Calculation!D10 -> 2017-09-13T21:57:50.270 | S17: =Calculation!F10 -> 5010.41517 | T17: =Calculation!$AN10 -> 10.04031094 | U17: =Calculation!$AO10 -> 0.1615022226 | W17: SG | X17: Sloan G
B18: Comparison | C18: 000-BKG-421 | D18: C5 | E18: Yes | F18: 11.697 | H18: =AVERAGE(Calculation!$AX$7:$AX$12) -> 10.94679948 | I18: =AVERAGE(Calculation!$AY$7:$AY$12) -> 0.159045636 | J18: =STDEV(Calculation!$AX$7:$AX$12) -> 0.01338832825 | K18: =AVERAGE(Calculation!$AK$7:$AK$12) -> 0.05564376583 | L18: =$H$18-$F$18 -> -0.7502005222 | M18: =MAX(Calculation!$AX$7:$AX$12) -> 10.97027699 | N18: =MIN(Calculation!$AX$7:$AX$12) -> 10.9313423 | O18: =IF(ABS($L$18)>oMagTol,"WARNING","OK") -> WARNING | R18: =Calculation!C11+Calculation!D11 -> 2017-09-13T22:00:06.269 | S18: =Calculation!F11 -> 5010.41674 | T18: =Calculation!$AN11 -> 10.03737878 | U18: =Calculation!$AO11 -> 0.1577745099 | W18: SR | X18: Sloan R
B19: Comparison | C19: 000-BKG-167 | E19: Yes | F19: 12.285 | R19: =Calculation!C12+Calculation!D12 -> 2017-09-13T22:02:21.300 | S19: =Calculation!F12 -> 5010.4183 | T19: =Calculation!$AN12 -> 10.02434026 | U19: =Calculation!$AO12 -> 0.1573132345 | W19: SI | X19: Sloan I
B20: Comparison | C20: 000-BKG-168 | E20: Yes | F20: 12.782 | W20: SZ | X20: Sloan Z
B21: Comparison
B22: Comparison
B23: Comparison
B24: Comparison
B25: Comparison
B26: Comparison
B27: Comparison
B28: Comparison
B29: Comparison
B30: Comparison
B31: Comparison
B32: Comparison
B33: Comparison
B34: Comparison
B35: Comparison
B36: Comparison
B37: Comparison
B38: Comparison
B39: Comparison
B40: Comparison
B41: Comparison
B42: Comparison
B43: Comparison
B44: Comparison
B45: Comparison
B46: Comparison
B47: Comparison

Sheet Calculation
B1: Image Data | T1: Intermediate Calculations | AL1: Zero Point Calculations | AN1: Final Derived Calculations | AZ1: Block Average Calculations
W2: Include | X2: =IF(OR(Results!$E$14="Yes",Results!$E$14="Check"),1,0) -> 1 | Z2: Include | AA2: =IF(OR(Results!$E$15="Yes",Results!$E$15="Check"),1,0) -> 1 | AC2: Include | AD2: =IF(OR(Results!$E$16="Yes",Results!$E$16="Check"),1,0) -> 1 | AF2: Include | AG2: =IF(OR(Results!$E$17="Yes",Results!$E$17="Check"),1,0) -> 1 | AI2: Include | AJ2: =IF(OR(Results!$E$18="Yes",Results!$E$18="Check"),1,0) -> 1 | AL2: Comparisons | AM2: =SUM($T$2:$AK$2) -> 5
G3: Exposure | H3: Var | J3: C1 | L3: C2 | N3: C3 | P3: C4 | R3: C5 | T3: Var | W3: C1 | Z3: C2 | AC3: C3 | AF3: C4 | AI3: C5 | AN3: Var | AP3: C1 | AR3: C2 | AT3: C3 | AV3: C4 | AX3: C5 | AZ3: Var
B4: Image Name | C4: Date | D4: Time | E4: Julian Date | F4: ="JD-"&oJDOffset -> JD-2453000 | G4: Length | H4: InstMag | I4: Error | J4: InstMag | K4: Error | L4: InstMag | M4: Error | N4: InstMag | O4: Error | P4: InstMag | Q4: Error | R4: InstMag | S4: Error | T4: Magnitude | U4: 1/SumSqErr | V4: Weight | W4: Magnitude | X4: 1/SumSqErr | Y4: Weight | Z4: Magnitude | AA4: 1/SumSqErr | AB4: Weight | AC4: Magnitude | AD4: 1/SumSqErr | AE4: Weight | AF4: Magnitude | AG4: 1/SumSqErr | AH4: Weight | AI4: Magnitude | AJ4: 1/SumSqErr | AK4: Weight | AL4: Wt Mean ZP Mag | AM4: Wt ZP Std Err | AN4: Magnitude | AO4: Error | AP4: Magnitude | AQ4: Error | AR4: Magnitude | AS4: Error | AT4: Magnitude | AU4: Error | AV4: Magnitude | AW4: Error | AX4: Magnitude | AY4: Error | AZ4: Julian Date | BA4: Magnitude | BB4: Error
A5: Mean | B5: =IF(ISERROR(AVERAGE(B7:B12)),"Not Calc",AVERAGE(B7:B12)) -> Not Calc | C5: 2017-09-13 | D5: 21:56:43.096 | E5: 2458010.414 | F5: 5010.414388 | G5: 120 | H5: 15.567 | I5: 0.00225 | J5: 15.067 | K5: 0.001533333333 | L5: 15.7305 | M5: 0.00255 | N5: 15.71916667 | O5: 0.0025 | P5: 16.36266667 | Q5: 0.0042 | R5: 16.47866667 | S5: 0.004616666667 | T5: Not Calc | U5: Not Calc | V5: 0 | W5: -5.615 | X5: 426504.6296 | Y5: 0.5048441837 | Z5: -5.9835 | AA5: 153964.497 | AB5: 0.182440864 | AC5: -5.151166667 | AD5: 160000 | AE5: 0.1898248276 | AF5: -5.378666667 | AG5: 56721.50961 | AH5: =IF(ISERROR(AVERAGE(AH7:AH12)),"Not Calc",AVERAGE(AH7:AH12)) -> 0.06724635882 | AI5: -4.781666667 | AJ5: 46949.72649 | AK5: 0.05564376583 | AL5: -5.531867189 | AM5: 0.1589786111 | AN5: 10.03513281 | AO5: 0.1589945361 | AP5: 9.535132811 | AQ5: 0.1589860089 | AR5: 10.19863281 | AS5: 0.1589990656 | AT5: 10.18729948 | AU5: 0.1589982685 | AV5: 10.83079948 | AW5: 0.159034087 | AX5: 10.94679948 | AY5: 0.159045636 | AZ5: Not Calc | BA5: Not Calc | BB5: Not Calc
A6: StDev | B6: =IF(ISERROR(STDEV(B7:B12)),"Not Calc",STDEV(B7:B12)) -> Not Calc | C6: 00:00:00 | D6: 00:04:13.012 | E6: 0.002927582016 | F6: 0.002927582016 | G6: 0 | H6: 0.014366628 | I6: 5.477225575e-05 | J6: 0.01277497554 | K6: 5.163977795e-05 | L6: 0.01462532051 | M6: 5.477225575e-05 | N6: 0.01026482667 | O6: 0 | P6: 0.01448677558 | Q6: 6.32455532e-05 | R6: 0.01737431054 | S6: 7.527726527e-05 | T6: Not Calc | U6: Not Calc | V6: 0 | W6: 0.01277497554 | X6: 27792.2416 | Y6: 0.0129037754 | Z6: 0.01462532051 | AA6: 6611.562233 | AB6: 0.004802473756 | AC6: 0.01026482667 | AD6: 0 | AE6: 0.008127207957 | AF6: 0.01448677558 | AG6: 1709.972626 | AH6: =IF(ISERROR(STDEV(AH7:AH12)),"Not Calc",STDEV(AH7:AH12)) -> 0.00212651233 | AI6: 0.01737431054 | AJ6: 1539.718313 | AK6: 0.00109766964 | AL6: 0.009312460358 | AM6: 0.001669569517 | AN6: 0.006245683153 | AO6: 0.001670031685 | AP6: 0.00520576052 | AQ6: 0.001669967671 | AR6: 0.007214388786 | AS6: 0.001669904849 | AT6: 0.003148586529 | AU6: 0.001669364265 | AV6: 0.007075836445 | AW6: 0.00167003841 | AX6: 0.01338832825 | AY6: 0.001670573193 | AZ6: Not Calc | BA6: Not Calc | BB6: Not Calc
B7: SA113_2x2_120s_Vp_E.00584.fit | C7: 2017-09-13 | D7: 21:51:05.230 | E7: 2458010.41 | F7: =E7-oJDOffset -> 5010.41048 | G7: 120 | H7: 15.572 | I7: 0.0023 | J7: 15.067 | K7: 0.0015 | L7: 15.731 | M7: 0.0025 | N7: 15.721 | O7: 0.0025 | P7: 16.365 | Q7: 0.0042 | R7: 16.468 | S7: 0.0046 | T7: Blank | U7: Blank | V7: 0 | W7: =(Results!$F$14-$J7)*$X$2 -> -5.615 | X7: =(1/SUMSQ(Results!$G$14,$K7))*$X$2 -> 444444.4444 | Y7: =$X7/SUM($X7,$AA7,$AD7,$AG7,$AJ7) -> 0.5118011824 | Z7: =(Results!$F$15-$L7)*$AA$2 -> -5.984 | AA7: =(1/SUMSQ(Results!$G$15,$M7))*$AA$2 -> 160000 | AB7: =$AA7/SUM($X7,$AA7,$AD7,$AG7,$AJ7) -> 0.1842484257 | AC7: =(Results!$F$16-$N7)*$AD$2 -> -5.153 | AD7: =(1/SUMSQ(Results!$G$16,$O7))*$AD$2 -> 160000 | AE7: =$AD7/SUM($X7,$AA7,$AD7,$AG7,$AJ7) -> 0.1842484257 | AF7: =(Results!$F$17-$P7)*$AG$2 -> -5.381 | AG7: =(1/SUMSQ(Results!$G$17,$Q7))*$AG$2 -> 56689.3424 | AH7: =$AG7/SUM($X7,$AA7,$AD7,$AG7,$AJ7) -> 0.06528076306 | AI7: =(Results!$F$18-$R7)*$AJ$2 -> -4.771 | AJ7: =(1/SUMSQ(Results!$G$18,$S7))*$AJ$2 -> 47258.97921 | AK7: =$AJ7/SUM($X7,$AA7,$AD7,$AG7,$AJ7) -> 0.05442120323 | AL7: =SUM($W7*$Y7,$Z7*$AB7,$AC7*$AE7,$AF7*$AH7,$AI7*$AK7) -> -5.536657702 | AM7: =IF($AM$2>1,SQRT(SUM((($W7-$AL7)^2)*$Y7,(($Z7-$AL7)^2)*$AB7,(($AC7-$AL7)^2)*$AE7,(($AF7-$AL7)^2)*$AH7,(($AI7-$AL7)^2)*$AK7)/(IF($AM$2=1,1,$AM$2-1))),1/SQRT(SUM($X7,$AA7,$AD7,$AG7,$AJ7))) -> 0.1586011908 | AN7: =$H7+$AL7 -> 10.0353423 | AO7: =SQRT(SUMSQ($I7,$AM7)) -> 0.158617867 | AP7: =$J7+$AL7 -> 9.530342298 | AQ7: =SQRT(SUMSQ($K7,$AM7)) -> 0.1586082839 | AR7: =$L7+$AL7 -> 10.1943423 | AS7: =SQRT(SUMSQ($M7,$AM7)) -> 0.1586208931 | AT7: =$N7+$AL7 -> 10.1843423 | AU7: =SQRT(SUMSQ($O7,$AM7)) -> 0.1586208931 | AV7: =$P7+$AL7 -> 10.8283423 | AW7: =SQRT(SUMSQ($Q7,$AM7)) -> 0.1586567923 | AX7: =$R7+$AL7 -> 10.9313423 | AY7: =SQRT(SUMSQ($S7,$AM7)) -> 0.158667885 | AZ7: =IF(MOD(ROW($AZ7)-7,oBlockAvg)=0,AVERAGE(INDIRECT(ADDRESS((INT((ROW($AZ7)-7)/oBlockAvg)*oBlockAvg)+7,COLUMN(Calculation!JDGraph))&":"&ADDRESS(((INT((ROW($AZ7)-7)/oBlockAvg)+1)*oBlockAvg)+6,COLUMN(Calculation!JDGraph)))),#N/A) -> 5010.413606 | BA7: =IF(MOD(ROW($BA7)-7,oBlockAvg)=0,AVERAGE(INDIRECT(ADDRESS((INT((ROW($BA7)-7)/oBlockAvg)*oBlockAvg)+7,40)&":"&ADDRESS(((INT((ROW($BA7)-7)/oBlockAvg)+1)*oBlockAvg)+6,40))),#N/A) -> 10.03729132 | BB7: =IF(MOD(ROW($BB7)-7,oBlockAvg)=0,STDEV(INDIRECT(ADDRESS((INT((ROW($BB7)-7)/oBlockAvg)*oBlockAvg)+7,40)&":"&ADDRESS(((INT((ROW($BB7)-7)/oBlockAvg)+1)*oBlockAvg)+6,40)))/SQRT(COUNT(INDIRECT(ADDRESS((INT((ROW($BB7)-7)/oBlockAvg)*oBlockAvg)+7,40)&":"&ADDRESS(((INT((ROW($BB7)-7)/oBlockAvg)+1)*oBlockAvg)+6,40)))),#N/A) -> 0.001662345715
B8: SA113_2x2_120s_Vp_E.00585.fit | C8: 2017-09-13 | D8: 21:53:20.250 | E8: 2458010.412 | F8: 5010.41204 | G8: 120 | H8: 15.574 | I8: 0.0023 | J8: 15.074 | K8: 0.0016 | L8: 15.737 | M8: 0.0026 | N8: 15.719 | O8: 0.0025 | P8: 16.366 | Q8: 0.0042 | R8: 16.503 | S8: 0.0047 | T8: Blank | U8: Blank | V8: 0 | W8: =(Results!$F$14-$J8)*$X$2 -> -5.622 | X8: =(1/SUMSQ(Results!$G$14,$K8))*$X$2 -> 390625 | Y8: =$X8/SUM($X8,$AA8,$AD8,$AG8,$AJ8) -> 0.4879685298 | Z8: =(Results!$F$15-$L8)*$AA$2 -> -5.99 | AA8: =(1/SUMSQ(Results!$G$15,$M8))*$AA$2 -> 147928.9941 | AB8: =$AA8/SUM($X8,$AA8,$AD8,$AG8,$AJ8) -> 0.184792816 | AC8: =(Results!$F$16-$N8)*$AD$2 -> -5.151 | AD8: =(1/SUMSQ(Results!$G$16,$O8))*$AD$2 -> 160000 | AE8: =$AD8/SUM($X8,$AA8,$AD8,$AG8,$AJ8) -> 0.1998719098 | AF8: =(Results!$F$17-$P8)*$AG$2 -> -5.382 | AG8: =(1/SUMSQ(Results!$G$17,$Q8))*$AG$2 -> 56689.3424 | AH8: =$AG8/SUM($X8,$AA8,$AD8,$AG8,$AJ8) -> 0.07081629457 | AI8: =(Results!$F$18-$R8)*$AJ$2 -> -4.806 | AJ8: =(1/SUMSQ(Results!$G$18,$S8))*$AJ$2 -> 45269.35265 | AK8: =$AJ8/SUM($X8,$AA8,$AD8,$AG8,$AJ8) -> 0.05655044981 | AL8: =SUM($W8*$Y8,$Z8*$AB8,$AC8*$AE8,$AF8*$AH8,$AI8*$AK8) -> -5.532723009 | AM8: =IF($AM$2>1,SQRT(SUM((($W8-$AL8)^2)*$Y8,(($Z8-$AL8)^2)*$AB8,(($AC8-$AL8)^2)*$AE8,(($AF8-$AL8)^2)*$AH8,(($AI8-$AL8)^2)*$AK8)/(IF($AM$2=1,1,$AM$2-1))),1/SQRT(SUM($X8,$AA8,$AD8,$AG8,$AJ8))) -> 0.1605679454 | AN8: =$H8+$AL8 -> 10.04127699 | AO8: =SQRT(SUMSQ($I8,$AM8)) -> 0.1605844174 | AP8: =$J8+$AL8 -> 9.541276991 | AQ8: =SQRT(SUMSQ($K8,$AM8)) -> 0.160575917 | AR8: =$L8+$AL8 -> 10.20427699 | AS8: =SQRT(SUMSQ($M8,$AM8)) -> 0.1605889943 | AT8: =$N8+$AL8 -> 10.18627699 | AU8: =SQRT(SUMSQ($O8,$AM8)) -> 0.1605874064 | AV8: =$P8+$AL8 -> 10.83327699 | AW8: =SQRT(SUMSQ($Q8,$AM8)) -> 0.1606228661 | AX8: =$R8+$AL8 -> 10.97027699 | AY8: =SQRT(SUMSQ($S8,$AM8)) -> 0.1606367178 | AZ8: =IF(MOD(ROW($AZ8)-7,oBlockAvg)=0,AVERAGE(INDIRECT(ADDRESS((INT((ROW($AZ8)-7)/oBlockAvg)*oBlockAvg)+7,COLUMN(Calculation!JDGraph))&":"&ADDRESS(((INT((ROW($AZ8)-7)/oBlockAvg)+1)*oBlockAvg)+6,COLUMN(Calculation!JDGraph)))),#N/A) -> 
B9: SA113_2x2_120s_Vp_E.00586.fit | C9: 2017-09-13 | D9: 21:55:35.259 | E9: 2458010.414 | F9: 5010.4136 | G9: 120 | H9: 15.553 | I9: 0.0022 | J9: 15.056 | K9: 0.0015 | L9: 15.711 | M9: 0.0025 | N9: 15.71 | O9: 0.0025 | P9: 16.339 | Q9: 0.0041 | R9: 16.461 | S9: 0.0045 | T9: Blank | U9: Blank | V9: 0 | W9: =(Results!$F$14-$J9)*$X$2 -> -5.604 | X9: =(1/SUMSQ(Results!$G$14,$K9))*$X$2 -> 444444.4444 | Y9: 0.5089162093 | Z9: =(Results!$F$15-$L9)*$AA$2 -> -5.964 | AA9: =(1/SUMSQ(Results!$G$15,$M9))*$AA$2 -> 160000 | AB9: 0.1832098353 | AC9: =(Results!$F$16-$N9)*$AD$2 -> -5.142 | AD9: =(1/SUMSQ(Results!$G$16,$O9))*$AD$2 -> 160000 | AE9: 0.1832098353 | AF9: =(Results!$F$17-$P9)*$AG$2 -> -5.355 | AG9: =(1/SUMSQ(Results!$G$17,$Q9))*$AG$2 -> 59488.39976 | AH9: 0.06811787453 | AI9: =(Results!$F$18-$R9)*$AJ$2 -> -4.764 | AJ9: =(1/SUMSQ(Results!$G$18,$S9))*$AJ$2 -> 49382.71605 | AK9: 0.05654624548 | AL9: -5.5208524 | AM9: 0.158159665 | AN9: 10.0321476 | AO9: 0.1581749652 | AP9: 9.5351476 | AQ9: 0.1581667779 | AR9: 10.1901476 | AS9: 0.1581794222 | AT9: 10.1891476 | AU9: 0.1581794222 | AV9: 10.8181476 | AW9: 0.1582127985 | AX9: 10.9401476 | AY9: 0.1582236696 | AZ9: =IF(MOD(ROW($AZ9)-7,oBlockAvg)=0,AVERAGE(INDIRECT(ADDRESS((INT((ROW($AZ9)-7)/oBlockAvg)*oBlockAvg)+7,COLUMN(Calculation!JDGraph))&":"&ADDRESS(((INT((ROW($AZ9)-7)/oBlockAvg)+1)*oBlockAvg)+6,COLUMN(Calculation!JDGraph)))),#N/A) -> 
B10: SA113_2x2_120s_Vp_E.00587.fit | C10: 2017-09-13 | D10: 21:57:50.270 | E10: 2458010.415 | F10: 5010.41517 | G10: 120 | H10: 15.587 | I10: 0.0023 | J10: 15.088 | K10: 0.0016 | L10: 15.75 | M10: 0.0026 | N10: 15.736 | O10: 0.0025 | P10: 16.382 | Q10: 0.0043 | R10: 16.498 | S10: 0.0047 | T10: Blank | U10: Blank | V10: 0 | W10: =(Results!$F$14-$J10)*$X$2 -> -5.636 | X10: =(1/SUMSQ(Results!$G$14,$K10))*$X$2 -> 390625 | Y10: 0.4895622907 | Z10: =(Results!$F$15-$L10)*$AA$2 -> -6.003 | AA10: =(1/SUMSQ(Results!$G$15,$M10))*$AA$2 -> 147928.9941 | AB10: 0.1853963704 | AC10: =(Results!$F$16-$N10)*$AD$2 -> -5.168 | AD10: =(1/SUMSQ(Results!$G$16,$O10))*$AD$2 -> 160000 | AE10: 0.2005247143 | AF10: =(Results!$F$17-$P10)*$AG$2 -> -5.398 | AG10: =(1/SUMSQ(Results!$G$17,$Q10))*$AG$2 -> 54083.28826 | AH10: 0.06778147454 | AI10: =(Results!$F$18-$R10)*$AJ$2 -> -4.801 | AJ10: =(1/SUMSQ(Results!$G$18,$S10))*$AJ$2 -> 45269.35265 | AK10: 0.05673515003 | AL10: -5.54668906 | AM10: 0.1614858443 | AN10: 10.04031094 | AO10: 0.1615022226 | AP10: 9.54131094 | AQ10: 0.1614937705 | AR10: 10.20331094 | AS10: 0.1615067736 | AT10: 10.18931094 | AU10: 0.1615051947 | AV10: 10.83531094 | AW10: 0.1615430838 | AX10: 10.95131094 | AY10: 0.1615542259 | AZ10: =IF(MOD(ROW($AZ10)-7,oBlockAvg)=0,AVERAGE(INDIRECT(ADDRESS((INT((ROW($AZ10)-7)/oBlockAvg)*oBlockAvg)+7,COLUMN(Calculation!JDGraph))&":"&ADDRESS(((INT((ROW($AZ10)-7)/oBlockAvg)+1)*oBlockAvg)+6,COLUMN(Calculation!JDGraph)))),#N/A) -> 
B11: SA113_2x2_120s_Vp_E.00588.fit | C11: 2017-09-13 | D11: 22:00:06.269 | E11: 2458010.417 | F11: 5010.41674 | G11: 120 | H11: 15.568 | I11: 0.0022 | J11: 15.064 | K11: 0.0015 | L11: 15.738 | M11: 0.0026 | N11: 15.722 | O11: 0.0025 | P11: 16.369 | Q11: 0.0042 | R11: 16.471 | S11: 0.0046 | T11: Blank | U11: Blank | V11: 0 | W11: =(Results!$F$14-$J11)*$X$2 -> -5.612 | X11: =(1/SUMSQ(Results!$G$14,$K11))*$X$2 -> 444444.4444 | Y11: 0.5190157078 | Z11: =(Results!$F$15-$L11)*$AA$2 -> -5.991 | AA11: =(1/SUMSQ(Results!$G$15,$M11))*$AA$2 -> 147928.9941 | AB11: 0.172749311 | AC11: =(Results!$F$16-$N11)*$AD$2 -> -5.154 | AD11: =(1/SUMSQ(Results!$G$16,$O11))*$AD$2 -> 160000 | AE11: 0.1868456548 | AF11: =(Results!$F$17-$P11)*$AG$2 -> -5.385 | AG11: =(1/SUMSQ(Results!$G$17,$Q11))*$AG$2 -> 56689.3424 | AH11: 0.06620098314 | AI11: =(Results!$F$18-$R11)*$AJ$2 -> -4.774 | AJ11: =(1/SUMSQ(Results!$G$18,$S11))*$AJ$2 -> 47258.97921 | AK11: 0.05518834322 | AL11: -5.530621224 | AM11: 0.1577591708 | AN11: 10.03737878 | AO11: 0.1577745099 | AP11: 9.533378776 | AQ11: 0.1577663018 | AR11: 10.20737878 | AS11: 0.1577805944 | AT11: 10.19137878 | AU11: 0.1577789783 | AV11: 10.83837878 | AW11: 0.1578150689 | AX11: 10.94037878 | AY11: 0.1578262208 | AZ11: =IF(MOD(ROW($AZ11)-7,oBlockAvg)=0,AVERAGE(INDIRECT(ADDRESS((INT((ROW($AZ11)-7)/oBlockAvg)*oBlockAvg)+7,COLUMN(Calculation!JDGraph))&":"&ADDRESS(((INT((ROW($AZ11)-7)/oBlockAvg)+1)*oBlockAvg)+6,COLUMN(Calculation!JDGraph)))),#N/A) -> 
B12: SA113_2x2_120s_Vp_E.00589.fit | C12: 2017-09-13 | D12: 22:02:21.300 | E12: 2458010.418 | F12: 5010.4183 | G12: 120 | H12: 15.548 | I12: 0.0022 | J12: 15.053 | K12: 0.0015 | L12: 15.716 | M12: 0.0025 | N12: 15.707 | O12: 0.0025 | P12: 16.355 | Q12: 0.0042 | R12: 16.471 | S12: 0.0046 | T12: Blank | U12: Blank | V12: 0 | W12: =(Results!$F$14-$J12)*$X$2 -> -5.601 | X12: =(1/SUMSQ(Results!$G$14,$K12))*$X$2 -> 444444.4444 | Y12: 0.5118011824 | Z12: =(Results!$F$15-$L12)*$AA$2 -> -5.969 | AA12: =(1/SUMSQ(Results!$G$15,$M12))*$AA$2 -> 160000 | AB12: 0.1842484257 | AC12: =(Results!$F$16-$N12)*$AD$2 -> -5.139 | AD12: =(1/SUMSQ(Results!$G$16,$O12))*$AD$2 -> 160000 | AE12: 0.1842484257 | AF12: =(Results!$F$17-$P12)*$AG$2 -> -5.371 | AG12: =(1/SUMSQ(Results!$G$17,$Q12))*$AG$2 -> 56689.3424 | AH12: 0.06528076306 | AI12: =(Results!$F$18-$R12)*$AJ$2 -> -4.774 | AJ12: =(1/SUMSQ(Results!$G$18,$S12))*$AJ$2 -> 47258.97921 | AK12: 0.05442120323 | AL12: -5.523659737 | AM12: 0.1572978504 | AN12: 10.02434026 | AO12: 0.1573132345 | AP12: 9.529340263 | AQ12: 0.1573050023 | AR12: 10.19234026 | AS12: 0.157317716 | AT12: 10.18334026 | AU12: 0.157317716 | AV12: 10.83134026 | AW12: 0.1573539124 | AX12: 10.94734026 | AY12: 0.157365097 | AZ12: =IF(MOD(ROW($AZ12)-7,oBlockAvg)=0,AVERAGE(INDIRECT(ADDRESS((INT((ROW($AZ12)-7)/oBlockAvg)*oBlockAvg)+7,COLUMN(Calculation!JDGraph))&":"&ADDRESS(((INT((ROW($AZ12)-7)/oBlockAvg)+1)*oBlockAvg)+6,COLUMN(Calculation!JDGraph)))),#N/A) -> 5010.4183 | BA12: 10.02434026

Sheet CalcAAVSO
B1: Image Data | T1: Intermediate Calculations | AL1: Zero Point Calculations | AN1: Final Derived Calculations | AZ1: Block Average Calculations
W2: Include | X2: =IF(Results!$E$14="Yes",1,0) -> 1 | Z2: Include | AA2: =IF(Results!$E$15="Yes",1,0) -> 1 | AC2: Include | AD2: =IF(Results!$E$16="Yes",1,0) -> 1 | AF2: Include | AG2: =IF(Results!$E$17="Yes",1,0) -> 1 | AI2: Include | AJ2: =IF(Results!$E$18="Yes",1,0) -> 1 | AL2: Comparisons | AM2: =SUM($T$2:$AK$2) -> 5
G3: Exposure | H3: Var | J3: C1 | L3: C2 | N3: C3 | P3: C4 | R3: C5 | T3: Var | W3: C1 | Z3: C2 | AC3: C3 | AF3: C4 | AI3: C5 | AN3: Var | AP3: C1 | AR3: C2 | AT3: C3 | AV3: C4 | AX3: C5 | AZ3: Var
B4: Image Name | C4: Date | D4: Time | E4: Julian Date | F4: ="JD-"&oJDOffset -> JD-2453000 | G4: Length | H4: InstMag | I4: Error | J4: InstMag | K4: Error | L4: InstMag | M4: Error | N4: InstMag | O4: Error | P4: InstMag | Q4: Error | R4: InstMag | S4: Error | T4: Magnitude | U4: 1/SumSqErr | V4: Weight | W4: Magnitude | X4: 1/SumSqErr | Y4: Weight | Z4: Magnitude | AA4: 1/SumSqErr | AB4: Weight | AC4: Magnitude | AD4: 1/SumSqErr | AE4: Weight | AF4: Magnitude | AG4: 1/SumSqErr | AH4: Weight | AI4: Magnitude | AJ4: 1/SumSqErr | AK4: Weight | AL4: Wt Mean ZP Mag | AM4: Wt ZP Std Err | AN4: Magnitude | AO4: Error | AP4: Magnitude | AQ4: Error | AR4: Magnitude | AS4: Error | AT4: Magnitude | AU4: Error | AV4: Magnitude | AW4: Error | AX4: Magnitude | AY4: Error | AZ4: Julian Date | BA4: Magnitude | BB4: Error
A5: Mean | B5: =IF(ISERROR(AVERAGE(B7:B12)),"Not Calc",AVERAGE(B7:B12)) -> Not Calc | C5: 2017-09-13 | D5: 21:56:43.096 | E5: 2458010.414 | F5: 5010.414388 | G5: 120 | H5: 15.567 | I5: 0.00225 | J5: 15.067 | K5: 0.001533333333 | L5: 15.7305 | M5: 0.00255 | N5: 15.71916667 | O5: 0.0025 | P5: 16.36266667 | Q5: 0.0042 | R5: 16.47866667 | S5: 0.004616666667 | T5: Not Calc | U5: Not Calc | V5: 0 | W5: -5.615 | X5: 426504.6296 | Y5: 0.5048441837 | Z5: -5.9835 | AA5: 153964.497 | AB5: 0.182440864 | AC5: -5.151166667 | AD5: 160000 | AE5: 0.1898248276 | AF5: -5.378666667 | AG5: 56721.50961 | AH5: 0.06724635882 | AI5: -4.781666667 | AJ5: 46949.72649 | AK5: 0.05564376583 | AL5: -5.531867189 | AM5: 0.1589786111 | AN5: 10.03513281 | AO5: 0.1589945361 | AP5: 9.535132811 | AQ5: 0.1589860089 | AR5: 10.19863281 | AS5: 0.1589990656 | AT5: 10.18729948 | AU5: 0.1589982685 | AV5: 10.83079948 | AW5: 0.159034087 | AX5: 10.94679948 | AY5: 0.159045636 | AZ5: Not Calc | BA5: Not Calc | BB5: Not Calc
A6: StDev | B6: =IF(ISERROR(STDEV(B7:B12)),"Not Calc",STDEV(B7:B12)) -> Not Calc | C6: 00:00:00 | D6: 00:04:13.012 | E6: 0.002927582016 | F6: 0.002927582016 | G6: 0 | H6: 0.014366628 | I6: 5.477225575e-05 | J6: 0.01277497554 | K6: 5.163977795e-05 | L6: 0.01462532051 | M6: 5.477225575e-05 | N6: 0.01026482667 | O6: 0 | P6: 0.01448677558 | Q6: 6.32455532e-05 | R6: 0.01737431054 | S6: 7.527726527e-05 | T6: Not Calc | U6: Not Calc | V6: 0 | W6: 0.01277497554 | X6: 27792.2416 | Y6: 0.0129037754 | Z6: 0.01462532051 | AA6: 6611.562233 | AB6: 0.004802473756 | AC6: 0.01026482667 | AD6: 0 | AE6: 0.008127207957 | AF6: 0.01448677558 | AG6: 1709.972626 | AH6: 0.00212651233 | AI6: 0.01737431054 | AJ6: 1539.718313 | AK6: 0.00109766964 | AL6: 0.009312460358 | AM6: 0.001669569517 | AN6: 0.006245683153 | AO6: 0.001670031685 | AP6: 0.00520576052 | AQ6: 0.001669967671 | AR6: 0.007214388786 | AS6: 0.001669904849 | AT6: 0.003148586529 | AU6: 0.001669364265 | AV6: 0.007075836445 | AW6: 0.00167003841 | AX6: 0.01338832825 | AY6: 0.001670573193 | AZ6: Not Calc | BA6: Not Calc | BB6: Not Calc
B7: SA113_2x2_120s_Vp_E.00584.fit | C7: 2017-09-13 | D7: 21:51:05.230 | E7: 2458010.41 | F7: =E7-oJDOffset -> 5010.41048 | G7: 120 | H7: 15.572 | I7: 0.0023 | J7: 15.067 | K7: 0.0015 | L7: 15.731 | M7: 0.0025 | N7: 15.721 | O7: 0.0025 | P7: 16.365 | Q7: 0.0042 | R7: 16.468 | S7: 0.0046 | T7: Blank | U7: Blank | V7: 0 | W7: =(Results!$F$14-$J7)*$X$2 -> -5.615 | X7: =(1/SUMSQ(Results!$G$14,$K7))*$X$2 -> 444444.4444 | Y7: =$X7/SUM($X7,$AA7,$AD7,$AG7,$AJ7) -> 0.5118011824 | Z7: =(Results!$F$15-$L7)*$AA$2 -> -5.984 | AA7: =(1/SUMSQ(Results!$G$15,$M7))*$AA$2 -> 160000 | AB7: =$AA7/SUM($X7,$AA7,$AD7,$AG7,$AJ7) -> 0.1842484257 | AC7: =(Results!$F$16-$N7)*$AD$2 -> -5.153 | AD7: =(1/SUMSQ(Results!$G$16,$O7))*$AD$2 -> 160000 | AE7: =$AD7/SUM($X7,$AA7,$AD7,$AG7,$AJ7) -> 0.1842484257 | AF7: =(Results!$F$17-$P7)*$AG$2 -> -5.381 | AG7: =(1/SUMSQ(Results!$G$17,$Q7))*$AG$2 -> 56689.3424 | AH7: =$AG7/SUM($X7,$AA7,$AD7,$AG7,$AJ7) -> 0.06528076306 | AI7: =(Results!$F$18-$R7)*$AJ$2 -> -4.771 | AJ7: =(1/SUMSQ(Results!$G$18,$S7))*$AJ$2 -> 47258.97921 | AK7: =$AJ7/SUM($X7,$AA7,$AD7,$AG7,$AJ7) -> 0.05442120323 | AL7: =SUM($W7*$Y7,$Z7*$AB7,$AC7*$AE7,$AF7*$AH7,$AI7*$AK7) -> -5.536657702 | AM7: =IF($AM$2>1,SQRT(SUM((($W7-$AL7)^2)*$Y7,(($Z7-$AL7)^2)*$AB7,(($AC7-$AL7)^2)*$AE7,(($AF7-$AL7)^2)*$AH7,(($AI7-$AL7)^2)*$AK7)/(IF($AM$2=1,1,$AM$2-1))),1/SQRT(SUM($X7,$AA7,$AD7,$AG7,$AJ7))) -> 0.1586011908 | AN7: =$H7+$AL7 -> 10.0353423 | AO7: =SQRT(SUMSQ($I7,$AM7)) -> 0.158617867 | AP7: =$J7+$AL7 -> 9.530342298 | AQ7: =SQRT(SUMSQ($K7,$AM7)) -> 0.1586082839 | AR7: =$L7+$AL7 -> 10.1943423 | AS7: =SQRT(SUMSQ($M7,$AM7)) -> 0.1586208931 | AT7: =$N7+$AL7 -> 10.1843423 | AU7: =SQRT(SUMSQ($O7,$AM7)) -> 0.1586208931 | AV7: =$P7+$AL7 -> 10.8283423 | AW7: =SQRT(SUMSQ($Q7,$AM7)) -> 0.1586567923 | AX7: =$R7+$AL7 -> 10.9313423 | AY7: =SQRT(SUMSQ($S7,$AM7)) -> 0.158667885 | AZ7: =IF(MOD(ROW($AZ7)-7,oBlockAvg)=0,AVERAGE(INDIRECT(ADDRESS((INT((ROW($AZ7)-7)/oBlockAvg)*oBlockAvg)+7,COLUMN(Calculation!JDGraph))&":"&ADDRESS(((INT((ROW($AZ7)-7)/oBlockAvg)+1)*oBlockAvg)+6,COLUMN(Calculation!JDGraph)))),#N/A) -> 5010.413606 | BA7: =IF(MOD(ROW($BA7)-7,oBlockAvg)=0,AVERAGE(INDIRECT(ADDRESS((INT((ROW($BA7)-7)/oBlockAvg)*oBlockAvg)+7,40)&":"&ADDRESS(((INT((ROW($BA7)-7)/oBlockAvg)+1)*oBlockAvg)+6,40))),#N/A) -> 10.03729132 | BB7: =IF(MOD(ROW($BB7)-7,oBlockAvg)=0,STDEV(INDIRECT(ADDRESS((INT((ROW($BB7)-7)/oBlockAvg)*oBlockAvg)+7,40)&":"&ADDRESS(((INT((ROW($BB7)-7)/oBlockAvg)+1)*oBlockAvg)+6,40)))/SQRT(COUNT(INDIRECT(ADDRESS((INT((ROW($BB7)-7)/oBlockAvg)*oBlockAvg)+7,40)&":"&ADDRESS(((INT((ROW($BB7)-7)/oBlockAvg)+1)*oBlockAvg)+6,40)))),#N/A) -> 0.001662345715
B8: SA113_2x2_120s_Vp_E.00585.fit | C8: 2017-09-13 | D8: 21:53:20.250 | E8: 2458010.412 | F8: 5010.41204 | G8: 120 | H8: 15.574 | I8: 0.0023 | J8: 15.074 | K8: 0.0016 | L8: 15.737 | M8: 0.0026 | N8: 15.719 | O8: 0.0025 | P8: 16.366 | Q8: 0.0042 | R8: 16.503 | S8: 0.0047 | T8: Blank | U8: Blank | V8: 0 | W8: =(Results!$F$14-$J8)*$X$2 -> -5.622 | X8: =(1/SUMSQ(Results!$G$14,$K8))*$X$2 -> 390625 | Y8: =$X8/SUM($X8,$AA8,$AD8,$AG8,$AJ8) -> 0.4879685298 | Z8: =(Results!$F$15-$L8)*$AA$2 -> -5.99 | AA8: =(1/SUMSQ(Results!$G$15,$M8))*$AA$2 -> 147928.9941 | AB8: =$AA8/SUM($X8,$AA8,$AD8,$AG8,$AJ8) -> 0.184792816 | AC8: =(Results!$F$16-$N8)*$AD$2 -> -5.151 | AD8: =(1/SUMSQ(Results!$G$16,$O8))*$AD$2 -> 160000 | AE8: =$AD8/SUM($X8,$AA8,$AD8,$AG8,$AJ8) -> 0.1998719098 | AF8: =(Results!$F$17-$P8)*$AG$2 -> -5.382 | AG8: =(1/SUMSQ(Results!$G$17,$Q8))*$AG$2 -> 56689.3424 | AH8: =$AG8/SUM($X8,$AA8,$AD8,$AG8,$AJ8) -> 0.07081629457 | AI8: =(Results!$F$18-$R8)*$AJ$2 -> -4.806 | AJ8: =(1/SUMSQ(Results!$G$18,$S8))*$AJ$2 -> 45269.35265 | AK8: =$AJ8/SUM($X8,$AA8,$AD8,$AG8,$AJ8) -> 0.05655044981 | AL8: =SUM($W8*$Y8,$Z8*$AB8,$AC8*$AE8,$AF8*$AH8,$AI8*$AK8) -> -5.532723009 | AM8: =IF($AM$2>1,SQRT(SUM((($W8-$AL8)^2)*$Y8,(($Z8-$AL8)^2)*$AB8,(($AC8-$AL8)^2)*$AE8,(($AF8-$AL8)^2)*$AH8,(($AI8-$AL8)^2)*$AK8)/(IF($AM$2=1,1,$AM$2-1))),1/SQRT(SUM($X8,$AA8,$AD8,$AG8,$AJ8))) -> 0.1605679454 | AN8: =$H8+$AL8 -> 10.04127699 | AO8: =SQRT(SUMSQ($I8,$AM8)) -> 0.1605844174 | AP8: =$J8+$AL8 -> 9.541276991 | AQ8: =SQRT(SUMSQ($K8,$AM8)) -> 0.160575917 | AR8: =$L8+$AL8 -> 10.20427699 | AS8: =SQRT(SUMSQ($M8,$AM8)) -> 0.1605889943 | AT8: =$N8+$AL8 -> 10.18627699 | AU8: =SQRT(SUMSQ($O8,$AM8)) -> 0.1605874064 | AV8: =$P8+$AL8 -> 10.83327699 | AW8: =SQRT(SUMSQ($Q8,$AM8)) -> 0.1606228661 | AX8: =$R8+$AL8 -> 10.97027699 | AY8: =SQRT(SUMSQ($S8,$AM8)) -> 0.1606367178 | AZ8: =IF(MOD(ROW($AZ8)-7,oBlockAvg)=0,AVERAGE(INDIRECT(ADDRESS((INT((ROW($AZ8)-7)/oBlockAvg)*oBlockAvg)+7,COLUMN(Calculation!JDGraph))&":"&ADDRESS(((INT((ROW($AZ8)-7)/oBlockAvg)+1)*oBlockAvg)+6,COLUMN(Calculation!JDGraph)))),#N/A) -> 
B9: SA113_2x2_120s_Vp_E.00586.fit | C9: 2017-09-13 | D9: 21:55:35.259 | E9: 2458010.414 | F9: 5010.4136 | G9: 120 | H9: 15.553 | I9: 0.0022 | J9: 15.056 | K9: 0.0015 | L9: 15.711 | M9: 0.0025 | N9: 15.71 | O9: 0.0025 | P9: 16.339 | Q9: 0.0041 | R9: 16.461 | S9: 0.0045 | T9: Blank | U9: Blank | V9: 0 | W9: =(Results!$F$14-$J9)*$X$2 -> -5.604 | X9: =(1/SUMSQ(Results!$G$14,$K9))*$X$2 -> 444444.4444 | Y9: 0.5089162093 | Z9: =(Results!$F$15-$L9)*$AA$2 -> -5.964 | AA9: =(1/SUMSQ(Results!$G$15,$M9))*$AA$2 -> 160000 | AB9: 0.1832098353 | AC9: =(Results!$F$16-$N9)*$AD$2 -> -5.142 | AD9: =(1/SUMSQ(Results!$G$16,$O9))*$AD$2 -> 160000 | AE9: 0.1832098353 | AF9: =(Results!$F$17-$P9)*$AG$2 -> -5.355 | AG9: =(1/SUMSQ(Results!$G$17,$Q9))*$AG$2 -> 59488.39976 | AH9: 0.06811787453 | AI9: =(Results!$F$18-$R9)*$AJ$2 -> -4.764 | AJ9: =(1/SUMSQ(Results!$G$18,$S9))*$AJ$2 -> 49382.71605 | AK9: 0.05654624548 | AL9: -5.5208524 | AM9: 0.158159665 | AN9: 10.0321476 | AO9: 0.1581749652 | AP9: 9.5351476 | AQ9: 0.1581667779 | AR9: 10.1901476 | AS9: 0.1581794222 | AT9: 10.1891476 | AU9: 0.1581794222 | AV9: 10.8181476 | AW9: 0.1582127985 | AX9: 10.9401476 | AY9: 0.1582236696 | AZ9: =IF(MOD(ROW($AZ9)-7,oBlockAvg)=0,AVERAGE(INDIRECT(ADDRESS((INT((ROW($AZ9)-7)/oBlockAvg)*oBlockAvg)+7,COLUMN(Calculation!JDGraph))&":"&ADDRESS(((INT((ROW($AZ9)-7)/oBlockAvg)+1)*oBlockAvg)+6,COLUMN(Calculation!JDGraph)))),#N/A) -> 
B10: SA113_2x2_120s_Vp_E.00587.fit | C10: 2017-09-13 | D10: 21:57:50.270 | E10: 2458010.415 | F10: 5010.41517 | G10: 120 | H10: 15.587 | I10: 0.0023 | J10: 15.088 | K10: 0.0016 | L10: 15.75 | M10: 0.0026 | N10: 15.736 | O10: 0.0025 | P10: 16.382 | Q10: 0.0043 | R10: 16.498 | S10: 0.0047 | T10: Blank | U10: Blank | V10: 0 | W10: =(Results!$F$14-$J10)*$X$2 -> -5.636 | X10: =(1/SUMSQ(Results!$G$14,$K10))*$X$2 -> 390625 | Y10: 0.4895622907 | Z10: =(Results!$F$15-$L10)*$AA$2 -> -6.003 | AA10: =(1/SUMSQ(Results!$G$15,$M10))*$AA$2 -> 147928.9941 | AB10: 0.1853963704 | AC10: =(Results!$F$16-$N10)*$AD$2 -> -5.168 | AD10: =(1/SUMSQ(Results!$G$16,$O10))*$AD$2 -> 160000 | AE10: 0.2005247143 | AF10: =(Results!$F$17-$P10)*$AG$2 -> -5.398 | AG10: =(1/SUMSQ(Results!$G$17,$Q10))*$AG$2 -> 54083.28826 | AH10: 0.06778147454 | AI10: =(Results!$F$18-$R10)*$AJ$2 -> -4.801 | AJ10: =(1/SUMSQ(Results!$G$18,$S10))*$AJ$2 -> 45269.35265 | AK10: 0.05673515003 | AL10: -5.54668906 | AM10: 0.1614858443 | AN10: 10.04031094 | AO10: 0.1615022226 | AP10: 9.54131094 | AQ10: 0.1614937705 | AR10: 10.20331094 | AS10: 0.1615067736 | AT10: 10.18931094 | AU10: 0.1615051947 | AV10: 10.83531094 | AW10: 0.1615430838 | AX10: 10.95131094 | AY10: 0.1615542259 | AZ10: =IF(MOD(ROW($AZ10)-7,oBlockAvg)=0,AVERAGE(INDIRECT(ADDRESS((INT((ROW($AZ10)-7)/oBlockAvg)*oBlockAvg)+7,COLUMN(Calculation!JDGraph))&":"&ADDRESS(((INT((ROW($AZ10)-7)/oBlockAvg)+1)*oBlockAvg)+6,COLUMN(Calculation!JDGraph)))),#N/A) -> 
B11: SA113_2x2_120s_Vp_E.00588.fit | C11: 2017-09-13 | D11: 22:00:06.269 | E11: 2458010.417 | F11: 5010.41674 | G11: 120 | H11: 15.568 | I11: 0.0022 | J11: 15.064 | K11: 0.0015 | L11: 15.738 | M11: 0.0026 | N11: 15.722 | O11: 0.0025 | P11: 16.369 | Q11: 0.0042 | R11: 16.471 | S11: 0.0046 | T11: Blank | U11: Blank | V11: 0 | W11: =(Results!$F$14-$J11)*$X$2 -> -5.612 | X11: =(1/SUMSQ(Results!$G$14,$K11))*$X$2 -> 444444.4444 | Y11: 0.5190157078 | Z11: =(Results!$F$15-$L11)*$AA$2 -> -5.991 | AA11: =(1/SUMSQ(Results!$G$15,$M11))*$AA$2 -> 147928.9941 | AB11: 0.172749311 | AC11: =(Results!$F$16-$N11)*$AD$2 -> -5.154 | AD11: =(1/SUMSQ(Results!$G$16,$O11))*$AD$2 -> 160000 | AE11: 0.1868456548 | AF11: =(Results!$F$17-$P11)*$AG$2 -> -5.385 | AG11: =(1/SUMSQ(Results!$G$17,$Q11))*$AG$2 -> 56689.3424 | AH11: 0.06620098314 | AI11: =(Results!$F$18-$R11)*$AJ$2 -> -4.774 | AJ11: =(1/SUMSQ(Results!$G$18,$S11))*$AJ$2 -> 47258.97921 | AK11: 0.05518834322 | AL11: -5.530621224 | AM11: 0.1577591708 | AN11: 10.03737878 | AO11: 0.1577745099 | AP11: 9.533378776 | AQ11: 0.1577663018 | AR11: 10.20737878 | AS11: 0.1577805944 | AT11: 10.19137878 | AU11: 0.1577789783 | AV11: 10.83837878 | AW11: 0.1578150689 | AX11: 10.94037878 | AY11: 0.1578262208 | AZ11: =IF(MOD(ROW($AZ11)-7,oBlockAvg)=0,AVERAGE(INDIRECT(ADDRESS((INT((ROW($AZ11)-7)/oBlockAvg)*oBlockAvg)+7,COLUMN(Calculation!JDGraph))&":"&ADDRESS(((INT((ROW($AZ11)-7)/oBlockAvg)+1)*oBlockAvg)+6,COLUMN(Calculation!JDGraph)))),#N/A) -> 
B12: SA113_2x2_120s_Vp_E.00589.fit | C12: 2017-09-13 | D12: 22:02:21.300 | E12: 2458010.418 | F12: 5010.4183 | G12: 120 | H12: 15.548 | I12: 0.0022 | J12: 15.053 | K12: 0.0015 | L12: 15.716 | M12: 0.0025 | N12: 15.707 | O12: 0.0025 | P12: 16.355 | Q12: 0.0042 | R12: 16.471 | S12: 0.0046 | T12: Blank | U12: Blank | V12: 0 | W12: =(Results!$F$14-$J12)*$X$2 -> -5.601 | X12: =(1/SUMSQ(Results!$G$14,$K12))*$X$2 -> 444444.4444 | Y12: 0.5118011824 | Z12: =(Results!$F$15-$L12)*$AA$2 -> -5.969 | AA12: =(1/SUMSQ(Results!$G$15,$M12))*$AA$2 -> 160000 | AB12: 0.1842484257 | AC12: =(Results!$F$16-$N12)*$AD$2 -> -5.139 | AD12: =(1/SUMSQ(Results!$G$16,$O12))*$AD$2 -> 160000 | AE12: 0.1842484257 | AF12: =(Results!$F$17-$P12)*$AG$2 -> -5.371 | AG12: =(1/SUMSQ(Results!$G$17,$Q12))*$AG$2 -> 56689.3424 | AH12: 0.06528076306 | AI12: =(Results!$F$18-$R12)*$AJ$2 -> -4.774 | AJ12: =(1/SUMSQ(Results!$G$18,$S12))*$AJ$2 -> 47258.97921 | AK12: 0.05442120323 | AL12: -5.523659737 | AM12: 0.1572978504 | AN12: 10.02434026 | AO12: 0.1573132345 | AP12: 9.529340263 | AQ12: 0.1573050023 | AR12: 10.19234026 | AS12: 0.157317716 | AT12: 10.18334026 | AU12: 0.157317716 | AV12: 10.83134026 | AW12: 0.1573539124 | AX12: 10.94734026 | AY12: 0.157365097 | AZ12: =IF(MOD(ROW($AZ12)-7,oBlockAvg)=0,AVERAGE(INDIRECT(ADDRESS((INT((ROW($AZ12)-7)/oBlockAvg)*oBlockAvg)+7,COLUMN(Calculation!JDGraph))&":"&ADDRESS(((INT((ROW($AZ12)-7)/oBlockAvg)+1)*oBlockAvg)+6,COLUMN(Calculation!JDGraph)))),#N/A) -> 5010.4183 | BA12: 10.02434026

Sheet Data charts
D1: =oVariableID -> WASP-12b | K1: =oVariableID -> WASP-12b
H21: Magnitude Axis Minimum & Maximum
H22: For Middle Left, Bottom Left and Middle Right Charts
H23: Bypass Automatic Min/Max | K23: Yes
H24: Round Min/Max to Nearest | K24: 1
H25: (No need to change settings unless magnitude axis is causing problems)
K34: =oVariableID&" Block Average" -> WASP-12b Block Average

Sheet Data charts AAVSO
D1: Variable and Check Star | K1: =cAAVSO -> Variable and Check Star

Sheet BAAVSS
A1: File Format | B1: CCD/DSLR v2.01
A2: Observation Method | B2: =uObservationMethod -> CCD
A3: Variable | B3: =oVariableID -> WASP-12b
A4: Chart ID | B4: =oChartID -> AAVSO WASP-12b
A5: Observer code | B5: =uObserverCode -> UOL
A6: Location | B6: =uLatDeg&" "&uLatMin&" "&uLatSec&uLatHem&" "&uLongDeg&" "&uLongMin&" "&uLongSec&uLongHem&" H"&uHeight&"m" -> 38 20 41N 85 31 42W H230m
A7: Telescope | B7: =uTelescopeCode -> RC 0.6m f/8
A8: Camera | B8: =uCCDCode -> U16M
A9: Magnitude type | B9: Instrumental
A10: Timing uncertainty | B10: =uTimingUncertainty -> 1
A11: Phot star rad (arcsec) | B11: =((uPixelSize1+uPixelSize2)/2)*oStarAp -> 4.56
A12: Phot inner ann (arcsec) | B12: =((uPixelSize1+uPixelSize2)/2)*oSkyInn -> 6.08
A13: Phot outer ann (arcsec) | B13: =((uPixelSize1+uPixelSize2)/2)*oSkyOut -> 7.6
A14: Photometry software | B14: AIP4Win v2 - Ensemble Photometry
A15: Analysis software | B15: ="VSS CCD Photometry Spreadsheet "&fVersion -> VSS CCD Photometry Spreadsheet 2.06
A16: Comment | B16: =IF(oComment="","",oComment) -> 
A18: JulianDate | B18: Filter | C18: VarAbsMag | D18: VarAbsErr | E18: VarMag | F18: VarErr | G18: ExpLen | H18: FileName | I18: CmpStar | J18: RefMag | K18: CMMag | L18: CmpErr | M18: CmpStar | N18: RefMag | O18: CMMag | P18: CmpErr | Q18: CmpStar | R18: RefMag | S18: CMMag | T18: CmpErr | U18: CmpStar | V18: RefMag | W18: CMMag | X18: CmpErr | Y18: CmpStar | Z18: RefMag | AA18: CMMag | AB18: CmpErr
A19: 2458010.41 | B19: V | C19: 10.0353423 | D19: 0.158617867 | E19: 15.572 | F19: 0.0023 | G19: 120 | H19: SA113_2x2_120s_Vp_E.00584.fit | I19: 000-BKG-164 | J19: 9.452 | K19: 15.067 | L19: 0.0015 | M19: 000-BKG-165 | N19: 9.747 | O19: 15.731 | P19: 0.0025 | Q19: 000-BKG-166 | R19: 10.568 | S19: 15.721 | T19: 0.0025 | U19: 000-BKG-420 | V19: 10.984 | W19: 16.365 | X19: 0.0042 | Y19: 000-BKG-421 | Z19: 11.697 | AA19: 16.468 | AB19: 0.0046
A20: 2458010.412 | B20: V | C20: 10.04127699 | D20: 0.1605844174 | E20: 15.574 | F20: 0.0023 | G20: 120 | H20: SA113_2x2_120s_Vp_E.00585.fit | I20: 000-BKG-164 | J20: 9.452 | K20: 15.074 | L20: 0.0016 | M20: 000-BKG-165 | N20: 9.747 | O20: 15.737 | P20: 0.0026 | Q20: 000-BKG-166 | R20: 10.568 | S20: 15.719 | T20: 0.0025 | U20: 000-BKG-420 | V20: 10.984 | W20: 16.366 | X20: 0.0042 | Y20: 000-BKG-421 | Z20: 11.697 | AA20: 16.503 | AB20: 0.0047
A21: 2458010.414 | B21: V | C21: 10.0321476 | D21: 0.1581749652 | E21: 15.553 | F21: 0.0022 | G21: 120 | H21: SA113_2x2_120s_Vp_E.00586.fit | I21: 000-BKG-164 | J21: 9.452 | K21: 15.056 | L21: 0.0015 | M21: 000-BKG-165 | N21: 9.747 | O21: 15.711 | P21: 0.0025 | Q21: 000-BKG-166 | R21: 10.568 | S21: 15.71 | T21: 0.0025 | U21: 000-BKG-420 | V21: 10.984 | W21: 16.339 | X21: 0.0041 | Y21: 000-BKG-421 | Z21: 11.697 | AA21: 16.461 | AB21: 0.0045
A22: 2458010.415 | B22: V | C22: 10.04031094 | D22: 0.1615022226 | E22: 15.587 | F22: 0.0023 | G22: 120 | H22: SA113_2x2_120s_Vp_E.00587.fit | I22: 000-BKG-164 | J22: 9.452 | K22: 15.088 | L22: 0.0016 | M22: 000-BKG-165 | N22: 9.747 | O22: 15.75 | P22: 0.0026 | Q22: 000-BKG-166 | R22: 10.568 | S22: 15.736 | T22: 0.0025 | U22: 000-BKG-420 | V22: 10.984 | W22: 16.382 | X22: 0.0043 | Y22: 000-BKG-421 | Z22: 11.697 | AA22: 16.498 | AB22: 0.0047
A23: 2458010.417 | B23: V | C23: 10.03737878 | D23: 0.1577745099 | E23: 15.568 | F23: 0.0022 | G23: 120 | H23: SA113_2x2_120s_Vp_E.00588.fit | I23: 000-BKG-164 | J23: 9.452 | K23: 15.064 | L23: 0.0015 | M23: 000-BKG-165 | N23: 9.747 | O23: 15.738 | P23: 0.0026 | Q23: 000-BKG-166 | R23: 10.568 | S23: 15.722 | T23: 0.0025 | U23: 000-BKG-420 | V23: 10.984 | W23: 16.369 | X23: 0.0042 | Y23: 000-BKG-421 | Z23: 11.697 | AA23: 16.471 | AB23: 0.0046
A24: 2458010.418 | B24: V | C24: 10.02434026 | D24: 0.1573132345 | E24: 15.548 | F24: 0.0022 | G24: 120 | H24: SA113_2x2_120s_Vp_E.00589.fit | I24: 000-BKG-164 | J24: 9.452 | K24: 15.053 | L24: 0.0015 | M24: 000-BKG-165 | N24: 9.747 | O24: 15.716 | P24: 0.0025 | Q24: 000-BKG-166 | R24: 10.568 | S24: 15.707 | T24: 0.0025 | U24: 000-BKG-420 | V24: 10.984 | W24: 16.355 | X24: 0.0042 | Y24: 000-BKG-421 | Z24: 11.697 | AA24: 16.471 | AB24: 0.0046

Sheet AAVSO
A1: #TYPE=Extended
A2: ="#OBSCODE="&uAAVSOobservercode -> #OBSCODE=
A3: #SOFTWARE=AIP4Win v2 - Ensemble Photometry
A4: ="#DELIM=tab" -> #DELIM=tab
A5: ="#DATE=JD" -> #DATE=JD
A6: ="#OBSTYPE=CCD" -> #OBSTYPE=CCD
A7: #
A8: #NAME | B8: DATE | C8: MAG | D8: MERR | E8: FILT | F8: TRANS | G8: MTYPE | H8: CNAME | I8: CMAG | J8: KNAME | K8: KMAG | L8: AIRMASS | M8: GROUP | N8: CHART | O8: NOTES
A9: WASP-12b | B9: 2458010.41 | C9: 10.0353423 | D9: 0.158617867 | E9: V | F9: NO | G9: ABS | H9: ENSEMBLE | I9: na | L9: na | M9: na | N9: AAVSO WASP-12b | O9: na
A10: WASP-12b | B10: 2458010.412 | C10: 10.04127699 | D10: 0.1605844174 | E10: V | F10: NO | G10: ABS | H10: ENSEMBLE | I10: na | L10: na | M10: na | N10: AAVSO WASP-12b | O10: na
A11: WASP-12b | B11: 2458010.414 | C11: 10.0321476 | D11: 0.1581749652 | E11: V | F11: NO | G11: ABS | H11: ENSEMBLE | I11: na | L11: na | M11: na | N11: AAVSO WASP-12b | O11: na
A12: WASP-12b | B12: 2458010.415 | C12: 10.04031094 | D12: 0.1615022226 | E12: V | F12: NO | G12: ABS | H12: ENSEMBLE | I12: na | L12: na | M12: na | N12: AAVSO WASP-12b | O12: na
A13: WASP-12b | B13: 2458010.417 | C13: 10.03737878 | D13: 0.1577745099 | E13: V | F13: NO | G13: ABS | H13: ENSEMBLE | I13: na | L13: na | M13: na | N13: AAVSO WASP-12b | O13: na
A14: WASP-12b | B14: 2458010.418 | C14: 10.02434026 | D14: 0.1573132345 | E14: V | F14: NO | G14: ABS | H14: ENSEMBLE | I14: na | L14: na | M14: na | N14: AAVSO WASP-12b | O14: na

Sheet Image
A1: Image of field identifying variable and comparison stars.

Sheet Data
A2: AIP4Win Multiple-Image Photometry Tool
A3: Ensemble Photometry Report
A4: AIP4Win Licensed to: | B4: Roger Pickard
A5: AIP4Win v. | B5: 2.4.0
A6: Folder containing files: | B6: C:\~Imaging\2018\Lee\Raw Science Files
A7: Filename of first image: | B7: SA113_2x2_120s_Vp_E.00584.fit
A8: Number of files selected: | B8: 6
A9: Star aperture radius: | B9: 12
A10: Sky annulus inner radius: | B10: 16
A11: Sky annulus outer radius: | B11: 20
A12: Star aperture pixels: | B12: 453
A13: Sky annulus pixels: | B13: 271
A14: Default integration time: | B14: 60
A15: Zero point: | B15: 25
A16: Gain [e/ADU]: | B16: 1
A17: Readout noise [e rms]: | B17: 10
A18: Dark current [e/sec/pix]: | B18: 1
A19: Time of observation:
A20: Date, time, exposure from | B20: FITS header
A21: First Image Date: | B21: 42991
A22: First Image Time: | B22: 0.9097827546
A23: First Exposure Time: | B23: 120 seconds
A24: Filter: | B24: Vp
A25: Clock time zone: | B25: 0 hours
A26: Offset (true-clock): | B26: 0 seconds
A27: Heliocentric correction: | B27: 0 seconds
A28: Julian Day (midexposure): ImageTime + (Exposure / 2)
A29: First Mid-exposure Date: | B29: 42991
A30: First Mid-exposure Time: | B30: 0.9104771991
A31: Stars selected in the first image
A32: Star | B32: Star_X | C32: Star_Y | D32: Integr | E32: Max_PV | F32: Sky_ADU | G32: Star_ADU | H32: Mag | I32: ±Sigma
A33: Var | B33: 1327.765 | C33: 351.453 | D33: 120 | E33: 14187.46 | F33: 1095.403 | G33: 708384 | H33: 15.572 | I33: 0.0023
A34: C1 | B34: 462.715 | C34: 1046.785 | D34: 120 | E34: 21076.5 | F34: 1101.32 | G34: 1128665 | H34: 15.067 | I34: 0.0015
A35: C2 | B35: 1257.761 | C35: 760.253 | D35: 120 | E35: 12209.38 | F35: 1090.33 | G35: 612285 | H35: 15.731 | I35: 0.0025
A36: C3 | B36: 415.95 | C36: 615.872 | D36: 120 | E36: 11969.8 | F36: 1098.34 | G36: 617434 | H36: 15.721 | I36: 0.0025
A37: C4 | B37: 1126.374 | C37: 721.295 | D37: 120 | E37: 7369.05 | F37: 1082.766 | G37: 341340 | H37: 16.365 | I37: 0.0042
A38: C5 | B38: 817.554 | C38: 845.301 | D38: 120 | E38: 6389.76 | F38: 1079.016 | G38: 310561 | H38: 16.468 | I38: 0.0046
A39: Ens | F39: 3010300 | G39: 14.001 | H39: 0.0012
A40: -------------------------------------------------------------------
A41: Seq_# | B41: YYYY-MM-DD | C41: HH:MM:SS.sss | D41: Julian_Day | E41: Integr | F41: Filt | G41: V_Mag | H41: ±Sigma | I41: C1 | J41: ±Sigma | K41: C2 | L41: ±Sigma | M41: C3 | N41: ±Sigma | O41: C4 | P41: ±Sigma | Q41: C5 | R41: ±Sigma | S41: Sky_ADU | T41: File_Name
A43: 1 | B43: 2017-09-13 | C43: 0.9104771991 | D43: 2458010.41 | E43: 120 | F43: Vp | G43: 15.572 | H43: 0.0023 | I43: 15.067 | J43: 0.0015 | K43: 15.731 | L43: 0.0025 | M43: 15.721 | N43: 0.0025 | O43: 16.365 | P43: 0.0042 | Q43: 16.468 | R43: 0.0046 | S43: 1095.605 | T43: SA113_2x2_120s_Vp_E.00584.fit
A44: 2 | B44: 2017-09-13 | C44: 0.9120399306 | D44: 2458010.412 | E44: 120 | F44: Vp | G44: 15.574 | H44: 0.0023 | I44: 15.074 | J44: 0.0016 | K44: 15.737 | L44: 0.0026 | M44: 15.719 | N44: 0.0025 | O44: 16.366 | P44: 0.0042 | Q44: 16.503 | R44: 0.0047 | S44: 1092.591 | T44: SA113_2x2_120s_Vp_E.00585.fit
A45: 3 | B45: 2017-09-13 | C45: 21:55:35.259 | D45: 2458010.414 | E45: 120 | F45: Vp | G45: 15.553 | H45: 0.0022 | I45: 15.056 | J45: 0.0015 | K45: 15.711 | L45: 0.0025 | M45: 15.71 | N45: 0.0025 | O45: 16.339 | P45: 0.0041 | Q45: 16.461 | R45: 0.0045 | S45: 1085.733 | T45: SA113_2x2_120s_Vp_E.00586.fit
A46: 4 | B46: 2017-09-13 | C46: 21:57:50.270 | D46: 2458010.415 | E46: 120 | F46: Vp | G46: 15.587 | H46: 0.0023 | I46: 15.088 | J46: 0.0016 | K46: 15.75 | L46: 0.0026 | M46: 15.736 | N46: 0.0025 | O46: 16.382 | P46: 0.0043 | Q46: 16.498 | R46: 0.0047 | S46: 1091.658 | T46: SA113_2x2_120s_Vp_E.00587.fit
A47: 5 | B47: 2017-09-13 | C47: 22:00:06.269 | D47: 2458010.417 | E47: 120 | F47: Vp | G47: 15.568 | H47: 0.0022 | I47: 15.064 | J47: 0.0015 | K47: 15.738 | L47: 0.0026 | M47: 15.722 | N47: 0.0025 | O47: 16.369 | P47: 0.0042 | Q47: 16.471 | R47: 0.0046 | S47: 1081.323 | T47: SA113_2x2_120s_Vp_E.00588.fit
A48: 6 | B48: 2017-09-13 | C48: 22:02:21.300 | D48: 2458010.418 | E48: 120 | F48: Vp | G48: 15.548 | H48: 0.0022 | I48: 15.053 | J48: 0.0015 | K48: 15.716 | L48: 0.0025 | M48: 15.707 | N48: 0.0025 | O48: 16.355 | P48: 0.0042 | Q48: 16.471 | R48: 0.0046 | S48: 1076.201 | T48: SA113_2x2_120s_Vp_E.00589.fit

Sheet AIJ
B1: Label | C1: slice | D1: Saturated | E1: J.D.-2400000 | F1: JD_UTC | G1: JD_SOBS | H1: HJD_UTC | I1: BJD_TDB | J1: AIRMASS | K1: CCD-TEMP | L1: EXPTIME | M1: RAOBJ2K | N1: DECOBJ2K | O1: FWHM_Mean | P1: Source_Radius | Q1: Sky_Rad(min) | R1: Sky_Rad(max) | S1: rel_flux_T1 | T1: rel_flux_C2 | U1: rel_flux_C3 | V1: rel_flux_C4 | W1: rel_flux_C5 | X1: rel_flux_C6 | Y1: rel_flux_C7 | Z1: rel_flux_C8 | AA1: rel_flux_err_T1 | AB1: rel_flux_err_C2 | AC1: rel_flux_err_C3 | AD1: rel_flux_err_C4 | AE1: rel_flux_err_C5 | AF1: rel_flux_err_C6 | AG1: rel_flux_err_C7 | AH1: rel_flux_err_C8 | AI1: rel_flux_SNR_T1 | AJ1: rel_flux_SNR_C2 | AK1: rel_flux_SNR_C3 | AL1: rel_flux_SNR_C4 | AM1: rel_flux_SNR_C5 | AN1: rel_flux_SNR_C6 | AO1: rel_flux_SNR_C7 | AP1: rel_flux_SNR_C8 | AQ1: tot_C_cnts | AR1: tot_C_err | AS1: X(IJ)_T1 | AT1: Y(IJ)_T1 | AU1: X(FITS)_T1 | AV1: Y(FITS)_T1 | AW1: RA_T1 | AX1: DEC_T1 | AY1: Source-Sky_T1 | AZ1: N_Src_Pixels_T1 | BA1: Source_Error_T1 | BB1: Source_AMag_T1 | BC1: Source_AMag_Err_T1 | BD1: Source_SNR_T1 | BE1: Peak_T1 | BF1: Mean_T1 | BG1: Sky/Pixel_T1 | BH1: N_Sky_Pixels_T1 | BI1: FWHM_T1 | BJ1: Width_T1 | BK1: X-Width_T1 | BL1: Y-Width_T1 | BM1: Angle_T1 | BN1: Roundness_T1 | BO1: Variance_T1 | BP1: X(IJ)_C2 | BQ1: Y(IJ)_C2 | BR1: X(FITS)_C2 | BS1: Y(FITS)_C2 | BT1: RA_C2 | BU1: DEC_C2 | BV1: Source-Sky_C2 | BW1: Source_Error_C2 | BX1: Source_AMag_C2 | BY1: Source_AMag_Err_C2 | BZ1: Source_SNR_C2 | CA1: Peak_C2 | CB1: Mean_C2 | CC1: Sky/Pixel_C2 | CD1: FWHM_C2 | CE1: Width_C2 | CF1: X-Width_C2 | CG1: Y-Width_C2 | CH1: Angle_C2 | CI1: Roundness_C2 | CJ1: Variance_C2 | CK1: X(IJ)_C3 | CL1: Y(IJ)_C3 | CM1: X(FITS)_C3 | CN1: Y(FITS)_C3 | CO1: RA_C3 | CP1: DEC_C3 | CQ1: Source-Sky_C3 | CR1: Source_Error_C3 | CS1: Source_AMag_C3 | CT1: Source_AMag_Err_C3 | CU1: Source_SNR_C3 | CV1: Peak_C3 | CW1: Mean_C3 | CX1: Sky/Pixel_C3 | CY1: FWHM_C3 | CZ1: Width_C3 | DA1: X-Width_C3 | DB1: Y-Width_C3 | DC1: Angle_C3 | DD1: Roundness_C3 | DE1: Variance_C3 | DF1: X(IJ)_C4 | DG1: Y(IJ)_C4 | DH1: X(FITS)_C4 | DI1: Y(FITS)_C4 | DJ1: RA_C4 | DK1: DEC_C4 | DL1: Source-Sky_C4 | DM1: Source_Error_C4 | DN1: Source_AMag_C4 | DO1: Source_AMag_Err_C4 | DP1: Source_SNR_C4 | DQ1: Peak_C4 | DR1: Mean_C4 | DS1: Sky/Pixel_C4 | DT1: FWHM_C4 | DU1: Width_C4 | DV1: X-Width_C4 | DW1: Y-Width_C4 | DX1: Angle_C4 | DY1: Roundness_C4 | DZ1: Variance_C4 | EA1: X(IJ)_C5 | EB1: Y(IJ)_C5 | EC1: X(FITS)_C5 | ED1: Y(FITS)_C5 | EE1: RA_C5 | EF1: DEC_C5 | EG1: Source-Sky_C5 | EH1: Source_Error_C5 | EI1: Source_AMag_C5 | EJ1: Source_AMag_Err_C5 | EK1: Source_SNR_C5 | EL1: Peak_C5 | EM1: Mean_C5 | EN1: Sky/Pixel_C5 | EO1: FWHM_C5 | EP1: Width_C5 | EQ1: X-Width_C5 | ER1: Y-Width_C5 | ES1: Angle_C5 | ET1: Roundness_C5 | EU1: Variance_C5 | EV1: X(IJ)_C6 | EW1: Y(IJ)_C6 | EX1: X(FITS)_C6 | EY1: Y(FITS)_C6 | EZ1: RA_C6 | FA1: DEC_C6 | FB1: Source-Sky_C6 | FC1: Source_Error_C6 | FD1: Source_AMag_C6 | FE1: Source_AMag_Err_C6 | FF1: Source_SNR_C6 | FG1: Peak_C6 | FH1: Mean_C6 | FI1: Sky/Pixel_C6 | FJ1: FWHM_C6 | FK1: Width_C6 | FL1: X-Width_C6 | FM1: Y-Width_C6 | FN1: Angle_C6 | FO1: Roundness_C6 | FP1: Variance_C6 | FQ1: X(IJ)_C7 | FR1: Y(IJ)_C7 | FS1: X(FITS)_C7 | FT1: Y(FITS)_C7 | FU1: RA_C7 | FV1: DEC_C7 | FW1: Source-Sky_C7 | FX1: Source_Error_C7 | FY1: Source_AMag_C7 | FZ1: Source_AMag_Err_C7 | GA1: Source_SNR_C7 | GB1: Peak_C7 | GC1: Mean_C7 | GD1: Sky/Pixel_C7 | GE1: FWHM_C7 | GF1: Width_C7 | GG1: X-Width_C7 | GH1: Y-Width_C7 | GI1: Angle_C7 | GJ1: Roundness_C7 | GK1: Variance_C7 | GL1: X(IJ)_C8 | GM1: Y(IJ)_C8 | GN1: X(FITS)_C8 | GO1: Y(FITS)_C8 | GP1: RA_C8 | GQ1: DEC_C8 | GR1: Source-Sky_C8 | GS1: Source_Error_C8 | GT1: Source_AMag_C8 | GU1: Source_AMag_Err_C8 | GV1: Source_SNR_C8 | GW1: Peak_C8 | GX1: Mean_C8 | GY1: Sky/Pixel_C8 | GZ1: FWHM_C8 | HA1: Width_C8 | HB1: X-Width_C8 | HC1: Y-Width_C8 | HD1: Angle_C8 | HE1: Roundness_C8 | HF1: Variance_C8
A2: 1 | B2: WASP-12b_00040_bdf.fits | C2: 1 | D2: 65044.55469 | E2: 56319.5145 | F2: 2456319.514 | G2: 2456319.514 | H2: 2456319.519 | I2: 2456319.52 | J2: 1.369313 | K2: -20 | L2: 100 | M2: 6.50911 | N2: 29.672297 | O2: 11.183445 | P2: 17 | Q2: 30 | R2: 45 | S2: 0.049567 | T2: 0.52519 | U2: 0.406463 | V2: 0.178333 | W2: 0.124883 | X2: 0.059127 | Y2: 0.029977 | Z2: 0.019749 | AA2: 6.3e-05 | AB2: 0.000234 | AC2: 0.000189 | AD2: 0.000109 | AE2: 9.2e-05 | AF2: 6.9e-05 | AG2: 5.8e-05 | AH2: 5.4e-05 | AI2: 786.600811 | AJ2: 2242.60737 | AK2: 2148.140726 | AL2: 1629.765235 | AM2: 1364.642314 | AN2: 860.684936 | AO2: 514.886292 | AP2: 364.201999 | AQ2: 23626129.46 | AR2: 5234.264104 | AS2: 2400.086297 | AT2: 2010.203511 | AU2: 2400.586297 | AV2: 2086.296489 | AW2: 6.509102 | AX2: 29.672478 | AY2: 1171064.875 | AZ2: 907.920277 | BA2: 1465.985727 | BB2: 11.672744 | BC2: 0.001379 | BD2: 798.8242 | BE2: 11014.31738 | BF2: 1289.832274 | BG2: 1207.13298 | BH2: 3010 | BI2: 12.315104 | BJ2: 13.237545 | BK2: 12.871351 | BL2: 13.603739 | BM2: 78.945231 | BN2: 0.996439 | BO2: 3090014.976 | BP2: 1891.29034 | BQ2: 1256.744836 | BR2: 1891.79034 | BS2: 2839.755164 | BT2: 6.513277 | BU2: 29.591997 | BV2: 8135513.544 | BW2: 2781.640478 | BX2: 9.453 | BY2: 0.000371 | BZ2: 2924.717845 | CA2: 64752.77344 | CB2: 8960.603426 | CC2: 1228.570985 | CD2: 12.214816 | CE2: 13.104279 | CF2: 12.748254 | CG2: 13.460304 | CH2: 84.909089 | CI2: 0.996957 | CJ2: 153308763 | CK2: 1159.026371 | CL2: 3174.227113 | CM2: 1159.526371 | CN2: 922.272887 | CO2: 6.519313 | CP2: 29.796432 | CQ2: 6827874.438 | CR2: 2584.592173 | CS2: 9.747 | CT2: 0.000411 | CU2: 2641.760859 | CV2: 65044.55469 | CW2: 7520.345797 | CX2: 1223.598922 | CY2: 9.795368 | CZ2: 12.595285 | DA2: 12.235402 | DB2: 12.955167 | DC2: 68.554353 | DD2: 0.993926 | DE2: 131189840.3 | DF2: 2162.086861 | DG2: 1595.399438 | DH2: 2162.586861 | DI2: 2501.100562 | DJ2: 6.511055 | DK2: 29.628174 | DL2: 3575655.856 | DM2: 2017.84102 | DN2: 10.568 | DO2: 0.000613 | DP2: 1772.0206 | DQ2: 30716.9375 | DR2: 3938.292763 | DS2: 1214.874871 | DT2: 12.197795 | DU2: 13.197602 | DV2: 12.877841 | DW2: 13.517363 | DX2: 82.658675 | DY2: 0.997494 | DZ2: 28959145.51 | EA2: 2963.361967 | EB2: 983.255776 | EC2: 2963.861967 | ED2: 3113.244224 | EE2: 6.504508 | EF2: 29.562681 | EG2: 2622936.227 | EH2: 1821.763944 | EI2: 10.984 | EJ2: 0.000754 | EK2: 1439.778318 | EL2: 25459.94141 | EM2: 2888.949937 | EN2: 1217.210559 | EO2: 10.840087 | EP2: 12.659994 | EQ2: 12.408912 | ER2: 12.911076 | ES2: 68.452279 | ET2: 0.997052 | EU2: 18396865.2 | EV2: 3795.967543 | EW2: 2078.337504 | EX2: 3796.467543 | EY2: 2018.162496 | EZ2: 6.497661 | FA2: 29.67949 | FB2: 1318953.971 | FC2: 1503.500857 | FD2: 11.697 | FE2: 0.001237 | FF2: 877.255218 | FG2: 16132.54004 | FH2: 1452.72003 | FI2: 1213.88185 | FJ2: 9.002579 | FK2: 12.287778 | FL2: 11.823512 | FM2: 12.752043 | FN2: 80.306686 | FO2: 0.993601 | FP2: 5429505.132 | FQ2: 2431.10257 | FR2: 2340.29163 | FS2: 2431.60257 | FT2: 1756.20837 | FU2: 6.508848 | FV2: 29.707731 | FW2: 687631.2666 | FX2: 1326.847879 | FY2: 12.285 | FZ2: 0.002093 | GA2: 518.244237 | GB2: 7184.655762 | GC2: 757.369655 | GD2: 1206.127556 | GE2: 11.888578 | GF2: 13.131194 | GG2: 12.790578 | GH2: 13.47181 | GI2: 82.190299 | GJ2: 0.997102 | GK2: 1106442.734 | GL2: 1204.753362 | GM2: 2252.48846 | GN2: 1205.253362 | GO2: 1844.01154 | GP2: 6.51891 | GQ2: 29.698132 | GR2: 457564.1527 | GS2: 1252.331383 | GT2: 12.782 | GU2: 0.002968 | GV2: 365.369869 | GW2: 5817.884277 | GX2: 503.969527 | GY2: 1205.981186 | GZ2: 11.213235 | HA2: 12.891777 | HB2: 12.359014 | HC2: 13.42454 | HD2: 81.204046 | HE2: 0.992508 | HF2: 528186.4418
A3: 2 | B3: WASP-12b_00041_bdf.fits | C3: 2 | D3: 60971.13672 | E3: 56319.51588 | F3: 2456319.516 | G3: 2456319.515 | H3: 2456319.521 | I3: 2456319.522 | J3: 1.360719 | K3: -19.94 | L3: 100 | M3: 6.50911 | N3: 29.672297 | O3: 11.738351 | P3: 17 | Q3: 30 | R3: 45 | S3: 0.049334 | T3: 0.525935 | U3: 0.407924 | V3: 0.17769 | W3: 0.124723 | X3: 0.058982 | Y3: 0.029767 | Z3: 0.019603 | AA3: 6.3e-05 | AB3: 0.000236 | AC3: 0.000191 | AD3: 0.00011 | AE3: 9.2e-05 | AF3: 6.9e-05 | AG3: 5.8e-05 | AH3: 5.4e-05 | AI3: 781.281717 | AJ3: 2232.949252 | AK3: 2139.305446 | AL3: 1618.574963 | AM3: 1358.700603 | AN3: 854.27179 | AO3: 510.855246 | AP3: 360.849001 | AQ3: 23441053.81 | AR3: 5216.850577 | AS3: 2400.472501 | AT3: 2014.879396 | AU3: 2400.972501 | AV3: 2081.620604 | AW3: 6.509101 | AX3: 29.672461 | AY3: 1156445.427 | AZ3: 907.920277 | BA3: 1457.643214 | BB3: 11.677845 | BC3: 0.001389 | BD3: 793.36659 | BE3: 9788.142578 | BF3: 1273.730146 | BG3: 1201.046861 | BH3: 3067 | BI3: 11.056485 | BJ3: 14.057042 | BK3: 13.914111 | BL3: 14.199973 | BM3: 300.429159 | BN3: 0.998256 | BO3: 2531297.145 | BP3: 1891.632968 | BQ3: 1261.348918 | BR3: 1892.132968 | BS3: 2835.151082 | BT3: 6.513276 | BU3: 29.591969 | BV3: 8079294.035 | BW3: 2773.227398 | BX3: 9.453 | BY3: 0.000373 | BZ3: 2913.318266 | CA3: 60971.13672 | CB3: 8898.682231 | CC3: 1225.584496 | CD3: 10.796164 | CE3: 14.061072 | CF3: 13.949078 | CG3: 14.173066 | CH3: 304.177257 | CI3: 0.998135 | CJ3: 123802665.6 | CK3: 1159.261383 | CL3: 3179.047273 | CM3: 1159.761383 | CN3: 917.452727 | CO3: 6.519313 | CP3: 29.796526 | CQ3: 6791677.94 | CR3: 2580.305944 | CS3: 9.747 | CT3: 0.000412 | CU3: 2632.121186 | CV3: 60514.94141 | CW3: 7480.478312 | CX3: 1218.971166 | CY3: 9.311291 | CZ3: 13.678349 | DA3: 13.598032 | DB3: 13.758665 | DC3: 277.806715 | DD3: 0.999851 | DE3: 101251155.8 | DF3: 2162.478017 | DG3: 1600.04206 | DH3: 2162.978017 | DI3: 2496.45794 | DJ3: 6.511055 | DK3: 29.628151 | DL3: 3536784.057 | DM3: 2010.751547 | DN3: 10.568 | DO3: 0.000617 | DP3: 1758.936385 | DQ3: 27072.37305 | DR3: 3895.478653 | DS3: 1209.464697 | DT3: 11.102445 | DU3: 14.109114 | DV3: 14.012995 | DW3: 14.205233 | DX3: 305.508298 | DY3: 0.998246 | DZ3: 23320243.54 | EA3: 2963.769089 | EB3: 987.902468 | EC3: 2964.269089 | ED3: 3108.597532 | EE3: 6.504507 | EF3: 29.562634 | EG3: 2599437.624 | EH3: 1813.29533 | EI3: 10.984 | EJ3: 0.000757 | EK3: 1433.543439 | EL3: 22519.06445 | EM3: 2863.068146 | EN3: 1207.865338 | EO3: 10.077273 | EP3: 13.705819 | EQ3: 13.641813 | ER3: 13.769824 | ES3: 298.019031 | ET3: 0.99972 | EU3: 14362069.45 | EV3: 3796.241453 | EW3: 2082.913682 | EX3: 3796.741453 | EY3: 2013.586318 | EZ3: 6.497658 | FA3: 29.67931 | FB3: 1305585.711 | FC3: 1499.617843 | FD3: 11.697 | FE3: 0.001246 | FF3: 870.612281 | FG3: 13156.67871 | FH3: 1437.995983 | FI3: 1206.332564 | FJ3: 9.253853 | FK3: 13.516423 | FL3: 13.36366 | FM3: 13.669185 | FN3: 286.144957 | FO3: 0.999285 | FP3: 3926527.924 | FQ3: 2431.491615 | FR3: 2345.022608 | FS3: 2431.991615 | FT3: 1751.477392 | FU3: 6.508847 | FV3: 29.707735 | FW3: 677589.9781 | FX3: 1317.845888 | FY3: 12.285 | FZ3: 0.00211 | GA3: 514.164808 | GB3: 6374.19043 | GC3: 746.309996 | GD3: 1200.608181 | GE3: 11.088256 | GF3: 14.014733 | GG3: 13.86238 | GH3: 14.167087 | GI3: 297.34955 | GJ3: 0.998585 | GK3: 881230.11 | GL3: 1205.001449 | GM3: 2257.198026 | GN3: 1205.501449 | GO3: 1839.301974 | GP3: 6.518909 | GQ3: 29.698115 | GR3: 450684.4606 | GS3: 1245.001117 | GT3: 12.782 | GU3: 0.002995 | GV3: 361.995226 | GW3: 4774.07373 | GX3: 496.392109 | GY3: 1197.881795 | GZ3: 10.037599 | HA3: 13.88577 | HB3: 13.645689 | HC3: 14.125852 | HD3: 287.796659 | HE3: 0.998193 | HF3: 411584.7575
A4: 3 | B4: WASP-12b_00042_bdf.fits | C4: 3 | D4: 64547.55078 | E4: 56319.51726 | F4: 2456319.517 | G4: 2456319.517 | H4: 2456319.522 | I4: 2456319.523 | J4: 1.35229 | K4: -19.93 | L4: 100 | M4: 6.50911 | N4: 29.672297 | O4: 12.878468 | P4: 17 | Q4: 30 | R4: 45 | S4: 0.049532 | T4: 0.524471 | U4: 0.407607 | V4: 0.178002 | W4: 0.125075 | X4: 0.059105 | Y4: 0.02988 | Z4: 0.019676 | AA4: 6.2e-05 | AB4: 0.000233 | AC4: 0.000189 | AD4: 0.000109 | AE4: 9.1e-05 | AF4: 6.8e-05 | AG4: 5.7e-05 | AH4: 5.3e-05 | AI4: 796.113027 | AJ4: 2255.583497 | AK4: 2161.987227 | AL4: 1639.882421 | AM4: 1377.9363 | AN4: 868.436105 | AO4: 520.529854 | AP4: 368.258289 | AQ4: 23777308.81 | AR4: 5230.78353 | AS4: 2400.242369 | AT4: 2018.222583 | AU4: 2400.742369 | AV4: 2078.277417 | AW4: 6.509105 | AX4: 29.672511 | AY4: 1177747.797 | AZ4: 907.920277 | BA4: 1456.507429 | BB4: 11.673491 | BC4: 0.001363 | BD4: 808.610909 | BE4: 10254.90527 | BF4: 1297.192966 | BG4: 1186.229897 | BH4: 3080 | BI4: 12.370812 | BJ4: 13.273053 | BK4: 12.995212 | BL4: 13.550894 | BM4: 86.975767 | BN4: 0.998229 | BO4: 3061220.019 | BP4: 1891.478386 | BQ4: 1264.827278 | BR4: 1891.978386 | BS4: 2831.672722 | BT4: 6.513278 | BU4: 29.592024 | BV4: 8180222.316 | BW4: 2785.912831 | BX4: 9.453 | BY4: 0.00037 | BZ4: 2936.280786 | CA4: 62432.88672 | CB4: 9009.846486 | CC4: 1208.149036 | CD4: 12.50867 | CE4: 13.203368 | CF4: 12.963493 | CG4: 13.443244 | CH4: 88.193343 | CI4: 0.998675 | CJ4: 149302881.2 | CK4: 1159.228462 | CL4: 3182.222141 | CM4: 1159.728462 | CN4: 914.277859 | CO4: 6.519317 | CP4: 29.796568 | CQ4: 6885298.082 | CR4: 2590.673287 | CS4: 9.747 | CT4: 0.000408 | CU4: 2657.725356 | CV4: 64547.55078 | CW4: 7583.593248 | CX4: 1202.648949 | CY4: 9.939992 | CZ4: 12.680838 | DA4: 12.410483 | DB4: 12.951192 | DC4: 66.343599 | DD4: 0.996048 | DE4: 129452478.4 | DF4: 2162.227547 | DG4: 1603.396442 | DH4: 2162.727547 | DI4: 2493.103558 | DJ4: 6.511058 | DK4: 29.628199 | DL4: 3592869.793 | DM4: 2015.428943 | DN4: 10.568 | DO4: 0.000609 | DP4: 1782.682444 | DQ4: 27930.16797 | DR4: 3957.252508 | DS4: 1192.532557 | DT4: 12.441184 | DU4: 13.313507 | DV4: 13.112051 | DW4: 13.514963 | DX4: 79.682531 | DY4: 0.998955 | DZ4: 28041396.19 | EA4: 2963.577836 | EB4: 991.331439 | EC4: 2964.077836 | ED4: 3105.168561 | EE4: 6.504508 | EF4: 29.562698 | EG4: 2643335.243 | EH4: 1817.590809 | EI4: 10.984 | EJ4: 0.000746 | EK4: 1454.307114 | EL4: 23832.63086 | EM4: 2911.417786 | EN4: 1192.091724 | EO4: 10.834405 | EP4: 12.723933 | EQ4: 12.553126 | ER4: 12.89474 | ES4: 62.027604 | ET4: 0.997702 | EU4: 18120903.67 | EV4: 3796.218632 | EW4: 2086.338775 | EX4: 3796.718632 | EY4: 2010.161225 | EZ4: 6.497661 | FA4: 29.679406 | FB4: 1326933.381 | FC4: 1498.972791 | FD4: 11.697 | FE4: 0.001226 | FF4: 885.228463 | FG4: 14982.87695 | FH4: 1461.508697 | FI4: 1191.728036 | FJ4: 9.565643 | FK4: 12.400507 | FL4: 12.016913 | FM4: 12.784101 | FN4: 76.064346 | FO4: 0.995111 | FP4: 5284782.643 | FQ4: 2431.343416 | FR4: 2348.319227 | FS4: 2431.843416 | FT4: 1748.180773 | FU4: 6.508851 | FV4: 29.707777 | FW4: 689846.0058 | FX4: 1316.616002 | FY4: 12.285 | FZ4: 0.00207 | GA4: 523.953837 | GB4: 6687.84668 | GC4: 759.809009 | GD4: 1183.720361 | GE4: 12.191361 | GF4: 13.20911 | GG4: 12.892421 | GH4: 13.525799 | GI4: 79.9673 | GJ4: 0.997397 | GK4: 1071288.956 | GL4: 1204.928276 | GM4: 2260.391084 | GN4: 1205.428276 | GO4: 1836.108916 | GP4: 6.518912 | GQ4: 29.698164 | GR4: 458803.9922 | GS4: 1241.857748 | GT4: 12.782 | GU4: 0.002935 | GV4: 369.449716 | GW4: 5139.264648 | GX4: 505.335109 | GY4: 1183.882052 | GZ4: 11.43733 | HA4: 13.056706 | HB4: 12.674547 | HC4: 13.438866 | HD4: 84.64421 | HE4: 0.996457 | HF4: 503243.356
A5: 4 | B5: WASP-12b_00043_bdf.fits | C5: 4 | D5: 65044.16016 | E5: 56319.51864 | F5: 2456319.519 | G5: 2456319.518 | H5: 2456319.524 | I5: 2456319.524 | J5: 1.344023 | K5: -19.96 | L5: 100 | M5: 6.50911 | N5: 29.672297 | O5: 13.73473 | P5: 17 | Q5: 30 | R5: 45 | S5: 0.04958 | T5: 0.524584 | U5: 0.408277 | V5: 0.177697 | W5: 0.125008 | X5: 0.059019 | Y5: 0.029861 | Z5: 0.019655 | AA5: 6.2e-05 | AB5: 0.000232 | AC5: 0.000189 | AD5: 0.000108 | AE5: 9.1e-05 | AF5: 6.8e-05 | AG5: 5.7e-05 | AH5: 5.3e-05 | AI5: 796.759203 | AJ5: 2257.106819 | AK5: 2163.376624 | AL5: 1638.081404 | AM5: 1378.62836 | AN5: 866.745423 | AO5: 520.57644 | AP5: 367.578409 | AQ5: 23810723.55 | AR5: 5236.489026 | AS5: 2401.103915 | AT5: 2016.719531 | AU5: 2401.603915 | AV5: 2079.780469 | AW5: 6.509101 | AX5: 29.672556 | AY5: 1180529.063 | AZ5: 907.920277 | BA5: 1458.740004 | BB5: 11.672455 | BC5: 0.001362 | BD5: 809.279967 | BE5: 10573.51953 | BF5: 1300.256304 | BG5: 1191.621712 | BH5: 3061 | BI5: 13.037818 | BJ5: 13.680486 | BK5: 13.416292 | BL5: 13.94468 | BM5: 75.363793 | BN5: 0.998041 | BO5: 2804256.342 | BP5: 1892.359396 | BQ5: 1263.251391 | BR5: 1892.859396 | BS5: 2833.248609 | BT5: 6.513275 | BU5: 29.592067 | BV5: 8192872.974 | BW5: 2786.942157 | BX5: 9.453 | BY5: 0.000369 | BZ5: 2939.735564 | CA5: 64160.60547 | CB5: 9023.780152 | CC5: 1213.764288 | CD5: 12.892586 | CE5: 13.562203 | CF5: 13.334229 | CG5: 13.790178 | CH5: 82.964288 | CI5: 0.998799 | CJ5: 138362082.2 | CK5: 1160.120035 | CL5: 3180.732192 | CM5: 1160.620035 | CN5: 915.767808 | CO5: 6.519313 | CP5: 29.796587 | CQ5: 6903025.22 | CR5: 2594.828477 | CS5: 9.747 | CT5: 0.000408 | CU5: 2660.301165 | CV5: 65044.16016 | CW5: 7603.118242 | CX5: 1207.053648 | CY5: 10.731594 | CZ5: 12.954778 | DA5: 12.681799 | DB5: 13.227756 | DC5: 62.048265 | DD5: 0.994353 | DE5: 121492161.5 | DF5: 2163.128254 | DG5: 1601.915728 | DH5: 2163.628254 | DI5: 2494.584272 | DJ5: 6.511053 | DK5: 29.628249 | DL5: 3592689.064 | DM5: 2018.172425 | DN5: 10.568 | DO5: 0.00061 | DP5: 1780.169533 | DQ5: 28678.10547 | DR5: 3957.05345 | DS5: 1199.319655 | DT5: 13.082896 | DU5: 13.660203 | DV5: 13.459935 | DW5: 13.86047 | DX5: 75.976165 | DY5: 0.998897 | DZ5: 25990090.34 | EA5: 2964.45279 | EB5: 989.801047 | EC5: 2964.95279 | ED5: 3106.698953 | EE5: 6.504506 | EF5: 29.562742 | EG5: 2645787.259 | EH5: 1818.317374 | EI5: 10.984 | EJ5: 0.000746 | EK5: 1455.074509 | EL5: 23808.04688 | EM5: 2914.118482 | EN5: 1198.15441 | EO5: 11.844061 | EP5: 13.142599 | EQ5: 12.947666 | ER5: 13.337531 | ES5: 61.614032 | ET5: 0.997071 | EU5: 16451829.45 | EV5: 3797.122715 | EW5: 2084.832417 | EX5: 3797.622715 | EY5: 2011.667583 | EZ5: 6.497661 | FA5: 29.679445 | FB5: 1326975.222 | FC5: 1502.086345 | FD5: 11.697 | FE5: 0.001228 | FF5: 883.4214 | FG5: 15113.28711 | FH5: 1461.554781 | FI5: 1196.576253 | FJ5: 10.314365 | FK5: 12.706581 | FL5: 12.290099 | FM5: 13.123063 | FN5: 76.128192 | FO5: 0.994526 | FP5: 4877144.928 | FQ5: 2432.218767 | FR5: 2346.810459 | FS5: 2432.718767 | FT5: 1749.689541 | FU5: 6.508847 | FV5: 29.70782 | FW5: 690399.9264 | FX5: 1317.559057 | FY5: 12.285 | FZ5: 0.00207 | GA5: 523.999226 | GB5: 6804.814941 | GC5: 760.419107 | GD5: 1189.986543 | GE5: 12.736664 | GF5: 13.602804 | GG5: 13.340608 | GH5: 13.865001 | GI5: 73.594013 | GJ5: 0.997898 | GK5: 987028.1182 | GL5: 1205.836285 | GM5: 2258.973706 | GN5: 1206.336285 | GO5: 1837.526294 | GP5: 6.518908 | GQ5: 29.698204 | GR5: 458973.8875 | GS5: 1244.633539 | GT5: 12.782 | GU5: 0.00294 | GV5: 368.762269 | GW5: 5197.806641 | GX5: 505.522235 | GY5: 1189.303059 | GZ5: 12.359387 | HA5: 13.341964 | HB5: 12.963479 | HC5: 13.720449 | HD5: 79.656961 | HE5: 0.996328 | HF5: 470641.3683
A6: 5 | B6: WASP-12b_00044_bdf.fits | C6: 5 | D6: 0 | E6: 56319.52001 | F6: 2456319.52 | G6: 2456319.519 | H6: 2456319.525 | I6: 2456319.526 | J6: 1.335915 | K6: -20 | L6: 100 | M6: 6.50911 | N6: 29.672297 | O6: 14.830841 | P6: 17 | Q6: 30 | R6: 45 | S6: 0.049283 | T6: 0.525944 | U6: 0.409568 | V6: 0.177111 | W6: 0.124479 | X6: 0.058851 | Y6: 0.029716 | Z6: 0.019544 | AA6: 6.3e-05 | AB6: 0.000235 | AC6: 0.000191 | AD6: 0.000109 | AE6: 9.1e-05 | AF6: 6.9e-05 | AG6: 5.8e-05 | AH6: 5.4e-05 | AI6: 783.359769 | AJ6: 2237.718893 | AK6: 2146.251008 | AL6: 1620.170557 | AM6: 1361.924629 | AN6: 856.641477 | AO6: 510.88067 | AP6: 360.62378 | AQ6: 23478099.22 | AR6: 5212.417069 | AS6: 2400.283046 | AT6: 2012.424296 | AU6: 2400.783046 | AV6: 2084.075704 | AW6: 6.509107 | AX6: 29.672434 | AY6: 1157075.906 | AZ6: 907.920277 | BA6: 1454.558749 | BB6: 11.678967 | BC6: 0.001385 | BD6: 795.482415 | BE6: 7308.807129 | BF6: 1274.424567 | BG6: 1192.297787 | BH6: 3010 | BI6: 13.76712 | BJ6: 15.232621 | BK6: 15.571053 | BL6: 14.894189 | BM6: 17.086132 | BN6: 0.997118 | BO6: 1774307.579 | BP6: 1891.534225 | BQ6: 1258.927863 | BR6: 1892.034225 | BS6: 2837.572137 | BT6: 6.51328 | BU6: 29.591935 | BV6: 8092145.908 | BW6: 2772.822696 | BX6: 9.453 | BY6: 0.000372 | BZ6: 2918.378416 | CA6: 43912.96094 | CB6: 8912.837519 | CC6: 1217.063169 | CD6: 13.890107 | CE6: 15.172602 | CF6: 15.570168 | CG6: 14.775036 | CH6: 13.006146 | CI6: 0.996604 | CJ6: 88248274.54 | CK6: 1159.163318 | CL6: 3176.466863 | CM6: 1159.663318 | CN6: 920.033137 | CO6: 6.519318 | CP6: 29.796439 | CQ6: 6821860.125 | CR6: 2581.283688 | CS6: 9.747 | CT6: 0.000411 | CU6: 2642.816888 | CV6: 44009.06641 | CW6: 7513.721522 | CX6: 1212.056336 | CY6: 11.936599 | CZ6: 14.735405 | DA6: 15.133281 | DB6: 14.337529 | DC6: 25.207338 | DD6: 0.992828 | DE6: 73801184.33 | DF6: 2162.309026 | DG6: 1597.591132 | DH6: 2162.809026 | DI6: 2498.908868 | DJ6: 6.51106 | DK6: 29.62812 | DL6: 3532572.745 | DM6: 2007.017091 | DN6: 10.568 | DO6: 0.000617 | DP6: 1760.110944 | DQ6: 19371.90625 | DR6: 3890.840237 | DS6: 1199.578566 | DT6: 14.13218 | DU6: 15.249848 | DV6: 15.656418 | DW6: 14.843278 | DX6: 13.280354 | DY6: 0.996451 | DZ6: 16393263.28 | EA6: 2963.623038 | EB6: 985.433883 | EC6: 2964.123038 | ED6: 3111.066117 | EE6: 6.504511 | EF6: 29.562594 | EG6: 2599006.594 | EH6: 1808.712291 | EI6: 10.984 | EJ6: 0.000755 | EK6: 1436.937542 | EL6: 16653.22656 | EM6: 2862.593402 | EN6: 1200.808077 | EO6: 12.427356 | EP6: 14.716522 | EQ6: 15.172478 | ER6: 14.260566 | ES6: 21.264322 | ET6: 0.992943 | EU6: 10484069.7 | EV6: 3796.302577 | EW6: 2080.510587 | EX6: 3796.802577 | EY6: 2015.989413 | EZ6: 6.497659 | FA6: 29.67938 | FB6: 1304913.786 | FC6: 1494.674596 | FD6: 11.697 | FE6: 0.001243 | FF6: 873.042058 | FG6: 9898.234375 | FH6: 1437.255913 | FI6: 1196.860128 | FJ6: 11.439915 | FK6: 14.472968 | FL6: 14.716399 | FM6: 14.229536 | FN6: 29.602316 | FO6: 0.995685 | FP6: 2898322.111 | FQ6: 2431.36926 | FR6: 2342.625276 | FS6: 2431.86926 | FT6: 1753.874724 | FU6: 6.508852 | FV6: 29.707708 | FW6: 677550.3836 | FX6: 1317.745693 | FY6: 12.285 | FZ6: 0.00211 | GA6: 514.173855 | GB6: 4814.179199 | GC6: 746.266386 | GD6: 1190.725407 | GE6: 13.869341 | GF6: 15.089747 | GG6: 15.406185 | GH6: 14.77331 | GI6: 20.90812 | GJ6: 0.996836 | GK6: 628036.7185 | GL6: 1204.828166 | GM6: 2254.738521 | GN6: 1205.328166 | GO6: 1841.761479 | GP6: 6.518915 | GQ6: 29.698102 | GR6: 450049.6764 | GS6: 1244.048593 | GT6: 12.782 | GU6: 0.002997 | GV6: 361.762136 | GW6: 3693.841309 | GX6: 495.692946 | GY6: 1190.469201 | GZ6: 13.449381 | HA6: 15.092096 | HB6: 15.365812 | HC6: 14.818381 | HD6: 19.536485 | HE6: 0.997818 | HF6: 283138.8832
A7: 6 | B7: WASP-12b_00045_bdf.fits | C7: 6 | D7: 0 | E7: 56319.52139 | F7: 2456319.521 | G7: 2456319.521 | H7: 2456319.526 | I7: 2456319.527 | J7: 1.327962 | K7: -20.04 | L7: 100 | M7: 6.50911 | N7: 29.672297 | O7: 14.192583 | P7: 17 | Q7: 30 | R7: 45 | S7: 0.04934 | T7: 0.524977 | U7: 0.410418 | V7: 0.176968 | W7: 0.124622 | X7: 0.058894 | Y7: 0.029668 | Z7: 0.019528 | AA7: 6.3e-05 | AB7: 0.000234 | AC7: 0.000191 | AD7: 0.000109 | AE7: 9.1e-05 | AF7: 6.8e-05 | AG7: 5.8e-05 | AH7: 5.4e-05 | AI7: 787.404038 | AJ7: 2244.735473 | AK7: 2154.12962 | AL7: 1627.344392 | AM7: 1369.275941 | AN7: 861.565406 | AO7: 513.798454 | AP7: 364.419563 | AQ7: 23560191.87 | AR7: 5209.178049 | AS7: 2395.785573 | AT7: 2016.692737 | AU7: 2396.285573 | AV7: 2079.807263 | AW7: 6.509102 | AX7: 29.672493 | AY7: 1162458.218 | AZ7: 907.920277 | BA7: 1453.772093 | BB7: 11.677718 | BC7: 0.001378 | BD7: 799.615169 | BE7: 7792.104004 | BF7: 1280.352744 | BG7: 1176.413326 | BH7: 3137 | BI7: 13.161619 | BJ7: 14.989795 | BK7: 14.695684 | BL7: 15.283907 | BM7: 295.184028 | BN7: 0.996218 | BO7: 1975277.19 | BP7: 1886.967155 | BQ7: 1263.311532 | BR7: 1887.467155 | BS7: 2833.188468 | BT7: 6.513276 | BU7: 29.59201 | BV7: 8110651.85 | BW7: 2774.559248 | BX7: 9.453 | BY7: 0.000371 | BZ7: 2923.221718 | CA7: 48094.58984 | CB7: 8933.220302 | CC7: 1203.777013 | CD7: 12.896178 | CE7: 14.845216 | CF7: 14.543536 | CG7: 15.146895 | CH7: 297.343783 | CI7: 0.99506 | CJ7: 99875248.44 | CK7: 1154.610382 | CL7: 3180.85495 | CM7: 1155.110382 | CN7: 915.64505 | CO7: 6.519314 | CP7: 29.796532 | CQ7: 6855790.224 | CR7: 2585.388004 | CS7: 9.747 | CT7: 0.000409 | CU7: 2651.745198 | CV7: 47282.41406 | CW7: 7551.092754 | CX7: 1194.655156 | CY7: 11.132625 | CZ7: 14.450579 | DA7: 14.276606 | DB7: 14.624551 | DC7: 295.668084 | DD7: 0.998515 | DE7: 82011473.87 | DF7: 2157.813483 | DG7: 1601.893266 | DH7: 2158.313483 | DI7: 2494.606734 | DJ7: 6.511054 | DK7: 29.628184 | DL7: 3542486.03 | DM7: 2003.643772 | DN7: 10.568 | DO7: 0.000614 | DP7: 1768.021881 | DQ7: 21531.01367 | DR7: 3901.75891 | DS7: 1186.570361 | DT7: 13.23053 | DU7: 14.95767 | DV7: 14.658185 | DW7: 15.257156 | DX7: 295.830711 | DY7: 0.995836 | DZ7: 18269976.27 | EA7: 2959.104273 | EB7: 989.840503 | EC7: 2959.604273 | ED7: 3106.659497 | EE7: 6.504509 | EF7: 29.562664 | EG7: 2610751.207 | EH7: 1806.83312 | EI7: 10.984 | EJ7: 0.000751 | EK7: 1444.932118 | EL7: 17563.0957 | EM7: 2875.529134 | EN7: 1185.36889 | EO7: 11.910438 | EP7: 14.520386 | EQ7: 14.298924 | ER7: 14.741848 | ES7: 292.707163 | ET7: 0.998113 | EU7: 11457270.92 | EV7: 3791.706902 | EW7: 2084.76202 | EX7: 3792.206902 | EY7: 2011.73798 | EZ7: 6.497664 | FA7: 29.679334 | FB7: 1310379.847 | FC7: 1492.256444 | FD7: 11.697 | FE7: 0.001236 | FF7: 878.119744 | FG7: 10771.66797 | FH7: 1443.276331 | FI7: 1181.33187 | FJ7: 10.689516 | FK7: 14.23583 | FL7: 13.892228 | FM7: 14.579431 | FN7: 288.593715 | FO7: 0.996333 | FP7: 3232880.397 | FQ7: 2426.868625 | FR7: 2346.802679 | FS7: 2427.368625 | FT7: 1749.697321 | FU7: 6.508848 | FV7: 29.707764 | FW7: 678854.8918 | FX7: 1312.755295 | FY7: 12.285 | FZ7: 0.002098 | GA7: 517.122189 | GB7: 5202.586426 | GC7: 747.703195 | GD7: 1176.514981 | GE7: 13.045295 | GF7: 14.887182 | GG7: 14.584666 | GH7: 15.189699 | GI7: 293.998135 | GJ7: 0.996315 | GK7: 689886.0709 | GL7: 1200.3578 | GM7: 2259.093154 | GN7: 1200.8578 | GO7: 1837.406846 | GP7: 6.518908 | GQ7: 29.698141 | GR7: 451277.8178 | GS7: 1234.396917 | GT7: 12.782 | GU7: 0.002966 | GV7: 365.585665 | GW7: 3953.673828 | GX7: 497.045643 | GY7: 1175.775127 | GZ7: 12.643624 | HA7: 14.766772 | HB7: 14.374744 | HC7: 15.1588 | HD7: 295.307594 | HE7: 0.993008 | HF7: 315699.7
A8: 7 | B8: WASP-12b_00046_bdf.fits | C8: 7 | D8: 0 | E8: 56319.52277 | F8: 2456319.523 | G8: 2456319.522 | H8: 2456319.528 | I8: 2456319.528 | J8: 1.320161 | K8: -20.06 | L8: 100 | M8: 6.50911 | N8: 29.672297 | O8: 13.93557 | P8: 17 | Q8: 30 | R8: 45 | S8: 0.049332 | T8: 0.526146 | U8: 0.409859 | V8: 0.176918 | W8: 0.124631 | X8: 0.058639 | Y8: 0.029675 | Z8: 0.019557 | AA8: 6.3e-05 | AB8: 0.000234 | AC8: 0.000191 | AD8: 0.000109 | AE8: 9.1e-05 | AF8: 6.8e-05 | AG8: 5.8e-05 | AH8: 5.4e-05 | AI8: 788.454287 | AJ8: 2244.031689 | AK8: 2151.405524 | AL8: 1624.990574 | AM8: 1366.718282 | AN8: 858.22794 | AO8: 514.67542 | AP8: 362.885407 | AQ8: 23536587.78 | AR8: 5209.119131 | AS8: 2403.616645 | AT8: 2021.581052 | AU8: 2404.116645 | AV8: 2074.918948 | AW8: 6.509097 | AX8: 29.672314 | AY8: 1161115.42 | AZ8: 907.920277 | BA8: 1450.052962 | BB8: 11.677885 | BC8: 0.001376 | BD8: 800.740008 | BE8: 7824.720215 | BF8: 1278.873762 | BG8: 1179.223091 | BH8: 2985 | BI8: 12.964147 | BJ8: 14.941405 | BK8: 14.954335 | BL8: 14.928476 | BM8: 318.75211 | BN8: 0.999824 | BO8: 1993034.96 | BP8: 1894.744876 | BQ8: 1267.961874 | BR8: 1895.244876 | BS8: 2828.538126 | BT8: 6.513271 | BU8: 29.591819 | BV8: 8114348.258 | BW8: 2773.658537 | BX8: 9.453 | BY8: 0.000371 | BZ8: 2925.503681 | CA8: 47647.33203 | CB8: 8937.291593 | CC8: 1204.387153 | CD8: 12.778131 | CE8: 14.897803 | CF8: 14.964813 | CG8: 14.830793 | CH8: 324.683699 | CI8: 0.999264 | CJ8: 99654315.83 | CK8: 1162.459232 | CL8: 3185.583064 | CM8: 1162.959232 | CN8: 910.916936 | CO8: 6.519311 | CP8: 29.796438 | CQ8: 6842306.602 | CR8: 2584.281622 | CS8: 9.747 | CT8: 0.00041 | CU8: 2647.662911 | CV8: 49188.00781 | CW8: 7536.241646 | CX8: 1197.918364 | CY8: 11.109062 | CZ8: 14.434098 | DA8: 14.560359 | DB8: 14.307837 | DC8: 26.729107 | DD8: 0.999137 | DE8: 82714870.74 | DF8: 2165.576737 | DG8: 1606.671568 | DH8: 2166.076737 | DI8: 2489.828432 | DJ8: 6.511049 | DK8: 29.627995 | DL8: 3538100.472 | DM8: 2004.262046 | DN8: 10.568 | DO8: 0.000615 | DP8: 1765.288366 | DQ8: 21454.87891 | DR8: 3896.928576 | DS8: 1186.947301 | DT8: 13.084372 | DU8: 14.984744 | DV8: 14.991285 | DW8: 14.978203 | DX8: 316.663791 | DY8: 0.999774 | DZ8: 18406626.1 | EA8: 2966.963775 | EB8: 994.502987 | EC8: 2967.463775 | ED8: 3101.997013 | EE8: 6.504504 | EF8: 29.562546 | EG8: 2608313.063 | EH8: 1808.732203 | EI8: 10.984 | EJ8: 0.000753 | EK8: 1442.067023 | EL8: 18186.23242 | EM8: 2872.843717 | EN8: 1187.26503 | EO8: 11.70249 | EP8: 14.54964 | EQ8: 14.683356 | ER8: 14.415924 | ES8: 8.665584 | ET8: 0.999629 | EU8: 11494438.11 | EV8: 3799.490875 | EW8: 2089.604401 | EX8: 3799.990875 | EY8: 2006.895599 | EZ8: 6.497659 | FA8: 29.679281 | FB8: 1303719.74 | FC8: 1490.620399 | FD8: 11.697 | FE8: 0.001241 | FF8: 874.615523 | FG8: 11078.80566 | FH8: 1435.940768 | FI8: 1184.751234 | FJ8: 10.614825 | FK8: 14.305433 | FL8: 14.253156 | FM8: 14.35771 | FN8: 68.695245 | FO8: 0.999901 | FP8: 3136672.205 | FQ8: 2434.595158 | FR8: 2351.741564 | FS8: 2435.095158 | FT8: 1744.758436 | FU8: 6.508843 | FV8: 29.707595 | FW8: 678327.7142 | FX8: 1309.451789 | FY8: 12.285 | FZ8: 0.002094 | GA8: 518.024199 | GB8: 5169.818359 | GC8: 747.122552 | GD8: 1177.5443 | GE8: 12.588191 | GF8: 14.874424 | GG8: 14.865155 | GH8: 14.883693 | GI8: 65.207063 | GJ8: 0.999996 | GK8: 701029.5458 | GL8: 1208.116145 | GM8: 2263.826527 | GN8: 1208.616145 | GO8: 1832.673473 | GP8: 6.518905 | GQ8: 29.697978 | GR8: 451471.93 | GS8: 1240.176299 | GT8: 12.782 | GU8: 0.002978 | GV8: 364.038508 | GW8: 3964.950439 | GX8: 497.259442 | GY8: 1176.679506 | GZ8: 12.450758 | HA8: 14.827245 | HB8: 14.839103 | HC8: 14.815386 | HD8: 323.174461 | HE8: 0.999968 | HF8: 317004.2592
A9: 8 | B9: WASP-12b_00047_bdf.fits | C9: 8 | D9: 0 | E9: 56319.52415 | F9: 2456319.524 | G9: 2456319.524 | H9: 2456319.529 | I9: 2456319.53 | J9: 1.31251 | K9: -20 | L9: 100 | M9: 6.50911 | N9: 29.672297 | O9: 20.554525 | P9: 17 | Q9: 30 | R9: 45 | S9: 0.048877 | T9: 0.527207 | U9: 0.410607 | V9: 0.176358 | W9: 0.124204 | X9: 0.058871 | Y9: 0.029429 | Z9: 0.019492 | AA9: 6.3e-05 | AB9: 0.000237 | AC9: 0.000192 | AD9: 0.000109 | AE9: 9.2e-05 | AF9: 6.9e-05 | AG9: 5.8e-05 | AH9: 5.4e-05 | AI9: 772.393649 | AJ9: 2229.186815 | AK9: 2139.061181 | AL9: 1611.658808 | AM9: 1354.405449 | AN9: 852.116881 | AO9: 505.943904 | AP9: 358.682358 | AQ9: 23330918.31 | AR9: 5200.181777 | AS9: 2401.080062 | AT9: 2023.187232 | AU9: 2401.580062 | AV9: 2073.312768 | AW9: 6.509098 | AX9: 29.6723 | AY9: 1140354.777 | AZ9: 907.920277 | BA9: 1454.347384 | BB9: 11.687944 | BC9: 0.001405 | BD9: 784.100683 | BE9: 5193.95166 | BF9: 1256.00761 | BG9: 1193.193138 | BH9: 3091 | BI9: 19.737415 | BJ9: 17.270282 | BK9: 17.002592 | BL9: 17.537972 | BM9: 71.594202 | BN9: 0.998501 | BO9: 968293.506 | BP9: 1892.400041 | BQ9: 1269.793915 | BR9: 1892.900041 | BS9: 2826.706085 | BT9: 6.513271 | BU9: 29.591811 | BV9: 8054061.279 | BW9: 2769.337046 | BX9: 9.453 | BY9: 0.000373 | BZ9: 2908.299403 | CA9: 28729.50195 | CB9: 8870.890411 | CC9: 1218.367469 | CD9: 19.632752 | CE9: 17.183139 | CF9: 16.916868 | CG9: 17.449411 | CH9: 80.717884 | CI9: 0.998932 | CJ9: 48819484.24 | CK9: 1160.245676 | CL9: 3187.11556 | CM9: 1160.745676 | CN9: 909.38444 | CO9: 6.51931 | CP9: 29.796434 | CQ9: 6791291.576 | CR9: 2576.871993 | CS9: 9.747 | CT9: 0.000412 | CU9: 2635.478827 | CV9: 28936.08008 | CW9: 7480.052764 | CX9: 1211.907499 | CY9: 17.505817 | CZ9: 16.432161 | DA9: 16.122922 | DB9: 16.7414 | DC9: 63.661315 | DD9: 0.996149 | DE9: 43572111.06 | DF9: 2163.134313 | DG9: 1608.408168 | DH9: 2163.634313 | DI9: 2488.091832 | DJ9: 6.51105 | DK9: 29.627985 | DL9: 3497735.197 | DM9: 1998.302255 | DN9: 10.568 | DO9: 0.00062 | DP9: 1750.353426 | DQ9: 13119.01465 | DR9: 3852.469524 | DS9: 1199.854028 | DT9: 19.787972 | DU9: 17.286074 | DV9: 17.053566 | DW9: 17.518581 | DX9: 74.423676 | DY9: 0.999012 | DZ9: 8933010.096 | EA9: 2964.304887 | EB9: 996.459475 | EC9: 2964.804887 | ED9: 3100.040525 | EE9: 6.504505 | EF9: 29.562538 | EG9: 2577641.534 | EH9: 1804.173491 | EI9: 10.984 | EJ9: 0.00076 | EK9: 1428.710458 | EL9: 10486.50879 | EM9: 2839.061534 | EN9: 1198.883875 | EO9: 18.72441 | EP9: 16.70247 | EQ9: 16.47493 | ER9: 16.93001 | ES9: 60.654934 | ET9: 0.997252 | EU9: 5637949.455 | EV9: 3796.779991 | EW9: 2091.417086 | EX9: 3797.279991 | EY9: 2005.082914 | EZ9: 6.49766 | FA9: 29.679279 | FB9: 1297150.551 | FC9: 1493.75783 | FD9: 11.697 | FE9: 0.00125 | FF9: 868.380755 | FG9: 6904.129883 | FH9: 1428.705344 | FI9: 1195.814497 | FJ9: 16.745147 | FK9: 16.11075 | FL9: 15.6004 | FM9: 16.6211 | FN9: 78.550212 | FO9: 0.995279 | FP9: 1715643.889 | FQ9: 2432.182154 | FR9: 2353.295108 | FS9: 2432.682154 | FT9: 1743.204892 | FU9: 6.508843 | FV9: 29.707581 | FW9: 666968.4123 | FX9: 1309.920085 | FY9: 12.285 | FZ9: 0.00213 | GA9: 509.167254 | GB9: 3607.51416 | GC9: 734.611209 | GD9: 1190.551538 | GE9: 19.50859 | GF9: 17.168846 | GG9: 16.872373 | GH9: 17.465318 | GI9: 74.001847 | GJ9: 0.998343 | GK9: 339280.1681 | GL9: 1206.024875 | GM9: 2265.390156 | GN9: 1206.524875 | GO9: 1831.109844 | GP9: 6.518903 | GQ9: 29.697967 | GR9: 446069.7634 | GS9: 1239.732471 | GT9: 12.782 | GU9: 0.003013 | GV9: 359.811309 | GW9: 2908.077393 | GX9: 491.309397 | GY9: 1190.12399 | GZ9: 18.858528 | HA9: 16.885807 | HB9: 16.474264 | HC9: 17.297349 | HD9: 75.972989 | HE9: 0.996953 | HF9: 165504.3434
A10: 9 | B10: WASP-12b_00048_bdf.fits | C10: 9 | D10: 0 | E10: 56319.52553 | F10: 2456319.526 | G10: 2456319.525 | H10: 2456319.53 | I10: 2456319.531 | J10: 1.305005 | K10: -19.96 | L10: 100 | M10: 6.50911 | N10: 29.672297 | O10: 21.462907 | P10: 17 | Q10: 30 | R10: 45 | S10: 0.048951 | T10: 0.527037 | U10: 0.410455 | V10: 0.176157 | W10: 0.12446 | X10: 0.058788 | Y10: 0.029591 | Z10: 0.019505 | AA10: 6.2e-05 | AB10: 0.000233 | AC10: 0.000189 | AD10: 0.000108 | AE10: 9e-05 | AF10: 6.8e-05 | AG10: 5.7e-05 | AH10: 5.3e-05 | AI10: 790.467815 | AJ10: 2260.152557 | AK10: 2168.111729 | AL10: 1635.410283 | AM10: 1377.836963 | AN10: 866.824897 | AO10: 518.102743 | AP10: 367.18526 | AQ10: 23776839.61 | AR10: 5221.521532 | AS10: 2398.425372 | AT10: 2017.396564 | AU10: 2398.925372 | AV10: 2079.103436 | AW10: 6.509097 | AX10: 29.672292 | AY10: 1163890.399 | AZ10: 907.920277 | BA10: 1450.052746 | BB10: 11.68632 | BC10: 0.001373 | BD10: 802.653836 | BE10: 5575.305664 | BF10: 1281.930174 | BG10: 1171.739498 | BH10: 3079 | BI10: 20.088065 | BJ10: 17.20079 | BK10: 16.908771 | BL10: 17.492808 | BM10: 62.563646 | BN10: 0.99652 | BO10: 1077498.245 | BP10: 1889.729577 | BQ10: 1264.052354 | BR10: 1890.229577 | BS10: 2832.447646 | BT10: 6.51327 | BU10: 29.591806 | BV10: 8206271.807 | BW10: 2787.015967 | BX10: 9.453 | BY10: 0.000369 | BZ10: 2944.4653 | CA10: 31336.75781 | CB10: 9038.537871 | CC10: 1194.651109 | CD10: 19.585859 | CE10: 17.065157 | CF10: 16.781511 | CG10: 17.348803 | CH10: 67.810144 | CI10: 0.997838 | CJ10: 55584520.01 | CK10: 1157.43474 | CL10: 3181.337732 | CM10: 1157.93474 | CN10: 915.162268 | CO10: 6.519311 | CP10: 29.796411 | CQ10: 6919276.452 | CR10: 2593.168439 | CS10: 9.747 | CT10: 0.000407 | CU10: 2668.271119 | CV10: 32346.28711 | CW10: 7621.017646 | CX10: 1188.520839 | CY10: 17.416304 | CZ10: 16.097867 | DA10: 15.846414 | DB10: 16.349321 | DC10: 54.724368 | DD10: 0.991201 | DE10: 50854331 | DF10: 2160.473362 | DG10: 1602.570169 | DH10: 2160.973362 | DI10: 2493.929831 | DJ10: 6.511049 | DK10: 29.627972 | DL10: 3561133.468 | DM10: 2005.066185 | DN10: 10.568 | DO10: 0.000611 | DP10: 1776.06779 | DQ10: 14079.83594 | DR10: 3922.297539 | DS10: 1179.950644 | DT10: 19.789612 | DU10: 17.205934 | DV10: 16.960928 | DW10: 17.450939 | DX10: 63.236098 | DY10: 0.997706 | DZ10: 10000987.42 | EA10: 2961.572435 | EB10: 990.824781 | EC10: 2962.072435 | ED10: 3105.675219 | EE10: 6.504505 | EF10: 29.562543 | EG10: 2631712.998 | EH10: 1810.152003 | EI10: 10.984 | EJ10: 0.000747 | EK10: 1453.862987 | EL10: 11527.0918 | EM10: 2898.616833 | EN10: 1178.547556 | EO10: 18.59649 | EP10: 16.527401 | EQ10: 16.310875 | ER10: 16.743927 | ES10: 54.660916 | ET10: 0.993731 | EU10: 6484462.612 | EV10: 3794.085811 | EW10: 2085.524137 | EX10: 3794.585811 | EY10: 2010.975863 | EZ10: 6.497659 | FA10: 29.679264 | FB10: 1320191.213 | FC10: 1494.348857 | FD10: 11.697 | FE10: 0.001228 | FF10: 883.455832 | FG10: 7415.367188 | FH10: 1454.08275 | FI10: 1175.678147 | FJ10: 16.989352 | FK10: 15.864555 | FL10: 15.273461 | FM10: 16.455648 | FN10: 74.271918 | FO10: 0.99239 | FP10: 1952405.858 | FQ10: 2429.386337 | FR10: 2347.376507 | FS10: 2429.886337 | FT10: 1749.123493 | FU10: 6.508843 | FV10: 29.707558 | FW10: 683368.1322 | FX10: 1310.474345 | FY10: 12.285 | FZ10: 0.00208 | GA10: 521.466242 | GB10: 3877.635254 | GC10: 752.67416 | GD10: 1169.735852 | GE10: 19.687382 | GF10: 17.116793 | GG10: 16.821763 | GH10: 17.411824 | GI10: 63.190198 | GJ10: 0.996624 | GK10: 384476.6361 | GL10: 1203.204336 | GM10: 2259.640604 | GN10: 1203.704336 | GO10: 1836.859396 | GP10: 6.518904 | GQ10: 29.697959 | GR10: 454885.5404 | GS10: 1234.886376 | GT10: 12.782 | GU10: 0.002943 | GV10: 368.362263 | GW10: 3079.145996 | GX10: 501.019255 | GY10: 1168.764333 | GZ10: 18.995669 | HA10: 16.821124 | HB10: 16.36075 | HC10: 17.281498 | HD10: 69.146275 | HE10: 0.994632 | HF10: 185338.6406
A11: 10 | B11: WASP-12b_00049_bdf.fits | C11: 10 | D11: 0 | E11: 56319.52691 | F11: 2456319.527 | G11: 2456319.526 | H11: 2456319.532 | I11: 2456319.533 | J11: 1.297644 | K11: -19.93 | L11: 100 | M11: 6.50911 | N11: 29.672297 | O11: 22.090888 | P11: 17 | Q11: 30 | R11: 45 | S11: 0.04895 | T11: 0.526866 | U11: 0.411105 | V11: 0.176549 | W11: 0.124203 | X11: 0.058584 | Y11: 0.029448 | Z11: 0.019488 | AA11: 6.2e-05 | AB11: 0.000234 | AC11: 0.00019 | AD11: 0.000108 | AE11: 9.1e-05 | AF11: 6.8e-05 | AG11: 5.7e-05 | AH11: 5.3e-05 | AI11: 789.157401 | AJ11: 2254.893296 | AK11: 2163.284854 | AL11: 1632.378642 | AM11: 1371.519246 | AN11: 865.144768 | AO11: 515.409164 | AP11: 364.463531 | AQ11: 23656535.59 | AR11: 5208.083603 | AS11: 2401.271306 | AT11: 2016.121361 | AU11: 2401.771306 | AV11: 2080.378639 | AW11: 6.509098 | AX11: 29.672285 | AY11: 1157998.343 | AZ11: 907.920277 | BA11: 1445.070093 | BB11: 11.686323 | BC11: 0.001375 | BD11: 801.344066 | BE11: 5423.334473 | BF11: 1275.440557 | BG11: 1164.793722 | BH11: 2945 | BI11: 20.282509 | BJ11: 17.501187 | BK11: 17.200701 | BL11: 17.801674 | BM11: 67.925169 | BN11: 0.997711 | BO11: 1019035.913 | BP11: 1892.629067 | BQ11: 1262.808483 | BR11: 1893.129067 | BS11: 2833.691517 | BT11: 6.513271 | BU11: 29.591801 | BV11: 8163009.634 | BW11: 2778.240317 | BX11: 9.453 | BY11: 0.000369 | BZ11: 2938.194217 | CA11: 29461.42578 | CB11: 8990.888123 | CC11: 1191.001122 | CD11: 20.153784 | CE11: 17.372312 | CF11: 17.128539 | CG11: 17.616084 | CH11: 67.978698 | CI11: 0.998476 | CJ11: 51243853.68 | CK11: 1160.441463 | CL11: 3179.971523 | CM11: 1160.941463 | CN11: 916.528477 | CO11: 6.519311 | CP11: 29.796419 | CQ11: 6891991.072 | CR11: 2587.98809 | CS11: 9.747 | CT11: 0.000408 | CU11: 2663.069084 | CV11: 30624.73242 | CW11: 7590.96503 | CX11: 1183.528892 | CY11: 18.159949 | CZ11: 16.415327 | DA11: 16.141571 | DB11: 16.689083 | DC11: 57.280824 | DD11: 0.993565 | DE11: 47212427.23 | DF11: 2163.351447 | DG11: 1601.369105 | DH11: 2163.851447 | DI11: 2495.130895 | DJ11: 6.51105 | DK11: 29.627971 | DL11: 3549816.109 | DM11: 2002.125052 | DN11: 10.568 | DO11: 0.000612 | DP11: 1773.02417 | DQ11: 13638.96875 | DR11: 3909.832393 | DS11: 1173.990674 | DT11: 20.403828 | DU11: 17.466479 | DV11: 17.247469 | DW11: 17.685489 | DX11: 62.573153 | DY11: 0.998103 | DZ11: 9465591.828 | EA11: 2964.456534 | EB11: 989.528425 | EC11: 2964.956534 | ED11: 3106.971575 | EE11: 6.504505 | EF11: 29.562536 | EG11: 2613596.043 | EH11: 1806.462168 | EI11: 10.984 | EJ11: 0.00075 | EK11: 1446.803641 | EL11: 10545.30078 | EM11: 2878.662488 | EN11: 1171.808316 | EO11: 19.17355 | EP11: 16.785171 | EQ11: 16.576054 | ER11: 16.994288 | ES11: 56.435948 | ET11: 0.995891 | EU11: 5972067.402 | EV11: 3797.103002 | EW11: 2084.307526 | EX11: 3797.603002 | EY11: 2012.192474 | EZ11: 6.497659 | FA11: 29.679271 | FB11: 1309205.187 | FC11: 1484.75082 | FD11: 11.697 | FE11: 0.001231 | FF11: 881.767613 | FG11: 6956.820801 | FH11: 1441.98254 | FI11: 1168.205243 | FJ11: 17.682586 | FK11: 16.147995 | FL11: 15.628811 | FM11: 16.66718 | FN11: 74.032766 | FO11: 0.994271 | FP11: 1800921.262 | FQ11: 2432.305572 | FR11: 2346.110279 | FS11: 2432.805572 | FT11: 1750.389721 | FU11: 6.508844 | FV11: 29.707555 | FW11: 676714.7111 | FX11: 1304.543436 | FY11: 12.285 | FZ11: 0.002091 | GA11: 518.736818 | GB11: 3775.268066 | GC11: 745.345961 | GD11: 1162.782861 | GE11: 19.933664 | GF11: 17.312113 | GG11: 17.004865 | GH11: 17.619362 | GI11: 67.942285 | GJ11: 0.997557 | GK11: 369342.4764 | GL11: 1206.218914 | GM11: 2258.337046 | GN11: 1206.718914 | GO11: 1838.162954 | GP11: 6.518904 | GQ11: 29.697958 | GR11: 452202.8309 | GS11: 1236.812169 | GT11: 12.782 | GU11: 0.002966 | GV11: 365.619649 | GW11: 2956.008545 | GX11: 498.064469 | GY11: 1163.371995 | GZ11: 19.474325 | HA11: 17.11007 | HB11: 16.635787 | HC11: 17.584352 | HD11: 70.869492 | HE11: 0.995023 | HF11: 173537.2876
A12: 11 | B12: WASP-12b_00050_bdf.fits | C12: 11 | D12: 0 | E12: 56319.52829 | F12: 2456319.528 | G12: 2456319.528 | H12: 2456319.533 | I12: 2456319.534 | J12: 1.290423 | K12: -19.96 | L12: 100 | M12: 6.50911 | N12: 29.672297 | O12: 21.739219 | P12: 17 | Q12: 30 | R12: 45 | S12: 0.049108 | T12: 0.526802 | U12: 0.410673 | V12: 0.17616 | W12: 0.124533 | X12: 0.058688 | Y12: 0.029641 | Z12: 0.019477 | AA12: 6.2e-05 | AB12: 0.000233 | AC12: 0.00019 | AD12: 0.000108 | AE12: 9.1e-05 | AF12: 6.8e-05 | AG12: 5.7e-05 | AH12: 5.3e-05 | AI12: 791.095823 | AJ12: 2256.164629 | AK12: 2163.753606 | AL12: 1631.921294 | AM12: 1374.312644 | AN12: 864.592563 | AO12: 518.854564 | AP12: 365.881804 | AQ12: 23669659.89 | AR12: 5207.885525 | AS12: 2399.832842 | AT12: 2012.724617 | AU12: 2400.332842 | AV12: 2083.775383 | AW12: 6.509097 | AX12: 29.672302 | AY12: 1162376.6 | AZ12: 907.920277 | BA12: 1446.895538 | BB12: 11.682828 | BC12: 0.001372 | BD12: 803.359033 | BE12: 5521.928711 | BF12: 1280.262849 | BG12: 1161.338735 | BH12: 3024 | BI12: 19.824433 | BJ12: 17.149838 | BK12: 17.133336 | BL12: 17.16634 | BM12: 46.156395 | BN12: 0.997726 | BO12: 1072164.709 | BP12: 1891.081548 | BQ12: 1259.422446 | BR12: 1891.581548 | BS12: 2837.077554 | BT12: 6.51327 | BU12: 29.591821 | BV12: 8166891.486 | BW12: 2778.131475 | BX12: 9.453 | BY12: 0.000369 | BZ12: 2939.706619 | CA12: 29864.11133 | CB12: 8995.163665 | CC12: 1187.26991 | CD12: 19.691518 | CE12: 17.056017 | CF12: 17.126386 | CG12: 16.985649 | CH12: 38.002226 | CI12: 0.998836 | CJ12: 53619356.29 | CK12: 1158.770857 | CL12: 3176.622783 | CM12: 1159.270857 | CN12: 919.877217 | CO12: 6.519309 | CP12: 29.796442 | CQ12: 6890678.172 | CR12: 2587.833978 | CS12: 9.747 | CT12: 0.000408 | CU12: 2662.720341 | CV12: 30187.88672 | CW12: 7589.518978 | CX12: 1181.128502 | CY12: 17.687007 | CZ12: 16.207933 | DA12: 16.295346 | DB12: 16.12052 | DC12: 41.568543 | DD12: 0.991852 | DE12: 48620252.39 | DF12: 2161.860991 | DG12: 1597.966321 | DH12: 2162.360991 | DI12: 2498.533679 | DJ12: 6.511049 | DK12: 29.627988 | DL12: 3545132.466 | DM12: 2000.425494 | DN12: 10.568 | DO12: 0.000612 | DP12: 1772.189206 | DQ12: 13398.81543 | DR12: 3904.673743 | DS12: 1170.562963 | DT12: 20.04843 | DU12: 17.24481 | DV12: 17.327774 | DW12: 17.161846 | DX12: 38.857276 | DY12: 0.997955 | DZ12: 9642344.899 | EA12: 2962.997685 | EB12: 986.14275 | EC12: 2963.497685 | ED12: 3110.35725 | EE12: 6.504504 | EF12: 29.562549 | EG12: 2621223.113 | EH12: 1807.7173 | EI12: 10.984 | EJ12: 0.000749 | EK12: 1450.018271 | EL12: 11111.89941 | EM12: 2887.063082 | EN12: 1169.768937 | EO12: 18.71773 | EP12: 16.493832 | EQ12: 16.538917 | ER12: 16.448746 | ES12: 42.892104 | ET12: 0.99447 | EU12: 6372438.061 | EV12: 3795.372832 | EW12: 2080.81437 | EX12: 3795.872832 | EY12: 2015.68563 | EZ12: 6.497659 | FA12: 29.679266 | FB12: 1312116.91 | FC12: 1489.083861 | FD12: 11.697 | FE12: 0.001231 | FF12: 881.157163 | FG12: 7033.299316 | FH12: 1445.189565 | FI12: 1166.020158 | FJ12: 17.302888 | FK12: 15.854596 | FL12: 15.53153 | FM12: 16.177663 | FN12: 63.617822 | FO12: 0.995468 | FP12: 1887119.112 | FQ12: 2430.92558 | FR12: 2342.758235 | FS12: 2431.42558 | FT12: 1753.741765 | FU12: 6.508842 | FV12: 29.707578 | FW12: 681403.749 | FX12: 1304.753851 | FY12: 12.285 | FZ12: 0.002077 | GA12: 522.246973 | GB12: 3813.631348 | GC12: 750.510553 | GD12: 1159.767423 | GE12: 19.465218 | GF12: 17.005602 | GG12: 17.038872 | GH12: 16.972332 | GI12: 42.50352 | GJ12: 0.997979 | GK12: 384410.7118 | GL12: 1204.551336 | GM12: 2254.97503 | GN12: 1205.051336 | GO12: 1841.52497 | GP12: 6.518904 | GQ12: 29.697977 | GR12: 452213.9963 | GS12: 1232.020741 | GT12: 12.782 | GU12: 0.002954 | GV12: 367.050636 | GW12: 3006.067139 | GX12: 498.076767 | GY12: 1158.450147 | GZ12: 19.085636 | HA12: 16.762647 | HB12: 16.714543 | HC12: 16.810751 | HD12: 47.81632 | HE12: 0.996581 | HF12: 183029.7465
A13: 12 | B13: WASP-12b_00051_bdf.fits | C13: 12 | D13: 0 | E13: 56319.52967 | F13: 2456319.53 | G13: 2456319.529 | H13: 2456319.535 | I13: 2456319.535 | J13: 1.283339 | K13: -19.97 | L13: 100 | M13: 6.50911 | N13: 29.672297 | O13: 22.25501 | P13: 17 | Q13: 30 | R13: 45 | S13: 0.048839 | T13: 0.52751 | U13: 0.410513 | V13: 0.175782 | W13: 0.12452 | X13: 0.058903 | Y13: 0.029532 | Z13: 0.019448 | AA13: 6.2e-05 | AB13: 0.000235 | AC13: 0.000191 | AD13: 0.000108 | AE13: 9.1e-05 | AF13: 6.8e-05 | AG13: 5.7e-05 | AH13: 5.4e-05 | AI13: 786.520746 | AJ13: 2246.274506 | AK13: 2153.498609 | AL13: 1623.19542 | AM13: 1369.730234 | AN13: 863.49567 | AO13: 516.012912 | AP13: 363.478729 | AQ13: 23461668.97 | AR13: 5184.746438 | AS13: 2399.352944 | AT13: 2007.915867 | AU13: 2399.852944 | AV13: 2088.584133 | AW13: 6.509098 | AX13: 29.672282 | AY13: 1145835.412 | AZ13: 907.920277 | BA13: 1434.665984 | BB13: 11.688806 | BC13: 0.00138 | BD13: 798.67748 | BE13: 5312.436035 | BF13: 1262.044082 | BG13: 1152.967521 | BH13: 3017 | BI13: 20.371622 | BJ13: 17.820336 | BK13: 17.342873 | BL13: 18.297798 | BM13: 89.724136 | BN13: 0.997132 | BO13: 895617.9569 | BP13: 1890.822371 | BQ13: 1254.67689 | BR13: 1891.322371 | BS13: 2841.82311 | BT13: 6.51327 | BU13: 29.591803 | BV13: 8102248.812 | BW13: 2768.04901 | BX13: 9.453 | BY13: 0.000371 | BZ13: 2927.061184 | CA13: 30197.96484 | CB13: 8923.965043 | CC13: 1181.858683 | CD13: 20.214736 | CE13: 17.670648 | CF13: 17.253796 | CG13: 18.087499 | CH13: 273.062913 | CI13: 0.997751 | CJ13: 46142945.17 | CK13: 1158.483231 | CL13: 3171.893871 | CM13: 1158.983231 | CN13: 924.606129 | CO13: 6.51931 | CP13: 29.796431 | CQ13: 6828239.431 | CR13: 2577.431577 | CS13: 9.747 | CT13: 0.00041 | CU13: 2649.241785 | CV13: 29652.82422 | CW13: 7520.747807 | CX13: 1174.251747 | CY13: 18.443808 | CZ13: 16.824302 | DA13: 16.329135 | DB13: 17.319469 | DC13: 75.96406 | DD13: 0.995557 | DE13: 41177294.64 | DF13: 2161.496684 | DG13: 1593.247528 | DH13: 2161.996684 | DI13: 2503.252472 | DJ13: 6.511049 | DK13: 29.627976 | DL13: 3507578.304 | DM13: 1990.302749 | DN13: 10.568 | DO13: 0.000616 | DP13: 1762.33405 | DQ13: 13309.06152 | DR13: 3863.310902 | DS13: 1162.149563 | DT13: 20.498341 | DU13: 17.814054 | DV13: 17.382493 | DW13: 18.245614 | DX13: 89.137739 | DY13: 0.997653 | DZ13: 8246647.935 | EA13: 2962.628891 | EB13: 981.304889 | EC13: 2963.128891 | ED13: 3115.195111 | EE13: 6.504504 | EF13: 29.562528 | EG13: 2597953.155 | EH13: 1797.419928 | EI13: 10.984 | EJ13: 0.000751 | EK13: 1445.379076 | EL13: 11178.87305 | EM13: 2861.433125 | EN13: 1158.535712 | EO13: 19.144583 | EP13: 17.105087 | EQ13: 16.637554 | ER13: 17.572621 | ES13: 75.620287 | ET13: 0.996117 | EU13: 5444392.264 | EV13: 3795.106849 | EW13: 2076.125801 | EX13: 3795.606849 | EY13: 2020.374199 | EZ13: 6.49766 | FA13: 29.679269 | FB13: 1305080.513 | FC13: 1482.790683 | FD13: 11.697 | FE13: 0.001233 | FF13: 880.151547 | FG13: 7109.982422 | FH13: 1437.439549 | FI13: 1157.792911 | FJ13: 17.589017 | FK13: 16.532582 | FL13: 15.691514 | FM13: 17.37365 | FN13: 86.828558 | FO13: 0.989574 | FP13: 1627683.256 | FQ13: 2430.559179 | FR13: 2337.939475 | FS13: 2431.059179 | FT13: 1758.560525 | FU13: 6.508842 | FV13: 29.707556 | FW13: 673001.8404 | FX13: 1295.780475 | FY13: 12.285 | FZ13: 0.002088 | GA13: 519.379519 | GB13: 3697.357422 | GC13: 741.256537 | GD13: 1150.987985 | GE13: 20.179636 | GF13: 17.707855 | GG13: 17.252721 | GH13: 18.16299 | GI13: 271.454061 | GJ13: 0.997354 | GK13: 320060.1265 | GL13: 1204.347598 | GM13: 2250.187662 | GN13: 1204.847598 | GO13: 1846.312338 | GP13: 6.518903 | GQ13: 29.697961 | GR13: 447566.9095 | GS13: 1227.439646 | GT13: 12.782 | GU13: 0.002974 | GV13: 364.634555 | GW13: 2857.570068 | GX13: 492.958381 | GY13: 1149.805211 | GZ13: 19.859122 | HA13: 17.473813 | HB13: 16.854574 | HC13: 18.093053 | HD13: 273.438997 | HE13: 0.994916 | HF13: 150346.6228
A14: 13 | B14: WASP-12b_00052_bdf.fits | C14: 13 | D14: 0 | E14: 56319.53105 | F14: 2456319.531 | G14: 2456319.53 | H14: 2456319.536 | I14: 2456319.537 | J14: 1.27639 | K14: -19.97 | L14: 100 | M14: 6.50911 | N14: 29.672297 | O14: 21.898594 | P14: 17 | Q14: 30 | R14: 45 | S14: 0.04904 | T14: 0.526468 | U14: 0.410766 | V14: 0.17654 | W14: 0.124399 | X14: 0.058737 | Y14: 0.029501 | Z14: 0.019493 | AA14: 6.1e-05 | AB14: 0.000231 | AC14: 0.000188 | AD14: 0.000107 | AE14: 8.9e-05 | AF14: 6.7e-05 | AG14: 5.6e-05 | AH14: 5.2e-05 | AI14: 804.457577 | AJ14: 2282.618631 | AK14: 2189.385511 | AL14: 1653.492843 | AM14: 1392.786939 | AN14: 879.184231 | AO14: 526.342573 | AP14: 373.428849 | AQ14: 24065956.86 | AR14: 5228.198774 | AS14: 2402.006703 | AT14: 2014.038022 | AU14: 2402.506703 | AV14: 2082.461978 | AW14: 6.509098 | AX14: 29.672283 | AY14: 1180204.812 | AZ14: 907.920277 | BA14: 1444.503598 | BB14: 11.684329 | BC14: 0.001349 | BD14: 817.03141 | BE14: 5974.996094 | BF14: 1299.899168 | BG14: 1147.172382 | BH14: 3072 | BI14: 20.013188 | BJ14: 17.18736 | BK14: 16.912738 | BL14: 17.461981 | BM14: 70.27948 | BN14: 0.998289 | BO14: 1168703.543 | BP14: 1893.40715 | BQ14: 1260.827436 | BR14: 1893.90715 | BS14: 2835.672564 | BT14: 6.513271 | BU14: 29.591808 | BV14: 8300180.606 | BW14: 2794.855586 | BX14: 9.453 | BY14: 0.000366 | BZ14: 2969.806615 | CA14: 33514.23438 | CB14: 9141.97074 | CC14: 1171.245818 | CD14: 20.035412 | CE14: 17.115297 | CF14: 16.907484 | CG14: 17.32311 | CH14: 69.353707 | CI14: 0.998956 | CJ14: 58152104.05 | CK14: 1161.250059 | CL14: 3177.904631 | CM14: 1161.750059 | CN14: 918.595369 | CO14: 6.51931 | CP14: 29.79641 | CQ14: 7007165.929 | CR14: 2602.74702 | CS14: 9.747 | CT14: 0.000403 | CU14: 2692.219365 | CV14: 35929.35156 | CW14: 7717.820724 | CX14: 1167.531027 | CY14: 17.739634 | CZ14: 16.094828 | DA14: 15.80257 | DB14: 16.387086 | DC14: 60.832453 | DD14: 0.995217 | DE14: 53474344.07 | DF14: 2164.014941 | DG14: 1599.263476 | DH14: 2164.514941 | DI14: 2497.236524 | DJ14: 6.511051 | DK14: 29.627966 | DL14: 3611105.719 | DM14: 2010.883359 | DN14: 10.568 | DO14: 0.000604 | DP14: 1795.780796 | DQ14: 16494.10156 | DR14: 3977.33789 | DS14: 1155.252276 | DT14: 20.148779 | DU14: 17.250723 | DV14: 17.029308 | DW14: 17.472137 | DX14: 71.767686 | DY14: 0.998981 | DZ14: 10704451.95 | EA14: 2965.295862 | EB14: 987.569909 | EC14: 2965.795862 | ED14: 3108.930091 | EE14: 6.504505 | EF14: 29.562539 | EG14: 2662570.216 | EH14: 1811.721379 | EI14: 10.984 | EJ14: 0.000739 | EK14: 1469.635589 | EL14: 12680.08106 | EM14: 2932.603538 | EN14: 1154.585468 | EO14: 18.789335 | EP14: 16.474985 | EQ14: 16.324458 | ER14: 16.625512 | ES14: 53.741576 | ET14: 0.996301 | EU14: 6877615.094 | EV14: 3797.783968 | EW14: 2082.322802 | EX14: 3798.283968 | EY14: 2014.177198 | EZ14: 6.49766 | FA14: 29.679267 | FB14: 1335147.508 | FC14: 1489.819572 | FD14: 11.697 | FE14: 0.001211 | FF14: 896.180674 | FG14: 8613.40625 | FH14: 1470.555886 | FI14: 1153.516318 | FJ14: 17.083626 | FK14: 15.735102 | FL14: 15.160911 | FM14: 16.309293 | FN14: 79.281947 | FO14: 0.993869 | FP14: 2123292.201 | FQ14: 2433.08265 | FR14: 2344.058955 | FS14: 2433.58265 | FT14: 1752.441045 | FU14: 6.508843 | FV14: 29.707555 | FW14: 689633.6209 | FX14: 1301.693721 | FY14: 12.285 | FZ14: 0.002047 | GA14: 529.797148 | GB14: 4188.203613 | GC14: 759.575084 | GD14: 1147.09862 | GE14: 19.582243 | GF14: 17.066133 | GG14: 16.784148 | GH14: 17.348118 | GI14: 73.174333 | GJ14: 0.998425 | GK14: 419997.5419 | GL14: 1207.036293 | GM14: 2256.216688 | GN14: 1207.536293 | GO14: 1840.283312 | GP14: 6.518904 | GQ14: 29.697949 | GR14: 460153.2641 | GS14: 1228.249764 | GT14: 12.782 | GU14: 0.002894 | GV14: 374.641443 | GW14: 3202.192627 | GX14: 506.821222 | GY14: 1146.273934 | GZ14: 19.541523 | HA14: 16.971242 | HB14: 16.526448 | HC14: 17.416036 | HD14: 74.060379 | HE14: 0.996195 | HF14: 190519.2529
A15: 14 | B15: WASP-12b_00053_bdf.fits | C15: 14 | D15: 0 | E15: 56319.53243 | F15: 2456319.532 | G15: 2456319.532 | H15: 2456319.537 | I15: 2456319.538 | J15: 1.269574 | K15: -19.95 | L15: 100 | M15: 6.50911 | N15: 29.672297 | O15: 21.624243 | P15: 17 | Q15: 30 | R15: 45 | S15: 0.048905 | T15: 0.527812 | U15: 0.410768 | V15: 0.175882 | W15: 0.124468 | X15: 0.058663 | Y15: 0.029471 | Z15: 0.019431 | AA15: 6.1e-05 | AB15: 0.000233 | AC15: 0.000189 | AD15: 0.000107 | AE15: 9e-05 | AF15: 6.7e-05 | AG15: 5.6e-05 | AH15: 5.3e-05 | AI15: 796.539067 | AJ15: 2267.435191 | AK15: 2174.422361 | AL15: 1640.744893 | AM15: 1382.465183 | AN15: 870.874633 | AO15: 521.646455 | AP15: 369.391781 | AQ15: 23776045.03 | AR15: 5201.930336 | AS15: 2400.794199 | AT15: 2017.415119 | AU15: 2401.294199 | AV15: 2079.084881 | AW15: 6.509099 | AX15: 29.672284 | AY15: 1162765.445 | AZ15: 907.920277 | BA15: 1437.433484 | BB15: 11.687334 | BC15: 0.001362 | BD15: 808.91774 | BE15: 5698.926758 | BF15: 1280.691129 | BG15: 1139.900344 | BH15: 3074 | BI15: 19.657589 | BJ15: 17.281919 | BK15: 17.152344 | BL15: 17.411494 | BM15: 52.006529 | BN15: 0.996165 | BO15: 1046011.698 | BP15: 1892.440273 | BQ15: 1264.328272 | BR15: 1892.940273 | BS15: 2832.171728 | BT15: 6.51327 | BU15: 29.591824 | BV15: 8213889.961 | BW15: 2782.223494 | BX15: 9.453 | BY15: 0.000368 | BZ15: 2952.275393 | CA15: 30727.69531 | CB15: 9046.928646 | CC15: 1166.54907 | CD15: 19.821326 | CE15: 17.136169 | CF15: 17.053873 | CG15: 17.218464 | CH15: 50.031885 | CI15: 0.996979 | CJ15: 53054801.55 | CK15: 1160.150124 | CL15: 3181.418993 | CM15: 1160.650124 | CN15: 915.081007 | CO15: 6.51931 | CP15: 29.796426 | CQ15: 6922784.133 | CR15: 2588.621745 | CS15: 9.747 | CT15: 0.000406 | CU15: 2674.312748 | CV15: 32742.25586 | CW15: 7624.881071 | CX15: 1160.131091 | CY15: 17.411486 | CZ15: 16.276846 | DA15: 16.172442 | DB15: 16.381249 | DC15: 48.527961 | DD15: 0.989094 | DE15: 49158320.52 | DF15: 2162.921614 | DG15: 1602.743696 | DH15: 2163.421614 | DI15: 2493.756304 | DJ15: 6.511051 | DK15: 29.627979 | DL15: 3556294.037 | DM15: 1996.035813 | DN15: 10.568 | DO15: 0.000609 | DP15: 1781.678471 | DQ15: 13954.43848 | DR15: 3916.967301 | DS15: 1148.574225 | DT15: 20.035706 | DU15: 17.338357 | DV15: 17.24915 | DW15: 17.427563 | DX15: 49.529021 | DY15: 0.995728 | DZ15: 9592701.799 | EA15: 2964.08863 | EB15: 990.864998 | EC15: 2964.58863 | ED15: 3105.635002 | EE15: 6.504505 | EF15: 29.562535 | EG15: 2631776.549 | EH15: 1804.223569 | EI15: 10.984 | EJ15: 0.000744 | EK15: 1458.675407 | EL15: 11825.49121 | EM15: 2898.68683 | EN15: 1147.449658 | EO15: 18.56758 | EP15: 16.640563 | EQ15: 16.612841 | ER15: 16.668285 | ES15: 46.065592 | ET15: 0.991972 | EU15: 6279747.147 | EV15: 3796.493733 | EW15: 2085.652219 | EX15: 3796.993733 | EY15: 2010.847781 | EZ15: 6.49766 | FA15: 29.67927 | FB15: 1317489.561 | FC15: 1484.293661 | FD15: 11.697 | FE15: 0.001223 | FF15: 887.620554 | FG15: 7435.916016 | FH15: 1451.107101 | FI15: 1145.793866 | FJ15: 17.143416 | FK15: 16.002896 | FL15: 15.630299 | FM15: 16.375493 | FN15: 61.976591 | FO15: 0.993056 | FP15: 1868276.997 | FQ15: 2431.883724 | FR15: 2347.423682 | FS15: 2432.383724 | FT15: 1749.076318 | FU15: 6.508844 | FV15: 29.707556 | FW15: 680635.0557 | FX15: 1296.307912 | FY15: 12.285 | FZ15: 0.002066 | GA15: 525.056624 | GB15: 3901.678955 | GC15: 749.6639 | GD15: 1137.70527 | GE15: 19.395715 | GF15: 17.137386 | GG15: 17.000923 | GH15: 17.273849 | GI15: 52.172719 | GJ15: 0.995869 | GK15: 374453.3464 | GL15: 1205.806062 | GM15: 2259.70318 | GN15: 1206.306062 | GO15: 1836.79682 | GP15: 6.518905 | GQ15: 29.697961 | GR15: 453175.7328 | GS15: 1222.875946 | GT15: 12.782 | GU15: 0.002926 | GV15: 370.581934 | GW15: 3069.681152 | GX15: 499.136041 | GY15: 1138.386915 | GZ15: 19.062532 | HA15: 16.909085 | HB15: 16.659277 | HC15: 17.158893 | HD15: 55.604663 | HE15: 0.993333 | HF15: 177536.8642
A16: 15 | B16: WASP-12b_00054_bdf.fits | C16: 15 | D16: 0 | E16: 56319.53381 | F16: 2456319.534 | G16: 2456319.533 | H16: 2456319.539 | I16: 2456319.539 | J16: 1.262888 | K16: -19.92 | L16: 100 | M16: 6.50911 | N16: 29.672297 | O16: 21.575397 | P16: 17 | Q16: 30 | R16: 45 | S16: 0.049001 | T16: 0.528003 | U16: 0.409982 | V16: 0.17617 | W16: 0.124502 | X16: 0.058675 | Y16: 0.029445 | Z16: 0.019526 | AA16: 6.1e-05 | AB16: 0.000233 | AC16: 0.000188 | AD16: 0.000107 | AE16: 9e-05 | AF16: 6.7e-05 | AG16: 5.7e-05 | AH16: 5.3e-05 | AI16: 798.83496 | AJ16: 2270.600957 | AK16: 2176.259965 | AL16: 1643.121045 | AM16: 1384.847264 | AN16: 873.631869 | AO16: 521.150224 | AP16: 369.895608 | AQ16: 23830107.59 | AR16: 5207.753439 | AS16: 2398.600734 | AT16: 2014.319392 | AU16: 2399.100734 | AV16: 2082.180608 | AW16: 6.509097 | AX16: 29.672293 | AY16: 1167700.465 | AZ16: 907.920277 | BA16: 1439.307519 | BB16: 11.685201 | BC16: 0.001358 | BD16: 811.293243 | BE16: 5883.23291 | BF16: 1286.126651 | BG16: 1144.307173 | BH16: 2941 | BI16: 19.684437 | BJ16: 17.384944 | BK16: 17.490929 | BL16: 17.27896 | BM16: 40.463568 | BN16: 0.994022 | BO16: 1068033.364 | BP16: 1889.718701 | BQ16: 1260.88415 | BR16: 1890.218701 | BS16: 2835.61585 | BT16: 6.513272 | BU16: 29.5918 | BV16: 8234515.324 | BW16: 2784.326497 | BX16: 9.453 | BY16: 0.000367 | BZ16: 2957.453206 | CA16: 33398.72266 | CB16: 9069.645797 | CC16: 1169.224356 | CD16: 19.877056 | CE16: 17.253289 | CF16: 17.401699 | CG16: 17.104878 | CH16: 38.522528 | CI16: 0.994112 | CJ16: 53944653.67 | CK16: 1157.567552 | CL16: 3178.281855 | CM16: 1158.067552 | CN16: 918.218145 | CO16: 6.51931 | CP16: 29.796418 | CQ16: 6929101.641 | CR16: 2589.625043 | CS16: 9.747 | CT16: 0.000406 | CU16: 2675.716185 | CV16: 32755.76758 | CW16: 7631.83929 | CX16: 1163.636353 | CY16: 17.496767 | CZ16: 16.422798 | DA16: 16.522555 | DB16: 16.323041 | DC16: 42.266029 | DD16: 0.983747 | DE16: 48294811.2 | DF16: 2160.599582 | DG16: 1599.445787 | DH16: 2161.099582 | DI16: 2497.054213 | DJ16: 6.51105 | DK16: 29.627969 | DL16: 3569333.192 | DM16: 2000.327661 | DN16: 10.568 | DO16: 0.000608 | DP16: 1784.374261 | DQ16: 15104.38086 | DR16: 3931.328866 | DS16: 1153.061731 | DT16: 20.002076 | DU16: 17.373535 | DV16: 17.507072 | DW16: 17.239998 | DX16: 39.518941 | DY16: 0.993466 | DZ16: 9831759.19 | EA16: 2961.700086 | EB16: 987.557792 | EC16: 2962.200086 | ED16: 3108.942208 | EE16: 6.504505 | EF16: 29.562526 | EG16: 2638412.339 | EH16: 1805.527593 | EI16: 10.984 | EJ16: 0.000743 | EK16: 1461.297157 | EL16: 12469.53711 | EM16: 2905.99561 | EN16: 1152.896817 | EO16: 18.653449 | EP16: 16.704291 | EQ16: 16.896468 | ER16: 16.512113 | ES16: 38.959451 | ET16: 0.987917 | EU16: 6353692.887 | EV16: 3794.167397 | EW16: 2082.434322 | EX16: 3794.667397 | EY16: 2014.065678 | EZ16: 6.49766 | FA16: 29.679264 | FB16: 1320747.325 | FC16: 1483.141493 | FD16: 11.697 | FE16: 0.001219 | FF16: 890.506625 | FG16: 7899.154785 | FH16: 1454.695262 | FI16: 1148.623543 | FJ16: 16.773345 | FK16: 16.053474 | FL16: 15.855517 | FM16: 16.251431 | FN16: 52.103611 | FO16: 0.989906 | FP16: 1917227.643 | FQ16: 2429.611936 | FR16: 2344.27691 | FS16: 2430.111936 | FT16: 1752.22309 | FU16: 6.508843 | FV16: 29.707556 | FW16: 681607.3475 | FX16: 1299.433446 | FY16: 12.285 | FZ16: 0.002068 | GA16: 524.541945 | GB16: 3914.998047 | GC16: 750.7348 | GD16: 1142.785505 | GE16: 19.381956 | GF16: 17.278627 | GG16: 17.373146 | GH16: 17.184107 | GI16: 41.135689 | GJ16: 0.993382 | GK16: 378109.5914 | GL16: 1203.379216 | GM16: 2256.442483 | GN16: 1203.879216 | GO16: 1840.057517 | GP16: 6.518904 | GQ16: 29.697952 | GR16: 456390.4209 | GS16: 1229.872908 | GT16: 12.782 | GU16: 0.002922 | GV16: 371.087466 | GW16: 3129.111816 | GX16: 502.676758 | GY16: 1141.446745 | GZ16: 19.109847 | HA16: 16.972797 | HB16: 16.922578 | HC16: 17.023016 | HD16: 46.821135 | HE16: 0.991323 | HF16: 183493.8425
A17: 16 | B17: WASP-12b_00055_bdf.fits | C17: 16 | D17: 0 | E17: 56319.53519 | F17: 2456319.535 | G17: 2456319.535 | H17: 2456319.54 | I17: 2456319.541 | J17: 1.256329 | K17: -19.93 | L17: 100 | M17: 6.50911 | N17: 29.672297 | O17: 22.999294 | P17: 17 | Q17: 30 | R17: 45 | S17: 0.04894 | T17: 0.52641 | U17: 0.411088 | V17: 0.176083 | W17: 0.124562 | X17: 0.058796 | Y17: 0.029545 | Z17: 0.019463 | AA17: 6.2e-05 | AB17: 0.000235 | AC17: 0.000191 | AD17: 0.000109 | AE17: 9.1e-05 | AF17: 6.8e-05 | AG17: 5.7e-05 | AH17: 5.3e-05 | AI17: 783.91498 | AJ17: 2240.444501 | AK17: 2150.553429 | AL17: 1620.852225 | AM17: 1367.312907 | AN17: 861.856604 | AO17: 515.225983 | AP17: 363.865705 | AQ17: 23319853.86 | AR17: 5163.240112 | AS17: 2400.313348 | AT17: 2016.216822 | AU17: 2400.813348 | AV17: 2080.283178 | AW17: 6.509099 | AX17: 29.672304 | AY17: 1141277.718 | AZ17: 907.920277 | BA17: 1433.772338 | BB17: 11.686551 | BC17: 0.001384 | BD17: 795.996469 | BE17: 4437.071777 | BF17: 1257.024154 | BG17: 1136.980937 | BH17: 3040 | BI17: 21.236626 | BJ17: 18.075189 | BK17: 18.01193 | BL17: 18.138447 | BM17: 280.907936 | BN17: 0.999943 | BO17: 739807.8434 | BP17: 1891.761495 | BQ17: 1262.910773 | BR17: 1892.261495 | BS17: 2833.589227 | BT17: 6.51327 | BU17: 29.591821 | BV17: 8042272.267 | BW17: 2757.746647 | BX17: 9.453 | BY17: 0.000372 | BZ17: 2916.247682 | CA17: 23772.65039 | CB17: 8857.905779 | CC17: 1164.974068 | CD17: 21.141185 | CE17: 18.075057 | CF17: 18.10905 | CG17: 18.041064 | CH17: 331.864585 | CI17: 0.999954 | CJ17: 36353834.53 | CK17: 1159.421997 | CL17: 3180.049971 | CM17: 1159.921997 | CN17: 916.450029 | CO17: 6.51931 | CP17: 29.79645 | CQ17: 6793706.673 | CR17: 2566.644314 | CS17: 9.747 | CT17: 0.00041 | CU17: 2646.921755 | CV17: 25217.25195 | CW17: 7482.712795 | CX17: 1159.444924 | CY17: 18.841706 | CZ17: 17.222345 | DA17: 17.16963 | DB17: 17.27506 | DC17: 50.340771 | DD17: 0.998909 | DE17: 34229160.22 | DF17: 2162.428367 | DG17: 1601.447972 | DH17: 2162.928367 | DI17: 2495.052028 | DJ17: 6.51105 | DK17: 29.627989 | DL17: 3491446.439 | DM17: 1983.813221 | DN17: 10.568 | DO17: 0.000617 | DP17: 1759.96732 | DQ17: 10706.0918 | DR17: 3845.542971 | DS17: 1147.099074 | DT17: 21.231364 | DU17: 18.066287 | DV17: 18.049276 | DW17: 18.083299 | DX17: 300.946374 | DY17: 0.999984 | DZ17: 6768529.456 | EA17: 2963.643928 | EB17: 989.476766 | EC17: 2964.143928 | ED17: 3107.023234 | EE17: 6.504505 | EF17: 29.562536 | EG17: 2583024.074 | EH17: 1790.218488 | EI17: 10.984 | EJ17: 0.000752 | EK17: 1442.854094 | EL17: 9008.075195 | EM17: 2844.989962 | EN17: 1144.494908 | EO17: 19.966175 | EP17: 17.477195 | EQ17: 17.494821 | ER17: 17.459568 | ES17: 42.279325 | ET17: 0.999548 | EU17: 4449993.675 | EV17: 3796.307036 | EW17: 2084.557601 | EX17: 3796.807036 | EY17: 2011.942399 | EZ17: 6.49766 | FA17: 29.679285 | FB17: 1294982.629 | FC17: 1474.112574 | FD17: 11.697 | FE17: 0.001235 | FF17: 878.482859 | FG17: 5572.402344 | FH17: 1426.317554 | FI17: 1140.800712 | FJ17: 18.657378 | FK17: 16.980958 | FL17: 16.675728 | FM17: 17.286188 | FN17: 84.034991 | FO17: 0.998651 | FP17: 1307155.698 | FQ17: 2431.442075 | FR17: 2346.275062 | FS17: 2431.942075 | FT17: 1750.224938 | FU17: 6.508844 | FV17: 29.707583 | FW17: 669204.0973 | FX17: 1290.429734 | FY17: 12.285 | FZ17: 0.002092 | GA17: 518.59011 | GB17: 3113.822266 | GC17: 737.073633 | GD17: 1133.815365 | GE17: 20.948849 | GF17: 17.969115 | GG17: 17.850976 | GH17: 18.087254 | GI17: 282.851623 | GJ17: 0.999787 | GK17: 263481.567 | GL17: 1205.266714 | GM17: 2258.51236 | GN17: 1205.766714 | GO17: 1837.98764 | GP17: 6.518904 | GQ17: 29.697987 | GR17: 445217.6767 | GS17: 1219.674113 | GT17: 12.782 | GU17: 0.00297 | GV17: 365.030029 | GW17: 2540.918945 | GX17: 490.370893 | GY17: 1133.782486 | GZ17: 20.395675 | HA17: 17.755569 | HB17: 17.641083 | HC17: 17.870055 | HD17: 84.468979 | HE17: 0.999827 | HF17: 123560.5572
A18: 17 | B18: WASP-12b_00056_bdf.fits | C18: 17 | D18: 0 | E18: 56319.53656 | F18: 2456319.537 | G18: 2456319.536 | H18: 2456319.541 | I18: 2456319.542 | J18: 1.249894 | K18: -19.96 | L18: 100 | M18: 6.50911 | N18: 29.672297 | O18: 22.995371 | P18: 17 | Q18: 30 | R18: 45 | S18: 0.048847 | T18: 0.526674 | U18: 0.41166 | V18: 0.176066 | W18: 0.124291 | X18: 0.058698 | Y18: 0.029458 | Z18: 0.01946 | AA18: 6.2e-05 | AB18: 0.000235 | AC18: 0.000192 | AD18: 0.000109 | AE18: 9.1e-05 | AF18: 6.8e-05 | AG18: 5.8e-05 | AH18: 5.4e-05 | AI18: 782.145626 | AJ18: 2237.221741 | AK18: 2147.08994 | AL18: 1617.552969 | AM18: 1361.951722 | AN18: 858.359527 | AO18: 511.589888 | AP18: 362.006174 | AQ18: 23288678.98 | AR18: 5167.109475 | AS18: 2402.273936 | AT18: 2015.574357 | AU18: 2402.773936 | AV18: 2080.925643 | AW18: 6.509099 | AX18: 29.67231 | AY18: 1137589.955 | AZ18: 907.920277 | BA18: 1432.380105 | BB18: 11.688613 | BC18: 0.001387 | BD18: 794.195585 | BE18: 4641.76709 | BF18: 1252.962385 | BG18: 1146.337919 | BH18: 3005 | BI18: 21.007737 | BJ18: 18.070634 | BK18: 18.000512 | BL18: 18.140756 | BM18: 311.409969 | BN18: 0.996145 | BO18: 765073.398 | BP18: 1893.613431 | BQ18: 1262.13379 | BR18: 1894.113431 | BS18: 2834.36621 | BT18: 6.513271 | BU18: 29.591815 | BV18: 8034157.82 | BW18: 2756.417598 | BX18: 9.453 | BY18: 0.000372 | BZ18: 2914.709957 | CA18: 25171.28711 | CB18: 8848.968379 | CC18: 1175.49555 | CD18: 20.931827 | CE18: 18.00234 | CF18: 17.912054 | CG18: 18.092626 | CH18: 310.904793 | CI18: 0.995043 | CJ18: 38877340.04 | CK18: 1161.60326 | CL18: 3179.258165 | CM18: 1162.10326 | CN18: 917.241835 | CO18: 6.51931 | CP18: 29.796444 | CQ18: 6791305.55 | CR18: 2568.739447 | CS18: 9.747 | CT18: 0.000411 | CU18: 2643.828108 | CV18: 25329.37305 | CW18: 7480.068155 | CX18: 1167.041037 | CY18: 18.860601 | CZ18: 17.20244 | DA18: 17.052185 | DB18: 17.352696 | DC18: 300.833948 | DD18: 0.998645 | DE18: 34840784.13 | DF18: 2164.332388 | DG18: 1600.659166 | DH18: 2164.832388 | DI18: 2495.840834 | DJ18: 6.511051 | DK18: 29.62798 | DL18: 3486496.839 | DM18: 1985.020345 | DN18: 10.568 | DO18: 0.000618 | DP18: 1756.403579 | DQ18: 11541.28516 | DR18: 3840.091391 | DS18: 1156.389247 | DT18: 21.126377 | DU18: 18.090857 | DV18: 17.982129 | DW18: 18.199586 | DX18: 310.016739 | DY18: 0.995177 | DZ18: 7140496.251 | EA18: 2965.575601 | EB18: 988.836385 | EC18: 2966.075601 | ED18: 3107.663615 | EE18: 6.504505 | EF18: 29.562544 | EG18: 2574572.689 | EH18: 1791.81172 | EI18: 10.984 | EJ18: 0.000755 | EK18: 1436.854475 | EL18: 9750.789062 | EM18: 2835.681452 | EN18: 1154.548007 | EO18: 19.804162 | EP18: 17.485297 | EQ18: 17.428581 | ER18: 17.542014 | ES18: 310.556584 | ET18: 0.998237 | EU18: 4601071.933 | EV18: 3798.0929 | EW18: 2083.661756 | EX18: 3798.5929 | EY18: 2012.838244 | EZ18: 6.49766 | FA18: 29.679271 | FB18: 1291197.819 | FC18: 1475.913699 | FD18: 11.697 | FE18: 0.00124 | FF18: 874.846422 | FG18: 6103.085449 | FH18: 1422.148895 | FI18: 1149.560334 | FJ18: 18.170363 | FK18: 16.856305 | FL18: 16.476735 | FM18: 17.235876 | FN18: 298.421587 | FO18: 0.993227 | FP18: 1398645.539 | FQ18: 2433.333628 | FR18: 2345.594051 | FS18: 2433.833628 | FT18: 1750.905949 | FU18: 6.508844 | FV18: 29.707583 | FW18: 666397.7512 | FX18: 1294.239592 | FY18: 12.285 | FZ18: 0.002107 | GA18: 514.895198 | GB18: 3283.968506 | GC18: 733.982672 | GD18: 1142.895491 | GE18: 20.734033 | GF18: 17.979177 | GG18: 17.905233 | GH18: 18.053121 | GI18: 311.533986 | GJ18: 0.995355 | GK18: 271604.5827 | GL18: 1207.287208 | GM18: 2257.504661 | GN18: 1207.787208 | GO18: 1838.995339 | GP18: 6.518904 | GQ18: 29.697961 | GR18: 444550.512 | GS18: 1224.127292 | GT18: 12.782 | GU18: 0.002986 | GV18: 363.157096 | GW18: 2577.577393 | GX18: 489.636065 | GY18: 1142.648946 | GZ18: 20.328571 | HA18: 17.769717 | HB18: 17.518303 | HC18: 18.021131 | HD18: 301.930049 | HE18: 0.995876 | HF18: 127261.2856
A19: 18 | B19: WASP-12b_00057_bdf.fits | C19: 18 | D19: 0 | E19: 56319.53794 | F19: 2456319.538 | G19: 2456319.537 | H19: 2456319.543 | I19: 2456319.544 | J19: 1.243583 | K19: -19.98 | L19: 100 | M19: 6.50911 | N19: 29.672297 | O19: 22.464501 | P19: 17 | Q19: 30 | R19: 45 | S19: 0.048863 | T19: 0.526976 | U19: 0.410975 | V19: 0.176072 | W19: 0.124245 | X19: 0.058668 | Y19: 0.029619 | Z19: 0.019585 | AA19: 6.2e-05 | AB19: 0.000233 | AC19: 0.00019 | AD19: 0.000108 | AE19: 9e-05 | AF19: 6.8e-05 | AG19: 5.7e-05 | AH19: 5.3e-05 | AI19: 792.355363 | AJ19: 2258.695267 | AK19: 2166.083259 | AL19: 1633.24505 | AM19: 1375.82062 | AN19: 869.040439 | AO19: 521.840633 | AP19: 369.751523 | AQ19: 23615865.54 | AR19: 5187.110233 | AS19: 2399.741797 | AT19: 2014.684052 | AU19: 2400.241797 | AV19: 2081.815948 | AW19: 6.509098 | AX19: 29.672295 | AY19: 1153945.935 | AZ19: 907.920277 | BA19: 1434.123815 | BB19: 11.688261 | BC19: 0.001369 | BD19: 804.634804 | BE19: 5308.57373 | BF19: 1270.97716 | BG19: 1138.471707 | BH19: 3029 | BI19: 20.466889 | BJ19: 17.742418 | BK19: 17.686855 | BL19: 17.797981 | BM19: 312.647807 | BN19: 0.994168 | BO19: 907817.0576 | BP19: 1891.015992 | BQ19: 1261.320117 | BR19: 1891.515992 | BS19: 2835.179883 | BT19: 6.513271 | BU19: 29.591808 | BV19: 8150091.797 | BW19: 2771.480878 | BX19: 9.453 | BY19: 0.000369 | BZ19: 2940.699271 | CA19: 30206.86719 | CB19: 8976.660181 | CC19: 1167.110137 | CD19: 20.211219 | CE19: 17.619856 | CF19: 17.620732 | CG19: 17.61898 | CH19: 315.033778 | CI19: 0.992889 | CJ19: 46161273.99 | CK19: 1158.876434 | CL19: 3178.472128 | CM19: 1159.376434 | CN19: 918.027872 | CO19: 6.519311 | CP19: 29.796428 | CQ19: 6878599.961 | CR19: 2581.81968 | CS19: 9.747 | CT19: 0.000407 | CU19: 2664.244917 | CV19: 30587.83008 | CW19: 7576.215816 | CX19: 1159.736916 | CY19: 18.269881 | CZ19: 16.765394 | DA19: 16.697708 | DB19: 16.833079 | DC19: 309.645116 | DD19: 0.998112 | DE19: 41527165.52 | DF19: 2161.792132 | DG19: 1599.899292 | DH19: 2162.292132 | DI19: 2496.600708 | DJ19: 6.51105 | DK19: 29.62798 | DL19: 3535571.037 | DM19: 1993.807465 | DN19: 10.568 | DO19: 0.000612 | DP19: 1773.276056 | DQ19: 13655.08398 | DR19: 3894.142611 | DS19: 1147.21445 | DT19: 20.649154 | DU19: 17.745214 | DV19: 17.716584 | DW19: 17.773843 | DX19: 313.857232 | DY19: 0.993453 | DZ19: 8423995.942 | EA19: 2962.978641 | EB19: 988.047933 | EC19: 2963.478641 | ED19: 3108.452067 | EE19: 6.504505 | EF19: 29.562537 | EG19: 2609891.705 | EH19: 1798.071402 | EI19: 10.984 | EJ19: 0.000748 | EK19: 1451.495031 | EL19: 10790.73242 | EM19: 2874.582462 | EN19: 1145.454557 | EO19: 19.300406 | EP19: 17.083215 | EQ19: 17.075706 | ER19: 17.090725 | ES19: 314.550369 | ET19: 0.996862 | EU19: 5423704.519 | EV19: 3795.586237 | EW19: 2082.982841 | EX19: 3796.086237 | EY19: 2013.517159 | EZ19: 6.49766 | FA19: 29.679277 | FB19: 1308712.115 | FC19: 1477.404018 | FD19: 11.697 | FE19: 0.001225 | FF19: 885.818706 | FG19: 6710.971191 | FH19: 1441.439462 | FI19: 1141.792915 | FJ19: 17.725968 | FK19: 16.507634 | FL19: 16.153241 | FM19: 16.862026 | FN19: 300.439529 | FO19: 0.992223 | FP19: 1632826.494 | FQ19: 2430.829351 | FR19: 2344.722841 | FS19: 2431.329351 | FT19: 1751.777159 | FU19: 6.508844 | FV19: 29.70757 | FW19: 679359.157 | FX19: 1293.321677 | FY19: 12.285 | FZ19: 0.002065 | GA19: 525.282433 | GB19: 3621.845459 | GC19: 748.258602 | GD19: 1134.908087 | GE19: 20.375274 | GF19: 17.664457 | GG19: 17.586451 | GH19: 17.742462 | GI19: 311.75121 | GJ19: 0.993909 | GK19: 322108.4962 | GL19: 1204.574325 | GM19: 2256.805448 | GN19: 1205.074325 | GO19: 1839.694552 | GP19: 6.518904 | GQ19: 29.697963 | GR19: 453639.7671 | GS19: 1222.898557 | GT19: 12.782 | GU19: 0.002923 | GV19: 370.954536 | GW19: 2885.517334 | GX19: 499.647137 | GY19: 1133.987277 | GZ19: 19.72185 | HA19: 17.489994 | HB19: 17.300313 | HC19: 17.679675 | HD19: 306.737151 | HE19: 0.994187 | HF19: 150985.049
A20: 19 | B20: WASP-12b_00058_bdf.fits | C20: 19 | D20: 0 | E20: 56319.53932 | F20: 2456319.539 | G20: 2456319.539 | H20: 2456319.544 | I20: 2456319.545 | J20: 1.237392 | K20: -20.01 | L20: 100 | M20: 6.50911 | N20: 29.672297 | O20: 23.373745 | P20: 17 | Q20: 30 | R20: 45 | S20: 0.048879 | T20: 0.526407 | U20: 0.411623 | V20: 0.175845 | W20: 0.124222 | X20: 0.058868 | Y20: 0.029488 | Z20: 0.019633 | AA20: 6.2e-05 | AB20: 0.000235 | AC20: 0.000192 | AD20: 0.000109 | AE20: 9.1e-05 | AF20: 6.8e-05 | AG20: 5.7e-05 | AH20: 5.4e-05 | AI20: 782.841584 | AJ20: 2236.611241 | AK20: 2147.532048 | AL20: 1616.609718 | AM20: 1362.304724 | AN20: 859.564009 | AO20: 513.943203 | AP20: 364.290269 | AQ20: 23281891.34 | AR20: 5165.14427 | AS20: 2401.142695 | AT20: 2017.115649 | AU20: 2401.642695 | AV20: 2079.384351 | AW20: 6.509098 | AX20: 29.672311 | AY20: 1137995.374 | AZ20: 907.920277 | BA20: 1431.581109 | BB20: 11.687909 | BC20: 0.001386 | BD20: 794.922039 | BE20: 4544.349609 | BF20: 1253.408921 | BG20: 1141.104559 | BH20: 2928 | BI20: 21.430872 | BJ20: 18.208067 | BK20: 18.015134 | BL20: 18.401 | BM20: 306.247083 | BN20: 0.995038 | BO20: 729753.137 | BP20: 1892.350707 | BQ20: 1263.739881 | BR20: 1892.850707 | BS20: 2832.760119 | BT20: 6.513271 | BU20: 29.591822 | BV20: 8029147.039 | BW20: 2756.907283 | BX20: 9.453 | BY20: 0.000373 | BZ20: 2912.374707 | CA20: 25419.49805 | CB20: 8843.449412 | CC20: 1173.828324 | CD20: 21.195496 | CE20: 18.070445 | CF20: 17.920516 | CG20: 18.220373 | CH20: 308.86135 | CI20: 0.993911 | CJ20: 37582024.02 | CK20: 1160.27132 | CL20: 3180.791812 | CM20: 1160.77132 | CN20: 915.708188 | CO20: 6.51931 | CP20: 29.796456 | CQ20: 6788891.928 | CR20: 2567.058419 | CS20: 9.747 | CT20: 0.00041 | CU20: 2644.619178 | CV20: 25003.38867 | CW20: 7477.409747 | CX20: 1164.606956 | CY20: 19.544184 | CZ20: 17.316477 | DA20: 17.157109 | DB20: 17.475845 | DC20: 302.394736 | DD20: 0.998133 | DE20: 33053559.42 | DF20: 2163.057614 | DG20: 1602.364474 | DH20: 2163.557614 | DI20: 2494.135526 | DJ20: 6.511051 | DK20: 29.627998 | DL20: 3481755.895 | DM20: 1983.767608 | DN20: 10.568 | DO20: 0.000618 | DP20: 1755.122869 | DQ20: 11500.98828 | DR20: 3834.869629 | DS20: 1153.116697 | DT20: 21.447824 | DU20: 18.167153 | DV20: 18.006871 | DW20: 18.327435 | DX20: 307.955827 | DY20: 0.994746 | DZ20: 6833468.566 | EA20: 2964.372988 | EB20: 990.429068 | EC20: 2964.872988 | ED20: 3106.070932 | EE20: 6.504505 | EF20: 29.562547 | EG20: 2572553.776 | EH20: 1789.90168 | EI20: 10.984 | EJ20: 0.000755 | EK20: 1437.259825 | EL20: 9430.635742 | EM20: 2833.457784 | EN20: 1149.83182 | EO20: 20.110688 | EP20: 17.514621 | EQ20: 17.387278 | ER20: 17.641964 | ES20: 305.67868 | ET20: 0.997931 | EU20: 4465939.723 | EV20: 3797.083358 | EW20: 2085.377661 | EX20: 3797.583358 | EY20: 2011.122339 | EZ20: 6.49766 | FA20: 29.679282 | FB20: 1294362.977 | FC20: 1477.380845 | FD20: 11.697 | FE20: 0.001239 | FF20: 876.120048 | FG20: 5865.572754 | FH20: 1425.635059 | FI20: 1147.680607 | FJ20: 18.79358 | FK20: 17.008443 | FL20: 16.58478 | FM20: 17.432105 | FN20: 296.486053 | FO20: 0.993165 | FP20: 1331434.67 | FQ20: 2432.25129 | FR20: 2347.114578 | FS20: 2432.75129 | FT20: 1749.385422 | FU20: 6.508843 | FV20: 29.707584 | FW20: 666877.5877 | FX20: 1289.160932 | FY20: 12.285 | FZ20: 0.002097 | GA20: 517.29584 | GB20: 3249.584717 | GC20: 734.511173 | GD20: 1138.568729 | GE20: 21.149317 | GF20: 18.08958 | GG20: 17.895343 | GH20: 18.283816 | GI20: 305.94179 | GJ20: 0.995231 | GK20: 257492.8171 | GL20: 1205.823386 | GM20: 2259.170558 | GN20: 1206.323386 | GO20: 1837.329442 | GP20: 6.518905 | GQ20: 29.697979 | GR20: 448302.1381 | GS20: 1226.668911 | GT20: 12.782 | GU20: 0.002967 | GV20: 365.463031 | GW20: 2584.952393 | GX20: 493.768175 | GY20: 1138.712389 | GZ20: 20.853498 | HA20: 17.957033 | HB20: 17.628843 | HC20: 18.285222 | HD20: 298.991549 | HE20: 0.99525 | HF20: 122310.0943
A21: 20 | B21: WASP-12b_00059_bdf.fits | C21: 20 | D21: 0 | E21: 56319.5407 | F21: 2456319.541 | G21: 2456319.54 | H21: 2456319.546 | I21: 2456319.546 | J21: 1.23132 | K21: -20.04 | L21: 100 | M21: 6.50911 | N21: 29.672297 | O21: 24.558215 | P21: 17 | Q21: 30 | R21: 45 | S21: 0.048692 | T21: 0.525894 | U21: 0.413126 | V21: 0.175321 | W21: 0.124099 | X21: 0.05907 | Y21: 0.029397 | Z21: 0.019477 | AA21: 6.4e-05 | AB21: 0.000239 | AC21: 0.000196 | AD21: 0.000111 | AE21: 9.3e-05 | AF21: 7e-05 | AG21: 5.9e-05 | AH21: 5.5e-05 | AI21: 762.561947 | AJ21: 2196.203917 | AK21: 2110.242681 | AL21: 1583.72347 | AM21: 1334.625757 | AN21: 840.715883 | AO21: 498.318912 | AP21: 352.139093 | AQ21: 22730020.49 | AR21: 5141.884256 | AS21: 2400.525593 | AT21: 2015.963815 | AU21: 2401.025593 | AV21: 2080.536185 | AW21: 6.509098 | AX21: 29.672317 | AY21: 1106765.791 | AZ21: 907.920277 | BA21: 1429.62049 | BB21: 11.692075 | BC21: 0.001423 | BD21: 774.16755 | BE21: 3944.104004 | BF21: 1219.012087 | BG21: 1165.599185 | BH21: 2990 | BI21: 22.537261 | BJ21: 18.813368 | BK21: 18.483745 | BL21: 19.142992 | BM21: 302.998572 | BN21: 0.992584 | BO21: 542368.3575 | BP21: 1891.752458 | BQ21: 1262.629875 | BR21: 1892.252458 | BS21: 2833.870125 | BT21: 6.513271 | BU21: 29.591829 | BV21: 7833817.062 | BW21: 2734.954265 | BX21: 9.453 | BY21: 0.000379 | BZ21: 2864.332015 | CA21: 20724.27539 | CB21: 8628.309402 | CC21: 1198.707408 | CD21: 22.25768 | CE21: 18.715548 | CF21: 18.459755 | CG21: 18.97134 | CH21: 305.898225 | CI21: 0.992346 | CJ21: 28111959.09 | CK21: 1159.661477 | CL21: 3179.623873 | CM21: 1160.161477 | CN21: 916.876127 | CO21: 6.519311 | CP21: 29.796473 | CQ21: 6645094.472 | CR21: 2552.578146 | CS21: 9.747 | CT21: 0.000417 | CU21: 2603.287379 | CV21: 20172.22852 | CW21: 7319.028599 | CX21: 1193.816609 | CY21: 20.445365 | CZ21: 18.014278 | DA21: 17.761006 | DB21: 18.26755 | DC21: 299.742042 | DD21: 0.996935 | DE21: 25017079.69 | DF21: 2162.471491 | DG21: 1601.163199 | DH21: 2162.971491 | DI21: 2495.336801 | DJ21: 6.511051 | DK21: 29.627997 | DL21: 3390606.363 | DM21: 1972.410026 | DN21: 10.568 | DO21: 0.000631 | DP21: 1719.016998 | DQ21: 9477.113281 | DR21: 3734.475867 | DS21: 1178.183071 | DT21: 22.647671 | DU21: 18.837723 | DV21: 18.535965 | DW21: 19.139481 | DX21: 303.891282 | DY21: 0.992825 | DZ21: 5044472.804 | EA21: 2963.882937 | EB21: 989.19693 | EC21: 2964.382937 | ED21: 3107.30307 | EE21: 6.504504 | EF21: 29.562549 | EG21: 2509355.316 | EH21: 1782.381191 | EI21: 10.984 | EJ21: 0.000771 | EK21: 1407.866807 | EL21: 7983.434082 | EM21: 2763.849844 | EN21: 1177.287562 | EO21: 21.185811 | EP21: 18.244469 | EQ21: 17.991506 | ER21: 18.497433 | ES21: 301.694464 | ET21: 0.996169 | EU21: 3348666.88 | EV21: 3796.531177 | EW21: 2084.202171 | EX21: 3797.031177 | EY21: 2012.297829 | EZ21: 6.49766 | FA21: 29.679291 | FB21: 1267783.681 | FC21: 1479.659625 | FD21: 11.697 | FE21: 0.001266 | FF21: 856.807647 | FG21: 5114.063965 | FH21: 1396.360136 | FI21: 1170.081026 | FJ21: 19.713511 | FK21: 17.740532 | FL21: 17.171408 | FM21: 18.309657 | FN21: 295.245092 | FO21: 0.98985 | FP21: 1017421.849 | FQ21: 2431.648473 | FR21: 2346.003537 | FS21: 2432.148473 | FT21: 1750.496463 | FU21: 6.508844 | FV21: 29.707595 | FW21: 649106.671 | FX21: 1294.352467 | FY21: 12.285 | FZ21: 0.002163 | GA21: 501.491431 | GB21: 2854.494629 | GC21: 714.93796 | GD21: 1161.281769 | GE21: 22.329399 | GF21: 18.720281 | GG21: 18.397281 | GH21: 19.04328 | GI21: 302.929936 | GJ21: 0.992885 | GK21: 193233.0568 | GL21: 1205.324482 | GM21: 2258.075339 | GN21: 1205.824482 | GO21: 1838.424661 | GP21: 6.518905 | GQ21: 29.697992 | GR21: 434256.9289 | GS21: 1229.357042 | GT21: 12.782 | GU21: 0.003069 | GV21: 353.239062 | GW21: 2423.741211 | GX21: 478.298525 | GY21: 1163.491561 | GZ21: 21.975272 | HA21: 18.565623 | HB21: 18.101442 | HC21: 19.029805 | HD21: 298.447525 | HE21: 0.991628 | HF21: 91576.39804
A22: 21 | B22: WASP-12b_00060_bdf.fits | C22: 21 | D22: 0 | E22: 56319.54208 | F22: 2456319.542 | G22: 2456319.542 | H22: 2456319.547 | I22: 2456319.548 | J22: 1.225363 | K22: -20.04 | L22: 100 | M22: 6.50911 | N22: 29.672297 | O22: 23.285378 | P22: 17 | Q22: 30 | R22: 45 | S22: 0.048792 | T22: 0.526413 | U22: 0.412415 | V22: 0.175506 | W22: 0.124141 | X22: 0.058838 | Y22: 0.029505 | Z22: 0.019551 | AA22: 6.3e-05 | AB22: 0.000236 | AC22: 0.000192 | AD22: 0.000109 | AE22: 9.2e-05 | AF22: 6.9e-05 | AG22: 5.8e-05 | AH22: 5.4e-05 | AI22: 776.056019 | AJ22: 2231.028673 | AK22: 2142.905616 | AL22: 1607.118021 | AM22: 1355.608264 | AN22: 855.432625 | AO22: 507.792194 | AP22: 359.932791 | AQ22: 23332060.14 | AR22: 5195.249638 | AS22: 2398.644199 | AT22: 2018.128273 | AU22: 2399.144199 | AV22: 2078.371727 | AW22: 6.509097 | AX22: 29.672302 | AY22: 1138412.938 | AZ22: 907.920277 | BA22: 1444.853821 | BB22: 11.689848 | BC22: 0.001398 | BD22: 787.908729 | BE22: 4667.941895 | BF22: 1253.868833 | BG22: 1177.467682 | BH22: 3006 | BI22: 20.999972 | BJ22: 18.171802 | BK22: 18.046963 | BL22: 18.296641 | BM22: 309.871638 | BN22: 0.994046 | BO22: 728702.9135 | BP22: 1889.819165 | BQ22: 1264.747914 | BR22: 1890.319165 | BS22: 2831.752086 | BT22: 6.513271 | BU22: 29.591817 | BV22: 8046513.658 | BW22: 2765.449365 | BX22: 9.453 | BY22: 0.000373 | BZ22: 2909.658647 | CA22: 26028.4375 | CB22: 8862.577324 | CC22: 1211.291337 | CD22: 20.999953 | CE22: 18.073275 | CF22: 18.01069 | CG22: 18.135859 | CH22: 312.536998 | CI22: 0.993495 | CJ22: 37417502.4 | CK22: 1157.694036 | CL22: 3182.01873 | CM22: 1158.194036 | CN22: 914.48127 | CO22: 6.51931 | CP22: 29.79645 | CQ22: 6812788.881 | CR22: 2578.257019 | CS22: 9.747 | CT22: 0.000411 | CU22: 2642.400983 | CV22: 24505.24023 | CW22: 7503.730288 | CX22: 1206.154013 | CY22: 19.036795 | CZ22: 17.294933 | DA22: 17.224904 | DB22: 17.364962 | DC22: 309.636505 | DD22: 0.998107 | DE22: 33683849.15 | DF22: 2160.57624 | DG22: 1603.385299 | DH22: 2161.07624 | DI22: 2493.114701 | DJ22: 6.51105 | DK22: 29.627992 | DL22: 3483534.076 | DM22: 1997.46456 | DN22: 10.568 | DO22: 0.000622 | DP22: 1743.977914 | DQ22: 11399.57422 | DR22: 3836.828149 | DS22: 1192.134128 | DT22: 21.199336 | DU22: 18.154672 | DV22: 18.048243 | DW22: 18.261101 | DX22: 310.684078 | DY22: 0.993898 | DZ22: 6783976.862 | EA22: 2961.879747 | EB22: 991.40094 | EC22: 2962.379747 | ED22: 3105.09906 | EE22: 6.504504 | EF22: 29.562541 | EG22: 2576601.702 | EH22: 1801.87016 | EI22: 10.984 | EJ22: 0.000759 | EK22: 1429.959694 | EL22: 9402.651367 | EM22: 2837.916244 | EN22: 1189.911602 | EO22: 19.705092 | EP22: 17.547746 | EQ22: 17.478942 | ER22: 17.61655 | ES22: 310.606946 | ET22: 0.997364 | EU22: 4438172.149 | EV22: 3794.399406 | EW22: 2086.38078 | EX22: 3794.899406 | EY22: 2010.11922 | EZ22: 6.49766 | FA22: 29.679279 | FB22: 1296521.756 | FC22: 1487.064204 | FD22: 11.697 | FE22: 0.001245 | FF22: 871.866697 | FG22: 5810.782715 | FH22: 1428.012777 | FI22: 1180.00264 | FJ22: 18.465285 | FK22: 17.064436 | FL22: 16.708867 | FM22: 17.420005 | FN22: 300.296379 | FO22: 0.992803 | FP22: 1302943.529 | FQ22: 2429.704861 | FR22: 2348.211368 | FS22: 2430.204861 | FT22: 1748.288632 | FU22: 6.508843 | FV22: 29.707581 | FW22: 668679.6549 | FX22: 1308.454939 | FY22: 12.285 | FZ22: 0.002122 | GA22: 511.04523 | GB22: 3272.410889 | GC22: 736.496003 | GD22: 1173.910408 | GE22: 20.853156 | GF22: 18.060084 | GG22: 17.948353 | GH22: 18.171815 | GI22: 310.367554 | GJ22: 0.994094 | GK22: 260637.5714 | GL22: 1203.391861 | GM22: 2260.287017 | GN22: 1203.891861 | GO22: 1836.212983 | GP22: 6.518904 | GQ22: 29.697974 | GR22: 447420.4156 | GS22: 1239.146615 | GT22: 12.782 | GU22: 0.003003 | GV22: 361.07141 | GW22: 2631.612793 | GX22: 492.79703 | GY22: 1179.434834 | GZ22: 20.465221 | HA22: 17.928573 | HB22: 17.714057 | HC22: 18.14309 | HD22: 305.136813 | HE22: 0.994975 | HF22: 122626.9638
A23: 22 | B23: WASP-12b_00061_bdf.fits | C23: 22 | D23: 0 | E23: 56319.54346 | F23: 2456319.543 | G23: 2456319.543 | H23: 2456319.548 | I23: 2456319.549 | J23: 1.219521 | K23: -20.03 | L23: 100 | M23: 6.50911 | N23: 29.672297 | O23: 23.187994 | P23: 17 | Q23: 30 | R23: 45 | S23: 0.048789 | T23: 0.526309 | U23: 0.411842 | V23: 0.175971 | W23: 0.124331 | X23: 0.058748 | Y23: 0.029577 | Z23: 0.019402 | AA23: 6.3e-05 | AB23: 0.000236 | AC23: 0.000192 | AD23: 0.000109 | AE23: 9.2e-05 | AF23: 6.9e-05 | AG23: 5.8e-05 | AH23: 5.5e-05 | AI23: 772.470476 | AJ23: 2228.192309 | AK23: 2139.724022 | AL23: 1610.003488 | AM23: 1353.321037 | AN23: 851.877621 | AO23: 507.946952 | AP23: 355.330042 | AQ23: 23382513.37 | AR23: 5213.923654 | AS23: 2399.671004 | AT23: 2015.859171 | AU23: 2400.171004 | AV23: 2080.640829 | AW23: 6.509098 | AX23: 29.672308 | AY23: 1140800.101 | AZ23: 907.920277 | BA23: 1454.747082 | BB23: 11.689919 | BC23: 0.001405 | BD23: 784.191366 | BE23: 4605.914062 | BF23: 1256.498098 | BG23: 1203.865174 | BH23: 3041 | BI23: 21.120689 | BJ23: 18.11928 | BK23: 18.501096 | BL23: 17.737464 | BM23: 342.603768 | BN23: 0.997369 | BO23: 735616.6477 | BP23: 1890.900026 | BQ23: 1262.433251 | BR23: 1891.400026 | BS23: 2834.066749 | BT23: 6.513271 | BU23: 29.591818 | BV23: 8062863.034 | BW23: 2774.056906 | BX23: 9.453 | BY23: 0.000373 | BZ23: 2906.524021 | CA23: 24300.42969 | CB23: 8880.584826 | CC23: 1238.612268 | CD23: 21.098768 | CE23: 18.039398 | CF23: 18.512134 | CG23: 17.566662 | CH23: 343.067915 | CI23: 0.996021 | CJ23: 37335011.27 | CK23: 1158.66345 | CL23: 3179.75108 | CM23: 1159.16345 | CN23: 916.74892 | CO23: 6.519311 | CP23: 29.796462 | CQ23: 6820804.97 | CR23: 2585.389951 | CS23: 9.747 | CT23: 0.000411 | CU23: 2638.211295 | CV23: 24791.8418 | CW23: 7512.559355 | CX23: 1235.634883 | CY23: 19.002178 | CZ23: 17.251443 | DA23: 17.631621 | DB23: 16.871266 | DC23: 3.247807 | DD23: 0.998034 | DE23: 34243068.2 | DF23: 2161.670275 | DG23: 1601.034463 | DH23: 2162.170275 | DI23: 2495.465537 | DJ23: 6.51105 | DK23: 29.62799 | DL23: 3498941.887 | DM23: 2001.308726 | DN23: 10.568 | DO23: 0.000621 | DP23: 1748.326903 | DQ23: 11251.07715 | DR23: 3853.798594 | DS23: 1216.755459 | DT23: 21.202729 | DU23: 18.137451 | DV23: 18.56078 | DW23: 17.714123 | DX23: 343.251962 | DY23: 0.99687 | DZ23: 6821727.317 | EA23: 2962.759787 | EB23: 989.232746 | EC23: 2963.259787 | ED23: 3107.267254 | EE23: 6.504505 | EF23: 29.562545 | EG23: 2585689.351 | EH23: 1811.346434 | EI23: 10.984 | EJ23: 0.00076 | EK23: 1427.495758 | EL23: 9167.339844 | EM23: 2847.925546 | EN23: 1214.224362 | EO23: 20.004556 | EP23: 17.515807 | EQ23: 17.965337 | ER23: 17.066277 | ES23: 356.635212 | ET23: 0.997332 | EU23: 4482396.317 | EV23: 3795.416705 | EW23: 2084.197899 | EX23: 3795.916705 | EY23: 2012.302101 | EZ23: 6.49766 | FA23: 29.679276 | FB23: 1297445.356 | FC23: 1494.504008 | FD23: 11.697 | FE23: 0.00125 | FF23: 868.144447 | FG23: 5816.032227 | FH23: 1429.030047 | FI23: 1208.391659 | FJ23: 18.367166 | FK23: 16.943496 | FL23: 17.089901 | FM23: 16.797091 | FN23: 329.928419 | FO23: 0.998795 | FP23: 1345725.429 | FQ23: 2430.760475 | FR23: 2345.909347 | FS23: 2431.260475 | FT23: 1750.590653 | FU23: 6.508843 | FV23: 29.707585 | FW23: 671725.1132 | FX23: 1313.983959 | FY23: 12.285 | FZ23: 0.002122 | GA23: 511.212567 | GB23: 3246.97998 | GC23: 739.850326 | GD23: 1197.556243 | GE23: 20.893816 | GF23: 18.020731 | GG23: 18.395982 | GH23: 17.645479 | GI23: 341.392632 | GJ23: 0.997268 | GK23: 264087.3475 | GL23: 1204.463517 | GM23: 2257.869484 | GN23: 1204.963517 | GO23: 1838.630516 | GP23: 6.518904 | GQ23: 29.697969 | GR23: 445043.6639 | GS23: 1248.622582 | GT23: 12.782 | GU23: 0.003042 | GV23: 356.427691 | GW23: 2633.323975 | GX23: 490.179232 | GY23: 1209.777894 | GZ23: 20.52867 | HA23: 17.828549 | HB23: 18.076579 | HC23: 17.580519 | HD23: 340.347355 | HE23: 0.998707 | HF23: 123149.9855
A24: 23 | B24: WASP-12b_00062_bdf.fits | C24: 23 | D24: 0 | E24: 56319.54484 | F24: 2456319.545 | G24: 2456319.544 | H24: 2456319.55 | I24: 2456319.55 | J24: 1.213791 | K24: -20 | L24: 100 | M24: 6.50911 | N24: 29.672297 | O24: 23.723608 | P24: 17 | Q24: 30 | R24: 45 | S24: 0.048828 | T24: 0.526842 | U24: 0.411571 | V24: 0.175904 | W24: 0.124468 | X24: 0.05876 | Y24: 0.029367 | Z24: 0.019438 | AA24: 6.3e-05 | AB24: 0.000236 | AC24: 0.000192 | AD24: 0.000109 | AE24: 9.2e-05 | AF24: 6.9e-05 | AG24: 5.8e-05 | AH24: 5.5e-05 | AI24: 774.921712 | AJ24: 2234.455457 | AK24: 2144.767563 | AL24: 1612.855193 | AM24: 1358.995273 | AN24: 850.18532 | AO24: 505.162825 | AP24: 355.922477 | AQ24: 23555801.15 | AR24: 5241.099489 | AS24: 2400.76305 | AT24: 2014.416248 | AU24: 2401.26305 | AV24: 2082.083752 | AW24: 6.509099 | AX24: 29.672294 | AY24: 1150179.934 | AZ24: 907.920277 | BA24: 1462.02474 | BB24: 11.689045 | BC24: 0.0014 | BD24: 786.703468 | BE24: 4767.650391 | BF24: 1266.829217 | BG24: 1224.404722 | BH24: 3083 | BI24: 21.546661 | BJ24: 18.31235 | BK24: 18.665265 | BL24: 17.959436 | BM24: 29.624071 | BN24: 0.994322 | BO24: 736325.4133 | BP24: 1892.09726 | BQ24: 1261.085533 | BR24: 1892.59726 | BS24: 2835.414467 | BT24: 6.513271 | BU24: 29.59181 | BV24: 8128013.832 | BW24: 2786.044222 | BX24: 9.453 | BY24: 0.000372 | BZ24: 2917.403022 | CA24: 25159.04883 | CB24: 8952.343106 | CC24: 1259.754514 | CD24: 21.620016 | CE24: 18.276626 | CF24: 18.692514 | CG24: 17.860738 | CH24: 27.742538 | CI24: 0.993556 | CJ24: 36713852.84 | CK24: 1159.909543 | CL24: 3178.186173 | CM24: 1160.409543 | CN24: 918.313827 | CO24: 6.519311 | CP24: 29.796427 | CQ24: 6868157.63 | CR24: 2596.916723 | CS24: 9.747 | CT24: 0.00041 | CU24: 2644.735416 | CV24: 26449.98047 | CW24: 7564.714441 | CX24: 1257.997069 | CY24: 19.53137 | CZ24: 17.396469 | DA24: 17.796587 | DB24: 16.99635 | DC24: 34.03008 | DD24: 0.984859 | DE24: 34777138.82 | DF24: 2162.8699 | DG24: 1599.640489 | DH24: 2163.3699 | DI24: 2496.859511 | DJ24: 6.51105 | DK24: 29.627979 | DL24: 3523714.707 | DM24: 2012.096123 | DN24: 10.568 | DO24: 0.00062 | DP24: 1751.265591 | DQ24: 11548.76172 | DR24: 3881.083832 | DS24: 1239.188854 | DT24: 21.773046 | DU24: 18.34395 | DV24: 18.713297 | DW24: 17.974602 | DX24: 29.389795 | DY24: 0.993969 | DZ24: 6743064.131 | EA24: 2964.044469 | EB24: 987.765779 | EC24: 2964.544469 | ED24: 3108.734221 | EE24: 6.504505 | EF24: 29.562543 | EG24: 2607411.904 | EH24: 1818.46569 | EI24: 10.984 | EJ24: 0.000757 | EK24: 1433.85268 | EL24: 9708.421875 | EM24: 2871.851164 | EN24: 1234.502447 | EO24: 20.48859 | EP24: 17.709961 | EQ24: 18.067437 | ER24: 17.352486 | ES24: 33.809456 | ET24: 0.988768 | EU24: 4448133.705 | EV24: 3796.595951 | EW24: 2082.605395 | EX24: 3797.095951 | EY24: 2013.894605 | EZ24: 6.49766 | FA24: 29.679277 | FB24: 1307329.732 | FC24: 1509.151828 | FD24: 11.697 | FE24: 0.001253 | FF24: 866.267865 | FG24: 5971.421387 | FH24: 1439.91688 | FI24: 1236.266775 | FJ24: 18.940506 | FK24: 17.076281 | FL24: 17.064429 | FM24: 17.088133 | FN24: 45.488541 | FO24: 0.993374 | FP24: 1342009.976 | FQ24: 2431.828678 | FR24: 2344.4205 | FS24: 2432.328678 | FT24: 1752.0795 | FU24: 6.508844 | FV24: 29.707564 | FW24: 672032.7468 | FX24: 1321.965235 | FY24: 12.285 | FZ24: 0.002134 | GA24: 508.358865 | GB24: 3354.394287 | GC24: 740.18916 | GD24: 1221.548668 | GE24: 21.519925 | GF24: 18.273933 | GG24: 18.63535 | GH24: 17.912517 | GI24: 29.163071 | GJ24: 0.99433 | GK24: 257732.8572 | GL24: 1205.717212 | GM24: 2256.562597 | GN24: 1206.217212 | GO24: 1839.937403 | GP24: 6.518904 | GQ24: 29.697964 | GR24: 449140.5943 | GS24: 1258.024396 | GT24: 12.782 | GU24: 0.003037 | GV24: 357.020576 | GW24: 2743.424561 | GX24: 494.691666 | GY24: 1235.364592 | GZ24: 21.180755 | HA24: 18.033632 | HB24: 18.324919 | HC24: 17.742345 | HD24: 33.724841 | HE24: 0.992908 | HF24: 122804.2276
A25: 24 | B25: WASP-12b_00063_bdf.fits | C25: 24 | D25: 0 | E25: 56319.54622 | F25: 2456319.546 | G25: 2456319.546 | H25: 2456319.551 | I25: 2456319.552 | J25: 1.208171 | K25: -19.99 | L25: 100 | M25: 6.50911 | N25: 29.672297 | O25: 23.353619 | P25: 17 | Q25: 30 | R25: 45 | S25: 0.048918 | T25: 0.526488 | U25: 0.411758 | V25: 0.175554 | W25: 0.124541 | X25: 0.058964 | Y25: 0.02944 | Z25: 0.019442 | AA25: 6.3e-05 | AB25: 0.000237 | AC25: 0.000193 | AD25: 0.00011 | AE25: 9.2e-05 | AF25: 7e-05 | AG25: 5.9e-05 | AH25: 5.5e-05 | AI25: 771.260446 | AJ25: 2225.097028 | AK25: 2135.933633 | AL25: 1602.817006 | AM25: 1351.599485 | AN25: 848.279867 | AO25: 502.804759 | AP25: 352.610615 | AQ25: 23451036.72 | AR25: 5242.563126 | AS25: 2398.325949 | AT25: 2016.095273 | AU25: 2398.825949 | AV25: 2080.404727 | AW25: 6.509098 | AX25: 29.672289 | AY25: 1147174.25 | AZ25: 907.920277 | BA25: 1465.126371 | BB25: 11.687046 | BC25: 0.001407 | BD25: 782.986555 | BE25: 4957.546875 | BF25: 1263.518702 | BG25: 1234.987029 | BH25: 3032 | BI25: 21.222949 | BJ25: 18.271934 | BK25: 18.09198 | BL25: 18.451889 | BM25: 78.956345 | BN25: 0.999548 | BO25: 738438.7458 | BP25: 1889.561506 | BQ25: 1262.768495 | BR25: 1890.061506 | BS25: 2833.731505 | BT25: 6.513271 | BU25: 29.591806 | BV25: 8088294.328 | BW25: 2782.206939 | BX25: 9.453 | BY25: 0.000373 | BZ25: 2907.150513 | CA25: 26219.9043 | CB25: 8908.595319 | CC25: 1275.466389 | CD25: 21.20739 | CE25: 18.223787 | CF25: 18.047329 | CG25: 18.400244 | CH25: 273.179882 | CI25: 0.99962 | CJ25: 36441557.19 | CK25: 1157.339264 | CL25: 3180.027767 | CM25: 1157.839264 | CN25: 916.472233 | CO25: 6.51931 | CP25: 29.796437 | CQ25: 6839812.255 | CR25: 2595.534003 | CS25: 9.747 | CT25: 0.000412 | CU25: 2635.223521 | CV25: 27307.92773 | CW25: 7533.494327 | CX25: 1273.18789 | CY25: 18.964837 | CZ25: 17.359079 | DA25: 17.189375 | DB25: 17.528783 | DC25: 57.376657 | DD25: 0.99782 | DE25: 34711055.03 | DF25: 2160.329355 | DG25: 1601.330839 | DH25: 2160.829355 | DI25: 2495.169161 | DJ25: 6.51105 | DK25: 29.627975 | DL25: 3502119.97 | DM25: 2012.94668 | DN25: 10.568 | DO25: 0.000624 | DP25: 1739.797683 | DQ25: 12030.02539 | DR25: 3857.298993 | DS25: 1250.94229 | DT25: 21.509948 | DU25: 18.326701 | DV25: 18.165888 | DW25: 18.487515 | DX25: 81.132323 | DY25: 0.999661 | DZ25: 6655835.457 | EA25: 2961.500794 | EB25: 989.461278 | EC25: 2962.000794 | ED25: 3107.038722 | EE25: 6.504505 | EF25: 29.562532 | EG25: 2597162.14 | EH25: 1821.401318 | EI25: 10.984 | EJ25: 0.000761 | EK25: 1425.914275 | EL25: 9878.523438 | EM25: 2860.561886 | EN25: 1245.938486 | EO25: 20.319112 | EP25: 17.615639 | EQ25: 17.515271 | ER25: 17.716008 | ES25: 55.023161 | ET25: 0.998895 | EU25: 4405266.218 | EV25: 3794.054197 | EW25: 2084.411834 | EX25: 3794.554197 | EY25: 2012.088166 | EZ25: 6.49766 | FA25: 29.679272 | FB25: 1305769.983 | FC25: 1510.585362 | FD25: 11.697 | FE25: 0.001255 | FF25: 864.413238 | FG25: 6333.477539 | FH25: 1438.198944 | FI25: 1249.703728 | FJ25: 18.54732 | FK25: 17.09856 | FL25: 16.719104 | FM25: 17.478016 | FN25: 84.730672 | FO25: 0.997964 | FP25: 1348794.571 | FQ25: 2429.385666 | FR25: 2346.110474 | FS25: 2429.885666 | FT25: 1750.389526 | FU25: 6.508843 | FV25: 29.707562 | FW25: 670643.9904 | FX25: 1325.420882 | FY25: 12.285 | FZ25: 0.002144 | GA25: 505.985683 | GB25: 3504.004639 | GC25: 738.659558 | GD25: 1231.697316 | GE25: 20.927412 | GF25: 18.181543 | GG25: 17.953564 | GH25: 18.409523 | GI25: 77.817509 | GJ25: 0.999242 | GK25: 262919.3052 | GL25: 1203.053486 | GM25: 2258.312796 | GN25: 1203.553486 | GO25: 1838.187204 | GP25: 6.518904 | GQ25: 29.697965 | GR25: 447234.0488 | GS25: 1264.488105 | GT25: 12.782 | GU25: 0.003065 | GV25: 353.687826 | GW25: 2858.771973 | GX25: 492.591762 | GY25: 1249.295916 | GZ25: 20.406373 | HA25: 17.956005 | HB25: 17.63789 | HC25: 18.274121 | HD25: 80.607446 | HE25: 0.9986 | HF25: 125291.1042
A26: 25 | B26: WASP-12b_00064_bdf.fits | C26: 25 | D26: 0 | E26: 56319.5476 | F26: 2456319.548 | G26: 2456319.547 | H26: 2456319.552 | I26: 2456319.553 | J26: 1.20266 | K26: -20.01 | L26: 100 | M26: 6.50911 | N26: 29.672297 | O26: 21.906069 | P26: 17 | Q26: 30 | R26: 45 | S26: 0.048861 | T26: 0.526882 | U26: 0.410588 | V26: 0.175849 | W26: 0.12472 | X26: 0.058785 | Y26: 0.02954 | Z26: 0.019576 | AA26: 6.3e-05 | AB26: 0.000236 | AC26: 0.000192 | AD26: 0.000109 | AE26: 9.2e-05 | AF26: 6.9e-05 | AG26: 5.9e-05 | AH26: 5.5e-05 | AI26: 773.251732 | AJ26: 2233.268729 | AK26: 2141.966169 | AL26: 1610.51177 | AM26: 1357.03731 | AN26: 846.762138 | AO26: 504.432456 | AP26: 355.557693 | AQ26: 23627924.88 | AR26: 5265.160219 | AS26: 2402.564514 | AT26: 2013.753064 | AU26: 2403.064514 | AV26: 2082.746936 | AW26: 6.509098 | AX26: 29.672302 | AY26: 1154477.581 | AZ26: 907.920277 | BA26: 1470.685466 | BB26: 11.688315 | BC26: 0.001403 | BD26: 784.992854 | BE26: 5272.853027 | BF26: 1271.562725 | BG26: 1250.055213 | BH26: 2995 | BI26: 19.855542 | BJ26: 17.67318 | BK26: 17.796775 | BL26: 17.549585 | BM26: 40.591851 | BN26: 0.991673 | BO26: 885344.1142 | BP26: 1893.795269 | BQ26: 1260.371606 | BR26: 1894.295269 | BS26: 2836.128394 | BT26: 6.513272 | BU26: 29.591818 | BV26: 8153299.035 | BW26: 2792.400843 | BX26: 9.453 | BY26: 0.000372 | BZ26: 2919.816851 | CA26: 28234.71094 | CB26: 8980.192692 | CC26: 1286.148949 | CD26: 20.024497 | CE26: 17.655427 | CF26: 17.832164 | CG26: 17.47869 | CH26: 37.990867 | CI26: 0.99317 | CJ26: 43875029.39 | CK26: 1161.688321 | CL26: 3177.57099 | CM26: 1162.188321 | CN26: 918.92901 | CO26: 6.51931 | CP26: 29.79644 | CQ26: 6877512.807 | CR26: 2603.627466 | CS26: 9.747 | CT26: 0.000411 | CU26: 2641.511851 | CV26: 28793.72656 | CW26: 7575.018404 | CX26: 1286.113676 | CY26: 17.431864 | CZ26: 16.893303 | DA26: 17.020513 | DB26: 16.766094 | DC26: 41.523339 | DD26: 0.984526 | DE26: 40072707.88 | DF26: 2164.632477 | DG26: 1598.979773 | DH26: 2165.132477 | DI26: 2497.520227 | DJ26: 6.51105 | DK26: 29.62799 | DL26: 3533575.216 | DM26: 2020.63263 | DN26: 10.568 | DO26: 0.000621 | DP26: 1748.746983 | DQ26: 12886.9668 | DR26: 3891.944376 | DS26: 1262.491543 | DT26: 20.165834 | DU26: 17.779247 | DV26: 17.974199 | DW26: 17.584294 | DX26: 38.51451 | DY26: 0.990456 | DZ26: 8002840.94 | EA26: 2965.848476 | EB26: 986.989197 | EC26: 2966.348476 | ED26: 3109.510803 | EE26: 6.504505 | EF26: 29.562536 | EG26: 2620096.29 | EH26: 1829.933812 | EI26: 10.984 | EJ26: 0.000758 | EK26: 1431.798392 | EL26: 10838.79102 | EM26: 2885.821979 | EN26: 1261.111522 | EO26: 18.800338 | EP26: 17.124355 | EQ26: 17.308787 | ER26: 16.939923 | ES26: 39.969317 | ET26: 0.984801 | EU26: 5378626.055 | EV26: 3798.368333 | EW26: 2082.046875 | EX26: 3798.868333 | EY26: 2014.453125 | EZ26: 6.49766 | FA26: 29.679275 | FB26: 1311841.843 | FC26: 1520.642455 | FD26: 11.697 | FE26: 0.001258 | FF26: 862.689213 | FG26: 6936.128418 | FH26: 1444.886602 | FI26: 1274.551364 | FJ26: 16.877982 | FK26: 16.551692 | FL26: 16.302637 | FM26: 16.800748 | FN26: 53.634901 | FO26: 0.989729 | FP26: 1587596.899 | FQ26: 2433.649439 | FR26: 2343.758581 | FS26: 2434.149439 | FT26: 1752.741419 | FU26: 6.508844 | FV26: 29.707572 | FW26: 677933.2784 | FX26: 1335.505506 | FY26: 12.285 | FZ26: 0.002137 | GA26: 507.622975 | GB26: 3643.477783 | GC26: 746.688113 | GD26: 1247.780669 | GE26: 19.68366 | GF26: 17.670875 | GG26: 17.79587 | GH26: 17.545879 | GI26: 40.675082 | GJ26: 0.991152 | GK26: 310340.2401 | GL26: 1207.438309 | GM26: 2255.906956 | GN26: 1207.938309 | GO26: 1840.593044 | GP26: 6.518904 | GQ26: 29.697972 | GR26: 453666.4145 | GS26: 1272.002856 | GT26: 12.782 | GU26: 0.00304 | GV26: 356.655185 | GW26: 2915.509033 | GX26: 499.676487 | GY26: 1260.264343 | GZ26: 19.055214 | HA26: 17.418544 | HB26: 17.483953 | HC26: 17.353135 | HD26: 42.751511 | HE26: 0.990825 | HF26: 150347.7191
A27: 26 | B27: WASP-12b_00065_bdf.fits | C27: 26 | D27: 0 | E27: 56319.54898 | F27: 2456319.549 | G27: 2456319.548 | H27: 2456319.554 | I27: 2456319.555 | J27: 1.197255 | K27: -20.03 | L27: 100 | M27: 6.50911 | N27: 29.672297 | O27: 21.987827 | P27: 17 | Q27: 30 | R27: 45 | S27: 0.04908 | T27: 0.527638 | U27: 0.410151 | V27: 0.176171 | W27: 0.124314 | X27: 0.058737 | Y27: 0.029592 | Z27: 0.019552 | AA27: 6.2e-05 | AB27: 0.000233 | AC27: 0.000189 | AD27: 0.000108 | AE27: 9e-05 | AF27: 6.8e-05 | AG27: 5.8e-05 | AH27: 5.4e-05 | AI27: 788.435523 | AJ27: 2265.500604 | AK27: 2172.05544 | AL27: 1635.523296 | AM27: 1374.379735 | AN27: 860.363948 | AO27: 514.320705 | AP27: 361.265571 | AQ27: 24221910.66 | AR27: 5319.253065 | AS27: 2399.367238 | AT27: 2015.371162 | AU27: 2399.867238 | AV27: 2081.128838 | AW27: 6.509098 | AX27: 29.672285 | AY27: 1188818.073 | AZ27: 907.920277 | BA27: 1485.045595 | BB27: 11.683447 | BC27: 0.001376 | BD27: 800.526312 | BE27: 5811.502441 | BF27: 1309.38597 | BG27: 1264.350199 | BH27: 2963 | BI27: 20.268739 | BJ27: 17.306256 | BK27: 17.349472 | BL27: 17.263041 | BM27: 25.372586 | BN27: 0.999938 | BO27: 1097564.375 | BP27: 1890.740924 | BQ27: 1262.009791 | BR27: 1891.240924 | BS27: 2834.490209 | BT27: 6.51327 | BU27: 29.591804 | BV27: 8366114.855 | BW27: 2825.242511 | BX27: 9.453 | BY27: 0.000367 | BZ27: 2961.202383 | CA27: 30284.53711 | CB27: 9214.591928 | CC27: 1295.59744 | CD27: 20.200914 | CE27: 17.227878 | CF27: 17.339728 | CG27: 17.116028 | CH27: 15.767523 | CI27: 0.999768 | CJ27: 54830681.59 | CK27: 1158.567844 | CL27: 3179.029423 | CM27: 1159.067844 | CN27: 917.470577 | CO27: 6.51931 | CP27: 29.796417 | CQ27: 7045085.348 | CR27: 2631.657766 | CS27: 9.747 | CT27: 0.000405 | CU27: 2677.052252 | CV27: 33401.39453 | CW27: 7759.585866 | CX27: 1296.179773 | CY27: 17.950704 | CZ27: 16.264161 | DA27: 16.266145 | DB27: 16.262177 | DC27: 44.852214 | DD27: 0.997764 | DE27: 51049587.64 | DF27: 2161.575156 | DG27: 1600.662594 | DH27: 2162.075156 | DI27: 2495.837406 | DJ27: 6.511049 | DK27: 29.62798 | DL27: 3628047.186 | DM27: 2042.570202 | DN27: 10.568 | DO27: 0.000611 | DP27: 1776.216642 | DQ27: 13942.01562 | DR27: 3995.997533 | DS27: 1275.582014 | DT27: 20.175972 | DU27: 17.347555 | DV27: 17.407739 | DW27: 17.287371 | DX27: 29.908635 | DY27: 0.99981 | DZ27: 10032260.8 | EA27: 2962.621397 | EB27: 988.731647 | EC27: 2963.121397 | ED27: 3107.768353 | EE27: 6.504506 | EF27: 29.562537 | EG27: 2678190.917 | EH27: 1847.357728 | EI27: 10.984 | EJ27: 0.000749 | EK27: 1449.741366 | EL27: 11859.52051 | EM27: 2949.808464 | EN27: 1276.446666 | EO27: 18.875165 | EP27: 16.587672 | EQ27: 16.678744 | ER27: 16.4966 | ES27: 37.499085 | ET27: 0.998201 | EU27: 6551382.582 | EV27: 3795.215511 | EW27: 2083.618454 | EX27: 3795.715511 | EY27: 2012.881546 | EZ27: 6.497659 | FA27: 29.679265 | FB27: 1343789.001 | FC27: 1532.96244 | FD27: 11.697 | FE27: 0.001238 | FF27: 876.596168 | FG27: 7837.578613 | FH27: 1480.073786 | FI27: 1292.761906 | FJ27: 17.355563 | FK27: 15.99119 | FL27: 15.741888 | FM27: 16.240492 | FN27: 69.813159 | FO27: 0.998326 | FP27: 1950601.135 | FQ27: 2430.459605 | FR27: 2345.527061 | FS27: 2430.959605 | FT27: 1750.972939 | FU27: 6.508844 | FV27: 29.707572 | FW27: 696172.8265 | FX27: 1344.982737 | FY27: 12.285 | FZ27: 0.002096 | GA27: 517.607258 | GB27: 3913.770508 | GC27: 766.777485 | GD27: 1263.744226 | GE27: 19.840268 | GF27: 17.115112 | GG27: 17.218357 | GH27: 17.011868 | GI27: 22.151083 | GJ27: 0.999716 | GK27: 392273.3448 | GL27: 1204.351698 | GM27: 2257.551917 | GN27: 1204.851698 | GO27: 1838.948083 | GP27: 6.518903 | GQ27: 29.697964 | GR27: 464510.5289 | GS27: 1281.818752 | GT27: 12.782 | GU27: 0.002992 | GV27: 362.383939 | GW27: 3158.328857 | GX27: 511.620393 | GY27: 1274.216965 | GZ27: 19.329221 | HA27: 17.006388 | HB27: 16.93239 | HC27: 17.080386 | HD27: 60.433566 | HE27: 0.999712 | HF27: 182066.9031
A28: 27 | B28: WASP-12b_00066_bdf.fits | C28: 27 | D28: 0 | E28: 56319.55036 | F28: 2456319.55 | G28: 2456319.55 | H28: 2456319.555 | I28: 2456319.556 | J28: 1.191954 | K28: -20.01 | L28: 100 | M28: 6.50911 | N28: 29.672297 | O28: 22.001931 | P28: 17 | Q28: 30 | R28: 45 | S28: 0.04891 | T28: 0.527372 | U28: 0.410315 | V28: 0.176381 | W28: 0.124283 | X28: 0.058642 | Y28: 0.029635 | Z28: 0.019498 | AA28: 6.2e-05 | AB28: 0.000233 | AC28: 0.000189 | AD28: 0.000108 | AE28: 9e-05 | AF28: 6.8e-05 | AG28: 5.8e-05 | AH28: 5.4e-05 | AI28: 783.56637 | AJ28: 2262.734799 | AK28: 2170.129193 | AL28: 1633.936709 | AM28: 1373.500419 | AN28: 857.997567 | AO28: 515.183151 | AP28: 360.503361 | AQ28: 24199634.69 | AR28: 5319.678528 | AS28: 2399.3924 | AT28: 2015.988429 | AU28: 2399.8924 | AV28: 2080.511571 | AW28: 6.509097 | AX28: 29.672291 | AY28: 1183613.463 | AZ28: 907.920277 | BA28: 1487.969515 | BB28: 11.687212 | BC28: 0.001385 | BD28: 795.455452 | BE28: 5810.086426 | BF28: 1303.653518 | BG28: 1269.486114 | BH28: 3036 | BI28: 20.076657 | BJ28: 17.427253 | BK28: 17.382543 | BL28: 17.471962 | BM28: 305.396698 | BN28: 0.999757 | BO28: 1098849.177 | BP28: 1890.633536 | BQ28: 1262.585801 | BR28: 1891.133536 | BS28: 2833.914199 | BT28: 6.51327 | BU28: 29.591804 | BV28: 8355665.373 | BW28: 2826.140825 | BX28: 9.453 | BY28: 0.000367 | BZ28: 2956.563699 | CA28: 31937.19727 | CB28: 9203.082678 | CC28: 1299.683936 | CD28: 19.929281 | CE28: 17.263617 | CF28: 17.267748 | CG28: 17.259487 | CH28: 315.558775 | CI28: 0.999398 | CJ28: 55905850.9 | CK28: 1158.578899 | CL28: 3179.69197 | CM28: 1159.078899 | CN28: 916.80803 | CO28: 6.519309 | CP28: 29.796407 | CQ28: 7040611.935 | CR28: 2632.035332 | CS28: 9.747 | CT28: 0.000406 | CU28: 2674.968626 | CV28: 32805.22656 | CW28: 7754.658767 | CX28: 1298.836795 | CY28: 17.81308 | CZ28: 16.274915 | DA28: 16.23122 | DB28: 16.31861 | DC28: 50.56666 | DD28: 0.999227 | DE28: 51157386.89 | DF28: 2161.486084 | DG28: 1601.273235 | DH28: 2161.986084 | DI28: 2495.226765 | DJ28: 6.511049 | DK28: 29.627985 | DL28: 3628384.531 | DM28: 2044.729376 | DN28: 10.568 | DO28: 0.000612 | DP28: 1774.505992 | DQ28: 14588.61719 | DR28: 3996.36909 | DS28: 1279.412371 | DT28: 20.262658 | DU28: 17.378805 | DV28: 17.364817 | DW28: 17.392793 | DX28: 312.280565 | DY28: 0.999712 | DZ28: 10160343.24 | EA28: 2962.580604 | EB28: 989.369916 | EC28: 2963.080604 | ED28: 3107.130084 | EE28: 6.504504 | EF28: 29.562529 | EG28: 2675121.56 | EH28: 1846.334712 | EI28: 10.984 | EJ28: 0.000749 | EK28: 1448.882232 | EL28: 11247.60352 | EM28: 2946.427817 | EN28: 1281.295813 | EO28: 19.234427 | EP28: 16.741352 | EQ28: 16.789719 | ER28: 16.692985 | ES28: 34.955016 | ET28: 0.999717 | EU28: 6377770.843 | EV28: 3795.241099 | EW28: 2084.336129 | EX28: 3795.741099 | EY28: 2012.163871 | EZ28: 6.497659 | FA28: 29.679274 | FB28: 1340506.022 | FC28: 1533.543982 | FD28: 11.697 | FE28: 0.001241 | FF28: 874.122971 | FG28: 7476.722168 | FH28: 1476.457852 | FI28: 1294.965987 | FJ28: 17.629329 | FK28: 16.084189 | FL28: 15.780206 | FM28: 16.388173 | FN28: 273.08613 | FO28: 0.998556 | FP28: 1909763.684 | FQ28: 2430.536111 | FR28: 2345.973456 | FS28: 2431.036111 | FT28: 1750.526544 | FU28: 6.508842 | FV28: 29.707558 | FW28: 696525.3577 | FX28: 1343.362641 | FY28: 12.285 | FZ28: 0.002092 | GA28: 518.493917 | GB28: 3961.932373 | GC28: 767.165769 | GD28: 1268.098309 | GE28: 19.838811 | GF28: 17.268826 | GG28: 17.192937 | GH28: 17.344715 | GI28: 299.095639 | GJ28: 0.999722 | GK28: 393525.6874 | GL28: 1204.223182 | GM28: 2258.017507 | GN28: 1204.723182 | GO28: 1838.482493 | GP28: 6.518903 | GQ28: 29.697954 | GR28: 462819.9076 | GS28: 1279.862207 | GT28: 12.782 | GU28: 0.002998 | GV28: 361.616981 | GW28: 3201.621826 | GX28: 509.758312 | GY28: 1277.938059 | GZ28: 19.243376 | HA28: 17.010386 | HB28: 16.877263 | HC28: 17.143509 | HD28: 283.438053 | HE28: 0.999692 | HF28: 188209.6501
A29: 28 | B29: WASP-12b_00067_bdf.fits | C29: 28 | D29: 0 | E29: 56319.55174 | F29: 2456319.552 | G29: 2456319.551 | H29: 2456319.557 | I29: 2456319.557 | J29: 1.186757 | K29: -19.96 | L29: 100 | M29: 6.50911 | N29: 29.672297 | O29: 22.120731 | P29: 17 | Q29: 30 | R29: 45 | S29: 0.048976 | T29: 0.526587 | U29: 0.411141 | V29: 0.175986 | W29: 0.124427 | X29: 0.058909 | Y29: 0.029447 | Z29: 0.019532 | AA29: 6.4e-05 | AB29: 0.000236 | AC29: 0.000192 | AD29: 0.000109 | AE29: 9.2e-05 | AF29: 7e-05 | AG29: 5.9e-05 | AH29: 5.5e-05 | AI29: 769.907942 | AJ29: 2231.718461 | AK29: 2141.614192 | AL29: 1609.038424 | AM29: 1352.462394 | AN29: 843.622983 | AO29: 500.622234 | AP29: 352.265082 | AQ29: 23758933.41 | AR29: 5301.936487 | AS29: 2402.513755 | AT29: 2014.333441 | AU29: 2403.013755 | AV29: 2082.166559 | AW29: 6.509098 | AX29: 29.672293 | AY29: 1163619.168 | AZ29: 907.920277 | BA29: 1488.900655 | BB29: 11.685755 | BC29: 0.001409 | BD29: 781.529086 | BE29: 5313.591797 | BF29: 1281.631436 | BG29: 1288.615644 | BH29: 2952 | BI29: 20.395694 | BJ29: 17.550841 | BK29: 17.603115 | BL29: 17.498567 | BM29: 37.716676 | BN29: 0.999439 | BO29: 945157.0952 | BP29: 1893.831406 | BQ29: 1260.938097 | BR29: 1894.331406 | BS29: 2835.561903 | BT29: 6.513271 | BU29: 29.591812 | BV29: 8195497.491 | BW29: 2806.111734 | BX29: 9.453 | BY29: 0.000372 | BZ29: 2920.58844 | CA29: 28929.17383 | CB29: 9026.670842 | CC29: 1325.752936 | CD29: 20.108149 | CE29: 17.47728 | CF29: 17.628027 | CG29: 17.326534 | CH29: 22.412353 | CI29: 0.999409 | CJ29: 47669595.29 | CK29: 1161.593414 | CL29: 3178.168032 | CM29: 1162.093414 | CN29: 918.331968 | CO29: 6.51931 | CP29: 29.796423 | CQ29: 6922245.998 | CR29: 2618.094762 | CS29: 9.747 | CT29: 0.000411 | CU29: 2644.001317 | CV29: 30525.8457 | CW29: 7624.288359 | CX29: 1323.572235 | CY29: 18.047494 | CZ29: 16.660451 | DA29: 16.702966 | DB29: 16.617936 | DC29: 42.678822 | DD29: 0.996024 | DE29: 43202742.66 | DF29: 2164.524897 | DG29: 1599.554157 | DH29: 2165.024897 | DI29: 2496.945843 | DJ29: 6.51105 | DK29: 29.627983 | DL29: 3555517.939 | DM29: 2034.813584 | DN29: 10.568 | DO29: 0.000621 | DP29: 1747.343328 | DQ29: 13283.02637 | DR29: 3916.112493 | DS29: 1300.574899 | DT29: 20.227282 | DU29: 17.578127 | DV29: 17.686211 | DW29: 17.470044 | DX29: 31.251505 | DY29: 0.999291 | DZ29: 8570369.339 | EA29: 2965.733666 | EB29: 987.608387 | EC29: 2966.233666 | ED29: 3108.891613 | EE29: 6.504505 | EF29: 29.562536 | EG29: 2629123.755 | EH29: 1842.912316 | EI29: 10.984 | EJ29: 0.000761 | EK29: 1426.61359 | EL29: 10854.11914 | EM29: 2895.764994 | EN29: 1300.590336 | EO29: 19.044795 | EP29: 16.980877 | EQ29: 17.128672 | ER29: 16.833082 | ES29: 34.92672 | ET29: 0.997446 | EU29: 5561251.782 | EV29: 3798.364635 | EW29: 2082.621395 | EX29: 3798.864635 | EY29: 2013.878605 | EZ29: 6.497659 | FA29: 29.679267 | FB29: 1321758.114 | FC29: 1537.987641 | FD29: 11.697 | FE29: 0.001263 | FF29: 859.4075 | FG29: 7345.131348 | FH29: 1455.808564 | FI29: 1316.625777 | FJ29: 17.376839 | FK29: 16.347245 | FL29: 16.122034 | FM29: 16.572455 | FN29: 68.141753 | FO29: 0.998547 | FP29: 1697829.296 | FQ29: 2433.563211 | FR29: 2344.340175 | FS29: 2434.063211 | FT29: 1752.159825 | FU29: 6.508844 | FV29: 29.70756 | FW29: 679614.8677 | FX29: 1349.117767 | FY29: 12.285 | FZ29: 0.002153 | GA29: 503.747623 | GB29: 3668.802979 | GC29: 748.540246 | GD29: 1287.295276 | GE29: 20.15338 | GF29: 17.490628 | GG29: 17.540728 | GH29: 17.440529 | GI29: 39.735268 | GJ29: 0.999017 | GK29: 330007.2921 | GL29: 1207.32093 | GM29: 2256.465708 | GN29: 1207.82093 | GO29: 1840.034292 | GP29: 6.518904 | GQ29: 29.697962 | GR29: 455175.2486 | GS29: 1288.227622 | GT29: 12.782 | GU29: 0.003068 | GV29: 353.334489 | GW29: 3037.446533 | GX29: 501.338345 | GY29: 1298.253372 | GZ29: 19.610287 | HA29: 17.290011 | HB29: 17.219063 | HC29: 17.36096 | HD29: 51.845239 | HE29: 0.998798 | HF29: 157264.3633
A30: 29 | B30: WASP-12b_00068_bdf.fits | C30: 29 | D30: 0 | E30: 56319.55311 | F30: 2456319.553 | G30: 2456319.553 | H30: 2456319.558 | I30: 2456319.559 | J30: 1.181661 | K30: -19.94 | L30: 100 | M30: 6.50911 | N30: 29.672297 | O30: 21.468791 | P30: 17 | Q30: 30 | R30: 45 | S30: 0.048952 | T30: 0.527151 | U30: 0.409792 | V30: 0.17659 | W30: 0.124397 | X30: 0.058708 | Y30: 0.029632 | Z30: 0.019561 | AA30: 6.2e-05 | AB30: 0.000232 | AC30: 0.000188 | AD30: 0.000107 | AE30: 9e-05 | AF30: 6.8e-05 | AG30: 5.8e-05 | AH30: 5.4e-05 | AI30: 786.04461 | AJ30: 2275.924955 | AK30: 2182.956773 | AL30: 1645.697423 | AM30: 1379.454838 | AN30: 860.304149 | AO30: 514.763204 | AP30: 361.16907 | AQ30: 24594260.75 | AR30: 5378.685617 | AS30: 2399.189051 | AT30: 2016.401419 | AU30: 2399.689051 | AV30: 2080.098581 | AW30: 6.509097 | AX30: 29.672281 | AY30: 1203947.102 | AZ30: 907.920277 | BA30: 1508.851378 | BB30: 11.686281 | BC30: 0.00138 | BD30: 797.922923 | BE30: 6545.351562 | BF30: 1326.049359 | BG30: 1315.857799 | BH30: 2969 | BI30: 19.46728 | BJ30: 16.871204 | BK30: 16.833816 | BL30: 16.908592 | BM30: 301.267037 | BN30: 0.999908 | BO30: 1404650.035 | BP30: 1890.547913 | BQ30: 1263.18435 | BR30: 1891.047913 | BS30: 2833.31565 | BT30: 6.51327 | BU30: 29.59181 | BV30: 8489591.103 | BW30: 2852.295869 | BX30: 9.453 | BY30: 0.000365 | BZ30: 2976.406197 | CA30: 36253.43359 | CB30: 9350.590926 | CC30: 1343.291645 | CD30: 19.51003 | CE30: 16.812708 | CF30: 16.823128 | CG30: 16.802287 | CH30: 317.144907 | CI30: 0.999725 | CJ30: 68641696.51 | CK30: 1158.31733 | CL30: 3180.118365 | CM30: 1158.81733 | CN30: 916.381635 | CO30: 6.51931 | CP30: 29.7964 | CQ30: 7148945.681 | CR30: 2655.313979 | CS30: 9.747 | CT30: 0.000403 | CU30: 2692.316516 | CV30: 39052.80859 | CW30: 7873.979537 | CX30: 1343.02072 | CY30: 17.471388 | CZ30: 15.781636 | DA30: 15.746287 | DB30: 15.816985 | DC30: 48.582801 | DD30: 0.99871 | DE30: 62903754.12 | DF30: 2161.222913 | DG30: 1601.709371 | DH30: 2161.722913 | DI30: 2494.790629 | DJ30: 6.51105 | DK30: 29.627975 | DL30: 3691262.635 | DM30: 2064.384292 | DN30: 10.568 | DO30: 0.000607 | DP30: 1788.069522 | DQ30: 16177.31836 | DR30: 4065.624184 | DS30: 1323.773771 | DT30: 19.826221 | DU30: 17.000764 | DV30: 16.998512 | DW30: 17.003016 | DX30: 314.122805 | DY30: 0.999925 | DZ30: 12404962.02 | EA30: 2962.279399 | EB30: 990.027031 | EC30: 2962.779399 | ED30: 3106.472969 | EE30: 6.504505 | EF30: 29.562539 | EG30: 2720980.943 | EH30: 1870.081402 | EI30: 10.984 | EJ30: 0.000746 | EK30: 1455.006686 | EL30: 13525.95703 | EM30: 2996.938181 | EN30: 1326.592522 | EO30: 18.380949 | EP30: 16.139953 | EQ30: 16.204303 | ER30: 16.075603 | ES30: 36.725414 | ET30: 0.999216 | EU30: 8127324.704 | EV30: 3795.00556 | EW30: 2084.84673 | EX30: 3795.50556 | EY30: 2011.65327 | EZ30: 6.497659 | FA30: 29.679273 | FB30: 1363813.206 | FC30: 1556.184943 | FD30: 11.697 | FE30: 0.001238 | FF30: 876.382471 | FG30: 8670.120117 | FH30: 1502.128811 | FI30: 1344.248127 | FJ30: 16.860726 | FK30: 15.376901 | FL30: 14.984762 | FM30: 15.769039 | FN30: 273.178361 | FO30: 0.99737 | FP30: 2450686.505 | FQ30: 2430.352979 | FR30: 2346.413605 | FS30: 2430.852979 | FT30: 1750.086395 | FU30: 6.508842 | FV30: 29.707552 | FW30: 707804.5302 | FX30: 1366.341526 | FY30: 12.285 | FZ30: 0.002094 | GA30: 518.028997 | GB30: 4577.188965 | GC30: 779.588856 | GD30: 1314.837817 | GE30: 19.223038 | GF30: 16.736664 | GG30: 16.627739 | GH30: 16.84559 | GI30: 296.210879 | GJ30: 0.999544 | GK30: 500718.2287 | GL30: 1204.058971 | GM30: 2258.426149 | GN30: 1204.558971 | GO30: 1838.073851 | GP30: 6.518904 | GQ30: 29.697942 | GR30: 471862.6471 | GS30: 1302.492692 | GT30: 12.782 | GU30: 0.002993 | GV30: 362.276618 | GW30: 3541.022705 | GX30: 519.71815 | GY30: 1324.982819 | GZ30: 18.889963 | HA30: 16.573496 | HB30: 16.352769 | HC30: 16.794223 | HD30: 89.101334 | HE30: 0.99929 | HF30: 231577.4589
A31: 30 | B31: WASP-12b_00069_bdf.fits | C31: 30 | D31: 0 | E31: 56319.55449 | F31: 2456319.554 | G31: 2456319.554 | H31: 2456319.559 | I31: 2456319.56 | J31: 1.176665 | K31: -19.94 | L31: 100 | M31: 6.50911 | N31: 29.672297 | O31: 21.459307 | P31: 17 | Q31: 30 | R31: 45 | S31: 0.048979 | T31: 0.526898 | U31: 0.410079 | V31: 0.176649 | W31: 0.12446 | X31: 0.058777 | Y31: 0.029589 | Z31: 0.019406 | AA31: 6.3e-05 | AB31: 0.000233 | AC31: 0.000189 | AD31: 0.000108 | AE31: 9.1e-05 | AF31: 6.9e-05 | AG31: 5.8e-05 | AH31: 5.5e-05 | AI31: 780.081117 | AJ31: 2259.155851 | AK31: 2167.209592 | AL31: 1632.001032 | AM31: 1367.113102 | AN31: 851.81622 | AO31: 506.10446 | AP31: 354.020458 | AQ31: 24409872.2 | AR31: 5383.219663 | AS31: 2401.958762 | AT31: 2014.235137 | AU31: 2402.458762 | AV31: 2082.264863 | AW31: 6.509098 | AX31: 29.672294 | AY31: 1195576.805 | AZ31: 907.920277 | BA31: 1509.781186 | BB31: 11.685685 | BC31: 0.001391 | BD31: 791.887471 | BE31: 6357.583008 | BF31: 1316.830162 | BG31: 1336.74498 | BH31: 2975 | BI31: 19.779718 | BJ31: 17.066277 | BK31: 17.049825 | BL31: 17.08273 | BM31: 300.015107 | BN31: 0.999985 | BO31: 1194317.984 | BP31: 1893.26885 | BQ31: 1260.863573 | BR31: 1893.76885 | BS31: 2835.636427 | BT31: 6.513271 | BU31: 29.59181 | BV31: 8423293.492 | BW31: 2847.34922 | BX31: 9.453 | BY31: 0.000367 | BZ31: 2958.29308 | CA31: 33712.89453 | CB31: 9277.569526 | CC31: 1366.965011 | CD31: 19.748476 | CE31: 16.897883 | CF31: 16.959597 | CG31: 16.836168 | CH31: 342.272928 | CI31: 0.99992 | CJ31: 60360633.15 | CK31: 1161.222152 | CL31: 3177.837625 | CM31: 1161.722152 | CN31: 918.662375 | CO31: 6.519309 | CP31: 29.796409 | CQ31: 7098873.823 | CR31: 2653.315152 | CS31: 9.747 | CT31: 0.000406 | CU31: 2675.473291 | CV31: 36480.40234 | CW31: 7818.829476 | CX31: 1367.887503 | CY31: 17.11844 | CZ31: 15.859552 | DA31: 15.795936 | DB31: 15.923168 | DC31: 48.759391 | DD31: 0.996241 | DE31: 58023304.16 | DF31: 2163.907121 | DG31: 1599.502347 | DH31: 2164.407121 | DI31: 2496.997653 | DJ31: 6.511051 | DK31: 29.627986 | DL31: 3664621.652 | DM31: 2066.679825 | DN31: 10.568 | DO31: 0.000612 | DP31: 1773.192735 | DQ31: 16175.17188 | DR31: 4036.281318 | DS31: 1346.677914 | DT31: 19.79343 | DU31: 17.041273 | DV31: 17.097092 | DW31: 16.985454 | DX31: 359.016533 | DY31: 0.999957 | DZ31: 11094123.93 | EA31: 2965.27037 | EB31: 987.570544 | EC31: 2965.77037 | ED31: 3108.929456 | EE31: 6.504504 | EF31: 29.562529 | EG31: 2701793.569 | EH31: 1873.809533 | EI31: 10.984 | EJ31: 0.000753 | EK31: 1441.872038 | EL31: 12647.49219 | EM31: 2975.804856 | EN31: 1350.194785 | EO31: 18.468011 | EP31: 16.286842 | EQ31: 16.344145 | ER31: 16.229539 | ES31: 39.64836 | ET31: 0.998565 | EU31: 7162404.445 | EV31: 3797.758825 | EW31: 2082.491382 | EX31: 3798.258825 | EY31: 2014.008618 | EZ31: 6.49766 | FA31: 29.679266 | FB31: 1355093.507 | FC31: 1561.744595 | FD31: 11.697 | FE31: 0.001251 | FF31: 867.679332 | FG31: 8284.519531 | FH31: 1492.524775 | FI31: 1365.154507 | FJ31: 17.01369 | FK31: 15.619952 | FL31: 15.324791 | FM31: 15.915113 | FN31: 81.087961 | FO31: 0.998425 | FP31: 2163029.429 | FQ31: 2433.090062 | FR31: 2344.192529 | FS31: 2433.590062 | FT31: 1752.307471 | FU31: 6.508843 | FV31: 29.70756 | FW31: 701508.0063 | FX31: 1377.513877 | FY31: 12.285 | FZ31: 0.00213 | GA31: 509.25658 | GB31: 4321.891113 | GC31: 772.65375 | GD31: 1335.11315 | GE31: 19.369589 | GF31: 16.950852 | GG31: 16.971859 | GH31: 16.929845 | GI31: 11.894616 | GJ31: 0.999993 | GK31: 427983.4333 | GL31: 1206.916723 | GM31: 2256.165951 | GN31: 1207.416723 | GO31: 1840.334049 | GP31: 6.518903 | GQ31: 29.697947 | GR31: 464688.1505 | GS31: 1308.685118 | GT31: 12.782 | GU31: 0.003053 | GV31: 355.080182 | GW31: 3480.861328 | GX31: 511.816029 | GY31: 1348.750805 | GZ31: 18.914311 | HA31: 16.648699 | HB31: 16.416414 | HC31: 16.880985 | HD31: 81.279116 | HE31: 0.999145 | HF31: 204993.404
A32: 31 | B32: WASP-12b_00070_bdf.fits | C32: 31 | D32: 0 | E32: 56319.55587 | F32: 2456319.556 | G32: 2456319.555 | H32: 2456319.561 | I32: 2456319.562 | J32: 1.171766 | K32: -19.97 | L32: 100 | M32: 6.50911 | N32: 29.672297 | O32: 22.003186 | P32: 17 | Q32: 30 | R32: 45 | S32: 0.048998 | T32: 0.526144 | U32: 0.411306 | V32: 0.176003 | W32: 0.124629 | X32: 0.058774 | Y32: 0.029549 | Z32: 0.01949 | AA32: 6.4e-05 | AB32: 0.000236 | AC32: 0.000192 | AD32: 0.000109 | AE32: 9.2e-05 | AF32: 7e-05 | AG32: 5.9e-05 | AH32: 5.6e-05 | AI32: 767.172709 | AJ32: 2231.37384 | AK32: 2141.235229 | AL32: 1608.775226 | AM32: 1349.865956 | AN32: 837.553248 | AO32: 497.116223 | AP32: 348.495368 | AQ32: 23999595.93 | AR32: 5362.987292 | AS32: 2400.766334 | AT32: 2015.504781 | AU32: 2401.266334 | AV32: 2080.995219 | AW32: 6.509098 | AX32: 29.672292 | AY32: 1175928.594 | AZ32: 907.920277 | BA32: 1510.115976 | BB32: 11.685272 | BC32: 0.001414 | BD32: 778.70085 | BE32: 5350.15332 | BF32: 1295.189262 | BG32: 1356.937677 | BH32: 2994 | BI32: 20.221215 | BJ32: 17.613817 | BK32: 17.596657 | BL32: 17.630977 | BM32: 47.59058 | BN32: 0.999534 | BO32: 943978.6536 | BP32: 1892.093863 | BQ32: 1262.089755 | BR32: 1892.593863 | BS32: 2834.410245 | BT32: 6.51327 | BU32: 29.591803 | BV32: 8273955.543 | BW32: 2828.900833 | BX32: 9.453 | BY32: 0.000371 | BZ32: 2924.795188 | CA32: 28833.84766 | CB32: 9113.085976 | CC32: 1390.811027 | CD32: 20.21496 | CE32: 17.497825 | CF32: 17.500011 | CG32: 17.495639 | CH32: 44.509976 | CI32: 0.999787 | CJ32: 48154078.94 | CK32: 1159.789917 | CL32: 3179.377763 | CM32: 1160.289917 | CN32: 917.122237 | CO32: 6.51931 | CP32: 29.796421 | CQ32: 6994360.833 | CR32: 2643.155255 | CS32: 9.747 | CT32: 0.00041 | CU32: 2646.216419 | CV32: 30383.32812 | CW32: 7703.716958 | CX32: 1389.768696 | CY32: 17.852818 | CZ32: 16.511864 | DA32: 16.41972 | DB32: 16.604009 | DC32: 49.937194 | DD32: 0.995764 | DE32: 46030022.25 | DF32: 2162.90206 | DG32: 1600.738482 | DH32: 2163.40206 | DI32: 2495.761518 | DJ32: 6.511049 | DK32: 29.627981 | DL32: 3591835.422 | DM32: 2055.394957 | DN32: 10.568 | DO32: 0.000621 | DP32: 1747.515926 | DQ32: 13333.63769 | DR32: 3956.113233 | DS32: 1367.722859 | DT32: 20.490516 | DU32: 17.611857 | DV32: 17.61679 | DW32: 17.606924 | DX32: 43.910899 | DY32: 0.999783 | DZ32: 8733346.335 | EA32: 2963.983609 | EB32: 988.941529 | EC32: 2964.483609 | ED32: 3107.558471 | EE32: 6.504505 | EF32: 29.562532 | EG32: 2659582.171 | EH32: 1867.986307 | EI32: 10.984 | EJ32: 0.000762 | EK32: 1423.769629 | EL32: 10767.31152 | EM32: 2929.312451 | EN32: 1369.106369 | EO32: 19.147445 | EP32: 16.891601 | EQ32: 16.877373 | ER32: 16.905828 | ES32: 45.997458 | ET32: 0.997658 | EU32: 5785192.275 | EV32: 3796.559101 | EW32: 2084.005538 | EX32: 3797.059101 | EY32: 2012.494462 | EZ32: 6.49766 | FA32: 29.679284 | FB32: 1332242.434 | FC32: 1561.792754 | FD32: 11.697 | FE32: 0.001272 | FF32: 853.021267 | FG32: 7308.497559 | FH32: 1467.356185 | FI32: 1387.202929 | FJ32: 17.451046 | FK32: 16.283189 | FL32: 15.932504 | FM32: 16.633873 | FN32: 74.238898 | FO32: 0.997449 | FP32: 1749998.621 | FQ32: 2431.858256 | FR32: 2345.461721 | FS32: 2432.358256 | FT32: 1751.038279 | FU32: 6.508844 | FV32: 29.707556 | FW32: 688817.3536 | FX32: 1377.135749 | FY32: 12.285 | FZ32: 0.002169 | GA32: 500.181158 | GB32: 3799.058594 | GC32: 758.676033 | GD32: 1356.313598 | GE32: 19.821312 | GF32: 17.446963 | GG32: 17.419563 | GH32: 17.474362 | GI32: 48.315827 | GJ32: 0.99926 | GK32: 343422.9893 | GL32: 1205.567089 | GM32: 2257.640649 | GN32: 1206.067089 | GO32: 1838.859351 | GP32: 6.518904 | GQ32: 29.697964 | GR32: 458802.1764 | GS32: 1312.616593 | GT32: 12.782 | GU32: 0.003102 | GV32: 349.532513 | GW32: 3072.762939 | GX32: 505.333109 | GY32: 1366.714207 | GZ32: 19.366871 | HA32: 17.166267 | HB32: 17.026106 | HC32: 17.306429 | HD32: 58.121656 | HE32: 0.998636 | HF32: 165139.9127
A33: 32 | B33: WASP-12b_00071_bdf.fits | C33: 32 | D33: 0 | E33: 56319.55725 | F33: 2456319.557 | G33: 2456319.557 | H33: 2456319.562 | I33: 2456319.563 | J33: 1.166964 | K33: -19.97 | L33: 100 | M33: 6.50911 | N33: 29.672297 | O33: 21.934909 | P33: 17 | Q33: 30 | R33: 45 | S33: 0.048816 | T33: 0.526132 | U33: 0.411742 | V33: 0.175697 | W33: 0.124304 | X33: 0.058954 | Y33: 0.029671 | Z33: 0.019479 | AA33: 6.6e-05 | AB33: 0.00024 | AC33: 0.000196 | AD33: 0.000112 | AE33: 9.4e-05 | AF33: 7.2e-05 | AG33: 6.1e-05 | AH33: 5.8e-05 | AI33: 743.337137 | AJ33: 2190.936753 | AK33: 2104.197848 | AL33: 1574.523486 | AM33: 1320.706537 | AN33: 818.021322 | AO33: 484.489517 | AP33: 337.368925 | AQ33: 23496733.5 | AR33: 5356.260254 | AS33: 2399.011924 | AT33: 2015.644231 | AU33: 2399.511924 | AV33: 2080.855769 | AW33: 6.509098 | AX33: 29.67229 | AY33: 1147025.342 | AZ33: 907.920277 | BA33: 1520.76094 | BB33: 11.689301 | BC33: 0.00146 | BD33: 754.244347 | BE33: 5496.447754 | BF33: 1263.354692 | BG33: 1409.695066 | BH33: 3034 | BI33: 19.910032 | BJ33: 17.908533 | BK33: 17.86973 | BL33: 17.947337 | BM33: 47.379918 | BN33: 0.997273 | BO33: 833638.4577 | BP33: 1890.298374 | BQ33: 1262.333529 | BR33: 1890.798374 | BS33: 2834.166471 | BT33: 6.513271 | BU33: 29.591809 | BV33: 8100463.574 | BW33: 2814.355163 | BX33: 9.453 | BY33: 0.000377 | BZ33: 2878.266282 | CA33: 27848.2793 | CB33: 8921.998748 | CC33: 1446.977507 | CD33: 20.328026 | CE33: 17.811049 | CF33: 17.797045 | CG33: 17.825052 | CH33: 45.931553 | CI33: 0.997661 | CJ33: 42021159.98 | CK33: 1158.029519 | CL33: 3179.467524 | CM33: 1158.529519 | CN33: 917.032476 | CO33: 6.519311 | CP33: 29.796433 | CQ33: 6852948.604 | CR33: 2629.699749 | CS33: 9.747 | CT33: 0.000417 | CU33: 2605.981389 | CV33: 30761.54688 | CW33: 7547.962942 | CX33: 1445.736911 | CY33: 17.430857 | CZ33: 16.95912 | DA33: 16.897921 | DB33: 17.020319 | DC33: 47.179581 | DD33: 0.990984 | DE33: 40077990.85 | DF33: 2161.017013 | DG33: 1600.905173 | DH33: 2161.517013 | DI33: 2495.594827 | DJ33: 6.511051 | DK33: 29.627979 | DL33: 3511374.05 | DM33: 2053.777994 | DN33: 10.568 | DO33: 0.000635 | DP33: 1709.714516 | DQ33: 13218.42481 | DR33: 3867.491606 | DS33: 1421.527979 | DT33: 20.290924 | DU33: 17.924421 | DV33: 17.908185 | DW33: 17.940657 | DX33: 45.984507 | DY33: 0.99722 | DZ33: 7655001.779 | EA33: 2962.196244 | EB33: 989.274487 | EC33: 2962.696244 | ED33: 3107.225513 | EE33: 6.504506 | EF33: 29.562546 | EG33: 2597822.379 | EH33: 1865.350908 | EI33: 10.984 | EJ33: 0.000779 | EK33: 1392.672214 | EL33: 11091.08301 | EM33: 2861.289086 | EN33: 1422.539985 | EO33: 19.297145 | EP33: 17.319083 | EQ33: 17.246142 | ER33: 17.392024 | ES33: 47.950474 | ET33: 0.993288 | EU33: 4986409.05 | EV33: 3794.870611 | EW33: 2084.069638 | EX33: 3795.370611 | EY33: 2012.430362 | EZ33: 6.49766 | FA33: 29.679271 | FB33: 1308105.981 | FC33: 1570.353777 | FD33: 11.697 | FE33: 0.001303 | FF33: 833.000818 | FG33: 7156.539062 | FH33: 1440.771854 | FI33: 1439.548234 | FJ33: 17.102 | FK33: 16.686341 | FL33: 16.255515 | FM33: 17.117167 | FN33: 65.979372 | FO33: 0.994043 | FP33: 1545263.371 | FQ33: 2430.119051 | FR33: 2345.674425 | FS33: 2430.619051 | FT33: 1750.825575 | FU33: 6.508844 | FV33: 29.707565 | FW33: 677072.6405 | FX33: 1389.042752 | FY33: 12.285 | FZ33: 0.002225 | GA33: 487.438302 | GB33: 3923.090576 | GC33: 745.740191 | GD33: 1405.997711 | GE33: 19.537182 | GF33: 17.741942 | GG33: 17.758795 | GH33: 17.725089 | GI33: 43.910258 | GJ33: 0.997504 | GK33: 308852.4259 | GL33: 1203.789701 | GM33: 2257.762896 | GN33: 1204.289701 | GO33: 1838.737104 | GP33: 6.518905 | GQ33: 29.697965 | GR33: 448946.2672 | GS33: 1326.88332 | GT33: 12.782 | GU33: 0.003204 | GV33: 338.346455 | GW33: 3079.701416 | GX33: 494.477631 | GY33: 1419.381129 | GZ33: 19.579921 | HA33: 17.60657 | HB33: 17.486448 | HC33: 17.726691 | HD33: 50.882948 | HE33: 0.995523 | HF33: 140750.7326
A34: 33 | B34: WASP-12b_00072_bdf.fits | C34: 33 | D34: 0 | E34: 56319.55863 | F34: 2456319.559 | G34: 2456319.558 | H34: 2456319.564 | I34: 2456319.564 | J34: 1.162257 | K34: -19.97 | L34: 100 | M34: 6.50911 | N34: 29.672297 | O34: 21.856474 | P34: 17 | Q34: 30 | R34: 45 | S34: 0.048965 | T34: 0.527849 | U34: 0.410136 | V34: 0.17591 | W34: 0.124379 | X34: 0.058868 | Y34: 0.029623 | Z34: 0.019457 | AA34: 6.5e-05 | AB34: 0.000238 | AC34: 0.000193 | AD34: 0.00011 | AE34: 9.3e-05 | AF34: 7.1e-05 | AG34: 6e-05 | AH34: 5.7e-05 | AI34: 754.855705 | AJ34: 2217.435933 | AK34: 2126.909687 | AL34: 1595.052316 | AM34: 1337.387773 | AN34: 826.76956 | AO34: 490.06662 | AP34: 341.37914 | AQ34: 23983644.57 | AR34: 5402.942317 | AS34: 2401.574395 | AT34: 2016.695798 | AU34: 2402.074395 | AV34: 2079.804202 | AW34: 6.509098 | AX34: 29.672285 | AY34: 1174351.166 | AZ34: 907.920277 | BA34: 1533.070559 | BB34: 11.686008 | BC34: 0.001437 | BD34: 766.012471 | BE34: 6171.746094 | BF34: 1293.451855 | BG34: 1430.546767 | BH34: 3050 | BI34: 19.828436 | BJ34: 17.450849 | BK34: 17.679043 | BL34: 17.222655 | BM34: 29.146268 | BN34: 0.997525 | BO34: 1042792.422 | BP34: 1892.791629 | BQ34: 1263.429371 | BR34: 1893.291629 | BS34: 2833.070629 | BT34: 6.513272 | BU34: 29.59181 | BV34: 8285986.986 | BW34: 2842.775556 | BX34: 9.453 | BY34: 0.000372 | BZ34: 2914.752439 | CA34: 32092.98633 | CB34: 9126.337628 | CC34: 1464.375536 | CD34: 19.985631 | CE34: 17.369432 | CF34: 17.663054 | CG34: 17.07581 | CH34: 22.081283 | CI34: 0.99778 | CJ34: 52068883.04 | CK34: 1160.763638 | CL34: 3180.490684 | CM34: 1161.263638 | CN34: 916.009316 | CO34: 6.51931 | CP34: 29.796425 | CQ34: 6975608.463 | CR34: 2651.076949 | CS34: 9.747 | CT34: 0.000413 | CU34: 2631.235757 | CV34: 32388.61133 | CW34: 7683.062754 | CX34: 1464.998882 | CY34: 17.778928 | CZ34: 16.49065 | DA34: 16.754255 | DB34: 16.227046 | DC34: 34.397401 | DD34: 0.992192 | DE34: 47217837.4 | DF34: 2163.646623 | DG34: 1601.962038 | DH34: 2164.146623 | DI34: 2494.537962 | DJ34: 6.51105 | DK34: 29.627976 | DL34: 3587820.484 | DM34: 2070.977603 | DN34: 10.568 | DO34: 0.000627 | DP34: 1732.428433 | DQ34: 15020.83203 | DR34: 3951.691107 | DS34: 1441.373575 | DT34: 20.298167 | DU34: 17.55562 | DV34: 17.844207 | DW34: 17.267032 | DX34: 25.073512 | DY34: 0.997369 | DZ34: 9333732.904 | EA34: 2964.832705 | EB34: 990.255049 | EC34: 2965.332705 | ED34: 3106.244951 | EE34: 6.504505 | EF34: 29.562536 | EG34: 2653067.261 | EH34: 1881.084391 | EI34: 10.984 | EJ34: 0.00077 | EK34: 1410.39247 | EL34: 12664.34961 | EM34: 2922.136809 | EN34: 1443.305863 | EO34: 18.823459 | EP34: 16.811667 | EQ34: 17.14827 | ER34: 16.475064 | ES34: 30.559379 | ET34: 0.993132 | EU34: 6175304.039 | EV34: 3797.451422 | EW34: 2085.169254 | EX34: 3797.951422 | EY34: 2011.330746 | EZ34: 6.49766 | FA34: 29.679267 | FB34: 1333378.835 | FC34: 1583.829895 | FD34: 11.697 | FE34: 0.001289 | FF34: 841.869975 | FG34: 8097.131836 | FH34: 1468.607838 | FI34: 1461.443623 | FJ34: 16.889659 | FK34: 16.060741 | FL34: 15.916562 | FM34: 16.20492 | FN34: 55.372094 | FO34: 0.997431 | FP34: 1913124.432 | FQ34: 2432.723226 | FR34: 2346.846819 | FS34: 2433.223226 | FT34: 1749.653181 | FU34: 6.508843 | FV34: 29.707572 | FW34: 690037.2555 | FX34: 1399.53578 | FY34: 12.285 | FZ34: 0.0022 | GA34: 493.047241 | GB34: 4251.277344 | GC34: 760.019655 | GD34: 1428.936997 | GE34: 19.857069 | GF34: 17.353355 | GG34: 17.633662 | GH34: 17.073048 | GI34: 25.140897 | GJ34: 0.997445 | GK34: 371112.7054 | GL34: 1206.374043 | GM34: 2258.768355 | GN34: 1206.874043 | GO34: 1837.731645 | GP34: 6.518905 | GQ34: 29.697957 | GR34: 457745.284 | GS34: 1336.996476 | GT34: 12.782 | GU34: 0.003167 | GV34: 342.368355 | GW34: 3383.853027 | GX34: 504.169029 | GY34: 1442.291661 | GZ34: 19.45553 | HA34: 17.208151 | HB34: 17.362837 | HC34: 17.053465 | HD34: 35.147723 | HE34: 0.997157 | HF34: 171090.5824
A35: 34 | B35: WASP-12b_00073_bdf.fits | C35: 34 | D35: 0 | E35: 56319.56001 | F35: 2456319.56 | G35: 2456319.559 | H35: 2456319.565 | I35: 2456319.566 | J35: 1.157644 | K35: -19.97 | L35: 100 | M35: 6.50911 | N35: 29.672297 | O35: 22.178901 | P35: 17 | Q35: 30 | R35: 45 | S35: 0.048938 | T35: 0.526689 | U35: 0.411007 | V35: 0.176368 | W35: 0.124154 | X35: 0.058803 | Y35: 0.029531 | Z35: 0.019511 | AA35: 6.7e-05 | AB35: 0.000243 | AC35: 0.000197 | AD35: 0.000113 | AE35: 9.5e-05 | AF35: 7.3e-05 | AG35: 6.2e-05 | AH35: 5.9e-05 | AI35: 734.035763 | AJ35: 2171.369855 | AK35: 2084.272533 | AL35: 1560.693628 | AM35: 1304.12485 | AN35: 804.904857 | AO35: 473.518992 | AP35: 330.950826 | AQ35: 23318013.82 | AR35: 5372.45369 | AS35: 2401.653706 | AT35: 2016.725289 | AU35: 2402.153706 | AV35: 2079.774711 | AW35: 6.509097 | AX35: 29.672295 | AY35: 1141132.086 | AZ35: 907.920277 | BA35: 1532.206483 | BB35: 11.686604 | BC35: 0.001478 | BD35: 744.763906 | BE35: 5217.106445 | BF35: 1256.863752 | BG35: 1455.462613 | BH35: 2989 | BI35: 20.255592 | BJ35: 17.819974 | BK35: 17.936767 | BL35: 17.70318 | BM35: 34.773982 | BN35: 0.998593 | BO35: 835124.4541 | BP35: 1892.7728 | BQ35: 1263.287651 | BR35: 1893.2728 | BS35: 2833.212349 | BT35: 6.513271 | BU35: 29.591807 | BV35: 8044425.41 | BW35: 2813.177232 | BX35: 9.453 | BY35: 0.00038 | BZ35: 2859.551584 | CA35: 26911.89062 | CB35: 8860.277289 | CC35: 1497.462356 | CD35: 20.424403 | CE35: 17.779832 | CF35: 17.95493 | CG35: 17.604734 | CH35: 26.025068 | CI35: 0.998974 | CJ35: 41215734.68 | CK35: 1160.611392 | CL35: 3180.647617 | CM35: 1161.111392 | CN35: 915.852383 | CO35: 6.51931 | CP35: 29.796434 | CQ35: 6792214.024 | CR35: 2628.973723 | CS35: 9.747 | CT35: 0.00042 | CU35: 2583.599054 | CV35: 27853.24023 | CW35: 7481.068765 | CX35: 1495.154779 | CY35: 17.940116 | CZ35: 16.980379 | DA35: 17.106873 | DB35: 16.853884 | DC35: 38.49215 | DD35: 0.995624 | DE35: 38055422.5 | DF35: 2163.483488 | DG35: 1601.924665 | DH35: 2163.983488 | DI35: 2494.575335 | DJ35: 6.511051 | DK35: 29.627981 | DL35: 3495967.239 | DM35: 2062.060936 | DN35: 10.568 | DO35: 0.00064 | DP35: 1695.37533 | DQ35: 12856.94141 | DR35: 3850.522263 | DS35: 1469.68299 | DT35: 20.528938 | DU35: 17.837307 | DV35: 17.982104 | DW35: 17.692511 | DX35: 31.26863 | DY35: 0.998761 | DZ35: 7664320.565 | EA35: 2964.831374 | EB35: 990.095395 | EC35: 2965.331374 | ED35: 3106.404605 | EE35: 6.504505 | EF35: 29.562539 | EG35: 2575288.824 | EH35: 1873.158361 | EI35: 10.984 | EJ35: 0.000789 | EK35: 1374.837749 | EL35: 10716.14551 | EM35: 2836.470216 | EN35: 1471.534812 | EO35: 19.373938 | EP35: 17.275221 | EQ35: 17.464128 | ER35: 17.086315 | ES35: 32.737975 | ET35: 0.997224 | EU35: 4911702.738 | EV35: 3797.279741 | EW35: 2085.037895 | EX35: 3797.779741 | EY35: 2011.462105 | EZ35: 6.49766 | FA35: 29.679275 | FB35: 1295023.68 | FC35: 1580.329032 | FD35: 11.697 | FE35: 0.001324 | FF35: 819.464589 | FG35: 7030.558105 | FH35: 1426.362768 | FI35: 1487.572612 | FJ35: 17.415491 | FK35: 16.72635 | FL35: 16.531506 | FM35: 16.921193 | FN35: 61.676339 | FO35: 0.998205 | FP35: 1488610.186 | FQ35: 2432.691428 | FR35: 2346.783892 | FS35: 2433.191428 | FT35: 1749.716108 | FU35: 6.508843 | FV35: 29.70757 | FW35: 668852.4227 | FX35: 1404.188571 | FY35: 12.285 | FZ35: 0.002277 | GA35: 476.326639 | GB35: 3757.296875 | GC35: 736.686292 | GD35: 1454.709592 | GE35: 20.092976 | GF35: 17.737467 | GG35: 17.930473 | GH35: 17.54446 | GI35: 29.899799 | GJ35: 0.998129 | GK35: 296826.8441 | GL35: 1206.351334 | GM35: 2258.737868 | GN35: 1206.851334 | GO35: 1837.762132 | GP35: 6.518904 | GQ35: 29.697954 | GR35: 446242.2168 | GS35: 1344.5396 | GT35: 12.782 | GU35: 0.003266 | GV35: 331.892208 | GW35: 3090.580078 | GX35: 491.49934 | GY35: 1466.34275 | GZ35: 19.54328 | HA35: 17.48898 | HB35: 17.491713 | HC35: 17.486247 | HD35: 44.811999 | HE35: 0.997732 | HF35: 142455.9445
A36: 35 | B36: WASP-12b_00074_bdf.fits | C36: 35 | D36: 0 | E36: 56319.56139 | F36: 2456319.561 | G36: 2456319.561 | H36: 2456319.566 | I36: 2456319.567 | J36: 1.153122 | K36: -19.99 | L36: 100 | M36: 6.50911 | N36: 29.672297 | O36: 24.556599 | P36: 17 | Q36: 30 | R36: 45 | S36: 0.048661 | T36: 0.524298 | U36: 0.415299 | V36: 0.174849 | W36: 0.123795 | X36: 0.059124 | Y36: 0.029522 | Z36: 0.019494 | AA36: 7.1e-05 | AB36: 0.000255 | AC36: 0.00021 | AD36: 0.000119 | AE36: 0.000101 | AF36: 7.8e-05 | AG36: 6.7e-05 | AH36: 6.4e-05 | AI36: 682.209972 | AJ36: 2056.384429 | AK36: 1980.874867 | AL36: 1468.443421 | AM36: 1227.833566 | AN36: 754.279807 | AO36: 438.765541 | AP36: 306.799365 | AQ36: 21661983.68 | AR36: 5283.528127 | AS36: 2398.328267 | AT36: 2014.296576 | AU36: 2398.828267 | AV36: 2082.203424 | AW36: 6.5091 | AX36: 29.672298 | AY36: 1054092.522 | AZ36: 907.920277 | BA36: 1523.573979 | BB36: 11.692764 | BC36: 0.00159 | BD36: 691.855162 | BE36: 4307.128906 | BF36: 1160.996785 | BG36: 1499.894319 | BH36: 3071 | BI36: 22.659821 | BJ36: 19.322634 | BK36: 19.22466 | BL36: 19.420607 | BM36: 290.401848 | BN36: 0.999821 | BO36: 415364.714 | BP36: 1889.665385 | BQ36: 1260.942482 | BR36: 1890.165385 | BS36: 2835.557518 | BT36: 6.513272 | BU36: 29.591805 | BV36: 7450863.891 | BW36: 2742.676108 | BX36: 9.453 | BY36: 0.0004 | BZ36: 2716.640098 | CA36: 20551.73047 | CB36: 8206.517776 | CC36: 1551.336422 | CD36: 22.78112 | CE36: 19.2942 | CF36: 19.225061 | CG36: 19.363339 | CH36: 291.007911 | CI36: 0.999907 | CJ36: 20689240.85 | CK36: 1157.484769 | CL36: 3178.060301 | CM36: 1157.984769 | CN36: 918.439699 | CO36: 6.519311 | CP36: 29.796449 | CQ36: 6356391.769 | CR36: 2573.872868 | CS36: 9.747 | CT36: 0.00044 | CU36: 2469.582646 | CV36: 20587.27539 | CW36: 7001.046161 | CX36: 1547.363683 | CY36: 20.493178 | CZ36: 18.629178 | DA36: 18.571774 | DB36: 18.686581 | DC36: 53.569714 | DD36: 0.999563 | DE36: 19388902.39 | DF36: 2160.347473 | DG36: 1599.500385 | DH36: 2160.847473 | DI36: 2496.999615 | DJ36: 6.511052 | DK36: 29.627977 | DL36: 3223879.347 | DM36: 2022.771688 | DN36: 10.568 | DO36: 0.000681 | DP36: 1593.792995 | DQ36: 9647.295898 | DR36: 3550.839681 | DS36: 1516.622863 | DT36: 23.063235 | DU36: 19.343973 | DV36: 19.384045 | DW36: 19.303902 | DX36: 358.055882 | DY36: 0.999983 | DZ36: 3722450.241 | EA36: 2961.675554 | EB36: 987.816377 | EC36: 2962.175554 | ED36: 3108.683623 | EE36: 6.504506 | EF36: 29.562548 | EG36: 2386246.817 | EH36: 1844.275501 | EI36: 10.984 | EJ36: 0.000839 | EK36: 1293.866787 | EL36: 8056.385254 | EM36: 2628.255892 | EN36: 1519.743716 | EO36: 21.367111 | EP36: 18.866167 | EQ36: 18.755895 | ER36: 18.976439 | ES36: 71.690798 | ET36: 0.999788 | EU36: 2493436.114 | EV36: 3794.480583 | EW36: 2082.533624 | EX36: 3794.980583 | EY36: 2013.966376 | EZ36: 6.49766 | FA36: 29.679272 | FB36: 1209242.041 | FC36: 1575.201299 | FD36: 11.697 | FE36: 0.001413 | FF36: 767.674609 | FG36: 5546.377441 | FH36: 1331.881303 | FI36: 1532.323924 | FJ36: 19.531032 | FK36: 18.283082 | FL36: 17.920395 | FM36: 18.645769 | FN36: 279.941893 | FO36: 0.998221 | FP36: 787287.6031 | FQ36: 2429.316239 | FR36: 2344.357287 | FS36: 2429.816239 | FT36: 1752.142713 | FU36: 6.508846 | FV36: 29.707578 | FW36: 621162.2305 | FX36: 1407.69884 | FY36: 12.285 | FZ36: 0.002458 | GA36: 441.260739 | GB36: 3233.756348 | GC36: 684.159442 | GD36: 1497.319963 | GE36: 22.232956 | GF36: 19.217173 | GG36: 19.092615 | GH36: 19.341731 | GI36: 283.243254 | GJ36: 0.99979 | GK36: 151824.0449 | GL36: 1203.266204 | GM36: 2256.36263 | GN36: 1203.766204 | GO36: 1840.13737 | GP36: 6.518905 | GQ36: 29.697968 | GR36: 414197.5864 | GS36: 1346.381488 | GT36: 12.782 | GU36: 0.003524 | GV36: 307.637612 | GW36: 2697.979736 | GX36: 456.204798 | GY36: 1508.440951 | GZ36: 22.145436 | HA36: 19.1157 | HB36: 18.992252 | HC36: 19.239148 | HD36: 79.552284 | HE36: 0.999809 | HF36: 69296.71746
A37: 36 | B37: WASP-12b_00075_bdf.fits | C37: 36 | D37: 0 | E37: 56319.56277 | F37: 2456319.563 | G37: 2456319.562 | H37: 2456319.568 | I37: 2456319.568 | J37: 1.148691 | K37: -20.03 | L37: 100 | M37: 6.50911 | N37: 29.672297 | O37: 22.949718 | P37: 17 | Q37: 30 | R37: 45 | S37: 0.049037 | T37: 0.526382 | U37: 0.411218 | V37: 0.176081 | W37: 0.124386 | X37: 0.058755 | Y37: 0.029604 | Z37: 0.019534 | AA37: 6.5e-05 | AB37: 0.000238 | AC37: 0.000194 | AD37: 0.000111 | AE37: 9.3e-05 | AF37: 7.2e-05 | AG37: 6.1e-05 | AH37: 5.8e-05 | AI37: 750.030995 | AJ37: 2213.234729 | AK37: 2124.915924 | AL37: 1591.428131 | AM37: 1330.753498 | AN37: 818.42126 | AO37: 484.30954 | AP37: 338.205494 | AQ37: 24182425.96 | AR37: 5465.098456 | AS37: 2398.092236 | AT37: 2015.857071 | AU37: 2398.592236 | AV37: 2080.642929 | AW37: 6.509098 | AX37: 29.672294 | AY37: 1185841.668 | AZ37: 907.920277 | BA37: 1558.178476 | BB37: 11.684398 | BC37: 0.001447 | BD37: 761.043543 | BE37: 5770.456543 | BF37: 1306.107704 | BG37: 1505.701204 | BH37: 3021 | BI37: 20.718466 | BJ37: 17.741234 | BK37: 17.665477 | BL37: 17.816991 | BM37: 53.775036 | BN37: 0.999198 | BO37: 973453.6345 | BP37: 1889.415409 | BQ37: 1262.464903 | BR37: 1889.915409 | BS37: 2834.035097 | BT37: 6.513271 | BU37: 29.591806 | BV37: 8339454.896 | BW37: 2862.173866 | BX37: 9.453 | BY37: 0.000373 | BZ37: 2913.678654 | CA37: 30298.45898 | CB37: 9185.228161 | CC37: 1539.426659 | CD37: 20.670199 | CE37: 17.618156 | CF37: 17.63125 | CG37: 17.605061 | CH37: 43.21398 | CI37: 0.999431 | CJ37: 48322062.09 | CK37: 1157.153365 | CL37: 3179.674197 | CM37: 1157.653365 | CN37: 916.825803 | CO37: 6.519311 | CP37: 29.796423 | CQ37: 7046572.33 | CR37: 2675.174561 | CS37: 9.747 | CT37: 0.000412 | CU37: 2634.060758 | CV37: 31805.9043 | CW37: 7761.223656 | CX37: 1540.680513 | CY37: 18.450854 | CZ37: 16.686369 | DA37: 16.666529 | DB37: 16.706209 | DC37: 45.937263 | DD37: 0.994715 | DE37: 45352360.82 | DF37: 2160.167408 | DG37: 1601.111518 | DH37: 2160.667408 | DI37: 2495.388482 | DJ37: 6.51105 | DK37: 29.627984 | DL37: 3620546.515 | DM37: 2094.211308 | DN37: 10.568 | DO37: 0.000628 | DP37: 1728.835338 | DQ37: 13679.50977 | DR37: 3987.736157 | DS37: 1516.951855 | DT37: 20.831252 | DU37: 17.801582 | DV37: 17.826694 | DW37: 17.776471 | DX37: 42.249824 | DY37: 0.999134 | DZ37: 8798796.561 | EA37: 2961.515065 | EB37: 989.258176 | EC37: 2962.015065 | ED37: 3107.241824 | EE37: 6.504504 | EF37: 29.562533 | EG37: 2675204.378 | EH37: 1906.677514 | EI37: 10.984 | EJ37: 0.000774 | EK37: 1403.071237 | EL37: 11427.03223 | EM37: 2946.519035 | EN37: 1519.851043 | EO37: 19.806465 | EP37: 17.05398 | EQ37: 17.030293 | ER37: 17.077666 | ES37: 46.55283 | ET37: 0.997371 | EU37: 5691470.51 | EV37: 3794.004848 | EW37: 2084.20157 | EX37: 3794.504848 | EY37: 2012.29843 | EZ37: 6.49766 | FA37: 29.679271 | FB37: 1341994.427 | FC37: 1610.77076 | FD37: 11.697 | FE37: 0.001302 | FF37: 833.138061 | FG37: 7219.708984 | FH37: 1478.097209 | FI37: 1539.338645 | FJ37: 18.309673 | FK37: 16.467987 | FL37: 16.161705 | FM37: 16.774269 | FN37: 74.383862 | FO37: 0.998109 | FP37: 1694458.297 | FQ37: 2429.158402 | FR37: 2345.933161 | FS37: 2429.658402 | FT37: 1750.566839 | FU37: 6.508844 | FV37: 29.707572 | FW37: 695317.0255 | FX37: 1427.167462 | FY37: 12.285 | FZ37: 0.002226 | GA37: 487.200727 | GB37: 4075.122314 | GC37: 765.83489 | GD37: 1505.325473 | GE37: 20.495756 | GF37: 17.610711 | GG37: 17.604615 | GH37: 17.616807 | GI37: 45.782908 | GJ37: 0.999358 | GK37: 347615.4359 | GL37: 1203.010321 | GM37: 2257.908829 | GN37: 1203.510321 | GO37: 1838.591171 | GP37: 6.518904 | GQ37: 29.697956 | GR37: 463336.3873 | GS37: 1366.07958 | GT37: 12.782 | GU37: 0.003196 | GV37: 339.172325 | GW37: 3315.568115 | GX37: 510.327172 | GY37: 1517.465318 | GZ37: 19.758478 | HA37: 17.3246 | HB37: 17.059611 | HC37: 17.589588 | HD37: 66.05447 | HE37: 0.99792 | HF37: 168400.4219
A38: 37 | B38: WASP-12b_00076_bdf.fits | C38: 37 | D38: 0 | E38: 56319.56415 | F38: 2456319.564 | G38: 2456319.564 | H38: 2456319.569 | I38: 2456319.57 | J38: 1.14435 | K38: -20.06 | L38: 100 | M38: 6.50911 | N38: 29.672297 | O38: 22.279691 | P38: 17 | Q38: 30 | R38: 45 | S38: 0.048965 | T38: 0.527232 | U38: 0.409645 | V38: 0.176489 | W38: 0.124506 | X38: 0.058857 | Y38: 0.029544 | Z38: 0.019538 | AA38: 6.5e-05 | AB38: 0.000237 | AC38: 0.000192 | AD38: 0.000111 | AE38: 9.3e-05 | AF38: 7.2e-05 | AG38: 6.1e-05 | AH38: 5.8e-05 | AI38: 750.313541 | AJ38: 2220.129172 | AK38: 2129.756663 | AL38: 1596.635542 | AM38: 1333.400003 | AN38: 821.558424 | AO38: 483.742792 | AP38: 339.481205 | AQ38: 24344080.51 | AR38: 5486.99588 | AS38: 2401.376834 | AT38: 2014.644968 | AU38: 2401.876834 | AV38: 2081.855032 | AW38: 6.509098 | AX38: 29.672288 | AY38: 1192012.787 | AZ38: 907.920277 | BA38: 1565.803103 | BB38: 11.685996 | BC38: 0.001446 | BD38: 761.278851 | BE38: 5947.878418 | BF38: 1312.904687 | BG38: 1519.027761 | BH38: 3052 | BI38: 20.207294 | BJ38: 17.537118 | BK38: 17.629916 | BL38: 17.444321 | BM38: 348.905564 | BN38: 0.999869 | BO38: 1059529.744 | BP38: 1892.665387 | BQ38: 1261.345588 | BR38: 1893.165387 | BS38: 2835.154412 | BT38: 6.513271 | BU38: 29.591808 | BV38: 8404076.365 | BW38: 2873.13799 | BX38: 9.453 | BY38: 0.000371 | BZ38: 2925.051423 | CA38: 31253.45117 | CB38: 9256.40343 | CC38: 1552.369317 | CD38: 20.351187 | CE38: 17.432422 | CF38: 17.560665 | CG38: 17.304178 | CH38: 346.052992 | CI38: 0.999723 | CJ38: 53132335.25 | CK38: 1160.560385 | CL38: 3178.372602 | CM38: 1161.060385 | CN38: 918.127398 | CO38: 6.51931 | CP38: 29.796412 | CQ38: 7074429.872 | CR38: 2680.978332 | CS38: 9.747 | CT38: 0.000411 | CU38: 2638.749366 | CV38: 32919.24609 | CW38: 7791.906461 | CX38: 1551.972718 | CY38: 18.047648 | CZ38: 16.438948 | DA38: 16.499496 | DB38: 16.378399 | DC38: 39.800257 | DD38: 0.998335 | DE38: 49373246.84 | DF38: 2163.466619 | DG38: 1599.914275 | DH38: 2163.966619 | DI38: 2496.585725 | DJ38: 6.51105 | DK38: 29.627979 | DL38: 3651928.515 | DM38: 2105.19397 | DN38: 10.568 | DO38: 0.000626 | DP38: 1734.723055 | DQ38: 15269.875 | DR38: 4022.300865 | DS38: 1530.544994 | DT38: 20.318154 | DU38: 17.49967 | DV38: 17.550101 | DW38: 17.449238 | DX38: 331.67171 | DY38: 0.99989 | DZ38: 9979979.37 | EA38: 2964.550563 | EB38: 988.1088 | EC38: 2965.050563 | ED38: 3108.3912 | EE38: 6.504505 | EF38: 29.562529 | EG38: 2695382.539 | EH38: 1917.416211 | EI38: 10.984 | EJ38: 0.000772 | EK38: 1405.736806 | EL38: 11894.27051 | EM38: 2968.743631 | EN38: 1535.068076 | EO38: 19.167573 | EP38: 16.816398 | EQ38: 16.978856 | ER38: 16.653941 | ES38: 26.500485 | ET38: 0.998969 | EU38: 6304634.673 | EV38: 3797.264207 | EW38: 2083.034635 | EX38: 3797.764207 | EY38: 2013.465365 | EZ38: 6.497659 | FA38: 29.67927 | FB38: 1353180.61 | FC38: 1617.923683 | FD38: 11.697 | FE38: 0.001297 | FF38: 836.368628 | FG38: 7853.437012 | FH38: 1490.417876 | FI38: 1552.610205 | FJ38: 17.748353 | FK38: 16.160705 | FL38: 15.913398 | FM38: 16.408012 | FN38: 272.724139 | FO38: 0.999055 | FP38: 1901179.109 | FQ38: 2432.542621 | FR38: 2344.648484 | FS38: 2433.042621 | FT38: 1751.851516 | FU38: 6.508843 | FV38: 29.707558 | FW38: 698572.0235 | FX38: 1435.597398 | FY38: 12.285 | FZ38: 0.002229 | GA38: 486.607195 | GB38: 4282.442383 | GC38: 769.420004 | GD38: 1518.518202 | GE38: 19.922209 | GF38: 17.435951 | GG38: 17.464969 | GH38: 17.406933 | GI38: 326.819432 | GJ38: 0.999931 | GK38: 378916.4845 | GL38: 1206.312674 | GM38: 2256.667304 | GN38: 1206.812674 | GO38: 1839.832696 | GP38: 6.518904 | GQ38: 29.697951 | GR38: 466510.5801 | GS38: 1370.260397 | GT38: 12.782 | GU38: 0.003184 | GV38: 340.453961 | GW38: 3413.557861 | GX38: 513.823286 | GY38: 1530.6348 | GZ38: 19.525393 | HA38: 17.165813 | HB38: 17.132959 | HC38: 17.198667 | HD38: 52.584862 | HE38: 0.999786 | HF38: 181676.962
A39: 38 | B39: WASP-12b_00077_bdf.fits | C39: 38 | D39: 0 | E39: 56319.56553 | F39: 2456319.566 | G39: 2456319.565 | H39: 2456319.57 | I39: 2456319.571 | J39: 1.140096 | K39: -20.01 | L39: 100 | M39: 6.50911 | N39: 29.672297 | O39: 22.133241 | P39: 17 | Q39: 30 | R39: 45 | S39: 0.049021 | T39: 0.527484 | U39: 0.410621 | V39: 0.175991 | W39: 0.124373 | X39: 0.058609 | Y39: 0.029592 | Z39: 0.01958 | AA39: 6.6e-05 | AB39: 0.00024 | AC39: 0.000195 | AD39: 0.000111 | AE39: 9.4e-05 | AF39: 7.2e-05 | AG39: 6.2e-05 | AH39: 5.9e-05 | AI39: 742.751673 | AJ39: 2197.270193 | AK39: 2108.664587 | AL39: 1578.800882 | AM39: 1319.388045 | AN39: 809.972724 | AO39: 478.484384 | AP39: 333.690459 | AQ39: 24014912.91 | AR39: 5471.497134 | AS39: 2401.048585 | AT39: 2015.475718 | AU39: 2401.548585 | AV39: 2081.024282 | AW39: 6.509098 | AX39: 29.672298 | AY39: 1177235.875 | AZ39: 907.920277 | BA39: 1562.105924 | BB39: 11.684759 | BC39: 0.001461 | BD39: 753.62103 | BE39: 5684.070801 | BF39: 1296.629126 | BG39: 1535.215419 | BH39: 2955 | BI39: 20.183572 | BJ39: 17.593192 | BK39: 17.579343 | BL39: 17.60704 | BM39: 47.297666 | BN39: 0.999614 | BO39: 973932.1191 | BP39: 1892.303832 | BQ39: 1262.011829 | BR39: 1892.803832 | BS39: 2834.488171 | BT39: 6.513271 | BU39: 29.591809 | BV39: 8293039.451 | BW39: 2862.781662 | BX39: 9.453 | BY39: 0.000375 | BZ39: 2896.846644 | CA39: 29553.91406 | CB39: 9134.105341 | CC39: 1571.648472 | CD39: 20.320691 | CE39: 17.501001 | CF39: 17.477391 | CG39: 17.52461 | CH39: 50.205678 | CI39: 0.999777 | CJ39: 49052183.02 | CK39: 1160.063264 | CL39: 3179.303355 | CM39: 1160.563264 | CN39: 917.196645 | CO39: 6.519309 | CP39: 29.796428 | CQ39: 6990563.675 | CR39: 2673.528265 | CS39: 9.747 | CT39: 0.000415 | CU39: 2614.733409 | CV39: 31711.71289 | CW39: 7699.534698 | CX39: 1571.269997 | CY39: 17.705539 | CZ39: 16.493221 | DA39: 16.398759 | DB39: 16.587682 | DC39: 50.073074 | DD39: 0.995772 | DE39: 46958203.84 | DF39: 2163.26479 | DG39: 1600.628508 | DH39: 2163.76479 | DI39: 2495.871492 | DJ39: 6.511048 | DK39: 29.62798 | DL39: 3593906.37 | DM39: 2095.358118 | DN39: 10.568 | DO39: 0.000633 | DP39: 1715.175243 | DQ39: 13728.0332 | DR39: 3958.394213 | DS39: 1547.204208 | DT39: 20.37718 | DU39: 17.608294 | DV39: 17.605441 | DW39: 17.611148 | DX39: 45.533742 | DY39: 0.999697 | DZ39: 8903521.325 | EA39: 2964.197135 | EB39: 988.845811 | EC39: 2964.697135 | ED39: 3107.654189 | EE39: 6.504505 | EF39: 29.562539 | EG39: 2656419.455 | EH39: 1909.710299 | EI39: 10.984 | EJ39: 0.00078 | EK39: 1391.006508 | EL39: 11345.88086 | EM39: 2925.828977 | EN39: 1551.207633 | EO39: 19.291531 | EP39: 16.966332 | EQ39: 16.976371 | ER39: 16.956292 | ES39: 44.250509 | ET39: 0.997953 | EU39: 5708202.134 | EV39: 3796.819724 | EW39: 2083.817438 | EX39: 3797.319724 | EY39: 2012.682562 | EZ39: 6.497659 | FA39: 29.679273 | FB39: 1329573.701 | FC39: 1612.647922 | FD39: 11.697 | FE39: 0.001316 | FF39: 824.466198 | FG39: 7377.085449 | FH39: 1464.416794 | FI39: 1570.046129 | FJ39: 17.393484 | FK39: 16.287816 | FL39: 15.923517 | FM39: 16.652115 | FN39: 79.660585 | FO39: 0.997716 | FP39: 1752983.274 | FQ39: 2432.073491 | FR39: 2345.556789 | FS39: 2432.573491 | FT39: 1750.943211 | FU39: 6.508843 | FV39: 29.707574 | FW39: 690218.5361 | FX39: 1434.02259 | FY39: 12.285 | FZ39: 0.002253 | GA39: 481.316362 | GB39: 4044.868164 | GC39: 760.219321 | GD39: 1531.662025 | GE39: 19.95786 | GF39: 17.511347 | GG39: 17.480787 | GH39: 17.541906 | GI39: 49.213862 | GJ39: 0.999433 | GK39: 345377.3741 | GL39: 1205.693106 | GM39: 2257.463633 | GN39: 1206.193106 | GO39: 1839.036367 | GP39: 6.518905 | GQ39: 29.697956 | GR39: 461191.7215 | GS39: 1378.200086 | GT39: 12.782 | GU39: 0.00324 | GV39: 334.633357 | GW39: 3418.810791 | GX39: 507.964998 | GY39: 1546.174061 | GZ39: 19.55638 | HA39: 17.221359 | HB39: 17.036382 | HC39: 17.406337 | HD39: 59.423427 | HE39: 0.998018 | HF39: 166967.0288
A40: 39 | B40: WASP-12b_00078_bdf.fits | C40: 39 | D40: 0 | E40: 56319.5669 | F40: 2456319.567 | G40: 2456319.566 | H40: 2456319.572 | I40: 2456319.573 | J40: 1.13593 | K40: -19.97 | L40: 100 | M40: 6.50911 | N40: 29.672297 | O40: 21.614614 | P40: 17 | Q40: 30 | R40: 45 | S40: 0.048955 | T40: 0.527535 | U40: 0.409713 | V40: 0.176483 | W40: 0.124438 | X40: 0.058604 | Y40: 0.029588 | Z40: 0.019618 | AA40: 6.5e-05 | AB40: 0.000236 | AC40: 0.000191 | AD40: 0.00011 | AE40: 9.3e-05 | AF40: 7.1e-05 | AG40: 6.1e-05 | AH40: 5.7e-05 | AI40: 755.462459 | AJ40: 2236.808144 | AK40: 2144.4775 | AL40: 1609.081311 | AM40: 1343.912646 | AN40: 826.32407 | AO40: 487.601707 | AP40: 343.005553 | AQ40: 24688123.15 | AR40: 5523.568544 | AS40: 2398.074161 | AT40: 2016.626566 | AU40: 2398.574161 | AV40: 2079.873434 | AW40: 6.509097 | AX40: 29.672285 | AY40: 1208602.783 | AZ40: 907.920277 | BA40: 1576.800568 | BB40: 11.686226 | BC40: 0.001436 | BD40: 766.49058 | BE40: 6557.92041 | BF40: 1331.177212 | BG40: 1541.299625 | BH40: 3035 | BI40: 19.78172 | BJ40: 16.94974 | BK40: 17.148083 | BL40: 16.751396 | BM40: 11.135016 | BN40: 0.999361 | BO40: 1343126.138 | BP40: 1889.302615 | BQ40: 1263.244811 | BR40: 1889.802615 | BS40: 2833.255189 | BT40: 6.513271 | BU40: 29.591803 | BV40: 8526052.681 | BW40: 2892.55499 | BX40: 9.453 | BY40: 0.000368 | BZ40: 2947.585339 | CA40: 36370.98438 | CB40: 9390.750375 | CC40: 1570.955145 | CD40: 19.480162 | CE40: 16.73527 | CF40: 16.9086 | CG40: 16.56194 | CH40: 6.339757 | CI40: 0.999549 | CJ40: 69126689.31 | CK40: 1157.007136 | CL40: 3180.439479 | CM40: 1157.507136 | CN40: 916.060521 | CO40: 6.51931 | CP40: 29.796399 | CQ40: 7175247.616 | CR40: 2701.644306 | CS40: 9.747 | CT40: 0.000409 | CU40: 2655.88168 | CV40: 37501.35938 | CW40: 7902.948969 | CX40: 1573.514463 | CY40: 17.575266 | CZ40: 15.753659 | DA40: 15.930785 | DB40: 15.576533 | DC40: 35.354674 | DD40: 0.995368 | DE40: 62692368.24 | DF40: 2160.154112 | DG40: 1601.859061 | DH40: 2160.654112 | DI40: 2494.640939 | DJ40: 6.511049 | DK40: 29.627975 | DL40: 3703439.794 | DM40: 2118.202215 | DN40: 10.568 | DO40: 0.000621 | DP40: 1748.388217 | DQ40: 16621.44141 | DR40: 4079.03633 | DS40: 1549.873166 | DT40: 19.95336 | DU40: 17.007472 | DV40: 17.211354 | DW40: 16.803589 | DX40: 9.756154 | DY40: 0.999353 | DZ40: 12189538.85 | EA40: 2961.236222 | EB40: 990.07673 | EC40: 2961.736222 | ED40: 3106.42327 | EE40: 6.504505 | EF40: 29.562534 | EG40: 2732147.681 | EH40: 1928.24978 | EI40: 10.984 | EJ40: 0.000766 | EK40: 1416.90548 | EL40: 13439.5625 | EM40: 3009.237431 | EN40: 1555.185739 | EO40: 18.5445 | EP40: 16.148015 | EQ40: 16.348407 | ER40: 15.947623 | ES40: 29.264701 | ET40: 0.997741 | EU40: 7979938.032 | EV40: 3793.88364 | EW40: 2084.999698 | EX40: 3794.38364 | EY40: 2011.500302 | EZ40: 6.49766 | FA40: 29.679277 | FB40: 1366726.769 | FC40: 1624.791055 | FD40: 11.697 | FE40: 0.00129 | FF40: 841.170786 | FG40: 9068.698242 | FH40: 1505.337863 | FI40: 1574.876995 | FJ40: 17.023599 | FK40: 15.436347 | FL40: 15.20992 | FM40: 15.662773 | FN40: 74.543114 | FO40: 0.998831 | FP40: 2406984.453 | FQ40: 2429.136525 | FR40: 2346.677359 | FS40: 2429.636525 | FT40: 1749.822641 | FU40: 6.508843 | FV40: 29.707556 | FW40: 709491.6261 | FX40: 1446.489529 | FY40: 12.285 | FZ40: 0.002211 | GA40: 490.492058 | GB40: 4666.109863 | GC40: 781.447054 | GD40: 1540.635529 | GE40: 19.445076 | GF40: 16.802618 | GG40: 16.967088 | GH40: 16.638147 | GI40: 16.021511 | GJ40: 0.999467 | GK40: 482633.8256 | GL40: 1202.777185 | GM40: 2258.67155 | GN40: 1203.277185 | GO40: 1837.82845 | GP40: 6.518904 | GQ40: 29.697947 | GR40: 475016.9804 | GS40: 1380.886444 | GT40: 12.782 | GU40: 0.003152 | GV40: 343.994238 | GW40: 3760.665283 | GX40: 523.192391 | GY40: 1552.356108 | GZ40: 18.979985 | HA40: 16.534679 | HB40: 16.657006 | HC40: 16.412353 | HD40: 24.859395 | HE40: 0.999476 | HF40: 231289.6882
A41: 40 | B41: WASP-12b_00079_bdf.fits | C41: 40 | D41: 0 | E41: 56319.56828 | F41: 2456319.568 | G41: 2456319.568 | H41: 2456319.573 | I41: 2456319.574 | J41: 1.131849 | K41: -19.93 | L41: 100 | M41: 6.50911 | N41: 29.672297 | O41: 21.573864 | P41: 17 | Q41: 30 | R41: 45 | S41: 0.049074 | T41: 0.527614 | U41: 0.408698 | V41: 0.176878 | W41: 0.124454 | X41: 0.058755 | Y41: 0.02976 | Z41: 0.019496 | AA41: 6.4e-05 | AB41: 0.000235 | AC41: 0.00019 | AD41: 0.000109 | AE41: 9.2e-05 | AF41: 7.1e-05 | AG41: 6e-05 | AH41: 5.7e-05 | AI41: 761.018818 | AJ41: 2242.532567 | AK41: 2149.487731 | AL41: 1616.585718 | AM41: 1348.972725 | AN41: 827.367105 | AO41: 492.680378 | AP41: 341.757147 | AQ41: 24802298.87 | AR41: 5533.785037 | AS41: 2399.81942 | AT41: 2014.413961 | AU41: 2400.31942 | AV41: 2082.086039 | AW41: 6.509098 | AX41: 29.672281 | AY41: 1217141.053 | AZ41: 907.920277 | BA41: 1576.133656 | BB41: 11.683592 | BC41: 0.001426 | BD41: 772.232132 | BE41: 6610.260254 | BF41: 1340.581419 | BG41: 1542.20758 | BH41: 2979 | BI41: 19.759375 | BJ41: 17.039546 | BK41: 16.895549 | BL41: 17.183543 | BM41: 79.147209 | BN41: 0.999669 | BO41: 1344900.723 | BP41: 1891.127825 | BQ41: 1261.118645 | BR41: 1891.627825 | BS41: 2835.381355 | BT41: 6.513271 | BU41: 29.591803 | BV41: 8566326.846 | BW41: 2899.613028 | BX41: 9.453 | BY41: 0.000367 | BZ41: 2954.300027 | CA41: 34612.73047 | CB41: 9435.109078 | CC41: 1570.368163 | CD41: 19.766012 | CE41: 16.903377 | CF41: 16.822399 | CG41: 16.984356 | CH41: 286.247404 | CI41: 0.999871 | CJ41: 67409267.17 | CK41: 1158.977539 | CL41: 3178.061916 | CM41: 1159.477539 | CN41: 918.438084 | CO41: 6.519309 | CP41: 29.796396 | CQ41: 7195756.875 | CR41: 2704.325011 | CS41: 9.747 | CT41: 0.000408 | CU41: 2660.832868 | CV41: 37976.26953 | CW41: 7925.538241 | CX41: 1572.550758 | CY41: 17.541831 | CZ41: 15.799683 | DA41: 15.633032 | DB41: 15.966334 | DC41: 55.967594 | DD41: 0.996812 | DE41: 62556783.19 | DF41: 2161.821303 | DG41: 1599.70816 | DH41: 2162.321303 | DI41: 2496.79184 | DJ41: 6.51105 | DK41: 29.627974 | DL41: 3727641.756 | DM41: 2121.266664 | DN41: 10.568 | DO41: 0.000618 | DP41: 1757.271643 | DQ41: 16410.03711 | DR41: 4105.692813 | DS41: 1549.37068 | DT41: 19.953336 | DU41: 17.057472 | DV41: 16.933218 | DW41: 17.181727 | DX41: 272.616018 | DY41: 0.999786 | DZ41: 12350605.22 | EA41: 2962.93878 | EB41: 987.945733 | EC41: 2963.43878 | ED41: 3108.554267 | EE41: 6.504505 | EF41: 29.562533 | EG41: 2745115.148 | EH41: 1929.887439 | EI41: 10.984 | EJ41: 0.000763 | EK41: 1422.422413 | EL41: 13282.44922 | EM41: 3023.520036 | EN41: 1557.040521 | EO41: 18.62237 | EP41: 16.214759 | EQ41: 16.179946 | ER41: 16.249572 | ES41: 48.522317 | ET41: 0.998774 | EU41: 7966649.513 | EV41: 3795.58549 | EW41: 2082.847298 | EX41: 3796.08549 | EY41: 2013.652702 | EZ41: 6.497659 | FA41: 29.679277 | FB41: 1376388.133 | FC41: 1634.316929 | FD41: 11.697 | FE41: 0.001288 | FF41: 842.17945 | FG41: 8828.589844 | FH41: 1515.979066 | FI41: 1578.429729 | FJ41: 16.965481 | FK41: 15.519111 | FL41: 15.064353 | FM41: 15.973869 | FN41: 83.749078 | FO41: 0.996403 | FP41: 2392274.284 | FQ41: 2430.932157 | FR41: 2344.425656 | FS41: 2431.432157 | FT41: 1752.074344 | FU41: 6.508843 | FV41: 29.707552 | FW41: 716779.698 | FX41: 1446.14708 | FY41: 12.285 | FZ41: 0.002188 | GA41: 495.647855 | GB41: 4612.287109 | GC41: 789.47427 | GD41: 1538.969792 | GE41: 19.354825 | GF41: 16.917034 | GG41: 16.767861 | GH41: 17.066207 | GI41: 81.685308 | GJ41: 0.999661 | GK41: 483651.1878 | GL41: 1204.668818 | GM41: 2256.416952 | GN41: 1205.168818 | GO41: 1840.083048 | GP41: 6.518904 | GQ41: 29.697942 | GR41: 474290.4161 | GS41: 1383.862843 | GT41: 12.782 | GU41: 0.003163 | GV41: 342.729353 | GW41: 3694.778809 | GX41: 522.39214 | GY41: 1554.678773 | GZ41: 19.013065 | HA41: 16.58971 | HB41: 16.233993 | HC41: 16.945428 | HD41: 80.433807 | HE41: 0.997942 | HF41: 227591.8633
A42: 41 | B42: WASP-12b_00080_bdf.fits | C42: 41 | D42: 0 | E42: 56319.56966 | F42: 2456319.57 | G42: 2456319.569 | H42: 2456319.575 | I42: 2456319.575 | J42: 1.127852 | K42: -19.96 | L42: 100 | M42: 6.50911 | N42: 29.672297 | O42: 21.648376 | P42: 17 | Q42: 30 | R42: 45 | S42: 0.049164 | T42: 0.527242 | U42: 0.409668 | V42: 0.176612 | W42: 0.124522 | X42: 0.058731 | Y42: 0.029585 | Z42: 0.019491 | AA42: 6.5e-05 | AB42: 0.000236 | AC42: 0.000191 | AD42: 0.00011 | AE42: 9.3e-05 | AF42: 7.1e-05 | AG42: 6.1e-05 | AH42: 5.7e-05 | AI42: 758.370879 | AJ42: 2236.591213 | AK42: 2144.663791 | AL42: 1610.278534 | AM42: 1344.980675 | AN42: 826.376028 | AO42: 488.83703 | AP42: 341.135373 | AQ42: 24684487.01 | AR42: 5522.015629 | AS42: 2403.058737 | AT42: 2015.06059 | AU42: 2403.558737 | AV42: 2081.43941 | AW42: 6.509098 | AX42: 29.672275 | AY42: 1213594.29 | AZ42: 907.920277 | BA42: 1577.067912 | BB42: 11.681591 | BC42: 0.001431 | BD42: 769.525701 | BE42: 6533.102051 | BF42: 1336.674949 | BG42: 1542.132109 | BH42: 3059 | BI42: 19.862747 | BJ42: 17.118266 | BK42: 17.068683 | BL42: 17.16785 | BM42: 69.20122 | BN42: 0.99994 | BO42: 1298604.335 | BP42: 1894.342116 | BQ42: 1261.70546 | BR42: 1894.842116 | BS42: 2834.79454 | BT42: 6.513271 | BU42: 29.591796 | BV42: 8521704.912 | BW42: 2892.458016 | BX42: 9.453 | BY42: 0.000368 | BZ42: 2946.181022 | CA42: 34365.41797 | CB42: 9385.961663 | CC42: 1574.04337 | CD42: 19.729345 | CE42: 17.001906 | CF42: 16.983244 | CG42: 17.020569 | CH42: 305.646708 | CI42: 0.999953 | CJ42: 64828132.72 | CK42: 1162.166244 | CL42: 3178.78016 | CM42: 1162.666244 | CN42: 917.71984 | CO42: 6.51931 | CP42: 29.796389 | CQ42: 7173630.611 | CR42: 2700.920806 | CS42: 9.747 | CT42: 0.000409 | CU42: 2655.994427 | CV42: 37370.48438 | CW42: 7901.167969 | CX42: 1574.680801 | CY42: 17.473974 | CZ42: 15.938164 | DA42: 15.875307 | DB42: 16.00102 | DC42: 49.02174 | DD42: 0.996823 | DE42: 60129878.18 | DF42: 2165.068415 | DG42: 1600.35496 | DH42: 2165.568415 | DI42: 2496.14504 | DJ42: 6.51105 | DK42: 29.627972 | DL42: 3705195.811 | DM42: 2117.347404 | DN42: 10.568 | DO42: 0.00062 | DP42: 1749.923421 | DQ42: 16432.54102 | DR42: 4080.970439 | DS42: 1551.867734 | DT42: 20.064666 | DU42: 17.211619 | DV42: 17.265786 | DW42: 17.157452 | DX42: 6.231772 | DY42: 0.999958 | DZ42: 11580987.81 | EA42: 2966.362964 | EB42: 988.613251 | EC42: 2966.862964 | ED42: 3107.886749 | EE42: 6.504505 | EF42: 29.562532 | EG42: 2733389.671 | EH42: 1927.43187 | EI42: 10.984 | EJ42: 0.000765 | EK42: 1418.151123 | EL42: 13157.02148 | EM42: 3010.605381 | EN42: 1556.335898 | EO42: 18.734181 | EP42: 16.342826 | EQ42: 16.357055 | ER42: 16.328596 | ES42: 43.67809 | ET42: 0.998575 | EU42: 7593480.302 | EV42: 3798.87555 | EW42: 2083.531109 | EX42: 3799.37555 | EY42: 2012.968891 | EZ42: 6.49766 | FA42: 29.679282 | FB42: 1369326.026 | FC42: 1627.78775 | FD42: 11.697 | FE42: 0.00129 | FF42: 841.219026 | FG42: 8639.306641 | FH42: 1508.200732 | FI42: 1578.373947 | FJ42: 17.171237 | FK42: 15.707122 | FL42: 15.400167 | FM42: 16.014077 | FN42: 79.556831 | FO42: 0.998251 | FP42: 2256359.893 | FQ42: 2434.188727 | FR42: 2345.163861 | FS42: 2434.688727 | FT42: 1751.336139 | FU42: 6.508843 | FV42: 29.707553 | FW42: 709316.5108 | FX42: 1442.433687 | FY42: 12.285 | FZ42: 0.002206 | GA42: 491.749823 | GB42: 4539.149414 | GC42: 781.254179 | GD42: 1539.926561 | GE42: 19.614178 | GF42: 16.990287 | GG42: 16.950102 | GH42: 17.030472 | GI42: 57.568056 | GJ42: 0.999876 | GK42: 459756.6417 | GL42: 1207.865256 | GM42: 2257.115255 | GN42: 1208.365256 | GO42: 1839.384745 | GP42: 6.518904 | GQ42: 29.697947 | GR42: 471923.467 | GS42: 1379.45949 | GT42: 12.782 | GU42: 0.003169 | GV42: 342.107521 | GW42: 3639.465332 | GX42: 519.785139 | GY42: 1553.730223 | GZ42: 18.962819 | HA42: 16.621903 | HB42: 16.385276 | HC42: 16.858529 | HD42: 76.500924 | HE42: 0.998979 | HF42: 222751.7096
A43: 42 | B43: WASP-12b_00081_bdf.fits | C43: 42 | D43: 0 | E43: 56319.57104 | F43: 2456319.571 | G43: 2456319.57 | H43: 2456319.576 | I43: 2456319.577 | J43: 1.123938 | K43: -20 | L43: 100 | M43: 6.50911 | N43: 29.672297 | O43: 21.597435 | P43: 17 | Q43: 30 | R43: 45 | S43: 0.049194 | T43: 0.527297 | U43: 0.409852 | V43: 0.176706 | W43: 0.12436 | X43: 0.058817 | Y43: 0.029473 | Z43: 0.019463 | AA43: 6.5e-05 | AB43: 0.000236 | AC43: 0.000192 | AD43: 0.00011 | AE43: 9.3e-05 | AF43: 7.1e-05 | AG43: 6.1e-05 | AH43: 5.7e-05 | AI43: 756.818198 | AJ43: 2230.487266 | AK43: 2139.598156 | AL43: 1603.928302 | AM43: 1338.122939 | AN43: 825.638289 | AO43: 483.912448 | AP43: 340.148869 | AQ43: 24598163.87 | AR43: 5519.558588 | AS43: 2400.541605 | AT43: 2015.770957 | AU43: 2401.041605 | AV43: 2080.729043 | AW43: 6.509098 | AX43: 29.67228 | AY43: 1210090.293 | AZ43: 907.920277 | BA43: 1575.69347 | BB43: 11.680927 | BC43: 0.001434 | BD43: 767.97316 | BE43: 6463.421387 | BF43: 1332.815583 | BG43: 1543.642724 | BH43: 3130 | BI43: 19.762086 | BJ43: 17.138385 | BK43: 17.096883 | BL43: 17.179888 | BM43: 56.256822 | BN43: 0.99984 | BO43: 1281024.42 | BP43: 1891.892995 | BQ43: 1262.462644 | BR43: 1892.392995 | BS43: 2834.037356 | BT43: 6.513271 | BU43: 29.591804 | BV43: 8492475.766 | BW43: 2889.075517 | BX43: 9.453 | BY43: 0.000369 | BZ43: 2939.513252 | CA43: 34271.05859 | CB43: 9353.768147 | CC43: 1575.821275 | CD43: 19.743906 | CE43: 17.086692 | CF43: 17.173701 | CG43: 16.999683 | CH43: 0.199549 | CI43: 0.999896 | CJ43: 63166898.25 | CK43: 1159.649577 | CL43: 3179.45587 | CM43: 1160.149577 | CN43: 917.04413 | CO43: 6.51931 | CP43: 29.796392 | CQ43: 7150823.591 | CR43: 2697.075867 | CS43: 9.747 | CT43: 0.000409 | CU43: 2651.324599 | CV43: 37065.46094 | CW43: 7876.047901 | CX43: 1577.409254 | CY43: 17.649799 | CZ43: 16.034218 | DA43: 16.016421 | DB43: 16.052015 | DC43: 46.152883 | DD43: 0.996955 | DE43: 58071082.25 | DF43: 2162.659761 | DG43: 1601.032166 | DH43: 2163.159761 | DI43: 2495.467834 | DJ43: 6.51105 | DK43: 29.627972 | DL43: 3693913.129 | DM43: 2119.670742 | DN43: 10.568 | DO43: 0.000623 | DP43: 1742.68251 | DQ43: 16295.69824 | DR43: 4068.543486 | DS43: 1554.473379 | DT43: 20.010635 | DU43: 17.227528 | DV43: 17.21606 | DW43: 17.238996 | DX43: 50.087146 | DY43: 0.999943 | DZ43: 11528496.81 | EA43: 2963.823515 | EB43: 989.20154 | EC43: 2964.323515 | ED43: 3107.29846 | EE43: 6.504504 | EF43: 29.562528 | EG43: 2720680.916 | EH43: 1928.80941 | EI43: 10.984 | EJ43: 0.000769 | EK43: 1410.549379 | EL43: 13312.11231 | EM43: 2996.607726 | EN43: 1559.511758 | EO43: 18.616449 | EP43: 16.463943 | EQ43: 16.55886 | ER43: 16.369027 | ES43: 37.289492 | ET43: 0.99812 | EU43: 7438433.051 | EV43: 3796.205827 | EW43: 2084.103334 | EX43: 3796.705827 | EY43: 2012.396666 | EZ43: 6.497659 | FA43: 29.679275 | FB43: 1366426.897 | FC43: 1625.65527 | FD43: 11.697 | FE43: 0.001291 | FF43: 840.539148 | FG43: 8951.475586 | FH43: 1505.007578 | FI43: 1582.891489 | FJ43: 16.799933 | FK43: 15.629549 | FL43: 15.228262 | FM43: 16.030837 | FN43: 84.578612 | FO43: 0.99727 | FP43: 2322440.493 | FQ43: 2431.616564 | FR43: 2345.715886 | FS43: 2432.116564 | FT43: 1750.784114 | FU43: 6.508844 | FV43: 29.707541 | FW43: 704222.9853 | FX43: 1446.776908 | FY43: 12.285 | FZ43: 0.002228 | GA43: 486.75299 | GB43: 4603.434082 | GC43: 775.644077 | GD43: 1543.897363 | GE43: 19.47562 | GF43: 17.021601 | GG43: 16.961119 | GH43: 17.082083 | GI43: 59.999442 | GJ43: 0.999798 | GK43: 452605.4128 | GL43: 1205.335081 | GM43: 2257.87146 | GN43: 1205.835081 | GO43: 1838.62854 | GP43: 6.518904 | GQ43: 29.697954 | GR43: 469620.5834 | GS43: 1376.707362 | GT43: 12.782 | GU43: 0.003178 | GV43: 341.118669 | GW43: 3662.310547 | GX43: 517.248701 | GY43: 1556.052703 | GZ43: 19.072676 | HA43: 16.79286 | HB43: 16.561203 | HC43: 17.024517 | HD43: 76.812865 | HE43: 0.999052 | HF43: 213006.7331
A44: 43 | B44: WASP-12b_00082_bdf.fits | C44: 43 | D44: 0 | E44: 56319.57242 | F44: 2456319.572 | G44: 2456319.572 | H44: 2456319.577 | I44: 2456319.578 | J44: 1.120107 | K44: -20.04 | L44: 100 | M44: 6.50911 | N44: 29.672297 | O44: 21.585866 | P44: 17 | Q44: 30 | R44: 45 | S44: 0.049079 | T44: 0.527615 | U44: 0.409833 | V44: 0.176271 | W44: 0.1244 | X44: 0.058774 | Y44: 0.029624 | Z44: 0.019517 | AA44: 6.5e-05 | AB44: 0.000237 | AC44: 0.000192 | AD44: 0.00011 | AE44: 9.3e-05 | AF44: 7.2e-05 | AG44: 6.1e-05 | AH44: 5.8e-05 | AI44: 751.905536 | AJ44: 2223.210945 | AK44: 2132.366255 | AL44: 1596.613405 | AM44: 1335.626316 | AN44: 820.185697 | AO44: 485.416891 | AP44: 338.266258 | AQ44: 24466503.76 | AR44: 5509.184576 | AS44: 2399.478066 | AT44: 2014.216832 | AU44: 2399.978066 | AV44: 2082.283168 | AW44: 6.509098 | AX44: 29.672286 | AY44: 1200790.351 | AZ44: 907.920277 | BA44: 1573.940627 | BB44: 11.683477 | BC44: 0.001443 | BD44: 762.919726 | BE44: 6645.786133 | BF44: 1322.572457 | BG44: 1544.238962 | BH44: 3019 | BI44: 19.845303 | BJ44: 17.130356 | BK44: 17.11776 | BL44: 17.142952 | BM44: 47.591604 | BN44: 0.999735 | BO44: 1231541.012 | BP44: 1890.774119 | BQ44: 1260.905192 | BR44: 1891.274119 | BS44: 2835.594808 | BT44: 6.513271 | BU44: 29.59181 | BV44: 8450359.314 | BW44: 2883.097112 | BX44: 9.453 | BY44: 0.00037 | BZ44: 2931.000583 | CA44: 35260.73438 | CB44: 9307.380316 | CC44: 1577.608729 | CD44: 19.747898 | CE44: 17.00027 | CF44: 17.053063 | CG44: 16.947478 | CH44: 28.940101 | CI44: 0.999864 | CJ44: 61756098.43 | CK44: 1158.441583 | CL44: 3177.986768 | CM44: 1158.941583 | CN44: 918.513232 | CO44: 6.519311 | CP44: 29.796415 | CQ44: 7112313.711 | CR44: 2691.427326 | CS44: 9.747 | CT44: 0.000411 | CU44: 2642.580627 | CV44: 35757.47656 | CW44: 7833.632415 | CX44: 1578.812125 | CY44: 17.803778 | CZ44: 16.081852 | DA44: 16.104521 | DB44: 16.059183 | DC44: 43.657033 | DD44: 0.996381 | DE44: 56005719.24 | DF44: 2161.547625 | DG44: 1599.50869 | DH44: 2162.047625 | DI44: 2496.99131 | DJ44: 6.51105 | DK44: 29.627981 | DL44: 3666453.732 | DM44: 2114.056465 | DN44: 10.568 | DO44: 0.000626 | DP44: 1734.321573 | DQ44: 16435.91797 | DR44: 4038.299205 | DS44: 1555.130089 | DT44: 19.861094 | DU44: 17.139021 | DV44: 17.223648 | DW44: 17.054393 | DX44: 29.146008 | DY44: 0.999647 | DZ44: 11184265.97 | EA44: 2962.763543 | EB44: 987.694586 | EC44: 2963.263543 | ED44: 3108.805414 | EE44: 6.504505 | EF44: 29.562536 | EG44: 2706903.481 | EH44: 1922.229198 | EI44: 10.984 | EJ44: 0.000771 | EK44: 1408.210573 | EL44: 12694.38574 | EM44: 2981.433007 | EN44: 1558.781795 | EO44: 18.564024 | EP44: 16.418413 | EQ44: 16.483259 | ER44: 16.353567 | ES44: 40.044114 | ET44: 0.997894 | EU44: 7205808.632 | EV44: 3795.323072 | EW44: 2082.555176 | EX44: 3795.823072 | EY44: 2013.944824 | EZ44: 6.49766 | FA44: 29.679268 | FB44: 1358166.531 | FC44: 1626.772085 | FD44: 11.697 | FE44: 0.0013 | FF44: 834.884335 | FG44: 8440.442383 | FH44: 1495.90946 | FI44: 1582.153302 | FJ44: 16.981634 | FK44: 15.788756 | FL44: 15.541001 | FM44: 16.03651 | FN44: 77.32954 | FO44: 0.998795 | FP44: 2154107.163 | FQ44: 2430.616145 | FR44: 2344.312884 | FS44: 2431.116145 | FT44: 1752.187116 | FU44: 6.508843 | FV44: 29.707565 | FW44: 703945.8505 | FX44: 1441.608064 | FY44: 12.285 | FZ44: 0.002221 | GA44: 488.305988 | GB44: 4665.836426 | GC44: 775.338836 | GD44: 1541.717338 | GE44: 19.472939 | GF44: 16.99506 | GG44: 16.997586 | GH44: 16.992534 | GI44: 44.546847 | GJ44: 0.999647 | GK44: 441065.6831 | GL44: 1204.119522 | GM44: 2256.357528 | GN44: 1204.619522 | GO44: 1840.142472 | GP44: 6.518905 | GQ44: 29.697962 | GR44: 468361.1407 | GS44: 1380.675064 | GT44: 12.782 | GU44: 0.003196 | GV44: 339.226189 | GW44: 3693.787354 | GX44: 515.861527 | GY44: 1555.40198 | GZ44: 18.812826 | HA44: 16.789767 | HB44: 16.639456 | HC44: 16.940078 | HD44: 67.057657 | HE44: 0.999338 | HF44: 205459.7595
A45: 44 | B45: WASP-12b_00083_bdf.fits | C45: 44 | D45: 0 | E45: 56319.5738 | F45: 2456319.574 | G45: 2456319.573 | H45: 2456319.579 | I45: 2456319.579 | J45: 1.116356 | K45: -20.03 | L45: 100 | M45: 6.50911 | N45: 29.672297 | O45: 21.523271 | P45: 17 | Q45: 30 | R45: 45 | S45: 0.049021 | T45: 0.527103 | U45: 0.410055 | V45: 0.17645 | W45: 0.124393 | X45: 0.058747 | Y45: 0.029574 | Z45: 0.019575 | AA45: 6.5e-05 | AB45: 0.000235 | AC45: 0.00019 | AD45: 0.000109 | AE45: 9.2e-05 | AF45: 7.1e-05 | AG45: 6e-05 | AH45: 5.7e-05 | AI45: 759.955468 | AJ45: 2245.978324 | AK45: 2155.039411 | AL45: 1617.156427 | AM45: 1350.684108 | AN45: 830.596022 | AO45: 491.402109 | AP45: 343.346995 | AQ45: 24885081.93 | AR45: 5542.085561 | AS45: 2401.560888 | AT45: 2016.834085 | AU45: 2402.060888 | AV45: 2079.665915 | AW45: 6.509098 | AX45: 29.672279 | AY45: 1219890.485 | AZ45: 907.920277 | BA45: 1582.055636 | BB45: 11.68476 | BC45: 0.001428 | BD45: 771.079384 | BE45: 7382.977539 | BF45: 1343.609694 | BG45: 1549.056879 | BH45: 2961 | BI45: 19.657198 | BJ45: 16.957625 | BK45: 16.723361 | BL45: 17.191889 | BM45: 73.98989 | BN45: 0.998938 | BO45: 1482693.98 | BP45: 1892.870572 | BQ45: 1263.559201 | BR45: 1893.370572 | BS45: 2832.940799 | BT45: 6.513271 | BU45: 29.591806 | BV45: 8589464.328 | BW45: 2904.477088 | BX45: 9.453 | BY45: 0.000367 | BZ45: 2957.318673 | CA45: 39805.69922 | CB45: 9460.593123 | CC45: 1577.950146 | CD45: 19.487946 | CE45: 16.833228 | CF45: 16.744598 | CG45: 16.921858 | CH45: 72.828926 | CI45: 0.999837 | CJ45: 73157943.52 | CK45: 1160.693661 | CL45: 3180.5732 | CM45: 1161.193661 | CN45: 915.9268 | CO45: 6.51931 | CP45: 29.796408 | CQ45: 7236777.168 | CR45: 2710.64109 | CS45: 9.747 | CT45: 0.000407 | CU45: 2669.765907 | CV45: 40413.60938 | CW45: 7970.718742 | CX45: 1577.655526 | CY45: 17.511373 | CZ45: 15.72572 | DA45: 15.510268 | DB45: 15.941173 | DC45: 56.059047 | DD45: 0.994706 | DE45: 66695859.38 | DF45: 2163.613317 | DG45: 1602.137848 | DH45: 2164.113317 | DI45: 2494.362152 | DJ45: 6.51105 | DK45: 29.627975 | DL45: 3732400.259 | DM45: 2123.91801 | DN45: 10.568 | DO45: 0.000618 | DP45: 1757.318428 | DQ45: 18374.1875 | DR45: 4110.933915 | DS45: 1556.222108 | DT45: 19.691168 | DU45: 17.01098 | DV45: 16.893591 | DW45: 17.128369 | DX45: 63.8426 | DY45: 0.99949 | DZ45: 13364951.75 | EA45: 2964.894163 | EB45: 990.385095 | EC45: 2965.394163 | ED45: 3106.114905 | EE45: 6.504505 | EF45: 29.562534 | EG45: 2753065.87 | EH45: 1933.164597 | EI45: 10.984 | EJ45: 0.000762 | EK45: 1424.123882 | EL45: 15087.86231 | EM45: 3032.277107 | EN45: 1562.629654 | EO45: 18.516654 | EP45: 16.164417 | EQ45: 16.065727 | ER45: 16.263108 | ES45: 51.790786 | ET45: 0.997296 | EU45: 8545076.75 | EV45: 3797.471975 | EW45: 2085.262512 | EX45: 3797.971975 | EY45: 2011.237488 | EZ45: 6.49766 | FA45: 29.679269 | FB45: 1380800.427 | FC45: 1633.048045 | FD45: 11.697 | FE45: 0.001283 | FF45: 845.535703 | FG45: 9487.835938 | FH45: 1520.838847 | FI45: 1590.09241 | FJ45: 17.119269 | FK45: 15.395153 | FL45: 14.87422 | FM45: 15.916087 | FN45: 82.161175 | FO45: 0.995071 | FP45: 2564140.523 | FQ45: 2432.666875 | FR45: 2346.889342 | FS45: 2433.166875 | FT45: 1749.610658 | FU45: 6.508844 | FV45: 29.707554 | FW45: 714803.5842 | FX45: 1445.989758 | FY45: 12.285 | FZ45: 0.002194 | GA45: 494.335164 | GB45: 5071.102051 | GC45: 787.297742 | GD45: 1548.337528 | GE45: 19.52713 | GF45: 16.895018 | GG45: 16.704611 | GH45: 17.085425 | GI45: 74.740346 | GJ45: 0.999316 | GK45: 520964.5226 | GL45: 1206.511023 | GM45: 2258.923734 | GN45: 1207.011023 | GO45: 1837.576266 | GP45: 6.518903 | GQ45: 29.697953 | GR45: 477770.2921 | GS45: 1387.539088 | GT45: 12.782 | GU45: 0.003149 | GV45: 344.329249 | GW45: 4003.502686 | GX45: 526.224939 | GY45: 1560.183117 | GZ45: 19.089563 | HA45: 16.638678 | HB45: 16.285347 | HC45: 16.992009 | HD45: 77.463268 | HE45: 0.997803 | HF45: 245674.583
A46: 45 | B46: WASP-12b_00084_bdf.fits | C46: 45 | D46: 0 | E46: 56319.57518 | F46: 2456319.575 | G46: 2456319.575 | H46: 2456319.58 | I46: 2456319.581 | J46: 1.112685 | K46: -19.97 | L46: 100 | M46: 6.50911 | N46: 29.672297 | O46: 21.229797 | P46: 17 | Q46: 30 | R46: 45 | S46: 0.049174 | T46: 0.527528 | U46: 0.408874 | V46: 0.176892 | W46: 0.124382 | X46: 0.058684 | Y46: 0.029714 | Z46: 0.019601 | AA46: 6.5e-05 | AB46: 0.000235 | AC46: 0.00019 | AD46: 0.000109 | AE46: 9.2e-05 | AF46: 7.1e-05 | AG46: 6e-05 | AH46: 5.7e-05 | AI46: 761.152543 | AJ46: 2245.109127 | AK46: 2153.214207 | AL46: 1617.624527 | AM46: 1350.711805 | AN46: 829.612097 | AO46: 492.28551 | AP46: 344.183123 | AQ46: 24879852.24 | AR46: 5543.215866 | AS46: 2399.628795 | AT46: 2014.910094 | AU46: 2400.128795 | AV46: 2081.589906 | AW46: 6.509098 | AX46: 29.672277 | AY46: 1223448.293 | AZ46: 907.920277 | BA46: 1584.081259 | BB46: 11.68137 | BC46: 0.001426 | BD46: 772.339352 | BE46: 7274.115234 | BF46: 1347.528329 | BG46: 1552.829079 | BH46: 3047 | BI46: 19.568012 | BJ46: 16.871034 | BK46: 16.750445 | BL46: 16.991622 | BM46: 74.590355 | BN46: 0.999723 | BO46: 1462637.194 | BP46: 1890.978088 | BQ46: 1261.523053 | BR46: 1891.478088 | BS46: 2834.976947 | BT46: 6.513271 | BU46: 29.591795 | BV46: 8592198.664 | BW46: 2906.184593 | BX46: 9.453 | BY46: 0.000367 | BZ46: 2956.521992 | CA46: 38823.25 | CB46: 9463.604771 | CC46: 1580.258979 | CD46: 19.133328 | CE46: 16.642364 | CF46: 16.536075 | CG46: 16.748654 | CH46: 75.575847 | CI46: 0.999787 | CJ46: 74447064 | CK46: 1158.667154 | CL46: 3178.645032 | CM46: 1159.167154 | CN46: 917.854968 | CO46: 6.519311 | CP46: 29.796391 | CQ46: 7220463.6 | CR46: 2708.151325 | CS46: 9.747 | CT46: 0.000407 | CU46: 2666.196506 | CV46: 41113.32812 | CW46: 7952.75068 | CX46: 1584.327408 | CY46: 17.231563 | CZ46: 15.621376 | DA46: 15.429572 | DB46: 15.813181 | DC46: 54.843695 | DD46: 0.994688 | DE46: 67865328.72 | DF46: 2161.79527 | DG46: 1600.132228 | DH46: 2162.29527 | DI46: 2496.367772 | DJ46: 6.511049 | DK46: 29.627966 | DL46: 3739557.159 | DM46: 2127.043369 | DN46: 10.568 | DO46: 0.000617 | DP46: 1758.10104 | DQ46: 18742.24219 | DR46: 4118.816656 | DS46: 1560.2578 | DT46: 19.665122 | DU46: 16.89663 | DV46: 16.824924 | DW46: 16.968335 | DX46: 59.503238 | DY46: 0.999694 | DZ46: 13372961.36 | EA46: 2962.869296 | EB46: 988.336095 | EC46: 2963.369296 | ED46: 3108.163905 | EE46: 6.504505 | EF46: 29.562525 | EG46: 2752264.287 | EH46: 1932.453314 | EI46: 10.984 | EJ46: 0.000762 | EK46: 1424.233262 | EL46: 14919.68457 | EM46: 3031.394228 | EN46: 1567.260886 | EO46: 18.231364 | EP46: 16.031617 | EQ46: 16.004083 | ER46: 16.059151 | ES46: 47.140923 | ET46: 0.997883 | EU46: 8655687.411 | EV46: 3795.53722 | EW46: 2083.310344 | EX46: 3796.03722 | EY46: 2013.189656 | EZ46: 6.497659 | FA46: 29.67927 | FB46: 1379122.853 | FC46: 1633.046477 | FD46: 11.697 | FE46: 0.001285 | FF46: 844.509249 | FG46: 9488.724609 | FH46: 1518.991137 | FI46: 1595.372274 | FJ46: 16.56991 | FK46: 15.306897 | FL46: 14.820217 | FM46: 15.793578 | FN46: 82.919942 | FO46: 0.995708 | FP46: 2585367.63 | FQ46: 2430.721438 | FR46: 2344.995915 | FS46: 2431.221438 | FT46: 1751.504085 | FU46: 6.508844 | FV46: 29.707552 | FW46: 717956.3428 | FX46: 1449.723472 | FY46: 12.285 | FZ46: 0.00219 | GA46: 495.236751 | GB46: 4888.687988 | GC46: 790.770248 | GD46: 1551.159861 | GE46: 19.140969 | GF46: 16.710203 | GG46: 16.568141 | GH46: 16.852264 | GI46: 67.65357 | GJ46: 0.999428 | GK46: 525769.4824 | GL46: 1204.555404 | GM46: 2256.910657 | GN46: 1205.055404 | GO46: 1839.589343 | GP46: 6.518903 | GQ46: 29.697939 | GR46: 478289.3372 | GS46: 1385.648369 | GT46: 12.782 | GU46: 0.003141 | GV46: 345.173673 | GW46: 3934.096436 | GX46: 526.796625 | GY46: 1565.021807 | GZ46: 18.774833 | HA46: 16.469817 | HB46: 16.193093 | HC46: 16.74654 | HD46: 74.946702 | HE46: 0.998492 | HF46: 249355.3211
A47: 46 | B47: WASP-12b_00085_bdf.fits | C47: 46 | D47: 0 | E47: 56319.57656 | F47: 2456319.577 | G47: 2456319.576 | H47: 2456319.581 | I47: 2456319.582 | J47: 1.109093 | K47: -19.93 | L47: 100 | M47: 6.50911 | N47: 29.672297 | O47: 21.594213 | P47: 17 | Q47: 30 | R47: 45 | S47: 0.049058 | T47: 0.527831 | U47: 0.409145 | V47: 0.176549 | W47: 0.124478 | X47: 0.058759 | Y47: 0.029669 | Z47: 0.019478 | AA47: 6.5e-05 | AB47: 0.000236 | AC47: 0.000191 | AD47: 0.00011 | AE47: 9.2e-05 | AF47: 7.1e-05 | AG47: 6.1e-05 | AH47: 5.7e-05 | AI47: 757.490283 | AJ47: 2238.354877 | AK47: 2145.168711 | AL47: 1608.254832 | AM47: 1346.101861 | AN47: 825.69215 | AO47: 489.057674 | AP47: 340.602115 | AQ47: 24758525.38 | AR47: 5537.562745 | AS47: 2400.660327 | AT47: 2015.854325 | AU47: 2401.160327 | AV47: 2080.645675 | AW47: 6.509098 | AX47: 29.672285 | AY47: 1214600.762 | AZ47: 907.920277 | BA47: 1580.273622 | BB47: 11.683943 | BC47: 0.001432 | BD47: 768.601555 | BE47: 6558.28418 | BF47: 1337.783496 | BG47: 1555.166619 | BH47: 3055 | BI47: 19.932071 | BJ47: 17.086713 | BK47: 16.977616 | BL47: 17.19581 | BM47: 67.138976 | BN47: 0.999665 | BO47: 1298063.871 | BP47: 1891.892271 | BQ47: 1262.581516 | BR47: 1892.392271 | BS47: 2833.918484 | BT47: 6.513271 | BU47: 29.591813 | BV47: 8553509.59 | BW47: 2898.174718 | BX47: 9.453 | BY47: 0.000368 | BZ47: 2951.343664 | CA47: 34682.11719 | CB47: 9420.991917 | CC47: 1586.524749 | CD47: 19.756469 | CE47: 16.981518 | CF47: 16.957551 | CG47: 17.005486 | CH47: 58.551424 | CI47: 0.999962 | CJ47: 64771887.71 | CK47: 1159.831557 | CL47: 3179.540173 | CM47: 1160.331557 | CN47: 916.959827 | CO47: 6.51931 | CP47: 29.796403 | CQ47: 7188627.882 | CR47: 2705.961628 | CS47: 9.747 | CT47: 0.000409 | CU47: 2656.588995 | CV47: 36834.94531 | CW47: 7917.686238 | CX47: 1589.716173 | CY47: 17.599334 | CZ47: 15.962646 | DA47: 15.853245 | DB47: 16.072047 | DC47: 50.908529 | DD47: 0.99552 | DE47: 59843682.77 | DF47: 2162.671268 | DG47: 1601.105134 | DH47: 2163.171268 | DI47: 2495.394866 | DJ47: 6.51105 | DK47: 29.627976 | DL47: 3715174.843 | DM47: 2126.39154 | DN47: 10.568 | DO47: 0.000621 | DP47: 1747.17345 | DQ47: 16576.90039 | DR47: 4091.961527 | DS47: 1563.35875 | DT47: 19.937335 | DU47: 17.175126 | DV47: 17.083907 | DW47: 17.266345 | DX47: 67.725304 | DY47: 0.999778 | DZ47: 11696836.69 | EA47: 2963.721195 | EB47: 989.322844 | EC47: 2964.221195 | ED47: 3107.177156 | EE47: 6.504506 | EF47: 29.562531 | EG47: 2740726.512 | EH47: 1930.832397 | EI47: 10.984 | EJ47: 0.000765 | EK47: 1419.453349 | EL47: 13399.65039 | EM47: 3018.686312 | EN47: 1566.82619 | EO47: 18.678062 | EP47: 16.366243 | EQ47: 16.339194 | ER47: 16.393291 | ES47: 47.240335 | ET47: 0.99821 | EU47: 7643009.885 | EV47: 3796.384059 | EW47: 2084.2831 | EX47: 3796.884059 | EY47: 2012.2169 | EZ47: 6.49766 | FA47: 29.679273 | FB47: 1374050.337 | FC47: 1634.823405 | FD47: 11.697 | FE47: 0.001291 | FF47: 840.48854 | FG47: 8510.870117 | FH47: 1513.404174 | FI47: 1598.144802 | FJ47: 16.9545 | FK47: 15.661302 | FL47: 15.211777 | FM47: 16.110827 | FN47: 78.479203 | FO47: 0.996115 | FP47: 2295681.398 | FQ47: 2431.737603 | FR47: 2345.835311 | FS47: 2432.237603 | FT47: 1750.664689 | FU47: 6.508844 | FV47: 29.707551 | FW47: 713401.452 | FX47: 1450.083219 | FY47: 12.285 | FZ47: 0.002205 | GA47: 491.972766 | GB47: 4730.51416 | GC47: 785.753408 | GD47: 1554.87797 | GE47: 19.657721 | GF47: 16.983896 | GG47: 16.857797 | GH47: 17.109994 | GI47: 61.190341 | GJ47: 0.999231 | GK47: 465186.91 | GL47: 1205.602354 | GM47: 2257.909486 | GN47: 1206.102354 | GO47: 1838.590514 | GP47: 6.518903 | GQ47: 29.697955 | GR47: 473034.7674 | GS47: 1384.887176 | GT47: 12.782 | GU47: 0.003174 | GV47: 341.569173 | GW47: 3639.346191 | GX47: 521.009145 | GY47: 1568.225977 | GZ47: 19.008416 | HA47: 16.603748 | HB47: 16.264776 | HC47: 16.94272 | HD47: 72.883974 | HE47: 0.997563 | HF47: 224268.6552
A48: 47 | B48: WASP-12b_00086_bdf.fits | C48: 47 | D48: 0 | E48: 56319.57794 | F48: 2456319.578 | G48: 2456319.577 | H48: 2456319.583 | I48: 2456319.584 | J48: 1.105578 | K48: -19.96 | L48: 100 | M48: 6.50911 | N48: 29.672297 | O48: 21.468693 | P48: 17 | Q48: 30 | R48: 45 | S48: 0.04898 | T48: 0.527869 | U48: 0.409526 | V48: 0.176294 | W48: 0.124516 | X48: 0.058795 | Y48: 0.029554 | Z48: 0.019501 | AA48: 6.5e-05 | AB48: 0.000236 | AC48: 0.000191 | AD48: 0.00011 | AE48: 9.2e-05 | AF48: 7.1e-05 | AG48: 6e-05 | AH48: 5.7e-05 | AI48: 755.057668 | AJ48: 2239.233448 | AK48: 2147.510097 | AL48: 1609.103643 | AM48: 1346.248719 | AN48: 828.746867 | AO48: 488.807767 | AP48: 341.146338 | AQ48: 24741536.1 | AR48: 5529.131683 | AS48: 2398.38386 | AT48: 2013.73389 | AU48: 2398.88386 | AV48: 2082.76611 | AW48: 6.509098 | AX48: 29.672278 | AY48: 1211830.417 | AZ48: 907.920277 | BA48: 1581.937591 | BB48: 11.685677 | BC48: 0.001437 | BD48: 766.041862 | BE48: 6520.333008 | BF48: 1334.732187 | BG48: 1548.505822 | BH48: 3025 | BI48: 19.612838 | BJ48: 17.111673 | BK48: 16.995325 | BL48: 17.228021 | BM48: 67.680037 | BN48: 0.999635 | BO48: 1260332.436 | BP48: 1889.769928 | BQ48: 1260.486133 | BR48: 1890.269928 | BS48: 2836.013867 | BT48: 6.51327 | BU48: 29.591809 | BV48: 8548045.232 | BW48: 2896.980312 | BX48: 9.453 | BY48: 0.000368 | BZ48: 2950.674258 | CA48: 33736.89844 | CB48: 9414.973373 | CC48: 1578.316979 | CD48: 19.715872 | CE48: 16.973054 | CF48: 16.981499 | CG48: 16.964608 | CH48: 40.261028 | CI48: 0.999963 | CJ48: 62784163.44 | CK48: 1157.3079 | CL48: 3177.532028 | CM48: 1157.8079 | CN48: 918.967972 | CO48: 6.519311 | CP48: 29.7964 | CQ48: 7188451.876 | CR48: 2702.257785 | CS48: 9.747 | CT48: 0.000408 | CU48: 2660.165109 | CV48: 34887.15234 | CW48: 7917.492382 | CX48: 1581.896003 | CY48: 17.54173 | CZ48: 15.988365 | DA48: 15.869089 | DB48: 16.107641 | DC48: 52.057019 | DD48: 0.996257 | DE48: 58105135.21 | DF48: 2160.423506 | DG48: 1599.027692 | DH48: 2160.923506 | DI48: 2497.472308 | DJ48: 6.51105 | DK48: 29.627974 | DL48: 3708079.039 | DM48: 2121.355657 | DN48: 10.568 | DO48: 0.000621 | DP48: 1747.976124 | DQ48: 15743.2207 | DR48: 4084.14608 | DS48: 1557.264062 | DT48: 19.890785 | DU48: 17.174779 | DV48: 17.130171 | DW48: 17.219386 | DX48: 57.090468 | DY48: 0.999839 | DZ48: 11378035.27 | EA48: 2961.606729 | EB48: 987.274674 | EC48: 2962.106729 | ED48: 3109.225326 | EE48: 6.504506 | EF48: 29.562536 | EG48: 2739587.974 | EH48: 1930.002373 | EI48: 10.984 | EJ48: 0.000765 | EK48: 1419.473889 | EL48: 13070.13965 | EM48: 3017.432306 | EN48: 1564.266876 | EO48: 18.499271 | EP48: 16.345499 | EQ48: 16.337169 | ER48: 16.353828 | ES48: 45.677169 | ET48: 0.99814 | EU48: 7496401.044 | EV48: 3794.255818 | EW48: 2082.148301 | EX48: 3794.755818 | EY48: 2014.351699 | EZ48: 6.49766 | FA48: 29.679268 | FB48: 1373902.847 | FC48: 1628.43854 | FD48: 11.697 | FE48: 0.001286 | FF48: 843.693399 | FG48: 8804.824219 | FH48: 1513.241726 | FI48: 1591.3379 | FJ48: 16.72085 | FK48: 15.681237 | FL48: 15.265166 | FM48: 16.097308 | FN48: 79.54757 | FO48: 0.996778 | FP48: 2281413.535 | FQ48: 2429.479236 | FR48: 2343.820539 | FS48: 2429.979236 | FT48: 1752.679461 | FU48: 6.508844 | FV48: 29.707555 | FW48: 710222.1438 | FX48: 1444.381041 | FY48: 12.285 | FZ48: 0.002206 | GA48: 491.713837 | GB48: 4513.458984 | GC48: 782.25166 | GD48: 1548.248737 | GE48: 19.308276 | GF48: 16.970254 | GG48: 16.857617 | GH48: 17.082892 | GI48: 61.858596 | GJ48: 0.999428 | GK48: 451252.6393 | GL48: 1203.067135 | GM48: 2255.879433 | GN48: 1203.567135 | GO48: 1840.620567 | GP48: 6.518905 | GQ48: 29.697953 | GR48: 473246.9856 | GS48: 1383.292252 | GT48: 12.782 | GU48: 0.003169 | GV48: 342.116415 | GW48: 3652.777832 | GX48: 521.242886 | GY48: 1559.666878 | GZ48: 18.865709 | HA48: 16.687894 | HB48: 16.371177 | HC48: 17.00461 | HD48: 74.86863 | HE48: 0.99807 | HF48: 216059.2074
A49: 48 | B49: WASP-12b_00087_bdf.fits | C49: 48 | D49: 0 | E49: 56319.57932 | F49: 2456319.579 | G49: 2456319.579 | H49: 2456319.584 | I49: 2456319.585 | J49: 1.102141 | K49: -19.98 | L49: 100 | M49: 6.50911 | N49: 29.672297 | O49: 21.502494 | P49: 17 | Q49: 30 | R49: 45 | S49: 0.048969 | T49: 0.527857 | U49: 0.40919 | V49: 0.176553 | W49: 0.124544 | X49: 0.058688 | Y49: 0.02957 | Z49: 0.019548 | AA49: 6.4e-05 | AB49: 0.000235 | AC49: 0.00019 | AD49: 0.000109 | AE49: 9.2e-05 | AF49: 7.1e-05 | AG49: 6e-05 | AH49: 5.7e-05 | AI49: 760.043113 | AJ49: 2249.469041 | AK49: 2157.019421 | AL49: 1618.585049 | AM49: 1352.285075 | AN49: 830.699265 | AO49: 491.676874 | AP49: 343.158548 | AQ49: 24928199.4 | AR49: 5545.414409 | AS49: 2401.823409 | AT49: 2016.02979 | AU49: 2402.323409 | AV49: 2080.47021 | AW49: 6.509098 | AX49: 29.672282 | AY49: 1220704.904 | AZ49: 907.920277 | BA49: 1582.976632 | BB49: 11.685915 | BC49: 0.001428 | BD49: 771.145245 | BE49: 7027.447754 | BF49: 1344.506709 | BG49: 1547.29962 | BH49: 2914 | BI49: 19.807751 | BJ49: 16.973098 | BK49: 16.898136 | BL49: 17.048061 | BM49: 57.553692 | BN49: 0.999567 | BO49: 1370753.067 | BP49: 1893.165824 | BQ49: 1262.744219 | BR49: 1893.665824 | BS49: 2833.755781 | BT49: 6.513271 | BU49: 29.591808 | BV49: 8612404.103 | BW49: 2905.578993 | BX49: 9.453 | BY49: 0.000366 | BZ49: 2964.092225 | CA49: 38223.39453 | CB49: 9485.859411 | CC49: 1576.126354 | CD49: 19.517466 | CE49: 16.809455 | CF49: 16.825949 | CG49: 16.79296 | CH49: 39.345511 | CI49: 0.9999 | CJ49: 69612658.47 | CK49: 1160.917345 | CL49: 3179.770934 | CM49: 1161.417345 | CN49: 916.729066 | CO49: 6.51931 | CP49: 29.796407 | CQ49: 7238463.641 | CR49: 2709.518459 | CS49: 9.747 | CT49: 0.000406 | CU49: 2671.494493 | CV49: 39379.57422 | CW49: 7972.576255 | CX49: 1576.544112 | CY49: 17.467468 | CZ49: 15.814631 | DA49: 15.729059 | DB49: 15.900203 | DC49: 49.775283 | DD49: 0.995746 | DE49: 63432923.14 | DF49: 2163.895549 | DG49: 1601.316022 | DH49: 2164.395549 | DI49: 2495.183978 | DJ49: 6.51105 | DK49: 29.627976 | DL49: 3740717.566 | DM49: 2126.886549 | DN49: 10.568 | DO49: 0.000617 | DP49: 1758.776258 | DQ49: 17050.62695 | DR49: 4120.09475 | DS49: 1556.108166 | DT49: 19.862183 | DU49: 17.028469 | DV49: 17.063479 | DW49: 16.993458 | DX49: 38.389887 | DY49: 0.999677 | DZ49: 12447853.35 | EA49: 2965.215474 | EB49: 989.484809 | EC49: 2965.715474 | ED49: 3107.015191 | EE49: 6.504505 | EF49: 29.562529 | EG49: 2760810.986 | EH49: 1936.297886 | EI49: 10.984 | EJ49: 0.000761 | EK49: 1425.819346 | EL49: 13617.63769 | EM49: 3040.807718 | EN49: 1561.180341 | EO49: 18.520294 | EP49: 16.184962 | EQ49: 16.191525 | ER49: 16.178399 | ES49: 44.56645 | ET49: 0.997128 | EU49: 8074952.017 | EV49: 3797.767578 | EW49: 2084.362315 | EX49: 3798.267578 | EY49: 2012.137685 | EZ49: 6.49766 | FA49: 29.679267 | FB49: 1381886.545 | FC49: 1634.192937 | FD49: 11.697 | FE49: 0.001283 | FF49: 845.607953 | FG49: 8875.527344 | FH49: 1522.035117 | FI49: 1591.623079 | FJ49: 16.976725 | FK49: 15.533581 | FL49: 15.165207 | FM49: 15.901955 | FN49: 77.782877 | FO49: 0.997289 | FP49: 2407803.79 | FQ49: 2432.966857 | FR49: 2346.038261 | FS49: 2433.466857 | FT49: 1750.461739 | FU49: 6.508843 | FV49: 29.707552 | FW49: 715962.7282 | FX49: 1447.535787 | FY49: 12.285 | FZ49: 0.002193 | GA49: 494.607964 | GB49: 4665.534668 | GC49: 788.574445 | GD49: 1545.026204 | GE49: 19.397109 | GF49: 16.80366 | GG49: 16.75513 | GH49: 16.85219 | GI49: 52.16651 | GJ49: 0.999456 | GK49: 494827.0889 | GL49: 1206.526919 | GM49: 2258.121073 | GN49: 1207.026919 | GO49: 1838.378927 | GP49: 6.518905 | GQ49: 29.697954 | GR49: 477953.829 | GS49: 1388.848117 | GT49: 12.782 | GU49: 0.00315 | GV49: 344.136859 | GW49: 3758.637207 | GX49: 526.42709 | GY49: 1557.713248 | GZ49: 19.00226 | HA49: 16.573481 | HB49: 16.342341 | HC49: 16.804622 | HD49: 67.438984 | HE49: 0.998438 | HF49: 232458.6654
A50: 49 | B50: WASP-12b_00088_bdf.fits | C50: 49 | D50: 0 | E50: 56319.5807 | F50: 2456319.581 | G50: 2456319.58 | H50: 2456319.586 | I50: 2456319.586 | J50: 1.098779 | K50: -19.98 | L50: 100 | M50: 6.50911 | N50: 29.672297 | O50: 21.613114 | P50: 17 | Q50: 30 | R50: 45 | S50: 0.049 | T50: 0.527468 | U50: 0.410357 | V50: 0.176421 | W50: 0.124253 | X50: 0.058627 | Y50: 0.029579 | Z50: 0.019497 | AA50: 6.5e-05 | AB50: 0.000236 | AC50: 0.000191 | AD50: 0.00011 | AE50: 9.2e-05 | AF50: 7.1e-05 | AG50: 6e-05 | AH50: 5.7e-05 | AI50: 756.645927 | AJ50: 2237.447087 | AK50: 2146.987703 | AL50: 1609.198727 | AM50: 1343.332274 | AN50: 823.679151 | AO50: 489.151682 | AP50: 340.823913 | AQ50: 24728555.56 | AR50: 5530.828178 | AS50: 2400.43669 | AT50: 2014.323508 | AU50: 2400.93669 | AV50: 2082.176492 | AW50: 6.509098 | AX50: 29.672274 | AY50: 1211704.655 | AZ50: 907.920277 | BA50: 1578.317079 | BB50: 11.68522 | BC50: 0.001434 | BD50: 767.719409 | BE50: 6673.980469 | BF50: 1334.593671 | BG50: 1545.465221 | BH50: 2988 | BI50: 19.94237 | BJ50: 17.163184 | BK50: 17.158095 | BL50: 17.168274 | BM50: 47.976238 | BN50: 0.999967 | BO50: 1298869.998 | BP50: 1891.748433 | BQ50: 1261.030604 | BR50: 1892.248433 | BS50: 2835.469396 | BT50: 6.513271 | BU50: 29.591802 | BV50: 8539311.231 | BW50: 2896.414326 | BX50: 9.453 | BY50: 0.000368 | BZ50: 2948.235394 | CA50: 35599.87891 | CB50: 9405.353585 | CC50: 1577.247974 | CD50: 19.835292 | CE50: 17.019952 | CF50: 17.103361 | CG50: 16.936543 | CH50: 355.950102 | CI50: 0.999902 | CJ50: 64921549.7 | CK50: 1159.622022 | CL50: 3178.043293 | CM50: 1160.122022 | CN50: 918.456707 | CO50: 6.51931 | CP50: 29.796394 | CQ50: 7195017.639 | CR50: 2703.798638 | CS50: 9.747 | CT50: 0.000408 | CU50: 2661.07747 | CV50: 37684.87891 | CW50: 7924.724034 | CX50: 1579.050284 | CY50: 17.414608 | CZ50: 15.997002 | DA50: 15.962159 | DB50: 16.031845 | DC50: 47.724227 | DD50: 0.997895 | DE50: 60701346.76 | DF50: 2162.493075 | DG50: 1599.576757 | DH50: 2162.993075 | DI50: 2496.923243 | DJ50: 6.51105 | DK50: 29.627966 | DL50: 3708393.89 | DM50: 2120.997311 | DN50: 10.568 | DO50: 0.000621 | DP50: 1748.419892 | DQ50: 16539.52344 | DR50: 4084.492862 | DS50: 1555.513124 | DT50: 19.864148 | DU50: 17.197591 | DV50: 17.26362 | DW50: 17.131563 | DX50: 19.745098 | DY50: 0.999901 | DZ50: 11769680.51 | EA50: 2963.767471 | EB50: 987.838893 | EC50: 2964.267471 | ED50: 3108.661107 | EE50: 6.504505 | EF50: 29.562529 | EG50: 2733013.072 | EH50: 1929.877561 | EI50: 10.984 | EJ50: 0.000766 | EK50: 1416.15879 | EL50: 13550.42481 | EM50: 3010.190587 | EN50: 1561.971329 | EO50: 18.631486 | EP50: 16.432515 | EQ50: 16.539695 | ER50: 16.325334 | ES50: 33.358007 | ET50: 0.998911 | EU50: 7572427.851 | EV50: 3796.353537 | EW50: 2082.790046 | EX50: 3796.853537 | EY50: 2013.709954 | EZ50: 6.49766 | FA50: 29.679272 | FB50: 1369467.288 | FC50: 1633.506403 | FD50: 11.697 | FE50: 0.001294 | FF50: 838.360527 | FG50: 8969.470703 | FH50: 1508.356321 | FI50: 1594.242781 | FJ50: 16.937878 | FK50: 15.672696 | FL50: 15.320963 | FM50: 16.024429 | FN50: 85.80974 | FO50: 0.997944 | FP50: 2325197.543 | FQ50: 2431.478965 | FR50: 2344.321106 | FS50: 2431.978965 | FT50: 1752.178894 | FU50: 6.508844 | FV50: 29.707541 | FW50: 710438.8032 | FX50: 1443.778022 | FY50: 12.285 | FZ50: 0.002204 | GA50: 492.069274 | GB50: 4769.744629 | GC50: 782.490293 | GD50: 1546.212831 | GE50: 19.629673 | GF50: 16.999281 | GG50: 16.992849 | GH50: 17.005714 | GI50: 306.434098 | GJ50: 0.999993 | GK50: 469981.2606 | GL50: 1205.455056 | GM50: 2256.361934 | GN50: 1205.955056 | GO50: 1840.138066 | GP50: 6.518903 | GQ50: 29.697943 | GR50: 472913.6331 | GS50: 1383.626457 | GT50: 12.782 | GU50: 0.003172 | GV50: 341.792852 | GW50: 3720.553955 | GX50: 520.875726 | GY50: 1556.291861 | GZ50: 19.146963 | HA50: 16.770136 | HB50: 16.650485 | HC50: 16.889786 | HD50: 74.275319 | HE50: 0.99972 | HF50: 220357.7898
A51: 50 | B51: WASP-12b_00089_bdf.fits | C51: 50 | D51: 0 | E51: 56319.58208 | F51: 2456319.582 | G51: 2456319.581 | H51: 2456319.587 | I51: 2456319.588 | J51: 1.095491 | K51: -20.01 | L51: 100 | M51: 6.50911 | N51: 29.672297 | O51: 21.142671 | P51: 17 | Q51: 30 | R51: 45 | S51: 0.048911 | T51: 0.526907 | U51: 0.410053 | V51: 0.176498 | W51: 0.124347 | X51: 0.058713 | Y51: 0.029657 | Z51: 0.019616 | AA51: 6.5e-05 | AB51: 0.000237 | AC51: 0.000192 | AD51: 0.00011 | AE51: 9.3e-05 | AF51: 7.2e-05 | AG51: 6.1e-05 | AH51: 5.7e-05 | AI51: 751.801246 | AJ51: 2226.93806 | AK51: 2136.993676 | AL51: 1602.979651 | AM51: 1335.754342 | AN51: 820.691829 | AO51: 487.391372 | AP51: 341.564475 | AQ51: 24579908.8 | AR51: 5523.116645 | AS51: 2398.735271 | AT51: 2015.313881 | AU51: 2399.235271 | AV51: 2081.186119 | AW51: 6.509099 | AX51: 29.672276 | AY51: 1202238.503 | AZ51: 907.920277 | BA51: 1576.16123 | BB51: 11.687189 | BC51: 0.001443 | BD51: 762.763656 | BE51: 6630.357422 | BF51: 1324.167478 | BG51: 1549.220916 | BH51: 3089 | BI51: 19.249642 | BJ51: 17.006536 | BK51: 17.010806 | BL51: 17.002266 | BM51: 43.868125 | BN51: 0.999838 | BO51: 1271591.979 | BP51: 1890.152236 | BQ51: 1262.020352 | BR51: 1890.652236 | BS51: 2834.479648 | BT51: 6.51327 | BU51: 29.591805 | BV51: 8482066.325 | BW51: 2891.181459 | BX51: 9.453 | BY51: 0.00037 | BZ51: 2933.771693 | CA51: 33907.35156 | CB51: 9342.302998 | CC51: 1581.028037 | CD51: 19.419004 | CE51: 16.944614 | CF51: 17.051677 | CG51: 16.83755 | CH51: 16.29244 | CI51: 0.999775 | CJ51: 63121376.92 | CK51: 1157.895462 | CL51: 3179.125287 | CM51: 1158.395462 | CN51: 917.374713 | CO51: 6.51931 | CP51: 29.796393 | CQ51: 7148000.823 | CR51: 2698.853337 | CS51: 9.747 | CT51: 0.00041 | CU51: 2648.532518 | CV51: 36577.17969 | CW51: 7872.938852 | CX51: 1582.564453 | CY51: 16.852999 | CZ51: 15.966287 | DA51: 15.957687 | DB51: 15.974888 | DC51: 45.527164 | DD51: 0.996572 | DE51: 58755306.44 | DF51: 2160.812509 | DG51: 1600.562976 | DH51: 2161.312509 | DI51: 2495.937024 | DJ51: 6.51105 | DK51: 29.627969 | DL51: 3687481.159 | DM51: 2116.865527 | DN51: 10.568 | DO51: 0.000623 | DP51: 1741.953427 | DQ51: 16074.34375 | DR51: 4061.459197 | DS51: 1560.21535 | DT51: 19.574582 | DU51: 17.09938 | DV51: 17.18493 | DW51: 17.013831 | DX51: 30.645742 | DY51: 0.999566 | DZ51: 11479524.04 | EA51: 2962.118872 | EB51: 988.774292 | EC51: 2962.618872 | ED51: 3107.725708 | EE51: 6.504505 | EF51: 29.562531 | EG51: 2718404.905 | EH51: 1930.70843 | EI51: 10.984 | EJ51: 0.000771 | EK51: 1407.983134 | EL51: 13270.71973 | EM51: 2994.100886 | EN51: 1565.333787 | EO51: 18.268663 | EP51: 16.343809 | EQ51: 16.437367 | ER51: 16.250251 | ES51: 38.695906 | ET51: 0.997249 | EU51: 7374062.47 | EV51: 3794.761371 | EW51: 2083.750512 | EX51: 3795.261371 | EY51: 2012.749488 | EZ51: 6.497659 | FA51: 29.679276 | FB51: 1363118.929 | FC51: 1631.790838 | FD51: 11.697 | FE51: 0.001299 | FF51: 835.351503 | FG51: 8561.03125 | FH51: 1501.364121 | FI51: 1596.788699 | FJ51: 16.528343 | FK51: 15.689242 | FL51: 15.381161 | FM51: 15.997323 | FN51: 75.115076 | FO51: 0.997955 | FP51: 2247014.686 | FQ51: 2429.864194 | FR51: 2345.378113 | FS51: 2430.364194 | FT51: 1751.121887 | FU51: 6.508844 | FV51: 29.707548 | FW51: 707960.4978 | FX51: 1443.920626 | FY51: 12.285 | FZ51: 0.002212 | GA51: 490.304304 | GB51: 4576.517578 | GC51: 779.760642 | GD51: 1548.63902 | GE51: 18.887049 | GF51: 16.916639 | GG51: 16.922629 | GH51: 16.910648 | GI51: 43.497964 | GJ51: 0.999817 | GK51: 452152.0682 | GL51: 1203.621124 | GM51: 2257.416221 | GN51: 1204.121124 | GO51: 1839.083779 | GP51: 6.518904 | GQ51: 29.697947 | GR51: 472876.1666 | GS51: 1380.461913 | GT51: 12.782 | GU51: 0.003165 | GV51: 342.549231 | GW51: 3625.069336 | GX51: 520.834459 | GY51: 1559.470696 | GZ51: 18.747976 | HA51: 16.647157 | HB51: 16.571629 | HC51: 16.722685 | HD51: 54.082892 | HE51: 0.999153 | HF51: 214994.1344
A52: 51 | B52: WASP-12b_00090_bdf.fits | C52: 51 | D52: 0 | E52: 56319.58345 | F52: 2456319.583 | G52: 2456319.583 | H52: 2456319.588 | I52: 2456319.589 | J52: 1.092278 | K52: -20.01 | L52: 100 | M52: 6.50911 | N52: 29.672297 | O52: 22.052423 | P52: 17 | Q52: 30 | R52: 45 | S52: 0.04875 | T52: 0.526851 | U52: 0.410764 | V52: 0.175966 | W52: 0.124529 | X52: 0.058833 | Y52: 0.029573 | Z52: 0.019489 | AA52: 6.6e-05 | AB52: 0.00024 | AC52: 0.000195 | AD52: 0.000112 | AE52: 9.4e-05 | AF52: 7.3e-05 | AG52: 6.2e-05 | AH52: 5.9e-05 | AI52: 735.205954 | AJ52: 2197.088988 | AK52: 2108.887463 | AL52: 1576.208508 | AM52: 1319.810791 | AN52: 808.550152 | AO52: 476.798051 | AP52: 332.651686 | AQ52: 24063732.19 | AR52: 5485.413049 | AS52: 2400.838375 | AT52: 2015.951078 | AU52: 2401.338375 | AV52: 2080.548922 | AW52: 6.509098 | AX52: 29.672285 | AY52: 1173100.303 | AZ52: 907.920277 | BA52: 1573.039939 | BB52: 11.690784 | BC52: 0.001476 | BD52: 745.753667 | BE52: 5879.098633 | BF52: 1292.074131 | BG52: 1550.539103 | BH52: 3030 | BI52: 20.227614 | BJ52: 17.712661 | BK52: 17.681767 | BL52: 17.743554 | BM52: 297.401344 | BN52: 0.999963 | BO52: 964185.4076 | BP52: 1892.164455 | BQ52: 1262.58476 | BR52: 1892.664455 | BS52: 2833.91524 | BT52: 6.51327 | BU52: 29.591805 | BV52: 8303360.851 | BW52: 2865.207153 | BX52: 9.453 | BY52: 0.000375 | BZ52: 2897.996692 | CA52: 30277.16797 | CB52: 9145.47352 | CC52: 1583.948716 | CD52: 20.406793 | CE52: 17.633872 | CF52: 17.706328 | CG52: 17.561416 | CH52: 331.648497 | CI52: 0.999776 | CJ52: 48178590.22 | CK52: 1159.958141 | CL52: 3179.697951 | CM52: 1160.458141 | CN52: 916.802049 | CO52: 6.51931 | CP52: 29.796421 | CQ52: 7006502.851 | CR52: 2677.898147 | CS52: 9.747 | CT52: 0.000415 | CU52: 2616.418723 | CV52: 31437.27539 | CW52: 7717.090398 | CX52: 1587.160219 | CY52: 17.789846 | CZ52: 16.732882 | DA52: 16.707961 | DB52: 16.757803 | DC52: 47.118638 | DD52: 0.998375 | DE52: 44929908.4 | DF52: 2162.830747 | DG52: 1601.224198 | DH52: 2163.330747 | DI52: 2495.275802 | DJ52: 6.51105 | DK52: 29.627979 | DL52: 3600781.006 | DM52: 2103.338278 | DN52: 10.568 | DO52: 0.000634 | DP52: 1711.936232 | DQ52: 14138.29688 | DR52: 3965.966063 | DS52: 1560.560991 | DT52: 20.406271 | DU52: 17.763326 | DV52: 17.815066 | DW52: 17.711586 | DX52: 342.00586 | DY52: 0.999948 | DZ52: 8757593.164 | EA52: 2964.097251 | EB52: 989.412416 | EC52: 2964.597251 | ED52: 3107.087584 | EE52: 6.504505 | EF52: 29.562531 | EG52: 2664791.835 | EH52: 1914.913936 | EI52: 10.984 | EJ52: 0.00078 | EK52: 1391.598747 | EL52: 11433.83106 | EM52: 2935.050469 | EN52: 1566.808457 | EO52: 19.128523 | EP52: 17.05909 | EQ52: 17.076516 | ER52: 17.041663 | ES52: 42.505586 | ET52: 0.999448 | EU52: 5726564.252 | EV52: 3796.735452 | EW52: 2084.419536 | EX52: 3797.235452 | EY52: 2012.080464 | EZ52: 6.49766 | FA52: 29.679268 | FB52: 1337087.268 | FC52: 1624.70274 | FD52: 11.697 | FE52: 0.001318 | FF52: 822.97348 | FG52: 7458.556641 | FH52: 1472.692374 | FI52: 1597.963725 | FJ52: 17.6345 | FK52: 16.450317 | FL52: 16.090642 | FM52: 16.809993 | FN52: 89.959561 | FO52: 0.99809 | FP52: 1731962.93 | FQ52: 2431.960632 | FR52: 2346.048915 | FS52: 2432.460632 | FT52: 1750.451085 | FU52: 6.508843 | FV52: 29.707565 | FW52: 691200.7111 | FX52: 1441.197164 | FY52: 12.285 | FZ52: 0.002261 | GA52: 479.60177 | GB52: 4114.271484 | GC52: 761.301106 | GD52: 1549.447001 | GE52: 20.07956 | GF52: 17.573776 | GG52: 17.597978 | GH52: 17.549574 | GI52: 20.448984 | GJ52: 0.999987 | GK52: 349114.4315 | GL52: 1205.622175 | GM52: 2257.912224 | GN52: 1206.122175 | GO52: 1838.587776 | GP52: 6.518904 | GQ52: 29.697948 | GR52: 460007.6669 | GS52: 1378.974349 | GT52: 12.782 | GU52: 0.00325 | GV52: 333.586819 | GW52: 3351.935303 | GX52: 506.660858 | GY52: 1558.871272 | GZ52: 19.603608 | HA52: 17.343198 | HB52: 17.193645 | HC52: 17.49275 | HD52: 89.985422 | HE52: 0.999703 | HF52: 164939.8149
A53: 52 | B53: WASP-12b_00091_bdf.fits | C53: 52 | D53: 0 | E53: 56319.58483 | F53: 2456319.585 | G53: 2456319.584 | H53: 2456319.59 | I53: 2456319.59 | J53: 1.089138 | K53: -20.02 | L53: 100 | M53: 6.50911 | N53: 29.672297 | O53: 22.202234 | P53: 17 | Q53: 30 | R53: 45 | S53: 0.04876 | T53: 0.527199 | U53: 0.410939 | V53: 0.175933 | W53: 0.12427 | X53: 0.05874 | Y53: 0.029572 | Z53: 0.019567 | AA53: 6.6e-05 | AB53: 0.00024 | AC53: 0.000195 | AD53: 0.000112 | AE53: 9.4e-05 | AF53: 7.3e-05 | AG53: 6.2e-05 | AH53: 5.9e-05 | AI53: 736.979845 | AJ53: 2197.866131 | AK53: 2109.396652 | AL53: 1577.279652 | AM53: 1317.858058 | AN53: 806.581008 | AO53: 476.756049 | AP53: 333.316549 | AQ53: 24097299.1 | AR53: 5492.652036 | AS53: 2398.663467 | AT53: 2014.353829 | AU53: 2399.163467 | AV53: 2082.146171 | AW53: 6.509098 | AX53: 29.672287 | AY53: 1174993.949 | AZ53: 907.920277 | BA53: 1571.680496 | BB53: 11.690547 | BC53: 0.001472 | BD53: 747.60357 | BE53: 5879.201172 | BF53: 1294.159828 | BG53: 1553.433758 | BH53: 2970 | BI53: 20.428215 | BJ53: 17.732251 | BK53: 17.6805 | BL53: 17.784002 | BM53: 52.233712 | BN53: 0.999454 | BO53: 953878.7021 | BP53: 1890.03869 | BQ53: 1260.958441 | BR53: 1890.53869 | BS53: 2835.541559 | BT53: 6.51327 | BU53: 29.591803 | BV53: 8318547.769 | BW53: 2868.112323 | BX53: 9.453 | BY53: 0.000374 | BZ53: 2900.356343 | CA53: 30790.55859 | CB53: 9162.200669 | CC53: 1591.577683 | CD53: 20.367385 | CE53: 17.654867 | CF53: 17.635493 | CG53: 17.674241 | CH53: 48.176504 | CI53: 0.999607 | CJ53: 48240036.02 | CK53: 1157.689595 | CL53: 3178.131703 | CM53: 1158.189595 | CN53: 918.368297 | CO53: 6.51931 | CP53: 29.796415 | CQ53: 7018393.202 | CR53: 2681.363737 | CS53: 9.747 | CT53: 0.000415 | CU53: 2617.471515 | CV53: 31944.03125 | CW53: 7730.186648 | CX53: 1589.335203 | CY53: 18.019293 | CZ53: 16.721629 | DA53: 16.6318 | DB53: 16.811458 | DC53: 49.982608 | DD53: 0.996145 | DE53: 45036030.72 | DF53: 2160.791912 | DG53: 1599.558497 | DH53: 2161.291912 | DI53: 2496.941503 | DJ53: 6.51105 | DK53: 29.627974 | DL53: 3605232.852 | DM53: 2104.232303 | DN53: 10.568 | DO53: 0.000634 | DP53: 1713.324545 | DQ53: 14597.96094 | DR53: 3970.869408 | DS53: 1563.336761 | DT53: 20.55213 | DU53: 17.784889 | DV53: 17.783696 | DW53: 17.786083 | DX53: 45.166055 | DY53: 0.999464 | DZ53: 8722601.737 | EA53: 2961.954107 | EB53: 987.782581 | EC53: 2962.454107 | ED53: 3108.717419 | EE53: 6.504505 | EF53: 29.562534 | EG53: 2663575.029 | EH53: 1917.254628 | EI53: 10.984 | EJ53: 0.000781 | EK53: 1389.265146 | EL53: 11792.05078 | EM53: 2933.710258 | EN53: 1571.240379 | EO53: 19.023737 | EP53: 17.113113 | EQ53: 17.088437 | ER53: 17.13779 | ES53: 46.760836 | ET53: 0.997796 | EU53: 5678471.835 | EV53: 3794.707693 | EW53: 2082.773293 | EX53: 3795.207693 | EY53: 2013.726707 | EZ53: 6.497659 | FA53: 29.679272 | FB53: 1336950.972 | FC53: 1628.661532 | FD53: 11.697 | FE53: 0.001322 | FF53: 820.889391 | FG53: 7625.836914 | FH53: 1472.542255 | FI53: 1605.147626 | FJ53: 17.44845 | FK53: 16.428876 | FL53: 15.984214 | FM53: 16.873537 | FN53: 76.889861 | FO53: 0.996364 | FP53: 1739817.737 | FQ53: 2429.723236 | FR53: 2344.391648 | FS53: 2430.223236 | FT53: 1752.108352 | FU53: 6.508844 | FV53: 29.707559 | FW53: 692147.8368 | FX53: 1443.302089 | FY53: 12.285 | FZ53: 0.002262 | GA53: 479.558536 | GB53: 4108.999512 | GC53: 762.344288 | GD53: 1553.969207 | GE53: 19.950595 | GF53: 17.62385 | GG53: 17.589962 | GH53: 17.657738 | GI53: 51.153873 | GJ53: 0.999675 | GK53: 344669.8971 | GL53: 1203.552278 | GM53: 2256.382852 | GN53: 1204.052278 | GO53: 1840.117148 | GP53: 6.518904 | GQ53: 29.697952 | GR53: 462451.4352 | GS53: 1383.520294 | GT53: 12.782 | GU53: 0.003243 | GV53: 334.257067 | GW53: 3390.006836 | GX53: 509.35247 | GY53: 1562.519815 | GZ53: 19.775646 | HA53: 17.404368 | HB53: 17.20566 | HC53: 17.603076 | HD53: 64.913265 | HE53: 0.998729 | HF53: 162006.4578
A54: 53 | B54: WASP-12b_00092_bdf.fits | C54: 53 | D54: 0 | E54: 56319.58621 | F54: 2456319.586 | G54: 2456319.586 | H54: 2456319.591 | I54: 2456319.592 | J54: 1.08607 | K54: -20.03 | L54: 100 | M54: 6.50911 | N54: 29.672297 | O54: 21.713344 | P54: 17 | Q54: 30 | R54: 45 | S54: 0.04865 | T54: 0.527153 | U54: 0.409836 | V54: 0.176384 | W54: 0.12442 | X54: 0.058774 | Y54: 0.029585 | Z54: 0.019658 | AA54: 6.4e-05 | AB54: 0.000235 | AC54: 0.00019 | AD54: 0.000109 | AE54: 9.2e-05 | AF54: 7.1e-05 | AG54: 6e-05 | AH54: 5.7e-05 | AI54: 755.783808 | AJ54: 2245.422809 | AK54: 2155.30091 | AL54: 1614.294203 | AM54: 1350.466953 | AN54: 829.20883 | AO54: 490.691304 | AP54: 344.965345 | AQ54: 24899858.27 | AR54: 5547.522831 | AS54: 2401.194304 | AT54: 2015.300631 | AU54: 2401.694304 | AV54: 2081.199369 | AW54: 6.509098 | AX54: 29.672266 | AY54: 1211385.066 | AZ54: 907.920277 | BA54: 1579.933766 | BB54: 11.693001 | BC54: 0.001436 | BD54: 766.731551 | BE54: 6590.674805 | BF54: 1334.24167 | BG54: 1551.758836 | BH54: 2980 | BI54: 19.779426 | BJ54: 17.214895 | BK54: 17.143708 | BL54: 17.286083 | BM54: 273.002963 | BN54: 0.999931 | BO54: 1274434.254 | BP54: 1892.561827 | BQ54: 1261.992126 | BR54: 1893.061827 | BS54: 2834.507874 | BT54: 6.513271 | BU54: 29.591794 | BV54: 8595098.519 | BW54: 2906.505231 | BX54: 9.453 | BY54: 0.000367 | BZ54: 2957.193548 | CA54: 36616.90625 | CB54: 9466.798724 | CC54: 1582.096299 | CD54: 19.902464 | CE54: 17.069012 | CF54: 17.009682 | CG54: 17.128342 | CH54: 297.386746 | CI54: 0.999855 | CJ54: 64976426.02 | CK54: 1160.249557 | CL54: 3178.971064 | CM54: 1160.749557 | CN54: 917.528936 | CO54: 6.519311 | CP54: 29.796364 | CQ54: 7238325.138 | CR54: 2709.790643 | CS54: 9.747 | CT54: 0.000406 | CU54: 2671.175043 | CV54: 37702.05078 | CW54: 7972.423705 | CX54: 1581.70946 | CY54: 17.687594 | CZ54: 16.012282 | DA54: 15.853712 | DB54: 16.170853 | DC54: 55.782482 | DD54: 0.997097 | DE54: 60677205.42 | DF54: 2163.252719 | DG54: 1600.524879 | DH54: 2163.752719 | DI54: 2495.975121 | DJ54: 6.51105 | DK54: 29.627956 | DL54: 3733426.2 | DM54: 2128.912852 | DN54: 10.568 | DO54: 0.000619 | DP54: 1753.677327 | DQ54: 16684.97852 | DR54: 4112.063906 | DS54: 1560.853263 | DT54: 20.023851 | DU54: 17.276689 | DV54: 17.267836 | DW54: 17.285543 | DX54: 294.293283 | DY54: 0.999998 | DZ54: 11714385.27 | EA54: 2964.466714 | EB54: 988.8456 | EC54: 2964.966714 | ED54: 3107.6544 | EE54: 6.504505 | EF54: 29.562528 | EG54: 2755239.413 | EH54: 1934.945975 | EI54: 10.984 | EJ54: 0.000762 | EK54: 1423.936094 | EL54: 13913.62891 | EM54: 3034.671087 | EN54: 1568.709066 | EO54: 18.65759 | EP54: 16.398187 | EQ54: 16.345099 | ER54: 16.451275 | ES54: 51.558961 | ET54: 0.999186 | EU54: 7692240.452 | EV54: 3797.020178 | EW54: 2083.754301 | EX54: 3797.520178 | EY54: 2012.745699 | EZ54: 6.497659 | FA54: 29.67928 | FB54: 1382229 | FC54: 1637.557107 | FD54: 11.697 | FE54: 0.001286 | FF54: 844.079876 | FG54: 9539.231445 | FH54: 1522.412303 | FI54: 1603.370202 | FJ54: 16.860625 | FK54: 15.666172 | FL54: 15.248871 | FM54: 16.083472 | FN54: 273.354438 | FO54: 0.997127 | FP54: 2363480.409 | FQ54: 2432.25191 | FR54: 2345.250827 | FS54: 2432.75191 | FT54: 1751.249173 | FU54: 6.508844 | FV54: 29.707525 | FW54: 715496.7957 | FX54: 1449.508759 | FY54: 12.285 | FZ54: 0.002197 | GA54: 493.613296 | GB54: 4801.826172 | GC54: 788.061258 | GD54: 1552.583846 | GE54: 19.586612 | GF54: 17.042699 | GG54: 16.871966 | GH54: 17.213433 | GI54: 87.612273 | GJ54: 0.999596 | GK54: 472754.6797 | GL54: 1205.994007 | GM54: 2257.300993 | GN54: 1206.494007 | GO54: 1839.199007 | GP54: 6.518904 | GQ54: 29.697931 | GR54: 480043.2079 | GS54: 1387.557854 | GT54: 12.782 | GU54: 0.003134 | GV54: 345.962661 | GW54: 3714.229736 | GX54: 528.72837 | GY54: 1560.755581 | GZ54: 19.006351 | HA54: 16.800231 | HB54: 16.482325 | HC54: 17.118138 | HD54: 270.602836 | HE54: 0.998568 | HF54: 223582.0444
A55: 54 | B55: WASP-12b_00093_bdf.fits | C55: 54 | D55: 0 | E55: 56319.58759 | F55: 2456319.588 | G55: 2456319.587 | H55: 2456319.592 | I55: 2456319.593 | J55: 1.083073 | K55: -19.98 | L55: 100 | M55: 6.50911 | N55: 29.672297 | O55: 21.433218 | P55: 17 | Q55: 30 | R55: 45 | S55: 0.048591 | T55: 0.527733 | U55: 0.409036 | V55: 0.176651 | W55: 0.12452 | X55: 0.058677 | Y55: 0.029681 | Z55: 0.019532 | AA55: 6.4e-05 | AB55: 0.000234 | AC55: 0.000189 | AD55: 0.000109 | AE55: 9.2e-05 | AF55: 7.1e-05 | AG55: 6e-05 | AH55: 5.7e-05 | AI55: 757.832018 | AJ55: 2252.916425 | AK55: 2160.206091 | AL55: 1622.840706 | AM55: 1354.581115 | AN55: 831.669228 | AO55: 494.049455 | AP55: 345.165374 | AQ55: 24972017.3 | AR55: 5544.890398 | AS55: 2399.277331 | AT55: 2016.295575 | AU55: 2399.777331 | AV55: 2080.204425 | AW55: 6.509098 | AX55: 29.672267 | AY55: 1213405.089 | AZ55: 907.920277 | BA55: 1578.32158 | BB55: 11.694334 | BC55: 0.001432 | BD55: 768.794588 | BE55: 6986.418945 | BF55: 1336.46656 | BG55: 1547.943877 | BH55: 3077 | BI55: 19.624445 | BJ55: 16.958736 | BK55: 16.808182 | BL55: 17.109289 | BM55: 65.595274 | BN55: 0.999273 | BO55: 1395382.695 | BP55: 1890.604504 | BQ55: 1262.986028 | BR55: 1891.104504 | BS55: 2833.513972 | BT55: 6.513271 | BU55: 29.591794 | BV55: 8626213.931 | BW55: 2907.157534 | BX55: 9.453 | BY55: 0.000366 | BZ55: 2967.233056 | CA55: 38020.42188 | CB55: 9501.069809 | CC55: 1575.784096 | CD55: 19.562698 | CE55: 16.782064 | CF55: 16.706975 | CG55: 16.857153 | CH55: 60.042919 | CI55: 0.999681 | CJ55: 71146917.68 | CK55: 1158.321036 | CL55: 3179.920102 | CM55: 1158.821036 | CN55: 916.579898 | CO55: 6.519311 | CP55: 29.796356 | CQ55: 7249252.691 | CR55: 2710.452338 | CS55: 9.747 | CT55: 0.000406 | CU55: 2674.554571 | CV55: 38765.98438 | CW55: 7984.459512 | CX55: 1577.589604 | CY55: 17.555698 | CZ55: 15.799863 | DA55: 15.61925 | DB55: 15.980476 | DC55: 53.875537 | DD55: 0.994378 | DE55: 64439398.83 | DF55: 2161.328353 | DG55: 1601.512295 | DH55: 2161.828353 | DI55: 2494.987705 | DJ55: 6.51105 | DK55: 29.627956 | DL55: 3749056.114 | DM55: 2125.676235 | DN55: 10.568 | DO55: 0.000615 | DP55: 1763.700441 | DQ55: 17460.9082 | DR55: 4129.278979 | DS55: 1556.353365 | DT55: 19.720761 | DU55: 17.012876 | DV55: 16.970755 | DW55: 17.054997 | DX55: 50.826432 | DY55: 0.999399 | DZ55: 12821588.91 | EA55: 2962.538787 | EB55: 989.768157 | EC55: 2963.038787 | ED55: 3106.731843 | EE55: 6.504505 | EF55: 29.562522 | EG55: 2765184.697 | EH55: 1936.116176 | EI55: 10.984 | EJ55: 0.00076 | EK55: 1428.212176 | EL55: 14540.45508 | EM55: 3045.625004 | EN55: 1563.355057 | EO55: 18.504604 | EP55: 16.176799 | EQ55: 16.115597 | ER55: 16.238002 | ES55: 49.007144 | ET55: 0.997055 | EU55: 8392335.72 | EV55: 3795.166242 | EW55: 2084.664497 | EX55: 3795.666242 | EY55: 2011.835503 | EZ55: 6.49766 | FA55: 29.679281 | FB55: 1384066.302 | FC55: 1634.905804 | FD55: 11.697 | FE55: 0.001282 | FF55: 846.572505 | FG55: 9290.697266 | FH55: 1524.435942 | FI55: 1600.579499 | FJ55: 16.699892 | FK55: 15.443519 | FL55: 14.929677 | FM55: 15.957362 | FN55: 77.393953 | FO55: 0.994602 | FP55: 2541552.06 | FQ55: 2430.287784 | FR55: 2346.257008 | FS55: 2430.787784 | FT55: 1750.242992 | FU55: 6.508845 | FV55: 29.707527 | FW55: 719825.6165 | FX55: 1448.304211 | FY55: 12.285 | FZ55: 0.002182 | GA55: 497.012721 | GB55: 4899.680664 | GC55: 792.829101 | GD55: 1546.819263 | GE55: 19.216086 | GF55: 16.83585 | GG55: 16.651848 | GH55: 17.019852 | GI55: 68.855476 | GJ55: 0.999127 | GK55: 512539.8839 | GL55: 1204.031736 | GM55: 2258.333872 | GN55: 1204.531736 | GO55: 1838.166128 | GP55: 6.518905 | GQ55: 29.697936 | GR55: 478417.9526 | GS55: 1382.08008 | GT55: 12.782 | GU55: 0.003132 | GV55: 346.15791 | GW55: 3780.489502 | GX55: 526.938284 | GY55: 1558.071405 | GZ55: 18.86822 | HA55: 16.56877 | HB55: 16.264924 | HC55: 16.872616 | HD55: 69.552781 | HE55: 0.997647 | HF55: 237832.7032
A56: 55 | B56: WASP-12b_00094_bdf.fits | C56: 55 | D56: 0 | E56: 56319.58897 | F56: 2456319.589 | G56: 2456319.588 | H56: 2456319.594 | I56: 2456319.595 | J56: 1.080146 | K56: -19.96 | L56: 100 | M56: 6.50911 | N56: 29.672297 | O56: 21.582731 | P56: 17 | Q56: 30 | R56: 45 | S56: 0.048586 | T56: 0.528101 | U56: 0.40945 | V56: 0.176506 | W56: 0.124418 | X56: 0.058624 | Y56: 0.029549 | Z56: 0.019523 | AA56: 6.4e-05 | AB56: 0.000234 | AC56: 0.000189 | AD56: 0.000109 | AE56: 9.2e-05 | AF56: 7e-05 | AG56: 6e-05 | AH56: 5.6e-05 | AI56: 759.999523 | AJ56: 2255.740576 | AK56: 2163.426282 | AL56: 1623.227783 | AM56: 1354.946352 | AN56: 832.568284 | AO56: 494.757592 | AP56: 346.209488 | AQ56: 24975684.06 | AR56: 5538.035722 | AS56: 2400.603977 | AT56: 2015.292976 | AU56: 2401.103977 | AV56: 2081.207024 | AW56: 6.509098 | AX56: 29.672281 | AY56: 1213461.089 | AZ56: 907.920277 | BA56: 1573.825244 | BB56: 11.694444 | BC56: 0.001428 | BD56: 771.026576 | BE56: 6710.230469 | BF56: 1336.52824 | BG56: 1531.772329 | BH56: 3046 | BI56: 19.809919 | BJ56: 17.048636 | BK56: 16.965657 | BL56: 17.131615 | BM56: 56.947915 | BN56: 0.999423 | BO56: 1316195.822 | BP56: 1891.862596 | BQ56: 1261.939746 | BR56: 1892.362596 | BS56: 2834.560254 | BT56: 6.513272 | BU56: 29.591801 | BV56: 8631422.67 | BW56: 2905.605161 | BX56: 9.453 | BY56: 0.000365 | BZ56: 2970.611005 | CA56: 37596.54688 | CB56: 9506.806809 | CC56: 1560.572188 | CD56: 19.513024 | CE56: 16.870313 | CF56: 16.864118 | CG56: 16.876508 | CH56: 47.778603 | CI56: 0.999942 | CJ56: 68506609.04 | CK56: 1159.764 | CL56: 3178.914694 | CM56: 1160.264 | CN56: 917.585306 | CO56: 6.51931 | CP56: 29.796397 | CQ56: 7255515.087 | CR56: 2708.396627 | CS56: 9.747 | CT56: 0.000405 | CU56: 2678.896811 | CV56: 38030.90625 | CW56: 7991.35703 | CX56: 1562.127995 | CY56: 17.832136 | CZ56: 15.873715 | DA56: 15.799838 | DB56: 15.947592 | DC56: 49.319991 | DD56: 0.996161 | DE56: 61737901.92 | DF56: 2162.726286 | DG56: 1600.553034 | DH56: 2163.226286 | DI56: 2495.946966 | DJ56: 6.51105 | DK56: 29.627973 | DL56: 3746989.729 | DM56: 2124.531573 | DN56: 10.568 | DO56: 0.000615 | DP56: 1763.678062 | DQ56: 17382.76172 | DR56: 4127.003025 | DS56: 1541.042048 | DT56: 19.834245 | DU56: 17.062203 | DV56: 17.043079 | DW56: 17.081328 | DX56: 48.321058 | DY56: 0.999624 | DZ56: 12353337.96 | EA56: 2963.981263 | EB56: 988.772016 | EC56: 2964.481263 | ED56: 3107.727984 | EE56: 6.504505 | EF56: 29.562531 | EG56: 2763578.667 | EH56: 1934.745842 | EI56: 10.984 | EJ56: 0.00076 | EK56: 1428.393646 | EL56: 13968.67481 | EM56: 3043.856093 | EN56: 1548.17136 | EO56: 18.602685 | EP56: 16.266051 | EQ56: 16.298822 | ER56: 16.233279 | ES56: 42.765282 | ET56: 0.997326 | EU56: 7921314.447 | EV56: 3796.481346 | EW56: 2083.649864 | EX56: 3796.981346 | EY56: 2012.850136 | EZ56: 6.49766 | FA56: 29.679274 | FB56: 1383089.635 | FC56: 1632.005733 | FD56: 11.697 | FE56: 0.00128 | FF56: 847.478417 | FG56: 8990.166992 | FH56: 1523.360222 | FI56: 1587.156567 | FJ56: 16.946826 | FK56: 15.56069 | FL56: 15.195248 | FM56: 15.926131 | FN56: 75.078841 | FO56: 0.997071 | FP56: 2377424.461 | FQ56: 2431.693941 | FR56: 2345.289614 | FS56: 2432.193941 | FT56: 1751.210386 | FU56: 6.508844 | FV56: 29.70755 | FW56: 716815.3411 | FX56: 1440.179054 | FY56: 12.285 | FZ56: 0.002179 | GA56: 497.726543 | GB56: 4637.635742 | GC56: 789.513528 | GD56: 1531.167017 | GE56: 19.55029 | GF56: 16.911821 | GG56: 16.811427 | GH56: 17.012215 | GI56: 65.528534 | GJ56: 0.999673 | GK56: 475929.6781 | GL56: 1205.482543 | GM56: 2257.23174 | GN56: 1205.982543 | GO56: 1839.26826 | GP56: 6.518904 | GQ56: 29.697941 | GR56: 478272.9263 | GS56: 1377.480206 | GT56: 12.782 | GU56: 0.003123 | GV56: 347.208565 | GW56: 3695.114746 | GX56: 526.778549 | GY56: 1540.974735 | GZ56: 19.139507 | HA56: 16.581951 | HB56: 16.310101 | HC56: 16.853802 | HD56: 71.722764 | HE56: 0.998335 | HF56: 229046.1787
A57: 56 | B57: WASP-12b_00095_bdf.fits | C57: 56 | D57: 0 | E57: 56319.59035 | F57: 2456319.59 | G57: 2456319.59 | H57: 2456319.595 | I57: 2456319.596 | J57: 1.07729 | K57: -19.97 | L57: 100 | M57: 6.50911 | N57: 29.672297 | O57: 21.488583 | P57: 17 | Q57: 30 | R57: 45 | S57: 0.048498 | T57: 0.527544 | U57: 0.409335 | V57: 0.176604 | W57: 0.124534 | X57: 0.058696 | Y57: 0.029678 | Z57: 0.01947 | AA57: 6.4e-05 | AB57: 0.000234 | AC57: 0.000189 | AD57: 0.000109 | AE57: 9.2e-05 | AF57: 7.1e-05 | AG57: 6e-05 | AH57: 5.6e-05 | AI57: 759.745163 | AJ57: 2254.811097 | AK57: 2162.293802 | AL57: 1623.460096 | AM57: 1358.281528 | AN57: 830.894526 | AO57: 495.587738 | AP57: 344.736479 | AQ57: 24984798.09 | AR57: 5542.278842 | AS57: 2398.104948 | AT57: 2015.749935 | AU57: 2398.604948 | AV57: 2080.750065 | AW57: 6.509098 | AX57: 29.672287 | AY57: 1211723.633 | AZ57: 907.920277 | BA57: 1572.094923 | BB57: 11.696395 | BC57: 0.001428 | BD57: 770.770019 | BE57: 6979.80957 | BF57: 1334.614573 | BG57: 1534.804502 | BH57: 3012 | BI57: 19.461076 | BJ57: 16.9731 | BK57: 16.827483 | BL57: 17.118718 | BM57: 74.301347 | BN57: 0.999596 | BO57: 1356266.37 | BP57: 1889.460091 | BQ57: 1262.339435 | BR57: 1889.960091 | BS57: 2834.160565 | BT57: 6.513271 | BU57: 29.591801 | BV57: 8628604.462 | BW57: 2906.202276 | BX57: 9.453 | BY57: 0.000366 | BZ57: 2969.030935 | CA57: 37154.59375 | CB57: 9503.702783 | CC57: 1563.722227 | CD57: 19.777691 | CE57: 16.927287 | CF57: 16.911348 | CG57: 16.943226 | CH57: 76.209351 | CI57: 0.999995 | CJ57: 67286834.24 | CK57: 1157.503207 | CL57: 3179.392388 | CM57: 1158.003207 | CN57: 917.107612 | CO57: 6.519309 | CP57: 29.796405 | CQ57: 7256716.78 | CR57: 2710.57646 | CS57: 9.747 | CT57: 0.000405 | CU57: 2677.185789 | CV57: 36547.4375 | CW57: 7992.680596 | CX57: 1565.277426 | CY57: 17.610089 | CZ57: 15.90972 | DA57: 15.836561 | DB57: 15.982879 | DC57: 50.754487 | DD57: 0.997875 | DE57: 60686660.55 | DF57: 2160.209091 | DG57: 1600.949659 | DH57: 2160.709091 | DI57: 2495.550341 | DJ57: 6.51105 | DK57: 29.627973 | DL57: 3750118.736 | DM57: 2125.747743 | DN57: 10.568 | DO57: 0.000615 | DP57: 1764.140994 | DQ57: 17393.46875 | DR57: 4130.449371 | DS57: 1544.598572 | DT57: 19.773963 | DU57: 17.009912 | DV57: 16.905494 | DW57: 17.114331 | DX57: 78.731711 | DY57: 0.999823 | DZ57: 12597467.96 | EA57: 2961.270258 | EB57: 989.153725 | EC57: 2961.770258 | ED57: 3107.346275 | EE57: 6.504506 | EF57: 29.562522 | EG57: 2766879.601 | EH57: 1931.588967 | EI57: 10.984 | EJ57: 0.000758 | EK57: 1432.43705 | EL57: 14132.81445 | EM57: 3047.491803 | EN57: 1553.351676 | EO57: 18.456505 | EP57: 16.228966 | EQ57: 16.222748 | ER57: 16.235185 | ES57: 45.628425 | ET57: 0.998779 | EU57: 8131276.612 | EV57: 3793.953198 | EW57: 2084.22402 | EX57: 3794.453198 | EY57: 2012.27598 | EZ57: 6.497659 | FA57: 29.679275 | FB57: 1385192.682 | FC57: 1637.886936 | FD57: 11.697 | FE57: 0.001283 | FF57: 845.719354 | FG57: 8948.878906 | FH57: 1525.676557 | FI57: 1591.231123 | FJ57: 16.870017 | FK57: 15.501161 | FL57: 15.064426 | FM57: 15.937896 | FN57: 83.918253 | FO57: 0.996683 | FP57: 2445083.147 | FQ57: 2429.17105 | FR57: 2345.749867 | FS57: 2429.67105 | FT57: 1750.750133 | FU57: 6.508844 | FV57: 29.707555 | FW57: 720123.7865 | FX57: 1444.366952 | FY57: 12.285 | FZ57: 0.002176 | GA57: 498.573985 | GB57: 4989.148926 | GC57: 793.15751 | GD57: 1535.104345 | GE57: 19.261756 | GF57: 16.882296 | GG57: 16.707649 | GH57: 17.056943 | GI57: 88.665226 | GJ57: 0.999571 | GK57: 494192.2611 | GL57: 1202.995099 | GM57: 2257.827352 | GN57: 1203.495099 | GO57: 1838.672648 | GP57: 6.518904 | GQ57: 29.697963 | GR57: 477162.0406 | GS57: 1380.184564 | GT57: 12.782 | GU57: 0.003136 | GV57: 345.723357 | GW57: 3722.205078 | GX57: 525.554999 | GY57: 1545.650491 | GZ57: 19.114838 | HA57: 16.702696 | HB57: 16.555196 | HC57: 16.850196 | HD57: 71.83524 | HE57: 0.999519 | HF57: 218710.16
A58: 57 | B58: WASP-12b_00096_bdf.fits | C58: 57 | D58: 0 | E58: 56319.59173 | F58: 2456319.592 | G58: 2456319.591 | H58: 2456319.597 | I58: 2456319.597 | J58: 1.074502 | K58: -19.93 | L58: 100 | M58: 6.50911 | N58: 29.672297 | O58: 21.377451 | P58: 17 | Q58: 30 | R58: 45 | S58: 0.048598 | T58: 0.527416 | U58: 0.409315 | V58: 0.176754 | W58: 0.12446 | X58: 0.058647 | Y58: 0.029614 | Z58: 0.019592 | AA58: 6.4e-05 | AB58: 0.000233 | AC58: 0.000189 | AD58: 0.000109 | AE58: 9.2e-05 | AF58: 7e-05 | AG58: 6e-05 | AH58: 5.6e-05 | AI58: 762.23004 | AJ58: 2259.120306 | AK58: 2166.515749 | AL58: 1627.393381 | AM58: 1359.726976 | AN58: 833.206744 | AO58: 496.806035 | AP58: 347.70293 | AQ58: 25067148.91 | AR58: 5548.73035 | AS58: 2401.009204 | AT58: 2014.520549 | AU58: 2401.509204 | AV58: 2081.979451 | AW58: 6.509099 | AX58: 29.672276 | AY58: 1218201.753 | AZ58: 907.920277 | BA58: 1575.294744 | BB58: 11.694179 | BC58: 0.001423 | BD58: 773.316713 | BE58: 7002.01709 | BF58: 1341.749693 | BG58: 1531.692156 | BH58: 2985 | BI58: 19.533244 | BJ58: 16.920139 | BK58: 16.678247 | BL58: 17.162031 | BM58: 71.253224 | BN58: 0.998702 | BO58: 1424086.636 | BP58: 1892.422665 | BQ58: 1261.281249 | BR58: 1892.922665 | BS58: 2835.218751 | BT58: 6.513271 | BU58: 29.591809 | BV58: 8655676.76 | BW58: 2910.717674 | BX58: 9.453 | BY58: 0.000365 | BZ58: 2973.725978 | CA58: 38358.30078 | CB58: 9533.520707 | CC58: 1560.293857 | CD58: 19.52346 | CE58: 16.744369 | CF58: 16.602865 | CG58: 16.885873 | CH58: 69.860183 | CI58: 0.999509 | CJ58: 72679377.45 | CK58: 1160.334058 | CL58: 3178.01391 | CM58: 1160.834058 | CN58: 918.48609 | CO58: 6.51931 | CP58: 29.796381 | CQ58: 7280381.96 | CR58: 2714.525624 | CS58: 9.747 | CT58: 0.000405 | CU58: 2682.008929 | CV58: 41034.30859 | CW58: 8018.745859 | CX58: 1560.384564 | CY58: 17.341834 | CZ58: 15.67 | DA58: 15.434563 | DB58: 15.905438 | DC58: 56.649817 | DD58: 0.994231 | DE58: 67436253.05 | DF58: 2163.126735 | DG58: 1599.832541 | DH58: 2163.626735 | DI58: 2496.667459 | DJ58: 6.51105 | DK58: 29.627974 | DL58: 3765204.051 | DM58: 2129.002805 | DN58: 10.568 | DO58: 0.000614 | DP58: 1768.529399 | DQ58: 17847.11133 | DR58: 4147.064613 | DS58: 1540.692759 | DT58: 19.584607 | DU58: 16.911482 | DV58: 16.725262 | DW58: 17.097703 | DX58: 67.561963 | DY58: 0.999034 | DZ58: 13332097.18 | EA58: 2964.465576 | EB58: 988.008349 | EC58: 2964.965576 | ED58: 3108.491651 | EE58: 6.504505 | EF58: 29.562525 | EG58: 2774539.422 | EH58: 1935.142301 | EI58: 10.984 | EJ58: 0.000757 | EK58: 1433.765063 | EL58: 14471.57519 | EM58: 3055.92847 | EN58: 1549.951645 | EO58: 18.567925 | EP58: 16.141504 | EQ58: 16.022986 | ER58: 16.260022 | ES58: 53.102872 | ET58: 0.997232 | EU58: 8500518.833 | EV58: 3797.107212 | EW58: 2082.936477 | EX58: 3797.607212 | EY58: 2013.563523 | EZ58: 6.49766 | FA58: 29.679273 | FB58: 1388681.322 | FC58: 1637.411313 | FD58: 11.697 | FE58: 0.001279 | FF58: 848.095595 | FG58: 9623.831055 | FH58: 1529.519009 | FI58: 1590.069294 | FJ58: 16.884632 | FK58: 15.383677 | FL58: 14.881988 | FM58: 15.885367 | FN58: 81.094125 | FO58: 0.995317 | FP58: 2584606.579 | FQ58: 2432.120471 | FR58: 2344.423881 | FS58: 2432.620471 | FT58: 1752.076119 | FU58: 6.508844 | FV58: 29.707534 | FW58: 720992.3519 | FX58: 1442.555107 | FY58: 12.285 | FZ58: 0.00217 | GA58: 499.802294 | GB58: 4979.033691 | GC58: 794.114164 | GD58: 1531.463472 | GE58: 19.301661 | GF58: 16.808418 | GG58: 16.547912 | GH58: 17.068923 | GI58: 79.570635 | GJ58: 0.9989 | GK58: 516936.7256 | GL58: 1206.000125 | GM58: 2256.408138 | GN58: 1206.500125 | GO58: 1840.091862 | GP58: 6.518904 | GQ58: 29.697936 | GR58: 481673.0388 | GS58: 1381.293614 | GT58: 12.782 | GU58: 0.003109 | GV58: 348.711551 | GW58: 3973.349365 | GX58: 530.523495 | GY58: 1541.705122 | GZ58: 18.793659 | HA58: 16.531555 | HB58: 16.170101 | HC58: 16.893008 | HD58: 75.510527 | HE58: 0.997504 | HF58: 245863.8643
A59: 58 | B59: WASP-12b_00097_bdf.fits | C59: 58 | D59: 0 | E59: 56319.59311 | F59: 2456319.593 | G59: 2456319.593 | H59: 2456319.598 | I59: 2456319.599 | J59: 1.071783 | K59: -19.95 | L59: 100 | M59: 6.50911 | N59: 29.672297 | O59: 21.321989 | P59: 17 | Q59: 30 | R59: 45 | S59: 0.048486 | T59: 0.527335 | U59: 0.409903 | V59: 0.176526 | W59: 0.124395 | X59: 0.05872 | Y59: 0.029568 | Z59: 0.019523 | AA59: 6.4e-05 | AB59: 0.000234 | AC59: 0.00019 | AD59: 0.000109 | AE59: 9.2e-05 | AF59: 7.1e-05 | AG59: 6e-05 | AH59: 5.6e-05 | AI59: 758.29536 | AJ59: 2250.165755 | AK59: 2159.065655 | AL59: 1619.774286 | AM59: 1352.195694 | AN59: 832.07321 | AO59: 492.469075 | AP59: 345.620936 | AQ59: 24891741.16 | AR59: 5532.19314 | AS59: 2398.868403 | AT59: 2015.208462 | AU59: 2399.368403 | AV59: 2081.291538 | AW59: 6.509098 | AX59: 29.672276 | AY59: 1206906.633 | AZ59: 907.920277 | BA59: 1568.839106 | BB59: 11.696669 | BC59: 0.001431 | BD59: 769.299177 | BE59: 6867.3125 | BF59: 1329.309041 | BG59: 1527.201388 | BH59: 3047 | BI59: 19.520509 | BJ59: 17.03877 | BK59: 16.821485 | BL59: 17.256054 | BM59: 82.41785 | BN59: 0.999302 | BO59: 1309837.67 | BP59: 1890.283616 | BQ59: 1261.880471 | BR59: 1890.783616 | BS59: 2834.619529 | BT59: 6.513271 | BU59: 29.591801 | BV59: 8594243.307 | BW59: 2901.336844 | BX59: 9.453 | BY59: 0.000366 | BZ59: 2962.166674 | CA59: 37635.82031 | CB59: 9465.856779 | CC59: 1556.738984 | CD59: 19.576683 | CE59: 16.917563 | CF59: 16.770894 | CG59: 17.064232 | CH59: 273.294443 | CI59: 0.999695 | CJ59: 66967675.03 | CK59: 1158.064521 | CL59: 3178.827605 | CM59: 1158.564521 | CN59: 917.672395 | CO59: 6.519311 | CP59: 29.79638 | CQ59: 7236807.774 | CR59: 2706.070044 | CS59: 9.747 | CT59: 0.000406 | CU59: 2674.286939 | CV59: 40071.51562 | CW59: 7970.752453 | CX59: 1558.540791 | CY59: 17.214389 | CZ59: 15.875629 | DA59: 15.702953 | DB59: 16.048305 | DC59: 56.80566 | DD59: 0.997051 | DE59: 62807270.43 | DF59: 2160.9606 | DG59: 1600.449509 | DH59: 2161.4606 | DI59: 2496.050491 | DJ59: 6.51105 | DK59: 29.627967 | DL59: 3734760.375 | DM59: 2122.028239 | DN59: 10.568 | DO59: 0.000617 | DP59: 1759.995606 | DQ59: 16996.32422 | DR59: 4113.533391 | DS59: 1536.957392 | DT59: 19.73023 | DU59: 17.074356 | DV59: 16.946098 | DW59: 17.202613 | DX59: 75.395061 | DY59: 0.999704 | DZ59: 12203114.67 | EA59: 2962.215905 | EB59: 988.664397 | EC59: 2962.715905 | ED59: 3107.835603 | EE59: 6.504505 | EF59: 29.562524 | EG59: 2753835.279 | EH59: 1931.776471 | EI59: 10.984 | EJ59: 0.000761 | EK59: 1425.545512 | EL59: 13840.55469 | EM59: 3033.124547 | EN59: 1545.18364 | EO59: 18.545345 | EP59: 16.309142 | EQ59: 16.167333 | ER59: 16.45095 | ES59: 57.669252 | ET59: 0.998349 | EU59: 7866290.211 | EV59: 3794.801047 | EW59: 2083.613937 | EX59: 3795.301047 | EY59: 2012.886063 | EZ59: 6.497659 | FA59: 29.679272 | FB59: 1380574.74 | FC59: 1629.899525 | FD59: 11.697 | FE59: 0.001281 | FF59: 847.03058 | FG59: 9286.117188 | FH59: 1520.590271 | FI59: 1587.00469 | FJ59: 16.670779 | FK59: 15.604628 | FL59: 15.078761 | FM59: 16.130496 | FN59: 86.154569 | FO59: 0.995385 | FP59: 2400919.941 | FQ59: 2429.973912 | FR59: 2345.184552 | FS59: 2430.473912 | FT59: 1751.315448 | FU59: 6.508844 | FV59: 29.70754 | FW59: 714853.9693 | FX59: 1442.956352 | FY59: 12.285 | FZ59: 0.002189 | GA59: 495.409281 | GB59: 4778.266113 | GC59: 787.353237 | GD59: 1527.747772 | GE59: 19.3 | GF59: 16.894606 | GG59: 16.626422 | GH59: 17.162789 | GI59: 81.045485 | GJ59: 0.998887 | GK59: 482804.92 | GL59: 1203.808196 | GM59: 2257.163585 | GN59: 1204.308196 | GO59: 1839.336415 | GP59: 6.518904 | GQ59: 29.697937 | GR59: 476665.7114 | GS59: 1375.183878 | GT59: 12.782 | GU59: 0.003128 | GV59: 346.619619 | GW59: 3798.771484 | GX59: 525.008333 | GY59: 1535.754883 | GZ59: 18.640526 | HA59: 16.593492 | HB59: 16.244723 | HC59: 16.942262 | HD59: 78.727573 | HE59: 0.99793 | HF59: 231241.998
A60: 59 | B60: WASP-12b_00098_bdf.fits | C60: 59 | D60: 0 | E60: 56319.59449 | F60: 2456319.594 | G60: 2456319.594 | H60: 2456319.599 | I60: 2456319.6 | J60: 1.069132 | K60: -19.95 | L60: 100 | M60: 6.50911 | N60: 29.672297 | O60: 21.645678 | P60: 17 | Q60: 30 | R60: 45 | S60: 0.048342 | T60: 0.527462 | U60: 0.409681 | V60: 0.176619 | W60: 0.12446 | X60: 0.058675 | Y60: 0.029578 | Z60: 0.019491 | AA60: 6.4e-05 | AB60: 0.000234 | AC60: 0.00019 | AD60: 0.000109 | AE60: 9.2e-05 | AF60: 7.1e-05 | AG60: 6e-05 | AH60: 5.7e-05 | AI60: 755.333768 | AJ60: 2251.212052 | AK60: 2159.265803 | AL60: 1621.027951 | AM60: 1352.630213 | AN60: 828.735182 | AO60: 492.68349 | AP60: 344.915816 | AQ60: 24908376.57 | AR60: 5535.429116 | AS60: 2402.128203 | AT60: 2016.419919 | AU60: 2402.628203 | AV60: 2080.080081 | AW60: 6.509098 | AX60: 29.672281 | AY60: 1204129.568 | AZ60: 907.920277 | BA60: 1571.549202 | BB60: 11.699895 | BC60: 0.001436 | BD60: 766.205453 | BE60: 6344.589844 | BF60: 1326.250331 | BG60: 1531.010569 | BH60: 3049 | BI60: 19.902978 | BJ60: 17.19167 | BK60: 17.072994 | BL60: 17.310347 | BM60: 78.321328 | BN60: 0.999774 | BO60: 1221284.221 | BP60: 1893.38864 | BQ60: 1263.127819 | BR60: 1893.88864 | BS60: 2833.372181 | BT60: 6.513271 | BU60: 29.591807 | BV60: 8601340.225 | BW60: 2900.76199 | BX60: 9.453 | BY60: 0.000366 | BZ60: 2965.200266 | CA60: 34796.05859 | CB60: 9473.673453 | CC60: 1561.101763 | CD60: 19.872958 | CE60: 17.06079 | CF60: 17.091639 | CG60: 17.029941 | CH60: 354.923347 | CI60: 0.999987 | CJ60: 63346864.64 | CK60: 1161.16367 | CL60: 3180.006516 | CM60: 1161.66367 | CN60: 916.493484 | CO60: 6.519311 | CP60: 29.796402 | CQ60: 7238860.555 | CR60: 2706.629079 | CS60: 9.747 | CT60: 0.000406 | CU60: 2674.493011 | CV60: 35938.21875 | CW60: 7973.013423 | CX60: 1563.32564 | CY60: 17.788078 | CZ60: 16.071631 | DA60: 16.017344 | DB60: 16.125918 | DC60: 48.694796 | DD60: 0.997241 | DE60: 58186971.03 | DF60: 2164.158794 | DG60: 1601.694769 | DH60: 2164.658794 | DI60: 2494.805231 | DJ60: 6.51105 | DK60: 29.627974 | DL60: 3738925.006 | DM60: 2122.430194 | DN60: 10.568 | DO60: 0.000616 | DP60: 1761.624489 | DQ60: 15846.25977 | DR60: 4118.120392 | DS60: 1540.118266 | DT60: 20.028537 | DU60: 17.227983 | DV60: 17.207179 | DW60: 17.248786 | DX60: 58.103 | DY60: 0.99997 | DZ60: 11477343.19 | EA60: 2965.452661 | EB60: 989.953872 | EC60: 2965.952661 | ED60: 3106.546128 | EE60: 6.504505 | EF60: 29.562535 | EG60: 2756958.085 | EH60: 1933.287958 | EI60: 10.984 | EJ60: 0.000761 | EK60: 1426.046272 | EL60: 13037.52539 | EM60: 3036.564063 | EN60: 1550.998216 | EO60: 18.672594 | EP60: 16.423322 | EQ60: 16.44216 | ER60: 16.404484 | ES60: 43.294106 | ET60: 0.998514 | EU60: 7494182.565 | EV60: 3798.116309 | EW60: 2084.881082 | EX60: 3798.616309 | EY60: 2011.618918 | EZ60: 6.49766 | FA60: 29.679275 | FB60: 1380508.778 | FC60: 1636.651288 | FD60: 11.697 | FE60: 0.001286 | FF60: 843.495978 | FG60: 8662.395508 | FH60: 1520.517619 | FI60: 1592.106628 | FJ60: 17.033418 | FK60: 15.721802 | FL60: 15.29169 | FM60: 16.151914 | FN60: 85.164167 | FO60: 0.996924 | FP60: 2285532.217 | FQ60: 2433.199446 | FR60: 2346.457675 | FS60: 2433.699446 | FT60: 1750.042325 | FU60: 6.508843 | FV60: 29.707554 | FW60: 715574.1013 | FX60: 1443.775074 | FY60: 12.285 | FZ60: 0.002188 | GA60: 495.627133 | GB60: 4543.281738 | GC60: 788.146404 | GD60: 1532.000133 | GE60: 19.432257 | GF60: 17.046633 | GG60: 16.949847 | GH60: 17.143419 | GI60: 66.975546 | GJ60: 0.999732 | GK60: 451443.6373 | GL60: 1206.865738 | GM60: 2258.469436 | GN60: 1207.365738 | GO60: 1838.030564 | GP60: 6.518904 | GQ60: 29.697956 | GR60: 476209.8186 | GS60: 1376.69468 | GT60: 12.782 | GU60: 0.003134 | GV60: 345.908084 | GW60: 3629.766113 | GX60: 524.506205 | GY60: 1540.793606 | GZ60: 19.112611 | HA60: 16.788501 | HB60: 16.532298 | HC60: 17.044704 | HD60: 74.542847 | HE60: 0.998735 | HF60: 212971.3768
A61: 60 | B61: WASP-12b_00099_bdf.fits | C61: 60 | D61: 0 | E61: 56319.59587 | F61: 2456319.596 | G61: 2456319.595 | H61: 2456319.601 | I61: 2456319.602 | J61: 1.066548 | K61: -19.94 | L61: 100 | M61: 6.50911 | N61: 29.672297 | O61: 21.427888 | P61: 17 | Q61: 30 | R61: 45 | S61: 0.048486 | T61: 0.527606 | U61: 0.409687 | V61: 0.176411 | W61: 0.124391 | X61: 0.058671 | Y61: 0.029583 | Z61: 0.019635 | AA61: 6.4e-05 | AB61: 0.000234 | AC61: 0.00019 | AD61: 0.000109 | AE61: 9.2e-05 | AF61: 7e-05 | AG61: 6e-05 | AH61: 5.7e-05 | AI61: 758.228661 | AJ61: 2253.011189 | AK61: 2159.937798 | AL61: 1621.134622 | AM61: 1355.284939 | AN61: 832.319753 | AO61: 492.359583 | AP61: 347.394271 | AQ61: 24925462.64 | AR61: 5534.337418 | AS61: 2399.768415 | AT61: 2014.369712 | AU61: 2400.268415 | AV61: 2082.130288 | AW61: 6.509098 | AX61: 29.672267 | AY61: 1208541.418 | AZ61: 907.920277 | BA61: 1571.150698 | BB61: 11.696669 | BC61: 0.001431 | BD61: 769.207829 | BE61: 7095.887207 | BF61: 1331.109624 | BG61: 1528.938687 | BH61: 3026 | BI61: 19.581563 | BJ61: 17.050958 | BK61: 16.936642 | BL61: 17.165275 | BM61: 60.996309 | BN61: 0.99936 | BO61: 1343419.83 | BP61: 1891.037023 | BQ61: 1261.152028 | BR61: 1891.537023 | BS61: 2835.347972 | BT61: 6.513271 | BU61: 29.591805 | BV61: 8608784.319 | BW61: 2901.21771 | BX61: 9.453 | BY61: 0.000366 | BZ61: 2967.300347 | CA61: 37981.54688 | CB61: 9481.872515 | CC61: 1558.198425 | CD61: 19.740645 | CE61: 16.927418 | CF61: 16.932488 | CG61: 16.922348 | CH61: 42.140801 | CI61: 0.999964 | CJ61: 68360993.44 | CK61: 1158.920599 | CL61: 3178.168231 | CM61: 1159.420599 | CN61: 918.331769 | CO61: 6.51931 | CP61: 29.796388 | CQ61: 7243903.053 | CR61: 2708.975077 | CS61: 9.747 | CT61: 0.000406 | CU61: 2674.038279 | CV61: 39293.67188 | CW61: 7978.567323 | CX61: 1560.191324 | CY61: 17.457692 | CZ61: 15.921606 | DA61: 15.845153 | DB61: 15.99806 | DC61: 49.567377 | DD61: 0.996341 | DE61: 62530018.16 | DF61: 2161.85035 | DG61: 1599.664347 | DH61: 2162.35035 | DI61: 2496.835653 | DJ61: 6.51105 | DK61: 29.627964 | DL61: 3737748.428 | DM61: 2122.003617 | DN61: 10.568 | DO61: 0.000616 | DP61: 1761.424155 | DQ61: 17709.3418 | DR61: 4116.824486 | DS61: 1538.591672 | DT61: 19.861302 | DU61: 17.134976 | DV61: 17.135222 | DW61: 17.134729 | DX61: 44.927975 | DY61: 0.999869 | DZ61: 12326538.96 | EA61: 2963.010401 | EB61: 988.044565 | EC61: 2963.510401 | ED61: 3108.455435 | EE61: 6.504506 | EF61: 29.562535 | EG61: 2757500.545 | EH61: 1929.610593 | EI61: 10.984 | EJ61: 0.000759 | EK61: 1429.045091 | EL61: 14315.67383 | EM61: 3037.161539 | EN61: 1548.378862 | EO61: 18.49895 | EP61: 16.308357 | EQ61: 16.329434 | ER61: 16.28728 | ES61: 43.274853 | ET61: 0.998155 | EU61: 8045949.048 | EV61: 3795.758235 | EW61: 2082.93426 | EX61: 3796.258235 | EY61: 2013.56574 | EZ61: 6.49766 | FA61: 29.679271 | FB61: 1381351.496 | FC61: 1630.375296 | FD61: 11.697 | FE61: 0.001281 | FF61: 847.259829 | FG61: 9694.612305 | FH61: 1521.445804 | FI61: 1592.546208 | FJ61: 16.592889 | FK61: 15.532027 | FL61: 15.074476 | FM61: 15.989577 | FN61: 78.987854 | FO61: 0.995968 | FP61: 2474511.379 | FQ61: 2430.775139 | FR61: 2344.482181 | FS61: 2431.275139 | FT61: 1752.017819 | FU61: 6.508844 | FV61: 29.707545 | FW61: 716183.7198 | FX61: 1445.984443 | FY61: 12.285 | FZ61: 0.00219 | GA61: 495.291442 | GB61: 5021.194824 | GC61: 788.817849 | GD61: 1530.905195 | GE61: 19.096682 | GF61: 16.918671 | GG61: 16.852608 | GH61: 16.984735 | GI61: 55.613196 | GJ61: 0.999535 | GK61: 491524.0702 | GL61: 1204.619011 | GM61: 2256.428714 | GN61: 1205.119011 | GO61: 1840.071286 | GP61: 6.518904 | GQ61: 29.697939 | GR61: 479991.0812 | GS61: 1377.675388 | GT61: 12.782 | GU61: 0.003112 | GV61: 348.406515 | GW61: 3819.832031 | GX61: 528.670957 | GY61: 1537.653844 | GZ61: 18.947699 | HA61: 16.691919 | HB61: 16.443891 | HC61: 16.939947 | HD61: 68.963988 | HE61: 0.998398 | HF61: 228121.4651
A62: 61 | B62: WASP-12b_00100_bdf.fits | C62: 61 | D62: 0 | E62: 56319.59725 | F62: 2456319.597 | G62: 2456319.597 | H62: 2456319.602 | I62: 2456319.603 | J62: 1.064029 | K62: -19.96 | L62: 100 | M62: 6.50911 | N62: 29.672297 | O62: 21.55561 | P62: 17 | Q62: 30 | R62: 45 | S62: 0.048433 | T62: 0.527415 | U62: 0.41013 | V62: 0.176198 | W62: 0.124506 | X62: 0.058653 | Y62: 0.029585 | Z62: 0.019569 | AA62: 6.4e-05 | AB62: 0.000235 | AC62: 0.00019 | AD62: 0.000109 | AE62: 9.2e-05 | AF62: 7.1e-05 | AG62: 6e-05 | AH62: 5.7e-05 | AI62: 754.950486 | AJ62: 2247.201146 | AK62: 2155.656991 | AL62: 1616.639074 | AM62: 1352.538425 | AN62: 828.253245 | AO62: 491.541491 | AP62: 345.300297 | AQ62: 24814963.62 | AR62: 5523.701864 | AS62: 2401.531498 | AT62: 2016.09603 | AU62: 2402.031498 | AV62: 2080.40397 | AW62: 6.509099 | AX62: 29.672287 | AY62: 1201859.599 | AZ62: 907.920277 | BA62: 1569.331521 | BB62: 11.697865 | BC62: 0.001437 | BD62: 765.84175 | BE62: 6271.029297 | BF62: 1323.750146 | BG62: 1524.101096 | BH62: 2987 | BI62: 19.864702 | BJ62: 17.131619 | BK62: 16.934088 | BL62: 17.329151 | BM62: 86.044156 | BN62: 0.999458 | BO62: 1194652.508 | BP62: 1892.926535 | BQ62: 1262.755177 | BR62: 1893.426535 | BS62: 2833.744823 | BT62: 6.513271 | BU62: 29.591808 | BV62: 8568588.621 | BW62: 2895.495822 | BX62: 9.453 | BY62: 0.000367 | BZ62: 2959.281984 | CA62: 34904.22266 | CB62: 9437.600237 | CC62: 1551.086772 | CD62: 19.58193 | CE62: 16.990791 | CF62: 16.861429 | CG62: 17.120152 | CH62: 279.802826 | CI62: 0.999739 | CJ62: 61883770.99 | CK62: 1160.709469 | CL62: 3179.775814 | CM62: 1161.209469 | CN62: 916.724186 | CO62: 6.519311 | CP62: 29.796408 | CQ62: 7217321.12 | CR62: 2703.047138 | CS62: 9.747 | CT62: 0.000407 | CU62: 2670.068538 | CV62: 36026.89844 | CW62: 7949.289496 | CX62: 1554.874142 | CY62: 17.54091 | CZ62: 16.011292 | DA62: 15.768905 | DB62: 16.253678 | DC62: 61.706126 | DD62: 0.996978 | DE62: 57356756.07 | DF62: 2163.646843 | DG62: 1601.343471 | DH62: 2164.146843 | DI62: 2495.156529 | DJ62: 6.51105 | DK62: 29.627978 | DL62: 3717356.634 | DM62: 2116.416068 | DN62: 10.568 | DO62: 0.000618 | DP62: 1756.439431 | DQ62: 15683.89258 | DR62: 4094.364592 | DS62: 1531.857869 | DT62: 20.050538 | DU62: 17.191627 | DV62: 17.031022 | DW62: 17.352232 | DX62: 270.354583 | DY62: 0.999651 | DZ62: 11091969.76 | EA62: 2964.929787 | EB62: 989.626003 | EC62: 2965.429787 | ED62: 3106.873997 | EE62: 6.504506 | EF62: 29.562535 | EG62: 2747529.958 | EH62: 1926.417838 | EI62: 10.984 | EJ62: 0.000761 | EK62: 1426.23781 | EL62: 12905.72168 | EM62: 3026.179752 | EN62: 1540.543018 | EO62: 18.568149 | EP62: 16.405372 | EQ62: 16.238525 | ER62: 16.572219 | ES62: 61.740689 | ET62: 0.998641 | EU62: 7303227.944 | EV62: 3797.664368 | EW62: 2084.497518 | EX62: 3798.164368 | EY62: 2012.002482 | EZ62: 6.49766 | FA62: 29.679268 | FB62: 1374825.699 | FC62: 1630.793306 | FD62: 11.697 | FE62: 0.001287 | FF62: 843.041049 | FG62: 8526.699219 | FH62: 1514.258172 | FI62: 1585.724636 | FJ62: 16.859002 | FK62: 15.707948 | FL62: 15.172536 | FM62: 16.24336 | FN62: 270.837662 | FO62: 0.99536 | FP62: 2224343.276 | FQ62: 2432.611536 | FR62: 2346.050771 | FS62: 2433.111536 | FT62: 1750.449229 | FU62: 6.508845 | FV62: 29.707551 | FW62: 713049.5447 | FX62: 1442.036761 | FY62: 12.285 | FZ62: 0.002194 | GA62: 494.473902 | GB62: 4562.192383 | GC62: 785.365811 | GD62: 1523.455026 | GE62: 19.360747 | GF62: 16.970844 | GG62: 16.713389 | GH62: 17.228299 | GI62: 88.457646 | GJ62: 0.999077 | GK62: 443648.4918 | GL62: 1206.444074 | GM62: 2258.155603 | GN62: 1206.944074 | GO62: 1838.344397 | GP62: 6.518904 | GQ62: 29.697961 | GR62: 476292.0471 | GS62: 1375.377369 | GT62: 12.782 | GU62: 0.003131 | GV62: 346.299174 | GW62: 3563.447021 | GX62: 524.596773 | GY62: 1529.281478 | GZ62: 19.191015 | HA62: 16.790032 | HB62: 16.415382 | HC62: 17.164682 | HD62: 80.54628 | HE62: 0.997777 | HF62: 205724.4228
A63: 62 | B63: WASP-12b_00101_bdf.fits | C63: 62 | D63: 0 | E63: 56319.59863 | F63: 2456319.599 | G63: 2456319.598 | H63: 2456319.603 | I63: 2456319.604 | J63: 1.061576 | K63: -19.99 | L63: 100 | M63: 6.50911 | N63: 29.672297 | O63: 21.258372 | P63: 17 | Q63: 30 | R63: 45 | S63: 0.048271 | T63: 0.527709 | U63: 0.409086 | V63: 0.176878 | W63: 0.124462 | X63: 0.058636 | Y63: 0.029589 | Z63: 0.019521 | AA63: 6.4e-05 | AB63: 0.000234 | AC63: 0.000189 | AD63: 0.000109 | AE63: 9.2e-05 | AF63: 7.1e-05 | AG63: 6e-05 | AH63: 5.6e-05 | AI63: 757.020118 | AJ63: 2255.265349 | AK63: 2162.261412 | AL63: 1624.334001 | AM63: 1353.853761 | AN63: 831.419213 | AO63: 495.070402 | AP63: 346.448409 | AQ63: 24967583.54 | AR63: 5538.102695 | AS63: 2399.427254 | AT63: 2014.512333 | AU63: 2399.927254 | AV63: 2081.987667 | AW63: 6.509098 | AX63: 29.67228 | AY63: 1205205.744 | AZ63: 907.920277 | BA63: 1569.434395 | BB63: 11.701503 | BC63: 0.001433 | BD63: 767.923621 | BE63: 6751.605469 | BF63: 1327.435651 | BG63: 1530.056399 | BH63: 3029 | BI63: 19.364863 | BJ63: 16.881399 | BK63: 16.600771 | BL63: 17.162028 | BM63: 79.515636 | BN63: 0.998733 | BO63: 1335055.221 | BP63: 1890.714409 | BQ63: 1261.215395 | BR63: 1891.214409 | BS63: 2835.284605 | BT63: 6.513271 | BU63: 29.591808 | BV63: 8624425.853 | BW63: 2903.562138 | BX63: 9.453 | BY63: 0.000365 | BZ63: 2970.291471 | CA63: 36669.56641 | CB63: 9499.100386 | CC63: 1556.048276 | CD63: 19.396295 | CE63: 16.824622 | CF63: 16.634 | CG63: 17.015243 | CH63: 86.599256 | CI63: 0.999479 | CJ63: 68376954.64 | CK63: 1158.41173 | CL63: 3178.13583 | CM63: 1158.91173 | CN63: 918.36417 | CO63: 6.519311 | CP63: 29.796397 | CQ63: 7248593.357 | CR63: 2707.834704 | CS63: 9.747 | CT63: 0.000406 | CU63: 2676.896543 | CV63: 38254.875 | CW63: 7983.73331 | CX63: 1555.687065 | CY63: 17.298009 | CZ63: 15.835255 | DA63: 15.582695 | DB63: 16.087814 | DC63: 60.036535 | DD63: 0.99595 | DE63: 63007332.29 | DF63: 2161.443555 | DG63: 1599.737531 | DH63: 2161.943555 | DI63: 2496.762469 | DJ63: 6.51105 | DK63: 29.627969 | DL63: 3752491.171 | DM63: 2125.725497 | DN63: 10.568 | DO63: 0.000615 | DP63: 1765.275515 | DQ63: 17224.26953 | DR63: 4133.062414 | DS63: 1535.082384 | DT63: 19.650431 | DU63: 16.991335 | DV63: 16.764429 | DW63: 17.21824 | DX63: 76.531451 | DY63: 0.999103 | DZ63: 12467718.16 | EA63: 2962.735761 | EB63: 987.989525 | EC63: 2963.235761 | ED63: 3108.510475 | EE63: 6.504505 | EF63: 29.562528 | EG63: 2763560.596 | EH63: 1936.412828 | EI63: 10.984 | EJ63: 0.000761 | EK63: 1427.154663 | EL63: 14127.8457 | EM63: 3043.83619 | EN63: 1546.327259 | EO63: 18.35724 | EP63: 16.243257 | EQ63: 16.06074 | ER63: 16.425775 | ES63: 59.887844 | ET63: 0.997953 | EU63: 8021850.209 | EV63: 3795.380237 | EW63: 2082.999282 | EX63: 3795.880237 | EY63: 2013.500718 | EZ63: 6.497659 | FA63: 29.679272 | FB63: 1382904.023 | FC63: 1634.110071 | FD63: 11.697 | FE63: 0.001282 | FF63: 846.273484 | FG63: 9090.461914 | FH63: 1523.155786 | FI63: 1593.614125 | FJ63: 16.714163 | FK63: 15.490698 | FL63: 14.855432 | FM63: 16.125964 | FN63: 87.669713 | FO63: 0.993251 | FP63: 2427155.423 | FQ63: 2430.516763 | FR63: 2344.498777 | FS63: 2431.016763 | FT63: 1752.001223 | FU63: 6.508843 | FV63: 29.707546 | FW63: 717544.0996 | FX63: 1440.715279 | FY63: 12.285 | FZ63: 0.002178 | GA63: 498.047123 | GB63: 4873.630859 | GC63: 790.316196 | GD63: 1529.82994 | GE63: 19.053255 | GF63: 16.792165 | GG63: 16.538261 | GH63: 17.046069 | GI63: 80.016326 | GJ63: 0.998965 | GK63: 485369.4268 | GL63: 1204.125712 | GM63: 2256.526406 | GN63: 1204.625712 | GO63: 1839.973594 | GP63: 6.518904 | GQ63: 29.697951 | GR63: 478064.4384 | GS63: 1375.921445 | GT63: 12.782 | GU63: 0.00312 | GV63: 347.450387 | GW63: 3804.768066 | GX63: 526.548917 | GY63: 1534.537204 | GZ63: 18.677109 | HA63: 16.595254 | HB63: 16.230326 | HC63: 16.960182 | HD63: 79.693986 | HE63: 0.997794 | HF63: 230099.3968
A64: 63 | B64: WASP-12b_00102_bdf.fits | C64: 63 | D64: 0 | E64: 56319.60001 | F64: 2456319.6 | G64: 2456319.599 | H64: 2456319.605 | I64: 2456319.606 | J64: 1.059188 | K64: -20 | L64: 100 | M64: 6.50911 | N64: 29.672297 | O64: 21.289453 | P64: 17 | Q64: 30 | R64: 45 | S64: 0.048327 | T64: 0.527697 | U64: 0.410235 | V64: 0.175988 | W64: 0.124379 | X64: 0.058746 | Y64: 0.029668 | Z64: 0.019484 | AA64: 6.5e-05 | AB64: 0.000236 | AC64: 0.000191 | AD64: 0.00011 | AE64: 9.3e-05 | AF64: 7.1e-05 | AG64: 6.1e-05 | AH64: 5.7e-05 | AI64: 747.94118 | AJ64: 2233.729628 | AK64: 2142.669962 | AL64: 1605.194533 | AM64: 1341.27976 | AN64: 823.798208 | AO64: 487.667014 | AP64: 340.456538 | AQ64: 24626337.66 | AR64: 5518.227182 | AS64: 2401.14183 | AT64: 2015.266611 | AU64: 2401.64183 | AV64: 2081.233389 | AW64: 6.509098 | AX64: 29.672281 | AY64: 1190114.653 | AZ64: 907.920277 | BA64: 1568.68099 | BB64: 11.700242 | BC64: 0.001451 | BD64: 758.672197 | BE64: 6659.222168 | BF64: 1310.814048 | BG64: 1538.027476 | BH64: 2997 | BI64: 19.332444 | BJ64: 17.234841 | BK64: 17.107576 | BL64: 17.362105 | BM64: 83.886547 | BN64: 0.999772 | BO64: 1182196.329 | BP64: 1892.362002 | BQ64: 1261.855974 | BR64: 1892.862002 | BS64: 2834.644026 | BT64: 6.513271 | BU64: 29.591799 | BV64: 8506429.262 | BW64: 2889.130979 | BX64: 9.453 | BY64: 0.000369 | BZ64: 2944.286473 | CA64: 37012.46094 | CB64: 9369.136783 | CC64: 1565.490779 | CD64: 19.761546 | CE64: 17.201945 | CF64: 17.122774 | CG64: 17.281117 | CH64: 83.50987 | CI64: 0.999911 | CJ64: 59685467.08 | CK64: 1160.09151 | CL64: 3178.951342 | CM64: 1160.59151 | CN64: 917.548658 | CO64: 6.519311 | CP64: 29.7964 | CQ64: 7163758.114 | CR64: 2697.858897 | CS64: 9.747 | CT64: 0.000409 | CU64: 2655.349441 | CV64: 37431.91016 | CW64: 7890.294221 | CX64: 1568.143717 | CY64: 17.296205 | CZ64: 16.215058 | DA64: 16.107667 | DB64: 16.322449 | DC64: 52.764225 | DD64: 0.997552 | DE64: 55491387.43 | DF64: 2163.134949 | DG64: 1600.473868 | DH64: 2163.634949 | DI64: 2496.026132 | DJ64: 6.51105 | DK64: 29.627969 | DL64: 3685353.625 | DM64: 2113.371423 | DN64: 10.568 | DO64: 0.000622 | DP64: 1743.826752 | DQ64: 16654.24023 | DR64: 4059.115892 | DS64: 1544.271202 | DT64: 19.757756 | DU64: 17.310147 | DV64: 17.237907 | DW64: 17.382387 | DX64: 74.378859 | DY64: 0.999905 | DZ64: 10925023.24 | EA64: 2964.364849 | EB64: 988.726036 | EC64: 2964.864849 | ED64: 3107.773964 | EE64: 6.504505 | EF64: 29.562526 | EG64: 2724169.496 | EH64: 1926.496841 | EI64: 10.984 | EJ64: 0.000768 | EK64: 1414.053446 | EL64: 13466.25879 | EM64: 3000.450112 | EN64: 1555.038918 | EO64: 18.313567 | EP64: 16.612496 | EQ64: 16.533402 | ER64: 16.691591 | ES64: 53.368454 | ET64: 0.998907 | EU64: 7038121.626 | EV64: 3796.987507 | EW64: 2083.786348 | EX64: 3797.487507 | EY64: 2012.713652 | EZ64: 6.49766 | FA64: 29.679275 | FB64: 1366417.58 | FC64: 1629.507783 | FD64: 11.697 | FE64: 0.001294 | FF64: 838.546213 | FG64: 8900.667969 | FH64: 1504.997317 | FI64: 1602.402427 | FJ64: 16.688634 | FK64: 15.915482 | FL64: 15.49307 | FM64: 16.337894 | FN64: 88.358405 | FO64: 0.997177 | FP64: 2151681.723 | FQ64: 2432.184655 | FR64: 2345.308267 | FS64: 2432.684655 | FT64: 1751.191733 | FU64: 6.508844 | FV64: 29.707552 | FW64: 709567.2674 | FX64: 1446.421039 | FY64: 12.285 | FZ64: 0.002211 | GA64: 490.567579 | GB64: 4794.494141 | GC64: 781.530367 | GD64: 1536.76873 | GE64: 19.124689 | GF64: 17.107241 | GG64: 16.990606 | GH64: 17.223876 | GI64: 72.138519 | GJ64: 0.999718 | GK64: 436825.6635 | GL64: 1205.79139 | GM64: 2257.249556 | GN64: 1206.29139 | GO64: 1839.250444 | GP64: 6.518905 | GQ64: 29.697948 | GR64: 470642.3143 | GS64: 1378.460191 | GT64: 12.782 | GU64: 0.003175 | GV64: 341.42612 | GW64: 3749.175537 | GX64: 518.374054 | GY64: 1544.269549 | GZ64: 18.78241 | HA64: 16.96672 | HB64: 16.672697 | HC64: 17.260743 | HD64: 83.11922 | HE64: 0.998727 | HF64: 199812.5496
A65: 64 | B65: WASP-12b_00103_bdf.fits | C65: 64 | D65: 0 | E65: 56319.60139 | F65: 2456319.601 | G65: 2456319.601 | H65: 2456319.606 | I65: 2456319.607 | J65: 1.056864 | K65: -20.03 | L65: 100 | M65: 6.50911 | N65: 29.672297 | O65: 21.897241 | P65: 17 | Q65: 30 | R65: 45 | S65: 0.048335 | T65: 0.52749 | U65: 0.410054 | V65: 0.176511 | W65: 0.124362 | X65: 0.058707 | Y65: 0.029575 | Z65: 0.019418 | AA65: 6.4e-05 | AB65: 0.000235 | AC65: 0.00019 | AD65: 0.000109 | AE65: 9.2e-05 | AF65: 7.1e-05 | AG65: 6e-05 | AH65: 5.7e-05 | AI65: 753.18476 | AJ65: 2247.607072 | AK65: 2156.741 | AL65: 1616.855367 | AM65: 1350.769189 | AN65: 828.581827 | AO65: 492.165682 | AP65: 342.629106 | AQ65: 24861778.88 | AR65: 5533.606615 | AS65: 2398.546209 | AT65: 2017.047475 | AU65: 2399.046209 | AV65: 2079.452525 | AW65: 6.509099 | AX65: 29.67229 | AY65: 1201686.747 | AZ65: 907.920277 | BA65: 1572.895363 | BB65: 11.700067 | BC65: 0.001441 | BD65: 763.996624 | BE65: 6293.756836 | BF65: 1323.559764 | BG65: 1534.26535 | BH65: 3016 | BI65: 20.145539 | BJ65: 17.320476 | BK65: 17.250447 | BL65: 17.390505 | BM65: 302.329354 | BN65: 0.999643 | BO65: 1138008.669 | BP65: 1889.840083 | BQ65: 1263.67164 | BR65: 1890.340083 | BS65: 2832.82836 | BT65: 6.513272 | BU65: 29.591811 | BV65: 8585543.433 | BW65: 2900.305421 | BX65: 9.453 | BY65: 0.000367 | BZ65: 2960.220454 | CA65: 33314.53516 | CB65: 9456.274577 | CC65: 1562.923685 | CD65: 20.076668 | CE65: 17.188872 | CF65: 17.215478 | CG65: 17.162267 | CH65: 318.928136 | CI65: 0.999487 | CJ65: 58807337.61 | CK65: 1157.709638 | CL65: 3180.639411 | CM65: 1158.209638 | CN65: 915.860589 | CO65: 6.519311 | CP65: 29.79641 | CQ65: 7229991.871 | CR65: 2705.517071 | CS65: 9.747 | CT65: 0.000406 | CU65: 2672.314268 | CV65: 34095.18359 | CW65: 7963.245293 | CX65: 1562.628698 | CY65: 17.823215 | CZ65: 16.213671 | DA65: 16.176303 | DB65: 16.251039 | DC65: 49.406968 | DD65: 0.999095 | DE65: 53934734.32 | DF65: 2160.57739 | DG65: 1602.247416 | DH65: 2161.07739 | DI65: 2494.252584 | DJ65: 6.511051 | DK65: 29.627977 | DL65: 3729988.596 | DM65: 2123.302621 | DN65: 10.568 | DO65: 0.000618 | DP65: 1756.691938 | DQ65: 15587.44629 | DR65: 4108.277666 | DS65: 1541.827606 | DT65: 20.319892 | DU65: 17.327046 | DV65: 17.297267 | DW65: 17.356825 | DX65: 308.626013 | DY65: 0.999757 | DZ65: 10752961.22 | EA65: 2961.957477 | EB65: 990.499636 | EC65: 2962.457477 | ED65: 3106.000364 | EE65: 6.504505 | EF65: 29.562535 | EG65: 2749883.113 | EH65: 1930.939818 | EI65: 10.984 | EJ65: 0.000762 | EK65: 1424.116426 | EL65: 12644.85156 | EM65: 3028.771559 | EN65: 1554.005325 | EO65: 18.839789 | EP65: 16.545589 | EQ65: 16.576472 | ER65: 16.514705 | ES65: 38.10345 | ET65: 0.999755 | EU65: 6995856.062 | EV65: 3794.639233 | EW65: 2085.42522 | EX65: 3795.139233 | EY65: 2011.07478 | EZ65: 6.49766 | FA65: 29.67927 | FB65: 1378635.528 | FC65: 1634.646233 | FD65: 11.697 | FE65: 0.001287 | FF65: 843.384642 | FG65: 8340.90332 | FH65: 1518.454387 | FI65: 1601.091772 | FJ65: 17.333742 | FK65: 15.93605 | FL65: 15.577114 | FM65: 16.294985 | FN65: 278.684449 | FO65: 0.997775 | FP65: 2098210.842 | FQ65: 2429.725627 | FR65: 2346.957198 | FS65: 2430.225627 | FT65: 1749.542802 | FU65: 6.508844 | FV65: 29.707549 | FW65: 714162.3387 | FX65: 1442.433428 | FY65: 12.285 | FZ65: 0.002191 | GA65: 495.109393 | GB65: 4502.65332 | GC65: 786.591463 | GD65: 1538.682291 | GE65: 19.753016 | GF65: 17.175147 | GG65: 17.0735 | GH65: 17.276794 | GI65: 293.407357 | GJ65: 0.999701 | GK65: 422771.4323 | GL65: 1203.479192 | GM65: 2258.897808 | GN65: 1203.979192 | GO65: 1837.602192 | GP65: 6.518904 | GQ65: 29.697946 | GR65: 473573.9967 | GS65: 1378.25357 | GT65: 12.782 | GU65: 0.003155 | GV65: 343.604404 | GW65: 3479.160645 | GX65: 521.603062 | GY65: 1543.546555 | GZ65: 19.596614 | HA65: 16.908594 | HB65: 16.668581 | HC65: 17.148607 | HD65: 276.803278 | HE65: 0.999147 | HF65: 197093.2811
